Workbook

Sheet 목차
A1: 목차
A2: 1-1) 주요국의 연구개발 관련 주요 지표
A3: 1-2) 주요국의 연구개발비 및 GDP 대비 연구개발비 비율
A4: 1-3) 주요국의 연구원(FTE) 1인당 연구개발비
A5: 1-4) 주요국의 연구원 및 인구 만명당 연구원
A6: 1-5) 주요국의 연구개발단계별 연구개발비 비중
A7: 1-6) 주요국의 연구수행주체별 연구개발비 비중
A8: 1-7) 주요국의 기업 연구개발비 대비 하이테크산업 연구개발비 비중
A9: 1-8) 주요국의 연구개발인력(FTE 기준)
A10: 1-9) 주요국의 정부연구개발예산
A11: 2-1) 연구개발비 및 GDP 대비 연구개발비 비율
A12: 2-2) 재원별 연구개발비
A13: 2-3) 연구수행주체별 연구개발비
A14: 2-4) 비목별 연구개발비
A15: 2-5) 연구개발단계별 연구개발비
A16: 2-6) 연구원 1인당 연구개발비
A17: 2-7) 인구 만명당 연구개발인력 및 연구원
A18: 2-8) 전공별·학위별 연구원
A19: 2-9) 연구개발수행기관 및 성별 연구원
A20: 2-10) 2024년도 연구수행주체별 연구개발비(재원, 비목, 연구개발단계)
A21: 2-11) 2024년도 연구수행주체별 외부로부터 받은 연구개발비 및 외부로 지출한 연구개발비
A22: 2-12) 2024년도 연구수행주체별 연구개발인력, 연구원(전공, 학위), 연구원 1인당 연구개발비
A23: 2-13) 2024년도 전공별 연구원(학위·성)
A24: 2-14) 2024년도 연구수행주체별 연구원(연령·성)
A25: 2-15) 2024년도 연구수행주체별 연구개발인력(총수, 상근상당)
A26: 2-16) 2024년도 연구수행주체별 연구개발비(지입, 부담, 지출, 사용)
A27: 2-17-1) 2024년도 연구수행주체별 연구개발비(경제사회목적)
A28: 2-17-2) 2024년도 연구수행주체별 연구개발비 비중(경제사회목적)
A29: 2-18-1) 2024년도 연구수행주체별 연구개발비(지역)
A30: 2-18-2) 2024년도 연구수행주체별 연구개발비 비중(지역)
A31: 2-19-1) 2024년도 연구수행주체별 연구개발인력(지역)
A32: 2-19-2) 2024년도 연구수행주체별 연구개발인력 비중(지역)
A33: 2-19-3) 2024년도 연구수행주체별 연구원(지역)
A34: 2-19-4) 2024년도 연구수행주체별 연구원 비중(지역)
A35: 2-19-5) 2024년도 연구수행주체별 여성연구개발인력(지역)
A36: 2-19-6) 2024년도 연구수행주체별 여성연구개발인력 비중(지역)
A37: 2-19-7) 2024년도 연구수행주체별 여성연구원(지역)
A38: 2-19-8) 2024년도 연구수행주체별 여성연구원 비중(지역)
A39: 2-20-1) 2024년도 연구수행주체별 연구개발수행조직(지역)
A40: 2-20-2) 2024년도 연구수행주체별 연구개발수행조직 비중(지역)
A41: 2-21) 2024년도 연구개발분야별 연구개발비(연구개발단계), 연구개발인력, 연구원 1인당 연구개발비 [공공연구기관]
A42: 2-22) 2024년도 연구개발분야별 연구개발비(재원, 비목) [공공연구기관]
A43: 2-23) 2024년도 연구개발분야별 연구원(전공·성) [공공연구기관]
A44: 2-24) 2024년도 전공별 연구원(학위·성) [공공연구기관]
A45: 2-25) 2024년도 연구개발분야별 연구원(연령·성) 및 상근상당 연구원 [공공연구기관]
A46: 2-26) 2024년도 조직형태별 연구개발수행기관(연구개발분야) [공공연구기관]
A47: 2-27) 2024년도 조직형태별 연구개발비(연구개발 분야) [대학]
A48: 2-28) 2024년도 조직형태별 연구개발비(재원, 비목) [대학]
A49: 2-29) 2024년도 전공별 연구원(학위·성) [대학]
A50: 2-30) 2024년도 산업별·종업원 규모별 연구개발비(재원, 비목, 용도) [기업체]
A51: 2-31) 2024년도 산업별·자본금 규모별 연구개발비(재원, 비목, 용도) [기업체]
A52: 2-32) 2024년도 산업별·매출액 규모별 연구개발비(재원, 비목, 용도) [기업체]
A53: 2-33) 2024년도 산업별·연구원 규모별 연구개발비(재원, 비목, 용도) [기업체]
A54: 2-34) 2024년도 산업별·연구개발비 규모별 연구개발비(재원, 비목, 용도) [기업체]
A55: 2-35) 2024년도 산업별·종업원 규모별 연구개발비(연구개발단계별), 연구개발인력, 연구원 1인당 연구개발비 [기업체]
A56: 2-36) 2024년도 산업별·자본금 규모별 연구개발비(연구개발단계별), 연구개발인력, 연구원 1인당 연구개발비 [기업체]
A57: 2-37) 2024년도 산업별·매출액 규모별 연구개발비(연구개발단계별), 연구개발인력, 연구원 1인당 연구개발비 [기업체]
A58: 2-38) 2024년도 산업별·연구원 규모별 연구개발비(연구개발단계별), 연구개발인력, 연구원 1인당 연구개발비 [기업체]
A59: 2-39) 2024년도 산업별·연구개발비 규모별 연구개발비(연구개발단계별), 연구개발인력, 연구원 1인당 연구개발비 [기업체]
A60: 2-40) 2024년도 산업별·종업원 규모별 매출액 대비 연구개발비(지입, 부담, 지출, 사용) [기업체]
A61: 2-41) 2024년도 산업별·자본금 규모별 매출액 대비 연구개발비(지입, 부담, 지출, 사용) [기업체]
A62: 2-42) 2024년도 산업별·기업유형별 매출액 대비 연구개발비(지입, 부담, 지출, 사용) [기업체]
A63: 2-43) 2024년도 산업별·종업원 규모별 연구원 1인당 연구개발비 및 종업원 천명당 연구원수 [기업체]
A64: 2-44) 2024년도 산업별·자본금 규모별 연구원 1인당 연구개발비 및 종업원 천명당 연구원수 [기업체]
A65: 2-45) 2024년도 산업별 연구원(연령·성) 및 상근상당 연구원 [기업체]
A66: 2-46) 2024년도 산업별 연구원(전공·성) [기업체]
A67: 2-47) 2024년도 전공별 연구원(학위·성) [기업체]
A68: 2-48) 2024년도 산업별 연구원(학위·성) [기업체]
A69: 2-49) 2024년도 산업별 연구개발비 집중도 [기업체]
A70: 2-50) 2024년도 산업별 연구원 집중도 [기업체]
A71: 2-51) 2024년도 산업별 매출액 집중도 [기업체]
A72: 2-52-1) 2024년도 연구수행주체별 연구개발비(기술분류)
A73: 2-52-2) 2024년도 연구수행주체별 연구개발비 비중(기술분류)
A74: 2-53-1) 2024년도 연구수행주체별 연구개발비(6T)
A75: 2-53-2) 2024년도 연구수행주체별 연구개발비 비중(6T)
A76: 2-54-1) 2024년도 연구수행주체별 연구개발비(연구개발분야)
A77: 2-54-2) 2024년도 연구수행주체별 연구개발비 비중(연구개발분야)
A78: 3-1) 연구수행주체별 연구개발비 [미국]
A79: 3-2) 재원별 연구개발비 [미국]
A80: 3-3) 연구개발단계별 연구개발비 [미국]
A81: 3-4) 연구원 및 취업자 천명당 연구원 [미국]
A82: 3-5) 산업별 연구개발비 [미국]
A83: 3-6) 연구수행주체별 연구개발비 [일본]
A84: 3-7) 재원별 연구개발비 [일본]
A85: 3-8) 연구개발단계별 연구개발비 [일본]
A86: 3-9) 연구원 및 취업자 천명당 연구원 [일본]
A87: 3-10) 산업별 연구개발비 [일본]
A88: 3-11) 연구수행주체별 연구개발비 [독일]
A89: 3-12) 재원별 연구개발비 [독일]
A90: 3-13) 연구원 및 취업자 천명당 연구원 [독일]
A91: 3-14) 산업별 연구개발비 [독일]
A92: 3-15) 연구수행주체별 연구개발비 [프랑스]
A93: 3-16) 재원별 연구개발비 [프랑스]
A94: 3-17) 연구개발단계별 연구개발비 [프랑스]
A95: 3-18) 연구원 및 취업자 천명당 연구원 [프랑스]
A96: 3-19) 산업별 연구개발비 [프랑스]
A97: 3-20) 연구수행주체별 연구개발비 [영국]
A98: 3-21) 재원별 연구개발비 [영국]
A99: 3-22) 연구개발단계별 연구개발비 [영국]
A100: 3-23) 연구원 및 취업자 천명당 연구원 [영국]
A101: 3-24) 산업별 연구개발비 [영국]
A102: 3-25) 연구수행주체별 연구개발비 [중국]
A103: 3-26) 재원별 연구개발비 [중국]
A104: 3-27) 연구개발단계별 연구개발비 [중국]
A105: 3-28) 연구원 및 취업자 천명당 연구원 [중국]
A106: 3-29) 산업별 연구개발비 [중국]

Sheet 1-1
A1: 1. 연구개발활동 국제비교
A2: International Comparison of R&D Activities
A4: 1-1) 주요국의 연구개발 관련 주요 지표
A5: Main indicators concerning R&D activities in major countries
A7: 지표 Indicators | B7: 단위 Unit | C7: 한국 (2024) Korea | D7: 미국 (2023) United States | E7: 일본 (2023) Japan | F7: 독일 (2023) Germany | G7: 프랑스 (2023) France | H7: 영국 (2023) United Kingdom | I7: 중국 (2023) China
A8: ㅇ 연구개발비 R&D expenditure | B8: 억 달러(PPP) USD, 0.1 billions | C8: 1562.124488 | D8: 9555.78 | E8: 2138.035465 | F8: 1817.740114 | G8: 867.4880415 | H8: 1061.557016 | I8: 9154.628102
A9: - 배율(한국을 1로 본 경우) Multiplier | B9: 배 | C9: =C8/$C$8 -> 1 | D9: =D8/$C$8 -> 6.117169325 | E9: =E8/$C$8 -> 1.368671627 | F9: 1.163633326 | G9: 0.5553258067 | H9: 0.6795598075 | I9: 5.860370395
A10: - GDP 대비 As a percent of GDP | B10: % | C10: 5.125284062 | D10: 3.447162913 | E10: 3.44124934 | F10: 3.128664165 | G10: 2.18 | H10: 2.68 | I10: 2.58
A11: - 정부 : 민간 Gov't vs Business enterprise | B11: % | C11: 21 : 79 | D11: 24 : 76 | E11: 21 : 79 | F11: 30 : 70 | G11: 37 : 63 | H11: 32 : 68 | I11: 17 : 80
A12: ㅇ 연구원 Researchers | B12: 천 명(FTE) 1,000 Person | C12: 503.345868 | D12: 1,681.7 (2022) | E12: 699.2 | F12: 500.2 | G12: 356.4 | H12: 295.8 (2017) | I12: 3001.3
A13: - 배율 Multiplier | B13: 배 | C13: =C12/$C$12 -> 1 | D13: =1681.7/$C$12 -> 3.341042625 | E13: =E12/$C$12 -> 1.38910448 | F13: 0.9937500867 | G13: 0.7080618371 | H13: =295.8/$C$12 -> 0.5876674843 | I13: 5.962699191
A14: - 인구만명당 Researchers per 10,000 population | B14: 명 Person | C14: 97.5 | D14: 50.3 | E14: 56.2 | F14: 60.1 | G14: 52.1 | H14: 44.79739552 | I14: 21.3
A15: - 연구원 1인당 연구개발비 R&D expenditure per researcher | B15: 천 달러(ppp) 1,000 USD | C15: 310.3 | D15: 539.3 | E15: 305.8 | F15: 363.4 | G15: 243.4 | H15: 210.7298269 | I15: 305
A16: ㅇ 특허 Patent
A17: - 삼극특허 건수(2022) Number of triadic patent families | B17: 건 Case | C17: 4248 | D17: 15193 | E17: 16425 | F17: 4435 | G17: 2099 | H17: 1966 | I17: 7480
A18: - PCT 출원건수(2022) Number of PCT Filings | B18: 건 Case | C18: 20881 | D18: 54046 | E18: 44922 | F18: 17146 | G18: 7403 | H18: 6245 | I18: 67992
A19: ㅇ 과학기술논문발표건수(2024) Number of scientific and technical papers | B19: 천 건 1,000 Case | C19: 78.7 | D19: 435.2 | E19: 86.4 | F19: 128.4 | G19: 80.1 | H19: 150.1 | I19: 839
A21: 주 : 1. 연구원은 상근상당 연구원 기준임
A22: 2. 중국은 정부재원과 민간재원의 비중 합이 100.0%가 되지 않음
A23: 3. 연구개발비 하위 항목 중 '정부:민간'에서 정부는 정부재원과 공공재원을, 민간은 민간재원과 외국재원을 포함함

Sheet 1-2
A1: 1-2) 주요국의 연구개발비 및 GDP 대비 연구개발비 비율
A2: R&D expenditure and as a percentage of GDP in major countries
O4: (단위 : 백만 달러 / Unit : PPP USD, Millions)
A5: 연도별 Year | B5: 한국 Korea | D5: 미국 United States | F5: 일본 Japan | H5: 독일 Germany | J5: 프랑스 France | L5: 영국 United Kingdom | N5: 중국 China
C6: GDP 대비(%) As a percent of GDP(%) | E6: GDP 대비(%) As a percent of GDP(%) | G6: GDP 대비(%) As a percent of GDP(%) | I6: GDP 대비(%) As a percent of GDP(%) | K6: GDP 대비(%) As a percent of GDP(%) | M6: GDP 대비(%) As a percent of GDP(%) | O6: GDP 대비(%) As a percent of GDP(%)
A7: 1991 | B7: 5670.633581 | C7: 1.714954691 | D7: 161391 | E7: 2.620779786 | F7: 95940.99749 | G7: 2.629913501 | H7: 44604.77779 | I7: 2.386656577 | J7: 28906.23083 | K7: 2.27747064 | L7: 21396.25936 | M7: 1.872320461 | N7: 2995.458535 | O7: 0.7246337296
A8: 1992 | B8: 6390.69732 | C8: 1.797584715 | D8: 165838 | E8: 2.543400047 | F8: 102652.7846 | G8: 2.57876092 | H8: 48453.94446 | I8: 2.273039026 | J8: 31995.24063 | K8: 2.283088518 | L8: 21703.34203 | M8: 1.839713168 | N8: 3591.018157 | O8: 0.7281987167
A9: 1993 | B9: 7666.902311 | C9: 1.952204334 | D9: 166153 | E9: 2.422564273 | F9: 114542.1313 | G9: 2.524655489 | H9: 45691.12957 | I9: 2.205968539 | J9: 30675.24529 | K9: 2.318812289 | L9: 19781.11966 | M9: 1.863581515 | N9: 4304.266015 | O9: 0.69522779
A10: 1994 | B10: 9822.125268 | C10: 2.119432452 | D10: 169621 | E10: 2.327645214 | F10: 123541.3898 | G10: 2.471422294 | H10: 46885.30504 | I10: 2.126300029 | J10: 31621.31419 | K10: 2.268425747 | L10: 20942.20165 | M10: 1.836322256 | N10: 3553.418405 | O10: 0.6296787458
A11: 1995 | B11: 12240.58994 | C11: 2.160377108 | D11: 184086 | E11: 2.409581781 | F11: 142133.8894 | G11: 2.563019132 | H11: 55208.09581 | I11: 2.135198115 | J11: 35879.58452 | K11: 2.241079151 | L11: 22146.45524 | M11: 1.645044937 | N11: 4175.219606 | O11: 0.5684554425
A12: 1996 | B12: 13522.21839 | C12: 2.216161975 | D12: 197802 | E12: 2.450130197 | F12: 130126.6842 | G12: 2.643028325 | H12: 53557.65624 | I12: 2.144611477 | J12: 35692.94993 | K12: 2.222799402 | L12: 22366.52012 | M12: 1.573209783 | N12: 4864.944507 | O12: 0.563235933
A13: 1997 | B13: 12828.65069 | C13: 2.248296408 | D13: 212478 | E13: 2.477140331 | F13: 122273.9439 | G13: 2.721765284 | H13: 48404.94852 | I13: 2.188321291 | J13: 31193.35262 | K13: 2.146989216 | L13: 23994.32908 | M13: 1.53640854 | N13: 6141.993243 | O13: 0.6387254594
A14: 1998 | B14: 8079.212982 | C14: 2.110255795 | D14: 226227 | E14: 2.496210615 | F14: 115879.211 | G14: 2.827451354 | H14: 49618.71015 | I14: 2.216129308 | J14: 31487.36032 | K14: 2.094757636 | L14: 25594.36858 | M14: 1.546491737 | N14: 6656.876385 | O14: 0.6468886267
A15: 1999 | B15: 10023.00271 | C15: 2.015671913 | D15: 244980 | E15: 2.543615668 | F15: 131973.3268 | G15: 2.84671783 | H15: 51532.76144 | I15: 2.347792355 | J15: 31470.67459 | K15: 2.107667383 | L15: 27390.09163 | M15: 1.621284094 | N15: 8201.008667 | O15: 0.7496323059
A16: 2000 | B16: 12251.38042 | C16: 2.125194895 | D16: 268558 | E16: 2.619834724 | F16: 142015.9818 | G16: 2.858408118 | H16: 46942.81175 | I16: 2.409817362 | J16: 28589.13554 | K16: 2.093460978 | L16: 26807.63953 | M16: 1.609055318 | N16: 10819.16491 | O16: 0.8931632497
A17: 2001 | B17: 21290.52391 | C17: 2.198718995 | D17: 279061 | E17: 2.637146781 | F17: 103866.7865 | G17: 2.923484997 | H17: 56186.2635 | I17: 2.40437244 | J17: 36073.41123 | K17: 2.138042517 | L17: 26330.60342 | M17: 1.595449053 | N17: 38373.39109 | O17: 0.9403309126
A18: 2002 | B18: 22506.77568 | C18: 2.130415626 | D18: 278414 | E18: 2.54745401 | F18: 108166.2253 | G18: 2.965137192 | H18: 58637.42531 | I18: 2.40856456 | J18: 38334.72774 | K18: 2.187580908 | L18: 27871.36259 | M18: 1.613829999 | N18: 48007.46162 | O18: 1.044181462
A19: 2003 | B19: 24098.10752 | C19: 2.196572764 | D19: 292157 | E19: 2.550152971 | F19: 112362.1308 | G19: 2.993195203 | H19: 61087.84781 | I19: 2.442322999 | J19: 37177.38427 | K19: 2.130852649 | L19: 28595.81613 | M19: 1.581305122 | N19: 57030.47038 | O19: 1.104649035
A20: 2004 | B20: 27916.22102 | C20: 2.352920693 | D20: 303824 | E20: 2.486855413 | F20: 117429.96 | G20: 2.981245971 | H20: 62964.83906 | I20: 2.402776358 | J20: 38169.81806 | K20: 2.104382926 | L20: 29438.09146 | M20: 1.530888672 | N20: 69908.07145 | O20: 1.197317144
A21: 2005 | B21: 30618.32565 | C21: 2.427251636 | D21: 326231 | E21: 2.50192554 | F21: 128694.5614 | G21: 3.130918982 | H21: 64028.3314 | I21: 2.40265936 | J21: 39530.06331 | K21: 2.055996776 | L21: 30639.65144 | M21: 1.550042216 | N21: 86587.95473 | O21: 1.290087595
A22: 2006 | B22: 35411.98111 | C22: 2.615154105 | D22: 351669 | E22: 2.545451755 | F22: 138799.5905 | G22: 3.227655613 | H22: 69570.69043 | I22: 2.430433933 | J22: 42365.84266 | K22: 2.053304654 | L22: 33314.25797 | M22: 1.576256863 | N22: 105182.008 | O22: 1.349230923
A23: 2007 | B23: 40646.62457 | C23: 2.758945599 | D23: 378524 | E23: 2.615158473 | F23: 147575.7515 | G23: 3.292571953 | H23: 73467.92172 | I23: 2.419182526 | J23: 44231.85922 | K23: 2.028152442 | L23: 35252.61744 | M23: 1.618298474 | N23: 123682.3038 | O23: 1.353215428
A24: 2008 | B24: 43906.41276 | C24: 2.86773325 | D24: 405405 | E24: 2.744812375 | F24: 148719.2346 | G24: 3.292238812 | H24: 81172.63725 | I24: 2.571915784 | J24: 46567.08548 | K24: 2.063634623 | L24: 36542.01863 | M24: 1.609011734 | N24: 145416.7767 | O24: 1.42330202
A25: 2009 | B25: 45784.09914 | C25: 3.021455912 | D25: 404200 | E25: 2.791809155 | F25: 137283.9345 | G25: 3.195898318 | H25: 82697.11207 | I25: 2.689612185 | J25: 49635.39766 | K25: 2.212729997 | L25: 36422.76059 | M25: 1.669910034 | N25: 184059.7903 | O25: 1.636601775
A26: 2010 | B26: 52146.57191 | C26: 3.179130089 | D26: 408495 | E26: 2.714438084 | F26: 140511.5072 | G26: 3.104951313 | H26: 86954.77783 | I26: 2.677141377 | J26: 50853.85228 | K26: 2.177715247 | L26: 37533.21815 | M26: 1.638864246 | N26: 212074.8694 | O26: 1.684560861
A27: 2011 | B27: 58379.65416 | C27: 3.444101844 | D27: 427125 | E27: 2.738027807 | F27: 148389.2294 | G27: 3.205366018 | H27: 95809.96574 | I27: 2.75105746 | J27: 53617.29147 | K27: 2.187605273 | L27: 38778.58662 | M27: 1.646810097 | N27: 246477.1995 | O27: 1.752446261
A28: 2012 | B28: 64862.48855 | C28: 3.685191076 | D28: 434424 | E28: 2.672725494 | F28: 152325.5676 | G28: 3.173705284 | H28: 100490.085 | I28: 2.826097354 | J28: 55097.72622 | K28: 2.227617501 | L28: 38490.16182 | M28: 1.575874635 | N28: 290892.7655 | O28: 1.880951529
A29: 2013 | B29: 68234.05477 | C29: 3.774874742 | D29: 455089 | E29: 2.695915799 | F29: 164655.7643 | G29: 3.27895603 | H29: 102905.4546 | I29: 2.781443017 | J29: 58353.32634 | K29: 2.233688191 | L29: 41532.08789 | M29: 1.620957234 | N29: 327146.2769 | O29: 1.962460673
A30: 2014 | B30: 73099.81331 | C30: 3.889821059 | D30: 476971 | E30: 2.708809983 | F30: 169554.1485 | G30: 3.367875199 | H30: 109562.6834 | I30: 2.822838427 | J30: 60585.64991 | K30: 2.271723455 | L30: 60396.72431 | M30: 2.26487962 | N30: 352373.0969 | O30: 1.984746732
A31: 2015 | B31: 76932.39055 | C31: 3.789078648 | D31: 507372 | E31: 2.773279437 | F31: 168546.1195 | G31: 3.240707296 | H31: 114128.177 | I31: 2.8759623 | J31: 60557.58817 | K31: 2.224012693 | L31: 62989.7106 | M31: 2.275659018 | N31: 374714.4954 | O31: 2.017032406
A32: 2016 | B32: 80815.9607 | C32: 3.786389673 | D32: 533451 | E32: 2.836763988 | F32: 160269.3129 | G32: 3.106656458 | H32: 122472.2055 | I32: 2.884741723 | J32: 63651.42217 | K32: 2.224683926 | L32: 67116.27833 | M32: 2.320516458 | N32: 404635.427 | O32: 2.059497185
A33: 2017 | B33: 90289.88169 | C33: 4.073405361 | D33: 565446 | E33: 2.883148374 | F33: 166621.7342 | G33: 3.166356159 | H33: 133668.0031 | I33: 2.986808596 | J33: 65592.82912 | K33: 2.204216425 | L33: 70754.89898 | M33: 2.326016263 | N33: 435789.6306 | O33: 2.077706488 | S33: `
A34: 2018 | B34: 100282.5864 | C34: 4.27153981 | D34: 617538 | E34: 2.989555451 | F34: 172035.7967 | G34: 3.219196015 | H34: 142320.1851 | I34: 3.047994485 | J34: 68653.97244 | K34: 2.204068095 | L34: 84778.41324 | M34: 2.708880344 | N34: 480642.3269 | O34: 2.102320196
A35: 2019 | B35: 105064.3681 | C35: 4.363781528 | D35: 676995 | E35: 3.1429692 | F35: 173928.4265 | G35: 3.218237396 | H35: 153293.1564 | I35: 3.110452381 | J35: 75681.68193 | K35: 2.196680397 | L35: 89091.24552 | M35: 2.670698292 | N35: 545460.7854 | O35: 2.201430061
A36: 2020 | B36: 112221.208 | C36: 4.521408849 | D36: 729857 | E36: 3.417876797 | F36: 174926.4424 | G36: 3.26555705 | H36: 150788.8204 | I36: 3.088716876 | J36: 76072.64334 | K36: 2.274201474 | L36: 94638.46148 | M36: 2.939933044 | N36: 607601.4738 | O36: 2.357123977
A37: 2021 | B37: 123074.1182 | C37: 4.596725801 | D37: 821478 | E37: 3.468907851 | F37: 182504.4225 | G37: 3.27382694 | H37: 160158.6052 | I37: 3.073686254 | J37: 78839.71756 | K37: 2.2127829 | L37: 99066.84426 | M37: 2.89967533 | N37: 701114.6371 | O37: 2.381645893
A38: 2022 | B38: 137943.8253 | C38: 4.847530126 | D38: 906953 | E38: 3.487356217 | F38: 201665.2923 | G38: 3.400532198 | H38: 173935.9178 | I38: 3.043604611 | J38: 84867.96775 | K38: 2.220574912 | L38: 108929.2198 | M38: 2.752239526 | N38: 811348.1998 | O38: 2.494501536
A39: 2023 | B39: 143741.2159 | C39: 4.958960136 | D39: 955578 | E39: 3.447162913 | F39: 213803.5465 | G39: 3.44124934 | H39: 181774.0114 | I39: 3.128664165 | J39: 86748.80415 | K39: 2.175165889 | L39: 106155.7016 | M39: 2.676140138 | N39: 915462.8102 | O39: 2.577284878
A40: 2024 | B40: 156212 | C40: 5.13
A42: 자료 : 1. OECD, Main Science and Technology Indicators Sept, 2025

Sheet 1-3
A1: 1-3) 주요국의 연구원(FTE) 1인당 연구개발비
A2: R&D expenditure per researcher in major countries
A5: 국가별 · 연도별 Country · Year | C5: 연구개발비(억달러) R&D expenditure (PPP USD, 0.1 billions) | E5: 연구원(FTE) Researchers | F5: 연구원 1인당 연구개발비(천 달러) R&D expenditure per researcher (1,000 PPP USD)
D6: 정부·공공재원 비중(%)
A7: 한국 Korea | B7: 1991 | C7: 56.70633581 | D7: 19.4 | E7: 76,252(73,275) | F7: 74.4(77.4)
B8: 1992 | C8: 63.9069732 | D8: 17.2 | E8: 88,764(85,268) | F8: 72.0(75.0)
B9: 1993 | C9: 76.66902311 | D9: 16.7 | E9: 98,764(93,680) | F9: 77.6(81.8)
B10: 1994 | C10: 98.22125268 | D10: 23.8 | E10: 117,446(89,018) | F10: 83.7(110.4)
B11: 1995 | C11: 122.4058994 | D11: 23.72777764 | E11: 128,315(100,456) | F11: 95.4(121.8)
B12: 1996 | C12: 135.2221839 | D12: 25.00434361 | E12: 132,023(99,433) | F12: 102.4(136.0)
B13: 1997 | C13: 128.2865069 | D13: 27.44845705 | E13: 138,438(102,660) | F13: 92.5(124.8)
B14: 1998 | C14: 80.79212982 | D14: 30.7949188 | E14: 129,767(92,541) | F14: 62.3(87.4)
B15: 1999 | C15: 100.2300271 | D15: 29.98191876 | E15: 134,568(100,210) | F15: 74.5(100.1)
B16: 2000 | C16: 122.5138042 | D16: 27.56147398 | E16: 159,973(108,370) | F16: 76.5(113.0)
B17: 2001 | C17: 124.8113248 | D17: 27.07256953 | E17: 178,937(136,337) | F17: 69.7(91.5)
B18: 2002 | C18: 138.4231895 | D18: 27.35892548 | E18: 189,888(141,917) | F18: 72.9(97.6)
B19: 2003 | C19: 160.0197011 | D19: 25.57189981 | E19: 198,171(151,254) | F19: 80.8(105.8)
B20: 2004 | C20: 193.5473017 | D20: 24.54810063 | E20: 209,979(156,220) | F20: 92.2(124.0)
B21: 2005 | C21: 235.8170991 | D21: 24.33063907 | E21: 234,702(179,812) | F21: 100.5(131.2)
B22: 2006 | C22: 286.2402941 | D22: 24.25280679 | E22: 256,598(199,990) | F22: 111.6(143.2)
B23: 2007 | C23: 336.7999914 | D23: 26.12498208 | E23: 289,098(221,928) | F23: 116.5(151.8)
B24: 2008 | C24: 313.5827994 | D24: 26.81094225 | E24: 300,050(236,137) | F24: 104.3(132.6)
B25: 2009 | C25: 296.9553806 | D25: 28.70913319 | E25: 323,175(244,077) | F25: 91.9(121.7)
B26: 2010 | C26: 379.2161794 | D26: 27.97919045 | E26: 345,912(264,118) | F26: 109.7(143.6)
B27: 2011 | C27: 450.1797362 | D27: 26.06367557 | E27: 375,176(288,901) | F27: 120.0(155.8)
B28: 2012 | C28: 492.0996412 | D28: 24.92704932 | E28: 401,724(315,589) | F28: 122.5(156.0)
B29: 2013 | C29: 541.5698363 | D29: 24.01604791 | E29: 410,333(321,842) | F29: 132.0(168.3)
B30: 2014 | C30: 605.3543444 | D30: 23.96676339 | E30: 437,447(345,463) | F30: 138.4(175.2)
B31: 2015 | C31: 583.2196465 | D31: 24.70235445 | E31: 453,262(356,447) | F31: 128.6(163.6)
B32: 2016 | C32: 597.9279217 | D32: 23.64371727 | E32: 460769 | F32: =C32*100000/E32 -> 129.7673936
B33: 2017 | C33: 902.8988169 | D33: 22.51214178 | E33: 383100.2805 | F33: =C33*100000/E33 -> 235.682108
B34: 2018 | C34: 1002.825864 | D34: 21.41990695 | E34: 408370.4603 | F34: 245.5676797
B35: 2019 | C35: 1050.643681 | D35: 21.44425263 | E35: 430690.0064 | F35: 243.9442906
B36: 2020 | C36: 1122.21208 | D36: 23.18774769 | E36: 446738.854 | F36: 251.200913
B37: 2021 | C37: 1230.741182 | D37: 23.59122419 | E37: 470728.1152 | F37: 261.4547852
B38: 2022 | C38: 1379.438253 | D38: 23.37262532 | E38: 488773.7625 | F38: =C38*100000/E38 -> 282.2242843
B39: 2023 | C39: 1437.412159 | D39: 23.62198483 | E39: 490255.9256 | F39: =C39*100000/E39 -> 293.1962846
B40: 2024 | C40: 1562.124488 | D40: 21.2 | E40: 503345.868 | F40: =C40*100000/E40 -> 310.3481298
A41: 미국 United States | B41: 2008 | C41: 4054.05 | D41: 36.32614299 | E41: 1113988 | F41: 363.9222326
B42: 2009 | C42: 4042.01 | D42: 38.95710303 | E42: 1162720 | F42: 347.6339961
B43: 2010 | C43: 4084.96 | D43: 39.14848615 | E43: 1099864 | F43: 371.4059193
B44: 2011 | C44: 4271.26 | D44: 37.48964006 | E44: 1144866 | F44: 373.0794696
B45: 2012 | C45: 4344.42 | D45: 36.39795416 | E45: 1150722 | F45: 377.5386236
B46: 2013 | C46: 4551.28 | D46: 34.44920989 | E46: 1188093 | F46: 383.074389
B47: 2014 | C47: 4770.03 | D47: 33.01907954 | E47: 1230471 | F47: 387.6588721
B48: 2015 | C48: 5074.01 | D48: 31.80245999 | E48: 1252907 | F48: 404.9789809
B49: 2016 | C49: 5334.65 | D49: 30.28614811 | E49: 1248221 | F49: 427.3802476
B50: 2017 | C50: 5655.29 | D50: 29.59244102 | E50: 1300314.024 | F50: 434.9172504
B51: 2018 | C51: 6175.38 | D51: 28.73815053 | E51: 1442407.625 | F51: 428.1300163
B52: 2019 | C52: 6769.95 | D52: 27.13210585 | E52: 1469294.013 | F52: 460.7621034
B53: 2020 | C53: 7298.57 | D53: 27.01159268 | E53: 1549132.297 | F53: =C53*100000/E53 -> 471.1392316
B54: 2021 | C54: 8214.78 | D54: 24.09632394 | E54: 1664938.655 | F54: 493.3983589
B55: 2022 | C55: 9069.53 | D55: 24.15152715 | E55: 1681676 | F55: 539.3149453
B56: 2023 | C56: 9555.78 | D56: 24.16621144
A57: 일본 Japan | B57: 2008 | C57: 1681.240816 | D57: 21.44899472 | E57: 656676 | F57: 256.0228812
B58: 2009 | C58: 1690.468415 | D58: 24.3077514 | E58: 655530 | F58: 257.8781161
B59: 2010 | C59: 1788.163745 | D59: 23.62216393 | E59: 656032 | F59: 272.5726405
B60: 2011 | C60: 1997.951809 | D60: 22.99726975 | E60: 656651 | F60: 304.2638798
B61: 2012 | C61: 1990.663169 | D61: 23.43821221 | E61: 646347 | F61: 307.9867577
B62: 2013 | C62: 1709.099497 | D62: 23.99719689 | E62: 660489 | F62: 258.7627496
B63: 2014 | C63: 1649.246601 | D63: 22.29254697 | E63: 682935 | F63: 241.4939345
B64: 2015 | C64: 1440.471916 | D64: 21.54838148 | E64: 662071 | F64: 217.5706103
B65: 2016 | C65: 1554.470742 | D65: 21.1814029 | E65: 665566 | F65: 233.5562126
B66: 2017 | C66: 1666.217342 | D66: 21.09041203 | E66: 676292 | F66: 246.3754329
B67: 2018 | C67: 1720.357967 | D67: 20.33033179 | E67: 678134 | F67: =C67*100000/E67 -> 253.6899739
B68: 2019 | C68: 1739.284265 | D68: 20.50293363 | E68: 681821 | F68: =C68*100000/E68 -> 255.0939712
B69: 2020 | C69: 1749.264424 | D69: 21.15557952 | E69: 689889 | F69: =C69*100000/E69 -> 253.5573728
B70: 2021 | C70: 1825.044225 | D70: 21.31598163 | E70: 704502 | F70: 259.054513
B71: 2022 | C71: 2016.652923 | D71: 20.7961286 | E71: 705551 | F71: =C71*100000/E71 -> 285.8266693
B72: 2023 | C72: 2138.035465 | D72: 21.43305194 | E72: 699232 | F72: =C72*100000/E72 -> 305.7691103
A73: 독일 Germany | B73: 2008 | C73: 979.4359214 | D73: 28.79317899 | E73: 302641 | F73: =C73*100000/E73 -> 323.629621
B74: 2009 | C74: 935.5934518 | D74: 30.07318448 | E74: 317307 | F74: 294.8543372
B75: 2010 | C75: 928.1900068 | D75: 30.60016156 | E75: 327996 | F75: 282.9882092
B76: 2011 | C76: 1051.887525 | D76: 30.23582712 | E76: 338689 | F76: 310.5762294
B77: 2012 | C77: 1016.401332 | D77: 29.60206182 | E77: 352419 | F77: 288.4070757
B78: 2013 | C78: 1058.902148 | D78: 29.40414114 | E78: 354463 | F78: 298.7341833
B79: 2014 | C79: 1119.21924 | D79: 29.01777974 | E79: 351923 | F79: 318.0295803
B80: 2015 | C80: 985.046189 | D80: 28.17472685 | E80: 387982 | F80: 253.8896622
B81: 2016 | C81: 1020.272453 | D81: 28.83125503 | E81: 399605 | F81: 255.3202421
B82: 2017 | C82: 1336.680031 | D82: 28.06597402 | E82: 419617 | F82: 318.5476354
B83: 2018 | C83: 1423.201851 | D83: 28.19441794 | E83: 433685.036 | F83: 328.1648508
B84: 2019 | C84: 1532.931564 | D84: 28.16502115 | E84: 450697.27 | F84: 340.1244395
B85: 2020 | C85: 1507.888204 | D85: 30.07664329 | E85: 450796 | F85: =C85*100000/E85 -> 334.4945837
B86: 2021 | C86: 1601.586052 | D86: 30.28498716 | E86: 461645 | F86: 346.9302281
B87: 2022 | C87: 1739.359178 | D87: 0 | E87: 486011 | F87: =C87*100000/E87 -> 357.8847346
B88: 2023 | C88: 1817.740114 | D88: 30.10503795 | E88: 500166 | F88: =C88*100000/E88 -> 363.427365
A89: 프랑스 France | B89: 2008 | C89: 603.9849042 | D89: 41.21622475 | E89: 227678.5299 | F89: 265.2796926
B90: 2009 | C90: 597.4536416 | D90: 40.69979144 | E90: 234366.0471 | F90: 254.9232916
B91: 2010 | C91: 576.2735404 | D91: 38.95965339 | E91: 243533.2276 | F91: 236.6303548
B92: 2011 | C92: 627.9320002 | D92: 37.20861375 | E92: 249246.6 | F92: 251.9320224
B93: 2012 | C93: 597.6714487 | D93: 37.07507722 | E93: 258913 | F93: 230.8387175
B94: 2013 | C94: 629.0240323 | D94: 37.04083755 | E94: 265465.8112 | F94: 236.951052
B95: 2014 | C95: 649.9938889 | D95: 37.86546429 | E95: 271772.2718 | F95: 239.1685821
B96: 2015 | C96: 543.2116752 | D96: 39.02611163 | E96: 279470 | F96: 194.3720883
B97: 2016 | C97: 549.5878776 | D97: 36.19996954 | E97: 285487.9646 | F97: 192.5082476
B98: 2017 | C98: 655.9282912 | D98: 36.1734854 | E98: 296324.277 | F98: 221.3548947
B99: 2018 | C99: 686.5397244 | D99: 35.51556675 | E99: 305438.6168 | F99: 224.7717501
B100: 2019 | C100: 756.8168193 | D100: 35.19993427 | E100: 313373.7036 | F100: 241.5061668
B101: 2020 | C101: 760.7264334 | D101: 35.7945466 | E101: 321398 | F101: =C101*100000/E101 -> 236.6929581
B102: 2021 | C102: 788.3971756 | D102: 36.88483986 | E102: 333800 | F102: 236.1884888
B103: 2022 | C103: 848.6796775 | D103: 36.18883403 | E103: 342900 | F103: =C103*100000/E103 -> 247.500635
B104: 2023 | C104: 867.4880415 | D104: 37.30831205 | E104: 356378 | F104: =C104*100000/E104 -> 243.4179555
A105: 영국 United Kingdom | B105: 2008 | C105: 471.3752514 | D105: 36.83136261 | E105: 251931.7 | F105: =C105*100000/E105 -> 187.1043824
B106: 2009 | C106: 402.9106476 | D106: 38.82328833 | E106: 256124.1127 | F106: 157.3107051
B107: 2010 | C107: 407.3370737 | D107: 38.32623928 | E107: 256584.957 | F107: 158.753295
B108: 2011 | C108: 438.6781192 | D108: 36.37914221 | E108: 251357.6 | F108: 174.5235152
B109: 2012 | C109: 426.603396 | D109: 34.54972969 | E109: 256156.4 | F109: 166.5402059
B110: 2013 | C110: 451.4125451 | D110: 35.11537622 | E110: 267698.5 | F110: 168.6272224
B111: 2014 | C111: 694.1190989 | E111: 276583.8 | F111: 250.9615888
B112: 2015 | C112: 666.2932266 | E112: 285855 | F112: 233.0878335
B113: 2016 | C113: 624.0119951 | E113: 291103 | F113: 214.3612382
B114: 2017 | C114: 707.5489898 | E114: 295842 | F114: 239.164483
B115: 2018 | C115: 847.7841324 | D115: 30.2177714
B116: 2019 | C116: 890.9124552 | D116: 29.83433647
B117: 2020 | C117: 946.3846148 | D117: 30.67016294
B118: 2021 | C118: 990.6684426 | D118: 30.89452744
B119: 2022 | C119: 1089.292198 | D119: 30.36261017
B120: 2023 | C120: 1061.557016 | D120: 31.9414718
A121: 중국 China | B121: 2008 | C121: 664.3043582 | D121: 23.58937516 | E121: 1592420 | F121: 41.71665504
B122: 2009 | C122: 849.3271088 | D122: 23.40996205 | E122: 1152311 | F122: 73.70641335
B123: 2010 | C123: 1043.175242 | D123: 24.0181169 | E123: 1210840.8 | F123: 86.15296426
B124: 2011 | C124: 1344.434223 | D124: 21.67564849 | E124: 1318086 | F124: 101.998976
B125: 2012 | C125: 1631.47429 | D125: 21.57027362 | E125: 1404017 | F125: 116.2004655
B126: 2013 | C126: 1912.049817 | D126: 21.10789351 | E126: 1484039.7 | F126: 128.8408805
B127: 2014 | C127: 2118.624483 | D127: 20.25319062 | E127: 1524280.3 | F127: 138.9917906
B128: 2015 | C128: 2275.376899 | D128: 21.26478742 | E128: 1619027.7 | F128: 140.539714
B129: 2016 | C129: 2359.364936 | D129: 20.03481537 | E129: 1692175.8 | F129: 139.4278854
B130: 2017 | C130: 4357.896306 | D130: 19.8081416 | E130: 1740442.2 | F130: 250.390177
B131: 2018 | C131: 4806.423269 | D131: 20.21879927 | E131: 1866108.8 | F131: 257.5639357
B132: 2019 | C132: 5454.607854 | D132: 20.49041169 | E132: 2109459.8 | F132: 258.5784216
B133: 2020 | C133: 6076.014738 | D133: 19.78245119 | E133: 2281134 | F133: =C133*100000/E133 -> 266.3593957
B134: 2021 | C134: 7011.146371 | D134: 18.95694349 | E134: 2405509.4 | F134: 291.4620234
B135: 2022 | C135: 8113.481998 | D135: 17.77267993 | E135: 2637193.1 | F135: =C135*100000/E135 -> 307.6559695
B136: 2023 | C136: 9154.628102 | D136: 17.06800931 | E136: 3001302.4 | F136: =C136*100000/E136 -> 305.0218499
A138: 주 : 1. 상근상당 연구원 기준임
A139: 2. 공란은 데이터 없음
A140: 자료 : OECD, Main Science and Technology Indicators Sept, 2025

Sheet 1-4
A1: 1-4) 주요국의 연구원 및 인구 만명당 연구원
A2: Researchers and researchers per 10,000 population in major countries
O4: (단위 : 명 Unit : person)
A5: 연도별 Year | B5: 한국 Korea | D5: 미국 United States | F5: 일본 Japan | H5: 독일 Germany | J5: 프랑스 France | L5: 영국 United Kingdom | N5: 중국 China
C6: 인구만명당 per 10,000 population | E6: 인구만명당 per 10,000 population | G6: 인구만명당 per 10,000 population | I6: 인구만명당 per 10,000 population | K6: 인구만명당 per 10,000 population | M6: 인구만명당 per 10,000 population | O6: 인구만명당 per 10,000 population
A7: 1991 | B7: 76,252(73,275) | C7: 17.6(16.9) | D7: 746013 | E7: 29.42503846 | F7: 491102 | G7: 39.57276734 | H7: 241869 | I7: 30.24383229 | J7: 129780 | K7: 22.16642755 | L7: 128000 | M7: 22.28451052 | N7: 471400 | O7: 4.070003367
A8: 1992 | B8: 88,764(85,268) | C8: 20.3(19.5) | D8: 765328 | E8: 29.78834043 | F8: 511407 | G8: 41.05477374 | J8: 141710 | K8: 24.08395649 | L8: 129000 | M8: 22.4016671 | N8: 471900 | O8: 4.027447065
A9: 1993 | B9: 98,764(93,680) | C9: 22.3(21.2) | D9: 781100 | E9: 30.00975865 | F9: 526501 | G9: 42.14098193 | H9: 230107 | I9: 28.42722309 | J9: 145898 | K9: 24.68872155 | L9: 131000 | M9: 22.69813217 | N9: 489200 | O9: 4.127677886
A10: 1994 | B10: 117,446(89,018) | C10: 26.3(19.9) | D10: 774215 | E10: 29.38699209 | F10: 541015 | G10: 43.24107228 | J10: 149193 | K10: 25.15265953 | L10: 134000 | M10: 23.15854965 | N10: 552000 | O10: 4.605757196
A11: 1995 | B11: 128,315(100,456) | C11: 28.5(22.3) | D11: 796403 | E11: 29.87392531 | F11: 551990 | G11: 44.00570809 | H11: 231128 | I11: 28.42623112 | J11: 151248.85 | K11: 25.40716445 | L11: 145673 | M11: 25.10521327 | N11: 522000 | O11: 4.309739847
A12: 1996 | B12: 132,023(99,433) | C12: 29.0(21.8) | D12: 842662 | E12: 31.24279793 | F12: 617365 | G12: 49.1098631 | H12: 230189 | I12: 28.25583679 | J12: 154827 | K12: 25.91593854 | L12: 144735 | M12: 24.88394883 | N12: 548000 | O12: 4.477526575
A13: 1997 | B13: 138,438(102,660) | C13: 30.1(22.3) | D13: 881103 | E13: 32.27980129 | F13: 625442 | G13: 49.63392085 | H13: 235793 | I13: 28.92810698 | J13: 154742.4 | K13: 25.80975732 | L13: 145641.2 | M13: 24.9753404 | N13: 588700 | O13: 4.761943281
A14: 1998 | B14: 129,767(92,541) | C14: 28.0(20.0) | D14: 937717 | E14: 33.95630699 | F14: 652845 | G14: 51.6699776 | H14: 237712 | I14: 29.18645483 | J14: 155727.04 | K14: 25.87859612 | L14: 157662 | M14: 26.96229158 | N14: 485500 | O14: 3.891440434
A15: 1999 | B15: 134,568(100,210) | C15: 28.9(21.5) | D15: 965180 | E15: 34.55364303 | F15: 658910 | G15: 52.05194846 | H15: 254691 | I15: 31.28036649 | J15: 160424 | K15: 26.52206259 | L15: 167573.03 | M15: 28.55514791 | N15: 531100 | O15: 4.222250489
A16: 2000 | B16: 108370 | C16: 23.1 | D16: 976950 | E16: 34.59479175 | F16: 647572 | G16: 51.0578644 | H16: 257874 | I16: 31.65768442 | J16: 172070 | K16: 28.25312382 | L16: 170554.39 | M16: 28.96348708 | N16: 695062 | O16: 5.484026731
A17: 2001 | B17: 136337 | C17: 28.8 | D17: 998340.0364 | E17: 35.00184193 | F17: 653021 | G17: 51.36558852 | H17: 264385 | I17: 32.43311211 | J17: 177372 | K17: 28.91243398 | L17: 182143.84 | M17: 30.8128229 | N17: 742726 | O17: 5.819505277
A18: 2002 | B18: 141917 | C18: 29.78633645 | D18: 1041534.012 | E18: 36.17002698 | F18: 623035 | G18: 48.90384615 | H18: 265812 | I18: 32.58378484 | J18: 186420 | K18: 30.25120083 | L18: 198162.98 | M18: 33.37987737 | N18: 810525 | O18: 6.309895448
A19: 2003 | B19: 151254 | C19: 31.5823102 | D19: 1111086.511 | E19: 38.23080216 | F19: 652369 | G19: 51.11247787 | H19: 268942 | I19: 32.97919043 | J19: 192789.9118 | K19: 31.06858843 | L19: 216689.87 | M19: 36.3348039 | N19: 862108 | O19: 6.671268388
A20: 2004 | B20: 156219.6913 | C20: 32.48958911 | D20: 1080884.74 | E20: 36.85730644 | F20: 653747 | G20: 51.18034353 | H20: 270215 | I20: 33.17312414 | J20: 202377.2 | K20: 32.37983392 | L20: 228969.09 | M20: 38.19334279 | N20: 926252 | O20: 7.125673139
A21: 2005 | B21: 179812.4276 | C21: 37.31709611 | D21: 1069649.487 | E21: 36.1376616 | F21: 680631 | G21: 53.27627099 | H21: 272148 | I21: 33.45931126 | J21: 202506.79 | K21: 32.16231339 | L21: 248599.3 | M21: 41.14996772 | N21: 1118698 | O21: 8.555615039
A22: 2006 | B22: 199990.0211 | C22: 41.28783622 | D22: 1091944.41 | E22: 36.54212296 | F22: 684884 | G22: 53.57436756 | H22: 279822 | I22: 34.4722999 | J22: 210591.0899 | K22: 33.21940403 | L22: 254009 | M22: 41.75925165 | N22: 1223756.4 | O22: 9.309813767
A23: 2007 | B23: 221928.2309 | C23: 45.58545537 | D23: 1088185.65 | E23: 36.06894523 | F23: 684311 | G23: 53.47015159 | H23: 290853 | I23: 35.91132458 | J23: 221851.0428 | K23: 34.7865218 | L23: 252650.8 | M23: 41.20269411 | N23: 1423381 | O23: 10.77266157
A24: 2008 | B24: 236136.871 | C24: 48.13716664 | D24: 1138271.788 | E24: 37.3763898 | F24: 656676 | G24: 51.28478269 | H24: 302641 | I24: 37.47226487 | J24: 227678.5299 | K24: 35.50763867 | L24: 251931.7 | M24: 40.74982208 | N24: 1592420 | O24: 11.99093387
A25: 2009 | B25: 244076.773 | C25: 49.5004407 | D25: 1188650.351 | E25: 38.68800778 | F25: 655530 | G25: 51.19968133 | H25: 317307 | I25: 39.42534448 | J25: 234366.0471 | K25: 36.3690891 | L25: 256124.1127 | M25: 41.13716656 | N25: 1152311 | O25: 8.63477707
A26: 2010 | B26: 264117.936 | C26: 53.29901441 | D26: 1127894.732 | E26: 36.4026069 | F26: 656032 | G26: 51.23528815 | H26: 327996 | I26: 40.85446664 | J26: 243533.2276 | K26: 37.61247106 | L26: 256584.957 | M26: 40.88351769 | N26: 1210840.8 | O26: 9.029993064
A27: 2011 | B27: 288900.9624 | C27: 57.85308737 | D27: 1173770.117 | E27: 37.5852997 | F27: 656651 | G27: 51.36868209 | H27: 338689 | I27: 42.19109312 | J27: 249246.6 | K27: 38.3132119 | L27: 251357.6 | M27: 39.71835348 | N27: 1318086 | O27: 9.769678911
A28: 2012 | B28: 315589.1929 | C28: 62.86637309 | D28: 1178701.948 | E28: 37.45180548 | F28: 646347 | G28: 50.67321563 | H28: 352419 | I28: 43.84138832 | J28: 258913 | K28: 39.61215997 | L28: 256156.4 | M28: 40.20599269 | N28: 1404017 | O28: 10.32957873
A29: 2013 | B29: 321841.8477 | C29: 63.82078719 | D29: 1215597.984 | E29: 38.33496744 | F29: 660489 | G29: 51.87099966 | H29: 354463 | I29: 44.02337395 | J29: 265465.8112 | K29: 40.41559759 | L29: 267698.5 | M29: 41.73724255 | N29: 1484039.7 | O29: 10.8541148
A30: 2014 | B30: 345463.4268 | C30: 68.07563537 | D30: 1259085.021 | E30: 39.39552821 | F30: 682935 | G30: 53.66370165 | H30: 351923 | I30: 43.57747839 | J30: 271772.2718 | K30: 41.16451914 | L30: 276583.8 | M30: 42.80157846 | N30: 1524280.3 | O30: 11.07391642
A31: 2015 | B31: 356447.29 | C31: 69.87107517 | D31: 1282172.097 | E31: 39.80504037 | F31: 662071 | G31: 52.08646055 | H31: 387982 | I31: 47.69527697 | J31: 279470 | K31: 42.14343879 | L31: 285855 | M31: 43.91823378 | N31: 1619027.7 | O31: 11.70443517
A32: 2016 | B32: 361291.5335 | C32: 70.53995344 | D32: 1276790.001 | E32: 39.33316701 | F32: 665566 | G32: 52.43443391 | H32: 399605 | I32: 48.81148692 | J32: 285487.9646 | K32: 42.88988847 | L32: 291103 | M32: 44.37072264 | N32: 1692175.8 | O32: 12.1536414
A33: 2017 | B33: 383100.2805 | C33: 74.58827159 | D33: 1329746.681 | E33: 40.68245368 | F33: 676292 | G33: 53.37489937 | H33: 419617 | I33: 51.14910164 | J33: 296324.277 | K33: 44.34000853 | L33: 295842 | M33: 44.84764879 | N33: 1740442.2 | O33: 12.4307533
A34: 2018 | B34: 408370.4603 | C34: 79.16457502 | D34: 1442407.625 | E34: 43.86964558 | F34: 678134 | G34: 53.63159685 | H34: 433685.036 | I34: 52.78735056 | J34: 305438.6168 | K34: 45.49618184 | N34: 1866108.8 | O34: 13.27803844
A35: 2019 | B35: 430690.0064 | C35: 83.20100578 | D35: 1469294.013 | E35: 44.45495375 | F35: 681821 | G35: 54.04119464 | H35: 450697.27 | I35: 54.82735058 | J35: 313373.7036 | K35: 46.49737426 | N35: 2109459.8 | O35: 14.95985902
A36: 2020 | B36: 446738.854 | C36: 86.18312639 | D36: 1549132.297 | E36: 46.68310924 | F36: 689889 | G36: 54.88010348 | H36: 450796 | I36: 54.89077759 | J36: 321398 | K36: 47.52510092 | N36: 2281134 | O36: 16.15396708
A37: 2021 | B37: 470728.1152 | C37: 90.92681384 | D37: 1664938.655 | E37: 50.07259004 | F37: 704502 | G37: 56.13472295 | H37: 461645 | I37: 56.30160376 | J37: 333800 | K37: 49.13230987 | N37: 2405509.4 | O37: 17.02894945
A38: 2022 | B38: 488773.7625 | C38: 94.58977851 | D38: 1681676 | E38: 50.29356525 | F38: 705551 | G38: 56.46802244 | H38: 486011 | I38: 58.88972361 | J38: 342900 | K38: 50.28080414 | N38: 2637193.1 | O38: 18.68031238
A39: 2023 | B39: 490255.9256 | C39: 94.80322657 | F39: 699232 | G39: 56.23005661 | H39: 500166 | I39: 60.05330964 | J39: 356378 | K39: 52.12338384 | N39: 3001302.4 | O39: 21.29081558
A40: 2024 | B40: 503345.868 | C40: 97.53989858
A42: 주 : 상근상당 연구원 기준임
A43: 자료 : OECD, Main Science and Technology Indicators Sept, 2025

Sheet 1-5
A1: 1-5) 주요국의 연구개발단계별 연구개발비 비중
A2: Percentage of R&D expenditure by type of R&D in major countries
V3: (단위 : % Unit : %)
A4: 연도 Year | B4: 한국 Korea | E4: 미국 United States | I4: 일본 Japan | M4: 프랑스 France | Q4: 영국 United Kingdom | T4: 중국 China
B5: 기초 Basic research | C5: 응용 Applied research | D5: 개발 Exper-imental develop-ment | E5: 기초 Basic research | F5: 응용 Applied research | G5: 개발 Exper-imental develop-ment | H5: 기타 Others | I5: 기초 Basic research | J5: 응용 Applied research | K5: 개발 Exper-imental develop-ment | L5: 기타 Others | M5: 기초 Basic research | N5: 응용 Applied research | O5: 개발 Exper-imental develop-ment | P5: 기타 Others | Q5: 기초 Basic research | R5: 응용 Applied research | S5: 개발 Exper-imental develop-ment | T5: 기초 Basic research | U5: 응용 Applied research | V5: 개발 Exper-imental develop-ment
A6: 1991 | B6: 14.83695809 | C6: 30.7327267 | D6: 54.43031521 | E6: 16.81630326 | F6: 23.93627897 | G6: 58.92831694 | H6: 0.3197204305 | I6: 12.30735183 | J6: 22.72143549 | K6: 57.3178683 | L6: 7.653335365 | M6: 20.29010595 | N6: 30.90274441 | O6: 48.80696462 | T6: 4.659475731 | U6: 24.36347673 | V6: 70.97077637
A7: 1992 | B7: 12.60038272 | C7: 26.32427018 | D7: 61.0753471 | E7: 16.64515973 | F7: 22.87533617 | G7: 60.18584402 | H7: 0.294263076 | I7: 12.81914491 | J7: 22.39961613 | K7: 56.76583575 | L7: 8.015410944 | M7: 20.8157066 | N7: 31.6811794 | O7: 47.50293197 | T7: 4.504368025 | U7: 25.35979397 | V7: 70.13078826
A8: 1993 | B8: 13.1535387 | C8: 24.33231166 | D8: 62.51414964 | E8: 17.29911588 | F8: 22.43895687 | G8: 60.00794448 | H8: 0.2539827749 | I8: 13.50429031 | J8: 21.94992712 | K8: 55.92304457 | L8: 8.622736365 | M8: 21.69242802 | N8: 29.26070916 | O8: 49.04686282 | T8: 4.79012943 | U8: 25.76912221 | V8: 69.44074836
A9: 1994 | B9: 14.3378267 | C9: 23.82374303 | D9: 61.83843027 | E9: 17.48073647 | F9: 21.58812883 | G9: 60.68706115 | H9: 0.2440735522 | I9: 13.66992455 | J9: 22.45345857 | K9: 55.26836843 | L9: 8.608247518 | M9: 22.21601248 | N9: 29.06176102 | O9: 48.72154276 | T9: 5.518187161 | U9: 27.29706785 | V9: 67.18147979
A10: 1995 | B10: 12.46550234 | C10: 25.02074233 | D10: 62.51375534 | E10: 16.08487337 | F10: 22.2374325 | G10: 61.42726769 | H10: 0.2504264311 | I10: 14.16785524 | J10: 22.47738732 | K10: 54.98863952 | L10: 8.366118249 | M10: 22.19924342 | N10: 29.55548111 | O10: 48.24497879 | T10: 5.179385701 | U10: 26.39020333 | V10: 68.42754309
A11: 1996 | B11: 13.22865427 | C11: 26.90987762 | D11: 60 | E11: 16.58173325 | F11: 21.82485516 | G11: 61.36287803 | H11: 0.2305335639 | I11: 12.15962531 | J11: 22.33292899 | K11: 59.47454309 | L11: 6.032903156 | M11: 21.97757018 | N11: 28.49913461 | O11: 49.5234928 | T11: 5.003955696 | U11: 24.50553797 | V11: 70.49050633
A12: 1997 | B12: 13.2653508 | C12: 28.48034337 | D12: 58 | E12: 17.28037726 | F12: 21.89214883 | G12: 60.55262192 | H12: 0.2748519847 | I12: 11.96692204 | J12: 22.53558328 | K12: 59.77014393 | L12: 5.727350692 | M12: 22.01727474 | N12: 29.63978354 | O12: 48.34213108 | T12: 5.389268599 | U12: 26.01539791 | V12: 68.59533349
A13: 1998 | B13: 13.98448034 | C13: 25.12617534 | D13: 61 | E13: 15.40134467 | F13: 20.44274114 | G13: 63.9486003 | H13: 0.2068718588 | I13: 12.03286069 | J13: 22.62536115 | K13: 59.42872513 | L13: 5.913072199 | M13: 25.07992794 | N13: 26.75547765 | O13: 48.16534656 | T13: 5.252939469 | U13: 22.61394978 | V13: 72.13311076
A14: 1999 | B14: 13.63454835 | C14: 25.71095939 | D14: 60.65449226 | E14: 15.62658176 | F14: 21.16621765 | G14: 62.9908564 | H14: 0.2159359948 | I14: 12.25065328 | J14: 21.5816363 | K14: 60.19038576 | L14: 5.977319223 | M14: 24.41526207 | N14: 27.52011377 | O14: 48.06483074 | T14: 4.993371631 | U14: 22.32287524 | V14: 72.6852261
A15: 2000 | B15: 12.60885897 | C15: 24.33540519 | D15: 63.05573585 | E15: 15.65136767 | F15: 21.03940303 | G15: 63.08283499 | H15: 0.2267666575 | I15: 12.37861145 | J15: 21.96140991 | K15: 59.77218526 | L15: 5.887794707 | M15: 23.60054081 | N15: 32.6075513 | O15: 43.79194666 | T15: 5.217575768 | U15: 16.96013577 | V15: 77.82228847
A16: 2001 | B16: 12.56954763 | C16: 25.29987061 | D16: 62.13058176 | E16: 16.61393029 | F16: 23.00608111 | G16: 60.19293273 | H16: 0.1870558767 | I16: 12.17355507 | J16: 21.23419383 | K16: 59.90281575 | L16: 6.689435014 | M16: 23.31010963 | N16: 33.47462567 | O16: 43.21526775 | T16: 5.333435653 | U16: 17.73175505 | V16: 76.9348093
A17: 2002 | B17: 13.69826075 | C17: 21.72343024 | D17: 64.57830901 | E17: 18.10253795 | F17: 18.15282277 | G17: 63.56397308 | H17: 0.1806662021 | I17: 12.6456895 | J17: 20.99955132 | K17: 60.97393877 | L17: 5.380820106 | M17: 23.41269238 | N17: 35.68557651 | O17: 40.90189041 | T17: 5.731593663 | U17: 19.15967692 | V17: 75.10872942
A18: 2003 | B18: 14.46676253 | C18: 20.84042308 | D18: 64.69281439 | E18: 18.76491065 | F18: 20.87336603 | G18: 60.0906362 | H18: 0.271087121 | I18: 12.61251769 | J18: 21.21903024 | K18: 60.92048392 | L18: 5.247968017 | M18: 24.08119449 | N18: 36.20999046 | O18: 39.70882084 | T18: 5.693575729 | U18: 20.22888616 | V18: 74.07753811
A19: 2004 | B19: 15.32273018 | C19: 21.23997273 | D19: 63.4372971 | E19: 18.55652798 | F19: 22.81657412 | G19: 58.2674781 | H19: 0.3597489328 | I19: 11.975472 | J19: 21.16679601 | K19: 61.55125244 | L19: 5.306479137 | M19: 23.76128879 | N19: 37.13216921 | O19: 39.106542 | T19: 5.95932524 | U19: 20.36687636 | V19: 73.6737984
A20: 2005 | B20: 15.34579047 | C20: 20.8406665 | D20: 63.81354303 | E20: 18.36091604 | F20: 21.38607306 | G20: 59.96395192 | H20: 0.2890589797 | I20: 11.99989326 | J20: 21.02896557 | K20: 61.79819733 | L20: 5.172962189 | M20: 23.94741982 | N20: 38.58579377 | O20: 37.46678641 | T20: 5.355569006 | U20: 17.69533714 | V20: 76.94908977
A21: 2006 | B21: 15.15145805 | C21: 19.85722715 | D21: 64.9913148 | E21: 17.50282226 | F21: 21.75312581 | G21: 60.52765527 | H21: 0.2163966685 | I21: 11.64191833 | J21: 20.45527559 | K21: 62.93141998 | L21: 4.971392226 | M21: 23.8940851 | N21: 39.04736889 | O21: 37.05854073 | T21: 5.186506488 | U21: 16.8001389 | V21: 78.01335129
A22: 2007 | B22: 15.71396864 | C22: 19.8420471 | D22: 64.44398426 | E22: 17.56506853 | F22: 22.10216525 | G22: 60.16527354 | H22: 0.1674926821 | I22: 11.55074597 | J22: 21.51736184 | K22: 61.9760503 | L22: 4.955830413 | M22: 24.89796094 | N22: 38.53324138 | O22: 36.56879768 | Q22: 15.73799117 | R22: 43.95316095 | S22: 40.30869986 | T22: 4.703682401 | U22: 13.28603363 | V22: 82.01028397
A23: 2008 | B23: 16.05044347 | C23: 19.63551202 | D23: 64.31404451 | E23: 17.38212405 | F23: 18.43317177 | G23: 64.0295507 | H23: 0.1549068216 | I23: 11.38526166 | J23: 21.68097629 | K23: 62.60221162 | L23: 4.331549994 | M23: 25.34532006 | N23: 39.33423014 | O23: 35.3204498 | Q23: 15.84792544 | R23: 44.05291154 | S23: 40.09912012 | T23: 4.783775068 | U23: 12.46008414 | V23: 82.7561408
A24: 2009 | B24: 18.05791386 | C24: 19.96990754 | D24: 61.9721786 | E24: 18.40148837 | F24: 17.96977246 | G24: 63.31478646 | H24: 0.3139527116 | I24: 12.46041747 | J24: 22.34014931 | K24: 60.48599371 | L24: 4.713439418 | M24: 26.08394222 | N24: 39.62377702 | O24: 34.29228076 | Q24: 16.81513788 | R24: 45.62705888 | S24: 37.55780324 | T24: 4.658407873 | U24: 12.59528005 | V24: 82.74631208
A25: 2010 | B25: 18.22152555 | C25: 19.93546337 | D25: 61.84301108 | E25: 18.69981591 | F25: 19.34339626 | G25: 61.49264619 | H25: 0.4641416317 | I25: 12.12996274 | J25: 21.24875243 | K25: 61.94157302 | L25: 4.67972444 | M25: 25.10799462 | N25: 38.19284585 | O25: 32.78510681 | P25: 3.914052717 | Q25: 17.81314013 | R25: 46.2301798 | S25: 35.95743874 | T25: 4.594526899 | U25: 12.65528149 | V25: 82.75019161
A26: 2011 | B26: 18.06601663 | C26: 20.27751826 | D26: 61.65646511 | E26: 17.22021137 | F26: 19.17256266 | G26: 63.39393996 | H26: 0.2132860093 | I26: 12.25997404 | J26: 21.03070426 | K26: 62.11749152 | L26: 4.591842701 | M26: 24.33505114 | N26: 37.04678588 | O26: 34.78410855 | P26: 3.834056645 | Q26: 16.37380979 | R26: 46.89751896 | S26: 36.72867124 | T26: 4.740576253 | U26: 11.83825025 | V26: 83.4211735
A27: 2012 | B27: 18.31071297 | C27: 19.06696209 | D27: 62.62232494 | E27: 16.99720561 | F27: 19.98471603 | G27: 62.85096745 | H27: 0.1671109147 | I27: 12.45888218 | J27: 20.75279974 | K27: 62.07716767 | L27: 4.711150671 | M27: 24.11857596 | N27: 37.29068786 | O27: 35.22925237 | P27: 3.361483814 | Q27: 16.7744205 | R27: 45.72280234 | S27: 37.50277716 | T27: 4.843530685 | U27: 11.28302537 | V27: 83.87344395
A28: 2013 | B28: 17.98582541 | C28: 19.08212842 | D28: 62.93204618 | E28: 17.38785572 | F28: 19.36993549 | G28: 63.05391011 | H28: 0.1882986764 | I28: 12.6253436 | J28: 20.87017126 | K28: 61.8336172 | L28: 4.670873827 | M28: 24.31556489 | N28: 37.77233038 | O28: 34.49886565 | P28: 3.413217967 | Q28: 16.81725778 | R28: 45.63966878 | S28: 37.54307344 | T28: 4.684477707 | U28: 10.712908 | V28: 84.60261429
A29: 2014 | B29: 17.63984403 | C29: 18.92000189 | D29: 63.44015408 | E29: 17.35188248 | F29: 19.23908235 | G29: 63.1920554 | H29: 0.2167701251 | I29: 12.25687262 | J29: 19.9316521 | K29: 63.42653243 | L29: 4.384943137 | M29: 23.90036884 | N29: 38.6069942 | O29: 34.33486228 | P29: 3.157774687 | T29: 4.713892951 | U29: 10.74499117 | V29: 84.54111588
A30: 2015 | B30: 17.2252361 | C30: 20.8385165 | D30: 61.9362474 | E30: 16.72207978 | F30: 19.49661116 | G30: 63.50322526 | H30: 0.2778867208 | I30: 11.91170478 | J30: 19.85688052 | K30: 63.68561522 | L30: 4.545799486 | M30: 23.76736913 | N30: 37.90250753 | O30: 35.24766584 | P30: 3.082457499 | T30: 5.053837626 | U30: 10.78788023 | V30: 84.15828186
A31: 2016 | B31: 15.97373093 | C31: 22.5074713 | D31: 61.51879777 | E31: 16.47249585 | F31: 20.86060004 | G31: 62.48732344 | H31: 0.179580666 | I31: 12.57150021 | J31: 18.85373779 | K31: 64.03967495 | L31: 4.535087142 | M31: 22.302959 | N31: 42.23449179 | O31: 35.46254719 | T31: 5.249123788 | U31: 10.27314394 | V31: 84.47773227
A32: 2017 | B32: 14.45769859 | C32: 21.97751017 | D32: 63.56479124 | E32: 15.99034799 | F32: 20.34948779 | G32: 63.46447228 | H32: 0.1958687255 | I32: 13.11389183 | J32: 18.66985069 | K32: 63.89120152 | L32: 4.325055211 | M32: 22.78844797 | N32: 41.96074491 | O32: 35.46012501 | T32: 5.540623455 | U32: 10.50321396 | V32: 83.95616259
A33: 2018 | B33: 14.20815263 | C33: 21.95846956 | D33: 63.83337781 | E33: 15.92791061 | F33: 19.4752664 | G33: 64.37095715 | H33: 0.225865846 | I33: 12.57412391 | J33: 18.99025256 | K33: 64.27486468 | L33: 4.160764686 | M33: 22.63575966 | N33: 41.20609742 | O33: 36.01107798 | T33: 5.541085749 | U33: 11.13365522 | V33: 83.32525903
A34: 2019 | B34: 14.66898367 | C34: 22.50511059 | D34: 62.82590574 | E34: 15.57898805 | F34: 19.46993646 | G34: 64.73245304 | H34: 0.2187699611 | I34: 12.49648703 | J34: 18.56512214 | K34: 64.79438432 | L34: 4.144006527 | M34: 22.67172096 | N34: 41.36512427 | O34: 35.96315477 | T34: 6.031415414 | U34: 11.28300394 | V34: 82.6855806
A35: 2020 | B35: 14.44918335 | C35: 21.57329415 | D35: 63.9775225 | E35: 15.4042904 | F35: 18.42785923 | G35: 65.91426604 | H35: 0.2537212681 | I35: 12.28701597 | J35: 18.56152448 | K35: 64.90532984 | L35: 4.246129709 | M35: 22.69704158 | N35: 40.88751335 | O35: 36.41544317 | T35: 6.013977922 | U35: 11.30334966 | V35: 82.6826725
A36: 2021 | B36: 14.78448644 | C36: 21.02150292 | D36: 64.19401064 | E36: 14.76179665 | F36: 18.07142068 | G36: 67.03068065 | H36: 0.1361020232 | I36: 12.66946747 | J36: 18.76099847 | K36: 64.4700668 | L36: 4.099461746 | M36: 22.99292676 | N36: 41.78214006 | O36: 35.22493318 | T36: 6.499525286 | U36: 11.25102364 | V36: 82.24945107
A37: 2022 | B37: 15.01906331 | C37: 19.93499291 | D37: 65.04594379 | E37: 14.30685096 | F37: 17.72231146 | G37: 67.80760861 | H37: =100-E37-F37-G37 -> 0.1632289657 | I37: 11.95426362 | J37: 18.37156163 | K37: 65.62341176 | L37: =100-I37-J37-K37 -> 4.050762987 | M37: 20.44801102 | N37: 43.13677796 | O37: 36.415211 | T37: 6.573328376 | U37: 11.31316201 | V37: 82.11350968
A38: 2023 | B38: 14.89864478 | C38: 19.71479328 | D38: 65.38656194 | E38: 14.53622834 | F38: 17.98827516 | G38: 67.30994225 | H38: =100-E38-F38-G38 -> 0.1655542509 | I38: 11.81703146 | J38: 18.6490623 | K38: 65.30168979 | L38: =100-I38-J38-K38 -> 4.232216447 | M38: 20.59856157 | N38: 40.95075011 | O38: 38.45068834 | T38: 6.772530443 | U38: 10.97665035 | V38: 82.25081924
A39: 2024 | B39: 14.70395791 | C39: 19.2918575 | D39: 66.00418459
A41: 주 : 1. 공란은 데이터 없음
A42: 2. 프랑스는 2010년(조사대상년도)부터 '기타' 추가됨
A43: 3. 사사오입으로 인해 합계(100.0%) 수치 마지막 단위에서 차이 발생할 수도 있음
A44: 자료 : OECD, Research & Development Statistics 2025

Sheet 1-6
A1: 1-6) 주요국의 연구수행주체별 연구개발비 비중
A2: Percentage of R&D expenditure by sector of performance in major countries
F4: (단위 : % Unit : %)
A5: 국가 · 연도 Country · Year | C5: 공공연구기관 Public research institutes | E5: 대학 Higher educations | F5: 기업체 Business enterprises
C6: 국립·공립·출연(연) Government | D6: 비영리법인 Private non-profit
A7: 한국 Korea | B7: 1995 | C7: 16.95810629 | D7: 1.148485595 | E7: 8.165916468 | F7: 73.72749165
B8: 1996 | C8: 16.21583832 | D8: 1.21023529 | E8: 9.365842224 | F8: 73.20808417
B9: 1997 | C9: 15.77635359 | D9: 1.201602815 | E9: 10.43508239 | F9: 72.58696121
B10: 1998 | C10: 17.45863868 | D10: 1.060730904 | E10: 11.15918444 | F10: 70.32144598
B11: 1999 | C11: 14.45170978 | D11: 2.149658876 | E11: 12.00680068 | F11: 71.39183066
B12: 2000 | C12: 13.31462517 | D12: 1.358313077 | E12: 11.27821704 | F12: 74.04884471
B13: 2001 | C13: 12.36004099 | D13: 1.048370813 | E13: 10.4079626 | F13: 76.18362559
B14: 2002 | C14: 13.40725045 | D14: 1.326481533 | E14: 10.37279999 | F14: 74.89346803
B15: 2003 | C15: 12.59159456 | D15: 1.18153951 | E15: 10.13527365 | F15: 76.09159228
B16: 2004 | C16: 12.06139413 | D16: 1.160288557 | E16: 10.06185393 | F16: 76.71646338
B17: 2005 | C17: 11.8607284 | D17: 1.357372742 | E17: 9.928555312 | F17: 76.85334355
B18: 2006 | C18: 11.55986545 | D18: 1.22843244 | E18: 9.953570733 | F18: 77.25813138
B19: 2007 | C19: 11.6558146 | D19: 1.450208393 | E19: 10.65166731 | F19: 76.2423097
B20: 2008 | C20: 12.05731407 | D20: 1.431086235 | E20: 11.14482984 | F20: 75.36676985
B21: 2009 | C21: 13.01865539 | D21: 1.636243625 | E21: 11.0846966 | F21: 74.26040438
B22: 2010 | C22: 12.67379517 | D22: 1.705773542 | E22: 10.82083371 | F22: 74.79959757
B23: 2011 | C23: 11.72849965 | D23: 1.647437559 | E23: 10.0897459 | F23: 76.5343169
B24: 2012 | C24: 11.25369393 | D24: 1.280566076 | E24: 9.516532792 | F24: 77.9492072
B25: 2013 | C25: 10.91364587 | D25: 1.330189391 | E25: 9.24154266 | F25: 78.51462207
B26: 2014 | C26: 11.21289607 | D26: 1.516078725 | E26: 9.04846612 | F26: 78.22255909
B27: 2015 | C27: 11.74255052 | D27: 1.635501024 | E27: 9.094799301 | F27: 77.52714915
B28: 2016 | C28: 11.54450843 | D28: 1.585815206 | E28: 9.134557346 | F28: 77.73511902
B29: 2017 | C29: 10.69907722 | D29: 1.413266766 | E29: 8.481522957 | F29: 79.40613306
B30: 2018 | C30: 10.07387259 | D30: 1.40870641 | E30: 8.224099743 | F30: 80.29332125
B31: 2019 | C31: 9.992599744 | D31: 1.426939593 | E31: 8.278372787 | F31: 80.30208788
B32: 2020 | C32: 10.10799455 | D32: 1.838235735 | E32: 8.975178989 | F32: 79.07859072
B33: 2021 | C33: 9.771001325 | D33: 1.975189885 | E33: 9.135548675 | F33: 79.11826011
B34: 2022 | C34: 9.38490157 | D34: 2.083401921 | E34: 9.149123131 | F34: 79.38257338
B35: 2023 | C35: 9.606404912 | D35: 2.053318511 | E35: 9.148493961 | F35: 79.19178262
B36: 2024 | C36: 8.229930058 | D36: 1.91425536 | E36: 8.435040156 | F36: 81.42077443
A37: 미국 United States | B37: 1991 | C37: 14.78273262 | D37: 2.88244078 | E37: 11.2806786 | F37: 71.054148
B38: 1992 | C38: 14.89405323 | D38: 3.010769546 | E38: 11.69092729 | F38: 70.40424993
B39: 1993 | C39: 15.01989131 | D39: 3.169969847 | E39: 12.33501652 | F39: 69.47512233
B40: 1994 | C40: 14.75289027 | D40: 3.300888451 | E40: 12.73839914 | F40: 69.20841169
B41: 1995 | C41: 14.02225047 | D41: 3.16536836 | E41: 12.28610541 | F41: 70.52681899
B42: 1996 | C42: 12.89370178 | D42: 3.138997583 | E42: 11.99077866 | F42: 71.97652198
B43: 1997 | C43: 12.14290421 | D43: 3.125970689 | E43: 11.59037642 | F43: 73.14121933
B44: 1998 | C44: 11.62549121 | D44: 3.201651439 | E44: 11.30855291 | F44: 73.86474647
B45: 1999 | C45: 11.16499306 | D45: 3.291289085 | E45: 11.21520124 | F45: 74.32851661
B46: 2000 | C46: 10.82671155 | D46: 3.576880972 | E46: 11.13949314 | F46: 74.45728669
B47: 2001 | C47: 11.93502496 | D47: 3.937848714 | E47: 11.73578537 | F47: 72.39169931
B48: 2002 | C48: 12.91062949 | D48: 4.280316363 | E48: 13.17606155 | F48: 69.63299259
B49: 2003 | C49: 12.98377242 | D49: 4.423306647 | E49: 13.88876529 | F49: 68.70415564
B50: 2004 | C50: 12.71163568 | D50: 4.477921428 | E50: 14.25035547 | F50: 68.55975828
B51: 2005 | C51: 12.37711928 | D51: 4.35397004 | E51: 13.94410709 | F51: 69.32480359
B52: 2006 | C52: 12.1034268 | D52: 4.000352604 | E52: 13.46976845 | F52: 70.42673651
B53: 2007 | C53: 11.91153005 | D53: 3.893808583 | E53: 13.05861716 | F53: 71.13604421
B54: 2008 | C54: 11.52230486 | D54: 3.93655727 | E54: 12.83999951 | F54: 71.70113837
B55: 2009 | C55: 12.18947999 | D55: 4.361443935 | E55: 13.58457797 | F55: 69.86449811
B56: 2010 | C56: 13.01506012 | D56: 4.472259214 | E56: 14.21898868 | F56: 68.29369198
B57: 2011 | C57: 12.87044104 | D57: 4.207891816 | E57: 14.06797994 | F57: 68.8536872
B58: 2012 | C58: 12.27735808 | D58: 4.133808426 | E58: 14.01683079 | F58: 69.57223289
B59: 2013 | C59: 11.50709251 | D59: 4.104559596 | E59: 13.52322863 | F59: 70.86533898
B60: 2014 | C60: 11.3429056 | D60: 4.154481209 | E60: 13.07140626 | F60: 71.43099729
B61: 2015 | C61: 10.77372729 | D61: 4.096759762 | E61: 12.73844553 | F61: 72.39087034
B62: 2016 | C62: 9.842820054 | D62: 4.279381028 | E62: 12.70786275 | F62: 73.16993617
B63: 2017 | C63: 9.568752928 | D63: 4.214536359 | E63: 12.57130735 | F63: 73.64540336
B64: 2018 | C64: 9.751302754 | D64: 3.982912792 | E64: 12.12281673 | F64: 74.14296772
B65: 2019 | C65: 9.57185799 | D65: 3.790574524 | E65: 11.53819452 | F65: 75.09952068
B66: 2020 | C66: 9.24825 | D66: 3.677706729 | E66: 11.06723646 | F66: 76.00694383
B67: 2021 | C67: 8.312943256 | D67: 3.309035665 | E67: 10.43448516 | F67: 77.94353592
B68: 2022 | C68: 8.097773534 | D68: 3.108430095 | E68: 10.3946952 | F68: 78.39921143
B69: 2023 | C69: 7.934778741 | D69: 2.963651319 | E69: 10.67877243 | F69: 78.42269286
A70: 일본 Japan | B70: 1991 | C70: 8.102017566 | D70: 4.437154071 | E70: 12.07294985 | F70: 75.38787851
B71: 1992 | C71: 8.923090579 | D71: 4.710573988 | E71: 12.82890264 | F71: 73.53744049
B72: 1993 | C72: 10.03891753 | D72: 4.853475567 | E72: 14.02550088 | F72: 71.08210603
B73: 1994 | C73: 9.712815845 | D73: 5.043203656 | E73: 14.12394326 | F73: 71.12004516
B74: 1995 | C74: 10.39813304 | D74: 4.78733207 | E74: 14.53359998 | F74: 70.28093492
B75: 1996 | C75: 9.385584997 | D75: 4.79864512 | E75: 14.75699358 | F75: 71.05876218
B76: 1997 | C76: 8.834482558 | D76: 4.846326525 | E76: 14.27420385 | F76: 72.04498707
B77: 1998 | C77: 9.248435795 | D77: 4.707353445 | E77: 14.84691055 | F77: 71.19730021
B78: 1999 | C78: 9.856745247 | D78: 4.587405023 | E78: 14.84207718 | F78: 70.71377255
B79: 2000 | C79: 9.890160511 | D79: 4.620030432 | E79: 14.52853205 | F79: 70.96128355
B80: 2001 | C80: 9.535102442 | D80: 2.326282833 | E80: 14.46465127 | F80: 73.67395059
B81: 2002 | C81: 9.537406425 | D81: 2.139110195 | E81: 13.88158181 | F81: 74.44188871
B82: 2003 | C82: 9.310090419 | D82: 2.052921805 | E82: 13.66002646 | F82: 74.97696131
B83: 2004 | C83: 9.488502727 | D83: 1.893181686 | E83: 13.42684855 | F83: 75.19146703
B84: 2005 | C84: 8.29023276 | D84: 1.85798499 | E84: 13.4041044 | F84: 76.44767785
B85: 2006 | C85: 8.281147757 | D85: 1.869215364 | E85: 12.69429021 | F85: 77.15534666
B86: 2007 | C86: 7.76839103 | D86: 1.747453486 | E86: 12.59359668 | F86: 77.8905588
B87: 2008 | C87: 8.329088312 | D87: 1.57234011 | E87: 11.6367808 | F87: 78.46179078
B88: 2009 | C88: 9.214585053 | D88: 1.612987655 | E88: 13.41032037 | F88: 75.76210692
B89: 2010 | C89: 9.024437901 | D89: 1.589012415 | E89: 12.87236456 | F89: 76.51418512
B90: 2011 | C90: 8.375466555 | D90: 1.450781803 | E90: 13.21085819 | F90: 76.96289346
B91: 2012 | C91: 8.620159722 | D91: 1.400715909 | E91: 13.35618543 | F91: 76.62293894
B92: 2013 | C92: 9.168409315 | D92: 1.275228538 | E92: 13.4658196 | F92: 76.09054255
B93: 2014 | C93: 8.325804058 | D93: 1.339353549 | E93: 12.5781188 | F93: 77.75672359
B94: 2015 | C94: 7.898760568 | D94: 1.332102015 | E94: 12.27806042 | F94: 78.49107699
B95: 2016 | C95: 7.548668844 | D95: 1.38103347 | E95: 12.31760825 | F95: 78.75268944
B96: 2017 | C96: 7.813759742 | D96: 1.378017379 | E96: 12.01258364 | F96: 78.79563924
B97: 2018 | C97: 7.752268066 | D97: 1.266180159 | E97: 11.5596818 | F97: 79.42186998
B98: 2019 | C98: 7.81121849 | D98: 1.342090908 | E98: 11.69242213 | F98: 79.15426847
B99: 2020 | C99: 8.277022579 | D99: 1.3679541 | E99: 11.70066724 | F99: 78.65435608
B100: 2021 | C100: 8.356093577 | D100: 1.211852164 | E100: 11.87214602 | F100: 78.55990824
B101: 2022 | C101: 7.89472842 | D101: 1.188183516 | E101: 11.53361192 | F101: 79.38347614
B102: 2023 | C102: 8.666252479 | D102: 1.119313316 | E102: 11.07590215 | F102: 79.13853205
A103: 독일 Germany | B103: 1991 | C103: 14.41835149 | E103: 16.2363366 | F103: 69.34521608
B104: 1992 | C104: 14.21602922 | E104: 17.08394825 | F104: 68.70002252
B105: 1993 | C105: 15.20965661 | E105: 17.64829552 | F105: 67.14204787
B106: 1994 | C106: 15.24949243 | E106: 18.14677245 | F106: 66.60373512
B107: 1995 | C107: 15.48890321 | E107: 18.22145117 | F107: 66.28964779
B108: 1996 | C108: 15.30148136 | E108: 18.66223516 | F108: 66.03628159
B109: 1997 | C109: 14.61526201 | E109: 18.02147358 | F109: 67.36327438
B110: 1998 | C110: 14.66526081 | E110: 17.38451587 | F110: 67.95020997
B111: 1999 | C111: 13.71507878 | E111: 16.7483277 | F111: 69.53659779
B112: 2000 | C112: 13.52261811 | E112: 16.43341139 | F112: 70.0439705
B113: 2001 | C113: 13.68004141 | E113: 16.76652286 | F113: 69.55343573
B114: 2002 | C114: 13.69419926 | E114: 17.30623414 | F114: 68.9995666
B115: 2003 | C115: 13.35225899 | E115: 17.16022736 | F115: 69.48751364
B116: 2004 | C116: 13.63858544 | E116: 16.73282771 | F116: 69.62858686
B117: 2005 | C117: 14.0784832 | E117: 16.75221388 | F117: 69.16930292
B118: 2006 | C118: 13.83167063 | E118: 16.38657356 | F118: 69.78175581
B119: 2007 | C119: 13.88629137 | E119: 16.14079667 | F119: 69.97291196
B120: 2008 | C120: 14.03484672 | E120: 16.78034666 | F120: 69.18480662
B121: 2009 | C121: 14.80621379 | E121: 17.69785849 | F121: 67.49592762
B122: 2010 | C122: 14.78803954 | E122: 18.18413622 | F122: 67.02782424
B123: 2011 | C123: 14.52221079 | E123: 17.88770463 | F123: 67.59008458
B124: 2012 | C124: 14.33509394 | E124: 17.67117206 | F124: 67.99373402
B125: 2013 | C125: 14.87734633 | E125: 17.93778514 | F125: 67.18491243
B126: 2014 | C126: 14.62367113 | E126: 17.72209986 | F126: 67.65422901
B127: 2015 | C127: 14.06324757 | E127: 17.28305657 | F127: 68.65369587
B128: 2016 | C128: 13.80098756 | E128: 18.03846539 | F128: 68.16054704
B129: 2017 | C129: 13.54446934 | E129: 17.35979836 | F129: 69.09573229
B130: 2018 | C130: 13.536023 | E130: 17.57894992 | F130: 68.88502709
B131: 2019 | C131: 13.65339152 | E131: 17.42580191 | F131: 68.92080657
B132: 2020 | C132: 14.62621454 | E132: 18.72899283 | F132: 66.64479263
B133: 2021 | C133: 14.80874792 | E133: 18.25472517 | F133: 66.93652691
B134: 2022 | C134: 12.10422643 | D134: 2.394484333 | E134: 18.12479657 | F134: 67.37649267
B135: 2023 | C135: 11.74428956 | D135: 2.326007643 | E135: 17.44318995 | F135: 68.48651283
A136: 프랑스 France | B136: 1991 | C136: 22.6514066 | D136: 0.7839732471 | E136: 15.08336077 | F136: 61.48119807
B137: 1992 | C137: 20.91306343 | D137: 1.327512729 | E137: 15.27687597 | F137: 62.48390166
B138: 1993 | C138: 21.12352565 | D138: 1.350441225 | E138: 15.82825335 | F138: 61.69783733
B139: 1994 | C139: 20.62906193 | D139: 1.34937316 | E139: 16.1805164 | F139: 61.83990932
B140: 1995 | C140: 20.9896665 | D140: 1.32350666 | E140: 16.70569605 | F140: 60.98108724
B141: 1996 | C141: 20.26858282 | D141: 1.347295551 | E141: 16.83955134 | F141: 61.54457029
B142: 1997 | C142: 18.66520932 | D142: 1.385761207 | E142: 17.41456395 | F142: 62.53446553
B143: 1998 | C143: 18.64070917 | D143: 1.490632272 | E143: 17.60765633 | F143: 62.2609484
B144: 1999 | C144: 18.14205529 | D144: 1.518377479 | E144: 17.16267342 | F144: 63.17689382
B145: 2000 | C145: 17.3208609 | D145: 1.419511785 | E145: 18.75180916 | F145: 62.50781815
B146: 2001 | C146: 16.51710064 | D146: 1.386216046 | E146: 18.90479537 | F146: 63.19188795
B147: 2002 | C147: 16.53338524 | D147: 1.355245318 | E147: 18.86084369 | F147: 63.25052575
B148: 2003 | C148: 16.6812523 | D148: 1.340576015 | E148: 19.36102159 | F148: 62.6171501
B149: 2004 | C149: 16.97857779 | D149: 1.284389451 | E149: 18.63324567 | F149: 63.10378709
B150: 2005 | C150: 17.76911581 | D150: 1.2875582 | E150: 18.8274209 | F150: 62.1159051
B151: 2006 | C151: 16.49850119 | D151: 1.217037132 | E151: 19.20326149 | F151: 63.08120019
B152: 2007 | C152: 16.35222507 | D152: 1.172549163 | E152: 19.49616144 | F152: 62.97906433
B153: 2008 | C153: 15.98470365 | D153: 1.248553474 | E153: 20.03599894 | F153: 62.73074394
B154: 2009 | C154: 16.30877686 | D154: 1.195961235 | E154: 20.80275781 | F154: 61.69250409
B155: 2010 | C155: 14.01649354 | D155: 1.245264659 | E155: 21.57903401 | F155: 63.15920779
B156: 2011 | C156: 13.85231717 | D156: 1.247087384 | E156: 20.94671662 | F156: 63.95396084
B157: 2012 | C157: 13.15525858 | D157: 1.437755379 | E157: 20.82843928 | F157: 64.57871874
B158: 2013 | C158: 13.05935871 | D158: 1.473986029 | E158: 20.87979722 | F158: 64.58687916
B159: 2014 | C159: 12.73744115 | D159: 1.510213408 | E159: 22.12130515 | F159: 63.6310353
B160: 2015 | C160: 12.96918137 | D160: 1.56844079 | E160: 20.78742672 | F160: 64.67495111
B161: 2016 | C161: 12.70955426 | D161: 1.64324639 | E161: 20.54142075 | F161: 65.1057786
B162: 2017 | C162: 12.41729009 | D162: 1.580406131 | E162: 20.63553263 | F162: 65.36677114
B163: 2018 | C163: 12.43773332 | D163: 1.57568893 | E163: 20.44909061 | F163: 65.53748714
B164: 2019 | C164: 12.32708209 | D164: 1.645772118 | E164: 20.10570899 | F164: 65.92143679
B165: 2020 | C165: 11.82559063 | D165: 1.981534501 | E165: 20.51872897 | F165: 65.6741459
B166: 2021 | C166: 11.72031307 | D166: 2.068835333 | E166: 20.48386263 | F166: 65.72698897
B167: 2022 | C167: 11.53213843 | D167: 1.988139409 | E167: 20.36357759 | F167: 66.11614458
B168: 2023 | C168: 11.61143064 | D168: 1.62820101 | E168: 20.67672525 | F168: 66.0836431
A169: 영국 United Kingdom | B169: 1991 | C169: 14.4823607 | D169: 1.813386086 | E169: 16.65018134 | F169: 67.05407188
B170: 1992 | C170: 14.93126314 | D170: 1.812227074 | E170: 17.22060488 | F170: 66.0359049
B171: 1993 | C171: 14.62029539 | D171: 1.758256756 | E171: 17.52949383 | F171: 66.09195402
B172: 1994 | C172: 14.98808845 | D172: 1.229154792 | E172: 19.16809167 | F172: 64.61466509
B173: 1995 | C173: 14.56372252 | D173: 1.263405423 | E173: 19.21402359 | F173: 64.95884847
B174: 1996 | C174: 14.43708147 | D174: 1.236049107 | E174: 19.47614397 | F174: 64.85072545
B175: 1997 | C175: 13.7651297 | D175: 1.297026596 | E175: 19.74059468 | F175: 65.19656673
B176: 1998 | C176: 13.45013041 | D176: 1.313746838 | E176: 19.67055311 | F176: 65.56556964
B177: 1999 | C177: 12.23885623 | D177: 1.36433712 | E177: 19.63515196 | F177: 66.76165469
B178: 2000 | C178: 12.63235128 | D178: 1.819618467 | E178: 20.58817001 | F178: 64.96000202
B179: 2001 | C179: 10.02953079 | D179: 1.777315979 | E179: 22.68948923 | F179: 65.50366401
B180: 2002 | C180: 9.189298828 | D180: 1.943020002 | E180: 24.01834843 | F180: 64.84933274
B181: 2003 | C181: 10.39144441 | D181: 1.854950975 | E181: 24.04500932 | F181: 63.70859529
B182: 2004 | C182: 10.71507944 | D182: 2.006114154 | E182: 24.7154054 | F182: 62.56340101
B183: 2005 | C183: 10.55799494 | D183: 2.317214914 | E183: 25.73704408 | F183: 61.38774607
B184: 2006 | C184: 9.992199318 | D184: 2.23073641 | E184: 26.12323353 | F184: 61.65383074
B185: 2007 | C185: 9.160554993 | D185: 2.227885872 | E185: 26.08087215 | F185: 62.53068698
B186: 2008 | C186: 9.152995933 | D186: 2.355483522 | E186: 26.49736668 | F186: 61.99415347
B187: 2009 | C187: 9.163457523 | D187: 2.480706476 | E187: 27.94661223 | F187: 60.40922377
B188: 2010 | C188: 9.526803733 | D188: 2.478825582 | E188: 27.04529929 | F188: 60.94909339
B189: 2011 | C189: 8.578618466 | D189: 1.811926354 | E189: 26.02877314 | F189: 63.58068204
B190: 2012 | C190: 8.046360068 | D190: 1.906243057 | E190: 26.70332519 | F190: 63.34407169
B191: 2013 | C191: 7.899193423 | D191: 1.7942795 | E191: 26.41826349 | F191: 63.88826359
B192: 2014 | C192: 5.267911539 | D192: 1.31330348 | E192: 18.70035108 | F192: 74.7184339
B193: 2015 | C193: 4.795251937 | D193: 1.59903641 | E193: 17.5874515 | F193: 76.01826016
B194: 2016 | C194: 4.697916002 | D194: 1.562733615 | E194: 16.67588056 | F194: 77.06346983
B195: 2017 | C195: 4.553574433 | D195: 1.557179183 | E195: 16.81271673 | F195: 77.07652965
B196: 2018 | C196: 4.466262139 | D196: 1.341569797 | E196: 23.87887212 | F196: 70.30986561
B197: 2019 | C197: 4.461686967 | D197: 1.37901812 | E197: 23.45348215 | F197: 70.70581276
B198: 2020 | C198: 4.979877454 | D198: 1.451834282 | E198: 22.42627393 | F198: 71.14203051
B199: 2021 | C199: 5.078107199 | D199: 1.468193812 | E199: 22.63797439 | F199: 70.81572459
B200: 2022 | C200: 5.228685228 | D200: 1.508254672 | E200: 23.40891098 | F200: 69.85413474
B201: 2023 | C201: 5.951917101 | D201: 1.557436823 | E201: 23.6143395 | F201: 68.87630658
... 35 more rows

Sheet 1-7,8
A1: 1-7) 주요국의 기업 연구개발비 대비 하이테크산업 연구개발비 비중
A2: Percentage of R&D expenditure for high-technology industry to BERD in major countries
H4: (단위 : % Unit : %) | I4: (단위 : % Unit : %)
A5: 연도 국가 Year Country | B5: 2017 | C5: 2018 | D5: 2019 | E5: 2020 | F5: 2021 | G5: 2022 | H5: 2023 | I5: 2024
A6: 한국 Korea | B6: 54.08974352 | C6: 54.47621594 | D6: 53.86642287 | E6: 53.03352271 | F6: 52.80285691 | G6: 53.00314299 | H6: 54.5 | I6: 54.92518555
A7: 미국 United States | B7: 42.09315909 | C7: 40.97023387 | D7: 38.64857184 | E7: 39.38442039 | F7: 36.36825233 | G7: 36.97997334
A8: 일본 Japan | B8: 30.59954498 | C8: 29.90916141 | D8: 28.56269655 | E8: 31.13889413 | F8: 27.29723309 | G8: 25.64423089
A9: 독일 Germany | B9: 20.15139423 | C9: 21.1010065 | D9: 20.63802908 | E9: 21.38895146 | F9: 20.87217228
A10: 프랑스 France | B10: 21.86888271 | C10: 28.10424282 | D10: 28.06434637 | E10: 27.89133858 | F10: 27.37650143
A12: 주 : 하이테크산업은 제약(pharmaceutical industry), 항공우주(aerospace industry), 컴퓨터/전자/광학(computer, electronic and optical industry)의 합, 중국은 항공우주 데이터 결측으로 주요국 비교에서 제외
A13: 자료 : OECD, Main Science and Technology Indicators 2025-Sept, 2025
A15: 1-8) 주요국의 연구개발인력(FTE 기준)
A16: R&D personnel(FTE) in major countries
H17: (단위 : 명 Unit : person) | I17: (단위 : 명 Unit : person)
A18: 국가 Country | B18: 연구개발인력 R&D personnel | D18: 연구원 Researchers | F18: 연구보조원 Other R&D Personnel
A19: 한국(2024) Korea | B19: 624,764 (100.0) | D19: 503,346 (80.6) | F19: 121,418 (19.4) | K19: 한 국 (2016) Korea | L19: 447,408 (100.0) | N19: 361,292 (80.8) | P19: 86,117 (19.2)
A20: 미국(2022) United States | B20: 2,726,638 (100.0) | D20: 1,681,676 (61.7) | F20: 1,044,962 (38.3) | K20: 미 국 (2015) United States | N20: 1379977 | S20: 872340 | T20: 665566 | U20: =S20-T20 -> 206774 | V20: =T20/S20*100 -> 76.29662746 | W20: =U20/S20*100 -> 23.70337254
A21: 일본(2023) Japan | B21: 927,402 (100.0) | D21: 699,232 (75.4) | F21: 228,170 (24.6) | K21: 일 본 (2015) Japan | L21: 875,005 (100.0) | N21: 662,071 (75.7) | P21: 212,934 (24.3) | S21: 656727 | T21: 400821 | U21: =S21-T21 -> 255906 | V21: =T21/S21*100 -> 61.03312335 | W21: =U21/S21*100 -> 38.96687665
A22: 독일(2023) Germany | B22: 824,396 (100.0) | D22: 500,166 (61.0) | F22: 324,230 | K22: 독 일 (2015) Germany | L22: 640,516 (100.0) | N22: 387,982 (60.6) | P22: 252,534 (39.4) | S22: .. | T22: ..
A23: 프랑스(2023) France | B23: 513,230 (100.0) | D23: 356,378 (68.5) | F23: 156,852 (31.5) | K23: 프랑스 (2015) France | L23: 428,643 (100.0) | N23: 277,631 (64.8) | P23: 151,011 (35.2) | S23: 419898 | T23: 291416 | U23: =S23-T23 -> 128482 | V23: =T23/S23*100 -> 69.40161658 | W23: =U23/S23*100 -> 30.59838342
A24: 영국(2017) United Kingdom | B24: 444,619 (100.0) | D24: 295,842 (66.5) | F24: 148,777 (33.5) | K24: 영 국 (2015) United Kingdom | L24: 416,538 (100.0) | N24: 289,330 (69.5) | P24: 127,208 (30.5) | S24: 3878056.8 | T24: 1692175.8 | U24: =S24-T24 -> 2185881 | V24: =T24/S24*100 -> 43.63463165 | W24: =U24/S24*100 -> 56.36536835
A25: 중국(2023) China | B25: 7,240,582 (100.0) | D25: 3,001,302 (41.5) | F25: 4,239,280 (58.5) | K25: 중 국 (2015) China | L25: 3,758,848 (100.0) | N25: 1,619,028 (43.1) | P25: 2,139,870 (56.9)
A27: 주 : 괄호 안의 수치는 구성비임
A28: 자료 : OECD, Main Science and Technology Indicators Sept, 2025

Sheet 1-9
A1: 1-9) 주요국의 정부연구개발예산
A2: Government Budget Allocations for R&D in major countries
G4: (단위 : 백만달러 / Unit : PPP USD, Millions)
A5: 연도 Year | B5: 한국 Korea | C5: 미국 United States | D5: 일본 Japan | E5: 독일 Germany | F5: 프랑스 France | G5: 영국 United Kingdom
A6: 1981 | B6: 309.531909 | C6: 33735 | E6: 7850.307367 | F6: 7507.806027 | G6: 6821.986131
A7: 1982 | B7: 314.9757067 | C7: 36115 | E7: 7956.012675 | F7: 7271.041049 | G7: 6146.769919
A8: 1983 | B8: 324.3319893 | C8: 38768 | E8: 7478.837336 | F8: 7276.984361 | G8: 5752.699989
A9: 1984 | B9: 340.0867485 | C9: 44214 | E9: 6821.502518 | F9: 7068.806808 | G9: 5392.607411
A10: 1985 | B10: 398.1517666 | C10: 49887 | E10: 7143.696226 | F10: 7649.222585 | G10: 5311.031433
A11: 1986 | B11: 478.1861827 | C11: 53249 | E11: 9846.677518 | F11: 9957.129436 | G11: 6236.946219
A12: 1987 | B12: 686.0255074 | C12: 57069 | E12: 12322.63175 | F12: 12337.97445 | G12: 7159.350707
A13: 1988 | B13: 848.9830891 | C13: 59106 | D13: 13388.40173 | E13: 12673.65496 | F13: 13130.8977 | G13: 7998.407955
A14: 1989 | B14: 1122.188479 | C14: 62115 | D14: 13157.00845 | E14: 12572.1687 | F14: 13123.53746 | G14: 7807.643662
A15: 1990 | B15: 1301.701717 | C15: 63781 | D15: 13266.37084 | E15: 15546.19793 | F15: 16966.08164 | G15: 8798.404409
A16: 1991 | B16: 1123.779112 | C16: 65897 | D16: 15015.07717 | E16: 17745.56606 | F16: 16506.59154 | G16: 8866.432105
A17: 1992 | B17: 1243.930167 | C17: 68398 | D17: 16854.74562 | E17: 19916.68984 | F17: 17006.2018 | G17: 8913.291937
A18: 1993 | B18: 1451.021032 | C18: 69884 | D18: 20380.48671 | E18: 18981.15509 | F18: 15792.0099 | G18: 8102.352131
A19: 1994 | B19: 1926.293329 | C19: 68331 | D19: 23075.28253 | E19: 19060.79564 | F19: 16115.09079 | G19: 7958.654907
A20: 1995 | B20: 2470.651157 | C20: 68791 | D20: 26574.10363 | E20: 22076.95417 | F20: 17336.97047 | G20: 8903.716142
A21: 1996 | B21: 2954.661993 | C21: 69049 | D21: 25836.33355 | E21: 21394.70822 | F21: 16804.41082 | G21: 9081.094237
A22: 1997 | B22: 3151.733359 | C22: 71653.28158 | D22: 24816.83266 | E22: 18056.90262 | F22: 14112.20384 | G22: 9862.876451
A23: 1998 | B23: 2367.901558 | C23: 73568.71422 | D23: 23163.14906 | E23: 17802.52319 | F23: 14124.55642 | G23: 9660.596465
A24: 1999 | B24: 3116.342645 | C24: 77637.10471 | D24: 27713.25207 | E24: 17395.94497 | F24: 13739.82913 | G24: 10236.11091
A25: 2000 | B25: 3713.322054 | C25: 72681 | D25: 30476.54454 | E25: 15011.5156 | F25: 12784.71975 | G25: 10118.15152
A26: 2001 | B26: 5927.47553 | C26: 78538 | D26: 23178.75064 | E26: 17704.8942 | F26: 16276.16811 | G26: 9722.279408
A27: 2002 | B27: 6701.076953 | C27: 88665 | D27: 24652.73247 | E27: 18326.57419 | F27: 17206.97454 | G27: 11493.65025
A28: 2003 | B28: 7047.699105 | C28: 98767 | D28: 25772.95941 | E28: 19087.84378 | F28: 16996.42974 | G28: 11781.45153
A29: 2004 | B29: 7675.111785 | C29: 106246 | D29: 26847.65811 | E29: 19362.79017 | F29: 17009.74812 | G29: 12291.59281
A30: 2005 | B30: 9886.474633 | C30: 111332 | D30: 27617.83877 | E30: 19731.95782 | F30: 18220.18526 | G30: 12116.12436
A31: 2006 | B31: 11537.66478 | C31: 114442 | D31: 28721.30737 | E31: 20773.94123 | F31: 16320.23651 | G31: 12889.316
A32: 2007 | B32: 12677.69763 | C32: 117691 | D32: 29182.78849 | E32: 22340.10719 | F32: 15877.64041 | G32: 13177.96759
A33: 2008 | B33: 14099.67711 | C33: 116710 | D33: 30559.8967 | E33: 24002.57567 | F33: 19222.10621 | G33: 13160.63346
A34: 2009 | B34: 15337.51478 | C34: 136599 | D34: 30931.76184 | E34: 26765.74157 | F34: 20293.50553 | G34: 13277.67039
A35: 2010 | B35: 16291.91967 | C35: 119382 | D35: 32128.03738 | E35: 28584.43241 | F35: 19139.81943 | G35: 13314.59662
A36: 2011 | B36: 17423.86962 | C36: 113386 | D36: 34105.24882 | E36: 30103.13881 | F36: 19983.78285 | G36: 12902.16521
A37: 2012 | B37: 18744.48667 | C37: 116796 | D37: 35413.16133 | E37: 30575.24114 | F37: 17925.92079 | G37: 12974.57376
A38: 2013 | B38: 19730.18819 | C38: 109608 | D38: 35633.48235 | E38: 32745.88975 | F38: 18457.13 | G38: 14362.78905
A39: 2014 | B39: 20391.91129 | C39: 112502 | D39: 35431.8044 | E39: 33186.29565 | F39: 18349.23762 | G39: 14571.54356
A40: 2015 | B40: 22032.57573 | C40: 115220 | D40: 33616.779 | E40: 34107.67282 | F40: 17531.08155 | G40: 14667.40169
A41: 2016 | B41: 22297.37426 | C41: 126093 | D41: 33802.89501 | E41: 37667.81743 | F41: 18009.45806 | G41: 15006.91198
A42: 2017 | B42: 22348.48974 | C42: 127306 | D42: 42400.73312 | E42: 40496.0771 | F42: 19150.37673 | G42: 15999.97815
A43: 2018 | B43: 23100.8653 | C43: 144459 | D43: 45834.62953 | E43: 43184.488 | F43: 20577.94673 | G43: 17184.45783
A44: 2019 | B44: 24604.15717 | C44: 149971 | D44: 55574.60946 | E44: 47363.55646 | F44: 22921.96779 | G44: 18179.82093
A45: 2020 | B45: 29246.43658 | C45: 169901 | D45: 88897.8523 | E45: 52588.02392 | F45: 24541.90137 | G45: 21432.49785
A46: 2021 | B46: 33146.48566 | C46: 161885 | D46: 81461.33409 | E46: 57240.29363 | F46: 25087.037 | G46: 20969.61746
A47: 2022 | B47: 36141.95064 | C47: 186876 | D47: 100391.9144 | E47: 61676.64047 | F47: 25776.49042 | G47: 24284.39038
A48: 2023 | B48: 37515.82895 | C48: 198941 | D48: 99466.8265 | E48: 60711.6587 | F48: 25772.2905 | G48: 24929.20696
A49: 2024 | B49: =265369*100/838.9 -> 31632.97175 | C49: 203919 | D49: 88491.95788 | E49: 62994.22264 | F49: 27216.79904
A50: 2025 | B50: =295968*100/838.9 -> 35280.48635
A52: 자료 : 1. 한국 : 한국과학기술기획평가원, 정부연구개발예산 현황분석, 각 연도
A53: 2025년은 2024년 PPP 적용
A54: 2. 그 외 국가 : OECD, Main Science and Technology Indicators Sept, 2025

Sheet 2-1
A1: 2. 국내 연구개발활동
A2: R&D Activities in Korea
A3: 2-1) 연구개발비 및 GDP 대비 연구개발비 비율
A4: R&D expenditure and as a percentage of GDP
A6: 연도 Year | B6: 연구개발비(백만원) R&D expenditure(Won, Millions) | E6: 정부 : 민간 Gov't : Business enterprises | F6: 국내총생산(B)(십억원) GDP(Won, Billions) | G6: 국내총생산대비(A/B) As a percent of GDP
B7: 총계(A) Total | C7: 정부·공공재원 Gov't & Other national sources | D7: 민간·외국재원 Business enterprises sector & Rest of the world
A8: 1991 | B8: 4158441 | C8: 808464 | D8: 3349977 | E8: 19 : 81 | F8: 242481.1 | G8: =B8/(F8*1000) -> 0.01714954691
A9: 1992 | B9: 4989031 | C9: 856882 | D9: 4132149 | E9: 17 : 83 | F9: 277540.8 | G9: 0.01797584715
A10: 1993 | B10: 6152983 | C10: 1026617 | D10: 5126366 | E10: 17 : 83 | F10: 315181.3 | G10: 0.01952204334
A11: 1994 | B11: 7894746 | C11: 1880222 | D11: 6014524 | E11: 24 : 76 | F11: 372493.4 | G11: 0.02119432452
A12: 1995 | B12: 9440606 | C12: 2289131 | D12: 7151475 | E12: 24 : 76 | F12: 436988.8 | G12: 0.02160377108
A13: 1996 | B13: 10878051 | C13: 2850638 | D13: 8027414 | E13: 26 : 74 | F13: 490850.9 | G13: 0.02216161975
A14: 1997 | B14: 12185807 | C14: 3344814 | D14: 8840992 | E14: 27 : 73 | F14: 542001.8 | G14: 0.02248296408
A15: 1998 | B15: 11336617 | C15: 3491103 | D15: 7845514 | E15: 31 : 69 | F15: 537215.3 | G15: 0.02110255795
A16: 1999 | B16: 11921752 | C16: 3574370 | D16: 8347382 | E16: 30 : 70 | F16: 591453 | G16: 0.02015671913
A17: 2000 | B17: 13848501 | C17: 3816850 | D17: 10031650 | E17: 28 : 72 | F17: 651634.426 | G17: 0.0212519481
A18: 2001 | B18: 16110521.98 | C18: 4361534 | D18: 11748988 | E18: 27 : 73 | F18: 707021.316 | G18: 0.02278647279
A19: 2002 | B19: 17325081.78 | C19: 4739957 | D19: 12585125 | E19: 27 : 73 | F19: 784741.2502 | G19: 0.02207744499
A20: 2003 | B20: 19068682 | C20: 4876225 | D20: 14192457 | E20: 26 : 74 | F20: 837364.9986 | G20: 0.02277224631
A21: 2004 | B21: 22185343 | C21: 5446050 | D21: 16739293 | E21: 25 : 75 | F21: 908439.1448 | G21: 0.02442138599
A22: 2005 | B22: 24155413.6 | C22: 5973784.01 | D22: 18181629.59 | E22: 24 : 76 | F22: 957447.785 | G22: 0.02522896181
A23: 2006 | B23: 27345704.1 | C23: 6786698.363 | D23: 20559005.74 | E23: 24 : 76 | F23: 1005601.505 | G23: 0.02719338024
A24: 2007 | B24: 31301377.26 | C24: 8175935.845 | D24: 23125441.41 | E24: 26 : 74 | F24: 1089660.171 | G24: 0.0287258157
A25: 2008 | B25: 34498053.84 | C25: 9248057.258 | D25: 25249996.58 | E25: 27 : 73 | F25: 1154216.49 | G25: 0.02988872031
A26: 2009 | B26: 37928502.24 | C26: 10887135.84 | D26: 27041366.4 | E26: 29 : 71 | F26: 1255305.5 | G26: 0.03021455912
A27: 2010 | B27: 43854834.28 | C27: 12270227.61 | D27: 31584606.68 | E27: 28 : 72 | F27: 1379460.2 | G27: 0.03179130089
A28: 2011 | B28: 49890418.95 | C28: 13002403.59 | D28: 36888015.36 | E28: 26 : 74 | F28: 1448575.6 | G28: 0.03444101844
A29: 2012 | B29: 55450115.65 | C29: 13822077.68 | D29: 41628037.97 | E29: 25 : 75 | F29: 1504674.1 | G29: 0.03685191076
A30: 2013 | B30: 59300949.33 | C30: 14241744.4 | D30: 45059204.93 | E30: 24 : 76 | F30: 1570938.2 | G30: 0.03774874742
A31: 2014 | B31: 63734126.79 | C31: 15275007.37 | D31: 48459119.43 | E31: 24 : 76 | F31: 1638484.8 | G31: 0.03889821059
A32: 2015 | B32: 65959371.73 | C32: 16293517.79 | D32: 49665853.93 | E32: 25 : 75 | F32: 1740776 | G32: 0.03789078648
A33: 2016 | B33: 69405529.89 | C33: 16410047.25 | D33: 52995482.63 | E33: 24 : 76 | F33: 1833026.6 | G33: 0.03786389673
A34: 2017 | B34: 78789187.37 | C34: 17737133.57 | D34: 61052053.81 | E34: 23 : 77 | F34: 1934233.9 | G34: 0.04073405361
A35: 2018 | B35: 85728714.74 | C35: 18363010.93 | D35: 67365703.81 | E35: 21 : 79 | F35: 2006974.5 | G35: 0.0427153981
A36: 2019 | B36: 89047077.12 | C36: 19095480.17 | D36: 69951596.95 | E36: 21 : 79 | F36: 2040594.3 | G36: 0.04363781528
A37: 2020 | B37: 93071686.49 | C37: 21581227.83 | D37: 71490458.66 | E37: 23 : 77 | F37: 2058466.5 | G37: 0.04521408849
A38: 2021 | B38: 102135243.5 | C38: 24094954.28 | D38: 78040289.26 | E38: 24 : 76 | F38: 2221912.9 | G38: 0.04596725801
A39: 2022 | B39: 112646008.3 | C39: 26328329.45 | D39: 86317678.83 | E39: 23 : 77 | F39: 2323781.5 | G39: 0.04847530126
A40: 2023 | B40: 119074025.1 | C40: 28127648.15 | D40: 90946376.99 | E40: 24 : 76 | F40: =24086874/10 -> 2408687.4 | G40: =B40/(F40*1000) -> 0.04943523396
A41: 2024 | B41: 131046204.8 | C41: 27767223.63 | D41: 103278981.2 | E41: 21 : 79 | F41: =25568574/10 -> 2556857.4 | G41: =B41/(F41*1000) -> 0.05125284062
A42: 전년대비 증가율(%) Percent change from previous year
A43: 1992 | B43: =(B9/B8-1)*100 -> 19.97359106 | C43: 5.98888757 | D43: 23.34857821 | E43: 0 | F43: =(F9/F8-1)*100 -> 14.45873513 | G43: 0
A44: 1993 | B44: 23.33022184 | C44: 19.80844504 | D44: 24.06053122 | E44: 0 | F44: 13.56215014 | G44: 0
A45: 1994 | B45: 28.30761925 | C45: 83.14736654 | D45: 17.32529437 | E45: 0 | F45: 18.18385164 | G45: 0
A46: 1995 | B46: 19.58087062 | C46: 21.74791062 | D46: 18.90342444 | E46: 0 | F46: 17.31450812 | G46: 0
A47: 1996 | B47: 15.22619417 | C47: 24.5292646 | D47: 12.24836834 | E47: 0 | F47: 12.32573924 | G47: 0
A48: 1997 | B48: 12.02196974 | C48: 17.33562802 | D48: 10.13499491 | E48: 0 | F48: 10.42086304 | G48: 0
A49: 1998 | B49: -6.96868086 | C49: 4.373606425 | D49: -11.25979981 | E49: 0 | F49: -0.8831151483 | G49: 0
A50: 1999 | B50: 5.161460425 | C50: 2.385120118 | D50: 6.396878522 | E50: 0 | F50: 10.09608252 | G50: 0
A51: 2000 | B51: 16.16162624 | C51: 6.783852819 | D51: 20.17720047 | E51: 0 | F51: 10.17518315 | G51: 0
A52: 2001 | B52: 16.3340493 | C52: 14.27051102 | D52: 17.11919774 | E52: 0 | F52: 8.499687534 | G52: 0
A53: 2002 | B53: 7.538922702 | C53: 8.676373955 | D53: 7.116672517 | E53: 0 | F53: 10.99258712 | G53: 0
A54: 2003 | B54: 10.06402303 | C54: 2.874878401 | D54: 12.77168085 | E54: 0 | F54: 6.70587259 | G54: 0
A55: 2004 | B55: 16.34439653 | C55: 11.68578152 | D55: 17.94499712 | E55: 0 | F55: 8.487833423 | G55: 0
A56: 2005 | B56: 8.880054728 | C56: 9.690216033 | D56: 8.61647257 | E56: 0 | F56: 5.39481819 | G56: 0
A57: 2006 | B57: 13.20735199 | C57: 13.60803055 | D57: 13.07570444 | E57: 0 | F57: 5.029383429 | G57: 0
A58: 2007 | B58: 14.46542808 | C58: 20.47000482 | D58: 12.48326748 | E58: 0 | F58: 8.35904338 | G58: 0
A59: 2008 | B59: 10.21257484 | C59: 13.11313388 | D59: 9.187090222 | E59: 0 | F59: 5.924445095 | G59: 0
A60: 2009 | B60: 9.943889635 | C60: 17.7234908 | D60: 7.094534911 | E60: 0 | F60: 8.758236515 | G60: 0
A61: 2010 | B61: 15.62500941 | C61: 12.70390848 | D61: 16.80107507 | E61: 0 | F61: 9.890397198 | G61: 0
A62: 2011 | B62: 13.76264388 | C62: 5.967093689 | D62: 16.79111836 | E62: 0 | F62: 5.010322154 | G62: 0
A63: 2012 | B63: 11.14381642 | C63: 6.304019763 | D63: 12.84976316 | E63: 0 | F63: 3.872666363 | G63: 0
A64: 2013 | B64: 6.944681062 | C64: 3.036205824 | D64: 8.242442161 | E64: 0 | F64: 4.403883871 | G64: 0
A65: 2014 | B65: 7.475727646 | C65: 7.255171375 | D65: 7.545438287 | E65: 0 | F65: 4.29976176 | G65: 0
A66: 2015 | B66: 3.49144963 | C66: 6.667822822 | D66: 2.49021138 | E66: 0 | F66: 6.243036249 | G66: 0
A67: 2016 | B67: 5.224667956 | C67: 0.7151890667 | D67: 6.704060109 | E67: 0 | F67: 5.299395212 | G67: 0
A68: 2017 | B68: 13.52004301 | C68: 8.087035292 | D68: 15.20237344 | E68: 0 | F68: 5.521321949 | G68: 0
A69: 2018 | B69: 8.807715366 | C69: 3.528627448 | D69: 10.34142114 | E69: 0 | F69: 3.760693058 | G69: 0
A70: 2019 | B70: 3.870771176 | C70: 3.988829754 | D70: 3.83858995 | E70: 0 | F70: 1.675148339 | G70: 0
A71: 2020 | B71: =(B37/B36-1)*100 -> 4.519642309 | C71: 13.01746611 | D71: 2.199895042 | E71: 0 | F71: 0.8758330845 | G71: 0
A72: 2021 | B72: =(B38/B37-1)*100 -> 9.738253808 | C72: 11.6477453 | D72: 9.161824845 | E72: 0 | F72: 7.940202087 | G72: 0
A73: 2022 | B73: 10.29102626 | C73: 9.269057511 | D73: 10.60655931 | E73: 0 | F73: 4.584725171 | G73: 0
A74: 2023 | B74: 5.706386729 | C74: 6.834154457 | D74: 5.362398792 | E74: 0 | F74: 3.653781563 | G74: 0
A75: 2024 | B75: 10.05440075 | C75: -1.281388764 | D75: 13.5603029 | E75: 0 | F75: 6.151483169 | G75: 0
A76: 주 : '정부 : 민간'에서 정부는 정부재원과 공공재원의 합이며, 민간은 민간재원과 외국재원의 합

Sheet 2-2
A1: 2-2) 재원별 연구개발비
A2: R&D expenditure by source of funds
I4: (단위 : 백만원 Unit : Won, Millions)
A5: 연도 Year | B5: 총계 Total | D5: 정부〮공공부문 Gov't & Other national sources | F5: 민간부문 Business enterprise | H5: 외국부문 Rest of the world
C6: 구성비(%) | E6: 구성비(%) | G6: 구성비(%) | I6: 구성비(%)
A7: 1991 | B7: 4158441 | C7: =B7/$B7*100 -> 100 | D7: 808464 | E7: =D7/$B7*100 -> 19.44151666 | F7: 3342601 | G7: =F7/$B7*100 -> 80.38110917 | H7: 7376 | I7: =H7/$B7*100 -> 0.177374165
A8: 1992 | B8: 4989031 | C8: =B8/$B8*100 -> 100 | D8: 856882 | E8: =D8/$B8*100 -> 17.17531922 | F8: 4110546 | G8: =F8/$B8*100 -> 82.39167085 | H8: 21603 | I8: 0.4330099372
A9: 1993 | B9: 6152983 | C9: 100 | D9: 1026617 | E9: 16.68486651 | F9: 5113985 | G9: 83.11391402 | H9: 12381 | I9: 0.2012194735
A10: 1994 | B10: 7894746 | C10: 100 | D10: 1880222 | E10: 23.81611771 | F10: 6011453 | G10: 76.14498301 | H10: 3071 | I10: 0.03889928821
A11: 1995 | B11: 9440606 | C11: 100 | D11: 2289131 | E11: 24.24771249 | F11: 7150144 | G11: 75.73818884 | H11: 1331 | I11: 0.01409867121
A12: 1996 | B12: 10878051 | C12: 100 | D12: 2850638 | E12: 26.20541125 | F12: 8013779 | G12: 73.6692538 | H12: 13635 | I12: 0.1253441448
A13: 1997 | B13: 12185807 | C13: 100 | D13: 3344814 | E13: 27.44844063 | F13: 8829196 | G13: 72.45475002 | H13: 11796 | I13: 0.09680113923
A14: 1998 | B14: 11336617 | C14: 100 | D14: 3491103 | E14: 30.79492762 | F14: 7837081 | G14: 69.13068511 | H14: 8433 | I14: 0.07438727091
A15: 1999 | B15: 11921752 | C15: 100 | D15: 3574370 | E15: 29.98191876 | F15: 8340040 | G15: 69.95649633 | H15: 7342 | I15: 0.06158490799
A16: 2000 | B16: 13848501 | C16: 100 | D16: 3816850 | E16: 27.56146676 | F16: 10023405 | G16: 72.37898889 | H16: 8245 | I16: 0.05953712969
A17: 2001 | B17: 16110521.98 | C17: 100 | D17: 4361534 | E17: 27.0725803 | F17: 11673266 | G17: 72.45740402 | H17: 75722 | I17: 0.4700158076
A18: 2002 | B18: 17325081.78 | C18: 100 | D18: 4739957 | E18: 27.35893002 | F18: 12508848 | G18: 72.20080205 | H18: 76277 | I18: 0.4402692061
A19: 2003 | B19: 19068682 | C19: 100 | D19: 4876225 | E19: 25.57190371 | F19: 14113599 | G19: 74.01454909 | H19: 78858 | I19: 0.4135471974
A20: 2004 | B20: 22185343 | C20: 100 | D20: 5446050 | E20: 24.54796394 | F20: 16630869 | G20: 74.963317 | H20: 108424 | I20: 0.488719061
A21: 2005 | B21: 24155413.6 | C21: 100 | D21: 5973784.01 | E21: 24.73062192 | F21: 18004157.27 | G21: 74.53466777 | H21: 177472.3151 | I21: 0.734710314
A22: 2006 | B22: 27345704.1 | C22: 100 | D22: 6786698.363 | E22: 24.81815183 | F22: 20469436.27 | G22: 74.85430324 | H22: 89569.46656 | I22: 0.3275449271
A23: 2007 | B23: 31301377.26 | C23: =B23/$B23*100 -> 100 | D23: 8175935.845 | E23: =D23/$B23*100 -> 26.12005145 | F23: 23055735.07 | G23: =F23/$B23*100 -> 73.65725437 | H23: 69706.3465 | I23: =H23/$B23*100 -> 0.2226941834
A24: 2008 | B24: 34498053.84 | C24: 100 | D24: 9248057.258 | E24: 26.80747529 | F24: 25143874.54 | G24: =F24/$B24*100 -> 72.88490723 | H24: 106122.0443 | I24: 0.3076174813
A25: 2009 | B25: 37928502.24 | C25: 100 | D25: 10887135.84 | E25: 28.7043653 | F25: 26963044.97 | G25: 71.08913713 | H25: 78321.43648 | I25: 0.2064975727
A26: 2010 | B26: 43854834.28 | C26: 100 | D26: 12270227.61 | E26: 27.97919046 | F26: 31489621.01 | G26: 71.80421844 | H26: 94985.6683 | I26: 0.2165911007
A27: 2011 | B27: 49890418.95 | C27: 100 | D27: 13002403.59 | E27: 26.06192503 | F27: 36776186.95 | G27: 73.71392688 | H27: 111828.4193 | I27: 0.2241480863
A28: 2012 | B28: 55450115.65 | C28: 100 | D28: 13822077.68 | E28: 24.92704932 | F28: 41437794.51 | G28: 74.72986129 | H28: 190243.4608 | I28: 0.3430893851
A29: 2013 | B29: 59300949.33 | C29: 100 | D29: 14241744.4 | E29: 24.01604791 | F29: 44879192.8 | G29: 75.68039519 | H29: 180012.1241 | I29: 0.3035569011
A30: 2014 | B30: 63734126.79 | C30: 100 | D30: 15275007.37 | E30: 23.96676339 | F30: 48008280.39 | G30: 75.32586199 | H30: 450839.0397 | I30: 0.7073746239
A31: 2015 | B31: 65959371.73 | C31: 100 | D31: 16293517.79 | E31: =D31/$B31*100 -> 24.70235445 | F31: 49169995.25 | G31: =F31/$B31*100 -> 74.54588175 | H31: 495858.6842 | I31: =H31/$B31*100 -> 0.7517638073
A32: 2016 | B32: 69405529.89 | C32: 100 | D32: 16410047.25 | E32: =D32/$B32*100 -> 23.64371727 | F32: 52345866.61 | G32: =F32/$B32*100 -> 75.42031117 | H32: 649616.0269 | I32: =H32/$B32*100 -> 0.9359715688
A33: 2017 | B33: 78789187.37 | C33: 100 | D33: 17737133.57 | E33: =D33/$B33*100 -> 22.51214178 | F33: 60064289.4 | G33: =F33/$B33*100 -> 76.23417806 | H33: 987764.4108 | I33: =H33/$B33*100 -> 1.253680161
A34: 2018 | B34: 85728714.74 | C34: 100 | D34: 18363010.93 | E34: =D34/$B34*100 -> 21.41990695 | F34: 65702767.63 | G34: 76.64032738 | H34: 1662936.178 | I34: 1.93976567
A35: 2019 | B35: 89047077.12 | C35: 100 | D35: 19095480.17 | E35: 21.44425263 | F35: 68521556.96 | G35: 76.94981034 | H35: 1430039.989 | I35: 1.605937034
A36: 2020 | B36: 93071686.49 | C36: 100 | D36: 21581227.83 | E36: 23.18774769 | F36: 71269260.33 | G36: 76.57458784 | H36: 221198.3323 | I36: 0.2376644721
A37: 2021 | B37: 102135243.5 | C37: 100 | D37: 24094954.28 | E37: 23.59122419 | F37: 77742094.16 | G37: 76.11681479 | H37: 298195.1023 | I37: 0.2919610234
A38: 2022 | B38: 112646008.3 | C38: =B38/$B38*100 -> 100 | D38: 26328329.45 | E38: 23.37262532 | F38: 85963730.27 | G38: 76.31316154 | H38: 353948.5571 | I38: 0.3142131377
A39: 2023 | B39: 119074025.1 | C39: 100 | D39: 28127648.15 | E39: 23.62198483 | F39: 90559792.65 | G39: 76.05335634 | H39: 386584.3441 | I39: 0.324658836
A40: 2024 | B40: 131046204.8 | C40: =B40/$B40*100 -> 100 | D40: 27767223.63 | E40: =D40/$B40*100 -> 21.18888042 | F40: 102875023.2 | G40: =F40/$B40*100 -> 78.50286342 | H40: 403958.0039 | I40: =H40/$B40*100 -> 0.3082561639

Sheet 2-3
A1: 2-3) 연구수행주체별 연구개발비
A2: R&D expenditure by sector of performance
K4: (단위 : 백만원 Unit : Won, Millions)
A5: 연도 Year | B5: 총계 Total | C5: 공공연구기관 Public research institutes | F5: 대학 Higher educations | I5: 기업체 Business enterprises
C6: 계 Sub total | D6: 국립·공립·출연(연) Government | E6: 비영리법인 Non-profit | F6: 계 Sub total | G6: 국·공립 National & Pub. | H6: 사립 Private | I6: 계 Sub total | J6: 민간기업체 Private | K6: 정부투자기관 Gov't invest
A7: 2005 | B7: 24155413.6 | C7: 3192887 | D7: 2842252 | E7: 350635 | F7: 2398283.6 | G7: 932462 | H7: 1465821.6 | I7: 18564243 | J7: 18120101 | K7: 315878
A8: 2006 | B8: 27345704.1 | C8: 3497050.1 | D8: 3140796.6 | E8: 356253.5 | F8: 2721874 | G8: 1039265 | H8: 1682609 | I8: 21126780 | J8: 20745227 | K8: 381553
A9: 2007 | B9: 31301377.26 | C9: 4102365.7 | D9: 3630947.5 | E9: 471418.2 | F9: 3334118.57 | G9: 1311716 | H9: 2022402.57 | I9: 23864892.99 | J9: 23467579.23 | K9: 221423.76
A10: 2008 | B10: 34498053.84 | C10: 4653235.6 | D10: 4159538.7 | E10: 493696.9 | F10: 3844749.4 | G10: 1519323.6 | H10: 2325425.8 | I10: 26000068.84 | J10: 25553070.84 | K10: 446998
A11: 2009 | B11: 37928502.24 | C11: 5558383.7 | D11: 4925499 | E11: 632884.7 | F11: 4204259.4 | G11: 1771080 | H11: 2433179.4 | I11: 28165859.14 | J11: 27648365.14 | K11: 329064
A12: 2010 | B12: 43854834.28 | C12: 6306136.03 | D12: 5643330.87 | E12: 662805.16 | F12: 4745458.693 | G12: 1993071.65 | H12: 2752387.043 | I12: 32803239.56 | J12: 32238691.56 | K12: 564548
A13: 2011 | B13: 49890418.95 | C13: 6673311.11 | D13: 5870369.61 | E13: 802941.5 | F13: 5033816.5 | G13: 2068282.1 | H13: 2965534.4 | I13: 38183291.34 | J13: 37560684.34 | K13: 622607
A14: 2012 | B14: 55450115.65 | C14: 6950261.67 | D14: 6240186.3 | E14: 710075.37 | F14: 5276928.439 | G14: 2261530.768 | H14: 3015397.671 | I14: 43222925.54 | J14: 42580790.54 | K14: 642135
A15: 2013 | B15: 59300949.33 | C15: 7260710.547 | D15: 6471895.61 | E15: 788814.937 | F15: 5480322.53 | G15: 2432044.25 | H15: 3048278.28 | I15: 46559916.25 | J15: 45947538.25 | K15: 612378
A16: 2014 | B16: 63734126.79 | C16: 8112700.933 | D16: 7146441.396 | E16: 966259.537 | F16: 5766960.87 | G16: 2635650.05 | H16: 3131310.82 | I16: 49854464.99 | J16: 49218203.99 | K16: 636261
A17: 2015 | B17: 65959371.73 | C17: 8824078.748 | D17: 7745312.548 | E17: 1078766.2 | F17: 5998872.479 | G17: 2715086.65 | H17: 3283785.829 | I17: 51136420.5 | J17: 50503751.5 | K17: 632669
A18: 2016 | B18: 69405529.89 | C18: 9113170.697 | D18: 8012527.25 | E18: 1100643.447 | F18: 6339887.929 | G18: 2874488.3 | H18: 3465399.629 | I18: 53952471.26 | J18: 53147044.26 | K18: 805427
A19: 2017 | B19: 78789187.37 | C19: 9543217.4 | D19: 8429716 | E19: 1113501.4 | F19: 6682523.015 | G19: 2957915.515 | H19: 3724607.5 | I19: 62563446.96 | J19: 61673311.96 | K19: 890135
A20: 2018 | B20: 85728714.74 | C20: 9843867.4 | D20: 8636201.5 | E20: 1207665.9 | F20: 7050415.008 | G20: 3088493.055 | H20: 3961921.953 | I20: 68834432.33 | J20: 67925985.33 | K20: 908447
A21: 2019 | B21: 89047077.12 | C21: 10168766 | D21: 8898118 | E21: 1270648 | F21: 7371649 | G21: 3274570 | H21: 4097079 | I21: 71506662.12 | J21: 70637773.12 | K21: 868889
A22: 2020 | B22: 93071686.49 | C22: 11118558 | D22: 9407681 | E22: 1710877 | F22: 8353350.45 | G22: 3774963.45 | H22: 4578387 | I22: 73599778.04 | J22: 72723759.04 | K22: 876019
A23: 2021 | B23: 102135243.5 | C23: 11997001 | D23: 9979636 | E23: 2017365 | F23: 9330614.888 | G23: 4216323.118 | H23: 5114291.77 | I23: 80807627.66 | J23: 79948109.66 | K23: 859518
A24: 2022 | B24: 112646008.3 | C24: 12918586.1 | D24: 10571717 | E24: 2346869.1 | F24: 10306122 | G24: 4531064 | H24: 5775058 | I24: 89421300.18 | J24: 88532529.18 | K24: 888771
A25: 2023 | B25: 119074025.1 | C25: 13883702 | D25: 11438733 | E25: 2444969 | F25: 10893480 | G25: 4831375 | H25: 6062105 | I25: 94296843.15 | J25: 93550206.15 | K25: 746637
A26: 2024 | B26: 131046204.8 | C26: 13293570 | D26: 10785011 | E26: 2508559 | F26: 11053800 | G26: 4939906 | H26: 6113894 | I26: 106698834.8 | J26: 105891071.8 | K26: 807763
A27: 구성비(%) Percent distribution
A28: 2005 | B28: =B7/$B7*100 -> 100 | C28: 13.21810114 | D28: 11.76652177 | E28: 1.451579368 | F28: 9.928555312 | G28: 3.860260956 | H28: 6.068294355 | I28: 76.85334355 | J28: 75.01465841 | K28: 1.307690298
A29: 2006 | B29: =B8/$B8*100 -> 100 | C29: 12.78829789 | D29: 11.48552105 | E29: 1.302776841 | F29: 9.953570733 | G29: 3.800468974 | H29: 6.153101759 | I29: 77.25813138 | J29: 75.86283726 | K29: 1.395294115
A30: 2007 | B30: =B9/$B9*100 -> 100 | C30: 13.10602299 | D30: 11.59996083 | E30: 1.506062165 | F30: 10.65166731 | G30: 4.190601548 | H30: 6.461065765 | I30: 76.2423097 | J30: 74.97299251 | K30: 0.7073930267
A31: 2008 | B31: =B10/$B10*100 -> 100 | C31: 13.48840031 | D31: 12.05731407 | E31: 1.431086235 | F31: 11.14482984 | G31: 4.404084958 | H31: 6.740744886 | I31: 75.36676985 | J31: 74.07105038 | K31: 1.295719469
A32: 2009 | B32: =B11/$B11*100 -> 100 | C32: 14.65489901 | D32: 12.98627341 | E32: 1.668625605 | F32: 11.0846966 | G32: 4.669522642 | H32: 6.415173962 | I32: 74.26040438 | J32: 72.89601093 | K32: 0.8675902832
A33: 2010 | B33: =B12/$B12*100 -> 100 | C33: 14.37956871 | D33: 12.86820703 | E33: 1.51136168 | F33: 10.82083371 | G33: 4.544702272 | H33: 6.276131441 | I33: 74.79959757 | J33: 73.51228681 | K33: 1.287310759
A34: 2011 | B34: =B13/$B13*100 -> 100 | C34: 13.3759372 | D34: 11.76652699 | E34: 1.609410217 | F34: 10.0897459 | G34: 4.145649893 | H34: 5.944096006 | I34: 76.5343169 | J34: 75.28636786 | K34: 1.247949031
A35: 2012 | B35: =B14/$B14*100 -> 100 | C35: 12.53426001 | D35: 11.25369393 | E35: 1.280566076 | F35: 9.516532792 | G35: 4.078496035 | H35: 5.438036758 | I35: 77.9492072 | J35: 76.79116633 | K35: 1.158040867
A36: 2013 | B36: =B15/$B15*100 -> 100 | C36: 12.24383527 | D36: 10.91364587 | E36: 1.330189391 | F36: 9.24154266 | G36: 4.101189403 | H36: 5.140353257 | I36: 78.51462207 | J36: 77.4819607 | K36: 1.032661377
A37: 2014 | B37: =B16/$B16*100 -> 100 | C37: 12.72897479 | D37: 11.21289607 | E37: 1.516078725 | F37: 9.04846612 | G37: 4.135382695 | H37: 4.913083426 | I37: 78.22255909 | J37: 77.22425405 | K37: 0.99830504
A38: 2015 | B38: =B17/$B17*100 -> 100 | C38: 13.37805154 | D38: 11.74255052 | E38: 1.635501024 | F38: 9.094799301 | G38: 4.116301564 | H38: 4.978497737 | I38: 77.52714915 | J38: 76.56796931 | K38: 0.9591798458
A39: 2016 | B39: =B18/$B18*100 -> 100 | C39: 13.13032364 | D39: 11.54450843 | E39: 1.585815206 | F39: 9.134557346 | G39: 4.14158397 | H39: 4.992973376 | I39: 77.73511902 | J39: 76.57465385 | K39: 1.160465169
A40: 2017 | B40: =B19/$B19*100 -> 100 | C40: 12.11234399 | D40: 10.69907722 | E40: 1.413266766 | F40: 8.481522957 | G40: 3.754215031 | H40: 4.727307926 | I40: 79.40613306 | J40: 78.27636509 | K40: 1.129767966
A41: 2018 | B41: =B20/$B20*100 -> 100 | C41: 11.48257901 | D41: 10.07387259 | E41: 1.40870641 | F41: 8.224099743 | G41: 3.602635435 | H41: 4.621464307 | I41: 80.29332125 | J41: 79.2336448 | K41: 1.059676449
A42: 2019 | B42: =B21/$B21*100 -> 100 | C42: 11.41953934 | D42: 9.992599744 | E42: 1.426939593 | F42: 8.278372787 | G42: 3.677346979 | H42: 4.601025809 | I42: 80.30208788 | J42: 79.32632424 | K42: 0.9757636389
A43: 2020 | B43: =B22/$B22*100 -> 100 | C43: 11.94623029 | D43: 10.10799455 | E43: 1.838235735 | F43: 8.975178989 | G43: 4.055974048 | H43: 4.91920494 | I43: 79.07859072 | J43: 78.13736033 | K43: 0.9412303924
A44: 2021 | B44: =B23/$B23*100 -> 100 | C44: 11.74619121 | D44: 9.771001325 | E44: 1.975189885 | F44: 9.135548675 | G44: 4.128176496 | H44: 5.007372179 | I44: 79.11826011 | J44: 78.27671123 | K44: 0.8415488818
A45: 2022 | B45: =B24/$B24*100 -> 100 | C45: 11.46830349 | D45: 9.38490157 | E45: 2.083401921 | F45: 9.149123131 | G45: 4.022391978 | H45: 5.126731154 | I45: 79.38257338 | J45: 78.59357871 | K45: 0.7889946689
A46: 2023 | B46: =B25/$B25*100 -> 100 | C46: 11.65972342 | D46: 9.606404912 | E46: 2.053318511 | F46: 9.148493961 | G46: 4.057455011 | H46: 5.09103895 | I46: 79.19178262 | J46: 78.56474662 | K46: 0.6270359964
A47: 2024 | B47: 100 | C47: 10.14418542 | D47: 8.229930058 | E47: 1.91425536 | F47: 8.435040156 | G47: 3.769591044 | H47: 4.665449113 | I47: 81.42077443 | J47: 80.80437886 | K47: 0.6163955691
A48: 전년대비증가율(%) Percent change from previous year
A49: 2006 | B49: =(B8/B7-1)*100 -> 13.20735199 | C49: 9.526271991 | D49: 10.50380473 | E49: 1.602378542 | F49: 13.49258278 | G49: 11.45387158 | H49: 14.78948052 | I49: 13.80361699 | J49: 14.48736958 | K49: 20.79125485
A50: 2007 | B50: =(B9/B8-1)*100 -> 14.46542808 | C50: 17.30932022 | D50: 15.60594214 | E50: 32.32661574 | F50: 22.49349419 | G50: 26.21573901 | H50: 20.19444624 | I50: 12.96038956 | J50: 13.12278834 | K50: -41.96775808
A51: 2008 | B51: =(B10/B9-1)*100 -> 10.21257484 | C51: 13.4281032 | D51: 14.55794114 | E51: 4.725888818 | F51: 15.31531706 | G51: 15.827176 | H51: 14.98332896 | I51: 8.946932429 | J51: 8.886692528 | K51: 101.8744511
A52: 2009 | B52: =(B11/B10-1)*100 -> 9.943889635 | C52: 19.45201528 | D52: 18.41454919 | E52: 28.19296617 | F52: 9.350674455 | G52: 16.57029483 | H52: 4.633714823 | I52: 8.329940637 | J52: 8.199774943 | K52: -26.38356324
A53: 2010 | B53: =(B12/B11-1)*100 -> 15.62500941 | C53: 13.45269363 | D53: 14.57378978 | E53: 4.727632063 | F53: 12.87264275 | G53: 12.53425311 | H53: 13.11895222 | I53: 16.46454453 | J53: 16.60252386 | K53: 71.56176306
A54: 2011 | B54: =(B13/B12-1)*100 -> 13.76264388 | C54: 5.82250491 | D54: 4.023133593 | E54: 21.14291627 | F54: 6.076500201 | G54: 3.773594893 | H54: 7.74409099 | I54: 16.40097701 | J54: 16.50809174 | K54: 10.28415653
A55: 2012 | B55: =(B14/B13-1)*100 -> 11.14381642 | C55: 4.150122112 | D55: 6.299717302 | E55: -11.56574047 | F55: 4.82957492 | G55: 9.343438596 | H55: 1.68142616 | I55: 13.19853272 | J55: 13.36532145 | K55: 3.136488989
A56: 2013 | B56: =(B15/B14-1)*100 -> 6.944681062 | C56: 4.466722143 | D56: 3.713179365 | E56: 11.08890272 | F56: 3.854403052 | G56: 7.539737439 | H56: 1.090423632 | I56: 7.720418437 | J56: 7.906728996 | K56: -4.634072275
A57: 2014 | B57: =(B16/B15-1)*100 -> 7.475727646 | C57: 11.73425632 | D57: 10.42269262 | E57: 22.4950862 | F57: 5.230318808 | G57: 8.371796689 | H57: 2.723916007 | I57: 7.075933555 | J57: 7.118261091 | K57: 3.900042131
A58: 2015 | B58: =(B17/B16-1)*100 -> 3.49144963 | C58: 8.768692706 | D58: 8.379991087 | E58: 11.6435242 | F58: 4.021383433 | G58: 3.013928196 | H58: 4.869366785 | I58: 2.571395582 | J58: 2.611935028 | K58: -0.5645481964
A59: 2016 | B59: =(B18/B17-1)*100 -> 5.224667956 | C59: 3.276171454 | D59: 3.450018322 | E59: 2.027987807 | F59: 5.684659093 | G59: 5.870959956 | H59: 5.53062256 | I59: 5.506937585 | J59: 5.233854281 | K59: 27.30622174
A60: 2017 | B60: =(B19/B18-1)*100 -> 13.52004301 | C60: 4.718958059 | D60: 5.206706161 | E60: 1.168221465 | F60: 5.40443443 | G60: 2.902332736 | H60: 7.479883964 | I60: 15.96029894 | J60: 16.04278811 | K60: 10.51715425
A61: 2018 | B61: =(B20/B19-1)*100 -> 8.807715366 | C61: 3.15040502 | D61: 2.449495333 | E61: 8.456612628 | F61: 5.505285842 | G61: 4.414512176 | H61: 6.371529158 | I61: 10.02340132 | J61: 10.1383778 | K61: 2.05721604
A62: 2019 | B62: =(B21/B20-1)*100 -> 3.870771176 | C62: 3.300517843 | D62: 3.032774305 | E62: 5.215192381 | F62: 4.55624231 | G62: 6.024845812 | H62: 3.411401051 | I62: 3.882112044 | J62: 3.992268607 | K62: -4.354464267
A63: 2020 | B63: =(B22/B21-1)*100 -> 4.519642309 | C63: 9.340287701 | D63: 5.726637925 | E63: 34.64602313 | F63: 13.31725711 | G63: 15.28119571 | H63: 11.74758895 | I63: 2.927162113 | J63: 2.953074297 | K63: 0.8205881304
A64: 2021 | B64: =(B23/B22-1)*100 -> 9.738253808 | C64: 7.900691798 | D64: 6.079659801 | E64: 17.91408734 | F64: 11.69907145 | G64: 11.69176003 | H64: 11.70509986 | I64: 9.793303469 | J64: 9.933962038 | K64: -1.883634944
A65: 2022 | B65: =(B24/B23-1)*100 -> 10.29102626 | C65: 7.681795642 | D65: 5.932891741 | E65: 16.33339034 | F65: 10.45490703 | G65: 7.464818827 | H65: 12.91999478 | I65: 10.65947952 | J65: 10.73748905 | K65: 3.403419126
A66: 2023 | B66: =(B25/B24-1)*100 -> 5.706386729 | C66: 7.470754868 | D66: 8.201278941 | E66: 4.180032879 | F66: 5.699117476 | G66: 6.627825164 | H66: 4.970460903 | I66: 5.452328424 | J66: 5.667608294 | K66: -15.99219596
A67: 2024 | B67: =(B26/B25-1)*100 -> 10.05440075 | C67: -4.250537789 | D67: -5.714986092 | E67: 2.600850972 | F67: 1.471706011 | G67: 2.246379136 | H67: 0.8543072085 | I67: 13.15207515 | J67: 13.19170335 | K67: 8.186843138
A69: 주 : 1. 공공연구기관: '국·공립, 출연(연)'은 '국·공립 연구기관', '국·공립 병원','정부 출연(연)', '지자체 출연(연)'을 포함하며, 나머지는 모두 '비영리법인'으로 분류
A70: 2. 대학: '국·공립'은 '국·공립대학'과 '국·공립대학 부속병원', '사립'은 '사립대학'과 '사립대학 부속병원'

Sheet 2-4
A1: 2-4) 비목별 연구개발비
A2: R&D expenditure by type of costs
K4: (단위 : 백만원 Unit : Won, Millions)
A5: 연도 Year | B5: 총계 Total | C5: 경상비 Current costs | F5: 자본적지출 Capital costs
C6: 계 Sub total | D6: 인건비 Labour costs | E6: 기타 Other current costs | F6: 계 Sub total | G6: 기계·장치 Machinery | H6: 토지 Land | I6: 건물 Buildings | J6: 컴퓨터 소프트웨어 Computer software | K6: 기타 지식재산물 Other intellectual properties
A7: 1991 | B7: 4158440 | C7: =SUM(D7,E7) -> 2884882 | D7: 1376617 | E7: 1508265 | F7: =SUM(G7:K7) -> 1273559 | G7: 854651 | H7: 418908
A8: 1992 | B8: 4989031 | C8: 3593363 | D8: 1746546 | E8: 1846817 | F8: =SUM(G8:K8) -> 1395668 | G8: 858744 | H8: 536924
A9: 1993 | B9: 6152983 | C9: 4302251 | D9: 1980083 | E9: 2322168 | F9: =SUM(G9:K9) -> 1850732 | G9: 1137882 | H9: 712850
A10: 1994 | B10: 7894746 | C10: 5561911 | D10: 2471758 | E10: 3090153 | F10: =SUM(G10:K10) -> 2332835 | G10: 1618243 | H10: 714592
A11: 1995 | B11: 9440606 | C11: 7161647 | D11: 3160442 | E11: 4001205 | F11: =SUM(G11:K11) -> 2278959 | G11: 1675833 | H11: 603126
A12: 1996 | B12: 10878051 | C12: 8233354 | D12: 3621555 | E12: 4611799 | F12: 2644697 | G12: 1950540 | H12: 694157
A13: 1997 | B13: 12185807 | C13: 9427321 | D13: 4091203 | E13: 5336118 | F13: 2758486 | G13: 2156982 | H13: 601504
A14: 1998 | B14: 11336617 | C14: 8775383 | D14: 3880492 | E14: 4894891 | F14: 2561234 | G14: 2062431 | H14: 498803
A15: 1999 | B15: 11921752 | C15: 9172514 | D15: 3860804 | E15: 5311710 | F15: 2749238 | G15: 2440146 | H15: 309092
A16: 2000 | B16: 13848501 | C16: 10941530.44 | D16: 4739129.597 | E16: 6202400.838 | F16: 2906970.565 | G16: 2491452.897 | H16: 415517.668
A17: 2001 | B17: 16110521.98 | C17: 13249438.11 | D17: 5549175.864 | E17: 7700262.242 | F17: 2861083.876 | G17: 2423719.987 | H17: 437363.889
A18: 2002 | B18: 17325081.78 | C18: 14591141.16 | D18: 6526892.098 | E18: 8064249.063 | F18: 2733940.618 | G18: 2159287.609 | H18: 301084.412 | J18: 273568.5965
A19: 2003 | B19: 19068681.99 | C19: 16461997.93 | D19: 7562177.651 | E19: 8899820.282 | F19: 2606684.061 | G19: 1964562.201 | H19: 337804.48 | J19: 304317.38
A20: 2004 | B20: 22185343 | C20: 19399393 | D20: 8859601 | E20: 10539792 | F20: 2785950 | G20: 2208399 | H20: 261887 | J20: 315664
A21: 2005 | B21: 24155413.6 | C21: 21084497.5 | D21: 9953563.1 | E21: 11130934.4 | F21: 3070916.1 | G21: 2393576.6 | H21: 299853 | J21: 377486.5
A22: 2006 | B22: 27345704.1 | C22: 23467080.71 | D22: 11165778.89 | E22: 12301301.82 | F22: 3878623.392 | G22: 2979276.788 | H22: 472471.7193 | J22: 426874.8849
A23: 2007 | B23: 31301377.26 | C23: 27241543.8 | D23: 12804076.47 | E23: 14437467.33 | F23: 4059833.456 | G23: 3031128.785 | H23: 582928.093 | J23: 445776.578
A24: 2008 | B24: 34498053.84 | C24: =SUM(D24,E24) -> 30821176.47 | D24: 13987687.63 | E24: 16833488.84 | F24: 3676877.367 | G24: 2689458.015 | H24: 645218.7123 | J24: 342200.6405
A25: 2009 | B25: 37928502.24 | C25: =SUM(D25,E25) -> 34324319.88 | D25: 14523856.24 | E25: 19800463.64 | F25: 3604182.36 | G25: 2862195.73 | H25: 460855 | J25: 281131.63
A26: 2010 | B26: 43854834.28 | C26: 39578894.79 | D26: 17342032.62 | E26: 22236862.17 | F26: 4275939.49 | G26: 3418978.97 | H26: 518209.95 | J26: 338750.57
A27: 2011 | B27: 49890418.95 | C27: 44645764.71 | D27: 19649822.9 | E27: 24995941.81 | F27: 5244654.24 | G27: 3827194.43 | H27: 1033435.52 | J27: 384024.29
A28: 2012 | B28: 55450115.65 | C28: 49748360.33 | D28: 22559549.17 | E28: 27188811.16 | F28: 5701755.32 | G28: 3849541.73 | H28: 1361486.3 | J28: 490727.29
A29: 2013 | B29: 59300949.33 | C29: 53744731.42 | D29: 24728306.13 | E29: 29016425.29 | F29: 5556217.913 | G29: 4052268.166 | H29: 1086772.66 | J29: 417177.0878
A30: 2014 | B30: 63734126.79 | C30: 58044107.06 | D30: 26698757.29 | E30: 31345349.78 | F30: 5690019.728 | G30: 4277087.102 | H30: 230960.5412 | I30: 695913.0772 | J30: 486059.0082
A31: 2015 | B31: 65959371.73 | C31: 59506111.79 | D31: 28026786.17 | E31: 31479325.62 | F31: 6453259.939 | G31: 4542379.341 | H31: 319048.5907 | I31: 1182507.565 | J31: 409324.443
A32: 2016 | B32: 69405529.89 | C32: 63216052.97 | D32: 29233901.53 | E32: 33982151.45 | F32: 6189476.911 | G32: 4660267.601 | H32: 197272.6 | I32: 908450.55 | J32: 423486.16
A33: 2017 | B33: 78789187.37 | C33: 72046073.39 | D33: 33411593.43 | E33: 38634479.96 | F33: 6743113.983 | G33: 4568794.603 | H33: 282999.2 | I33: 1262408.8 | J33: 399572.03 | K33: 229339.35
A34: 2018 | B34: 85728714.74 | C34: 78131193.63 | D34: 36317218.69 | E34: 41813974.94 | F34: 7597521.105 | G34: 5458633.248 | H34: 375874.3041 | I34: 841806.3224 | J34: 505944.4103 | K34: 415262.82
A35: 2019 | B35: 89047077.12 | C35: 80748021.15 | D35: 37372667.75 | E35: 43375353.41 | F35: 8299055.964 | G35: 5696653.812 | H35: 372657.764 | I35: 1194809.278 | J35: 546748.756 | K35: 488186.354
A36: 2020 | B36: 93071686.49 | C36: 84516135.4 | D36: 40475587.14 | E36: 44040548.26 | F36: 8555551.092 | G36: 5851287.944 | H36: 600313.82 | I36: 1092484.36 | J36: 557070.363 | K36: 454394.6051
A37: 2021 | B37: 102135243.5 | C37: 92739180.02 | D37: 45771271.07 | E37: 46967908.95 | F37: 9396063.521 | G37: 6481440.161 | H37: 406188.219 | I37: 1250498.471 | J37: 710469.8836 | K37: 547466.7864
A38: 2022 | B38: 112646008.3 | C38: 102814602.8 | D38: 49132848.28 | E38: 53681754.49 | F38: 9831405.509 | G38: 7251024.539 | H38: 222275.447 | I38: 1093974.247 | J38: 815245.517 | K38: 448885.759
A39: 2023 | B39: 119074025.1 | C39: 109183692.4 | D39: 50467762.45 | E39: 58715929.99 | F39: 9890332.703 | G39: 6981294.848 | H39: 166527.164 | I39: 1266721.334 | J39: 909183.432 | K39: 566605.925
A40: 2024 | B40: 131046204.8 | C40: 119037893.1 | D40: 54611453.99 | E40: 64426439.06 | F40: 12008311.76 | G40: 7486297.67 | H40: 800188.392 | I40: 1977875.07 | J40: 1156059.176 | K40: 587891.456
A41: 구성비(%) Percent distribution
A42: 1991 | B42: =B7/$B7*100 -> 100 | C42: 69.3741403 | D42: 33.10416887 | E42: 36.26997143 | F42: 30.62588374 | G42: 20.55220227 | H42: 10.07368148
A43: 1992 | B43: =B8/$B8*100 -> 100 | C43: 72.02526904 | D43: 35.00771994 | E43: 37.0175491 | F43: 27.97473096 | G43: 17.21264109 | H43: 10.76208987
A44: 1993 | B44: =B9/$B9*100 -> 100 | C44: 69.9213861 | D44: 32.18086252 | E44: 37.74052358 | F44: 30.0786139 | G44: 18.4931764 | H44: 11.5854375
A45: 1994 | B45: =B10/$B10*100 -> 100 | C45: 70.45079094 | D45: 31.30889835 | E45: 39.1418926 | F45: 29.54920906 | G45: 20.49772089 | H45: 9.051488167
A46: 1995 | B46: =B11/$B11*100 -> 100 | C46: 75.86003483 | D46: 33.47710941 | E46: 42.38292542 | F46: 24.13996517 | G46: 17.75132868 | H46: 6.388636492
A47: 1996 | B47: =B12/$B12*100 -> 100 | C47: 75.68776797 | D47: 33.29231496 | E47: 42.39545301 | F47: 24.31223203 | G47: 17.93096944 | H47: 6.381262599
A48: 1997 | B48: 100 | C48: 77.36312417 | D48: 33.57350892 | E48: 43.78961525 | F48: 22.63687583 | G48: 17.70077271 | H48: 4.936103124
A49: 1998 | B49: 100 | C49: 77.40742234 | D49: 34.22971774 | E49: 43.1777046 | F49: 22.59257766 | G49: 18.19264954 | H49: 4.399928127
A50: 1999 | B50: 100 | C50: 76.93931228 | D50: 32.38453543 | E50: 44.55477685 | F50: 23.06068772 | G50: 20.4680151 | H50: 2.592672621
A51: 2000 | B51: 100 | C51: 79.00877095 | D51: 34.22124602 | E51: 44.78752493 | F51: 20.99122905 | G51: 17.99077674 | H51: 3.000452309
A52: 2001 | B52: 100 | C52: 82.24089897 | D52: 34.44442005 | E52: 47.79647891 | F52: 17.75910103 | G52: 15.04432935 | H52: 2.714771684
A53: 2002 | B53: 100 | C53: 84.21975346 | D53: 37.67308104 | E53: 46.54667243 | F53: 15.78024654 | G53: 12.46336171 | H53: 1.737852761 | J53: =J18/$B18*100 -> 1.579032065
A54: 2003 | B54: 100 | C54: 86.330025 | D54: 39.65757913 | E54: 46.67244587 | F54: 13.669975 | G54: 10.30255894 | H54: 1.771514571 | J54: 1.59590149
A55: 2004 | B55: 100 | C55: 87.44238482 | D55: 39.93447836 | E55: 47.50790646 | F55: 12.55761518 | G55: 9.954315333 | H55: 1.180450534 | J55: 1.422849311
A56: 2005 | B56: 100 | C56: 87.28684116 | D56: 41.20634515 | E56: 46.08049601 | F56: 12.71315884 | G56: 9.909068996 | H56: 1.241349061 | J56: 1.562740785
A57: 2006 | B57: =B22/$B22*100 -> 100 | C57: 85.81633379 | D57: 40.83193049 | E57: 44.9844033 | F57: 14.18366621 | G57: 10.89486223 | H57: 1.7277731 | J57: 1.561030879
A58: 2007 | B58: 100 | C58: 87.02985679 | D58: 40.90579264 | E58: 46.12406416 | F58: 12.97014321 | G58: 9.683691423 | H58: 1.862308128 | J58: 1.424143654
A59: 2008 | B59: 100 | C59: 89.34178321 | D59: 40.54630936 | E59: 48.79547385 | F59: 10.65821679 | G59: 7.795970251 | H59: 1.870304671 | J59: 0.9919418703
A60: 2009 | B60: 100 | C60: 90.4974303 | D60: 38.29272284 | E60: 52.20470746 | F60: 9.502569696 | G60: 7.546292527 | H60: 1.21506248 | J60: 0.7412146892
A61: 2010 | B61: 100 | C61: 90.2497876 | D61: 39.54417547 | E61: 50.70561213 | F61: 9.750212399 | G61: 7.796127898 | H61: 1.181648405 | J61: 0.7724360964
A62: 2011 | B62: 100 | C62: 89.48765244 | D62: 39.38596491 | E62: 50.10168753 | F62: 10.51234756 | G62: 7.671201226 | H62: 2.071410787 | J62: 0.7697355486
A63: 2012 | B63: =B28/$B28*100 -> 100 | C63: 89.71732475 | D63: 40.68440418 | E63: 49.03292057 | F63: 10.28267525 | G63: 6.942351129 | H63: 2.455335366 | J63: 0.8849887584
A64: 2013 | B64: =B29/$B29*100 -> 100 | C64: 90.63047392 | D64: 41.69968004 | E64: 48.93079388 | F64: 9.369526081 | G64: 6.8333951 | H64: 1.832639565 | J64: 0.7034914155
A65: 2014 | B65: 100 | C65: 91.07225593 | D65: 41.89083405 | E65: 49.18142188 | F65: 8.927744075 | G65: 6.710827177 | H65: 0.3623812749 | I65: =I30/$B30*100 -> 1.09190023 | J65: 0.7626353928
A66: 2015 | B66: 100 | C66: 90.21631078 | D66: 42.49098412 | E66: 47.72532666 | F66: 9.783689217 | G66: 6.886632213 | H66: 0.4837047145 | I66: =I31/$B31*100 -> 1.792781729 | J66: 0.6205705608
A67: 2016 | B67: 100 | C67: 91.08215596 | D67: 42.12042121 | E67: 48.96173475 | F67: 8.917844041 | G67: 6.714547975 | H67: 0.2842318189 | I67: =I32/$B32*100 -> 1.308902261 | J67: 0.6101619867
A68: 2017 | B68: 100 | C68: 91.4415744 | D68: 42.40631811 | E68: 49.03525629 | F68: 8.558425601 | G68: 5.798758377 | H68: 0.3591853266 | I68: =I33/$B33*100 -> 1.60226148 | J68: 0.5071406919 | K68: =K33/$B33*100 -> 0.2910797251
A69: 2018 | B69: 100 | C69: 91.13771724 | D69: 42.36295715 | E69: 48.77476009 | F69: 8.862282758 | G69: 6.367333588 | H69: 0.438446214 | I69: =I34/$B34*100 -> 0.9819420774 | J69: 0.5901691305 | K69: =K34/$B34*100 -> 0.4843917482
A70: 2019 | B70: =B35/$B35*100 -> 100 | C70: 90.68014781 | D70: 41.96956145 | E70: 48.71058637 | F70: 9.319852187 | G70: 6.397350701 | H70: 0.418495223 | I70: 1.341772596 | J70: 0.6139996659 | K70: 0.5482340014
A71: 2020 | B71: =B36/$B36*100 -> 100 | C71: 90.80756843 | D71: 43.4886147 | E71: 47.31895373 | F71: 9.192431571 | G71: 6.286861413 | H71: 0.6450015495 | I71: 1.173809567 | J71: 0.598539023 | K71: 0.4882200186
A72: 2021 | B72: =B37/$B37*100 -> 100 | C72: 90.80037096 | D72: 44.81437502 | E72: 45.98599594 | F72: 9.199629036 | G72: 6.34593891 | H72: 0.3976964316 | I72: 1.224355499 | J72: 0.6956167714 | K72: 0.5360214236
A73: 2022 | B73: =B38/$B38*100 -> 100 | C73: 91.27230014 | D73: 43.61703448 | E73: 47.65526565 | F73: 8.727699862 | G73: 6.437000875 | H73: 0.1973220804 | I73: 0.9711611301 | J73: 0.7237233964 | K73: 0.3984923797
A74: 2023 | B74: =B39/$B39*100 -> 100 | C74: 91.6939629 | D74: 42.38351932 | E74: 49.31044359 | F74: 8.306037098 | G74: 5.862987196 | H74: 0.1398517971 | I74: 1.063809956 | J74: 0.7635447201 | K74: 0.4758434296
A75: 2024 | B75: =B40/$B40*100 -> 100 | C75: 90.83658181 | D75: 41.67343424 | E75: 49.16314757 | F75: 9.163418186 | G75: 5.712716122 | H75: 0.6106154643 | I75: 1.509295956 | J75: 0.8821767693 | K75: 0.4486138739
A76: 전년대비증가율(%) Percent change from previous year
A77: 1991 | B77: =(B7/B6-1)*100 -> 
A78: 1992 | B78: =(B8/B7-1)*100 -> 19.97361992 | C78: 24.55840482 | D78: 26.87232542 | E78: 22.44645338 | F78: 9.588012805 | G78: 0.4789089348 | H78: 28.17229559
A79: 1993 | B79: =(B9/B8-1)*100 -> 23.33022184 | C79: 19.72770355 | D79: 13.37136268 | E79: 25.73893353 | F79: 32.60546204 | G79: 32.50537995 | H79: 32.76553106
A80: 1994 | B80: =(B10/B9-1)*100 -> 28.30761925 | C80: 29.27909134 | D80: 24.83102981 | E80: 33.07189661 | F80: 26.04931454 | G80: 42.21536152 | H80: 0.2443711861
A81: 1995 | B81: =(B11/B10-1)*100 -> 19.58087062 | C81: 28.76234445 | D81: 27.86211271 | E81: 29.48242369 | F81: -2.309464664 | G81: 3.55879803 | H81: -15.59855134
A82: 1996 | B82: =(B12/B11-1)*100 -> 15.22619417 | C82: 14.9645326 | D82: 14.59014277 | E82: 15.26025285 | F82: 16.04846774 | G82: 16.39226582 | H82: 15.09319777
A83: 1997 | B83: 12.02196974 | C83: 14.50158708 | D83: 12.96813109 | E83: 15.70577989 | F83: 4.302534468 | G83: 10.58383832 | H83: -13.34755682
A84: 1998 | B84: -6.96868086 | C84: -6.91541107 | D84: -5.15034331 | E84: -8.268688961 | F84: -7.150734135 | G84: -4.383485815 | H84: -17.07403442
A85: 1999 | B85: 5.161460425 | C85: 4.525511878 | D85: -0.5073583453 | E85: 8.5153888 | F85: 7.340367963 | G85: 18.31406723 | H85: -38.0332516
A86: 2000 | B86: 16.16162624 | C86: 19.28605871 | D86: 22.74981058 | E86: 16.76843876 | F86: 5.737319394 | G86: 2.102615866 | H86: 34.43171224
A87: 2001 | B87: 16.33404931 | C87: 21.09309739 | D87: 17.09272243 | E87: 24.14970336 | F87: -1.578505455 | G87: -2.718610895 | H87: 5.257591346
A88: 2002 | B88: 7.538922689 | C88: 10.12649023 | D88: 17.61912503 | E88: 4.726940594 | F88: -4.443884347 | G88: -10.9101868 | H88: -31.15928873
A89: 2003 | B89: 10.064023 | C89: 12.8218674 | D89: 15.86184569 | E89: 10.36142624 | F89: -4.65469351 | G89: -9.018039431 | H89: 12.19593793 | J89: =(J19/J18-1)*100 -> 11.23988056
A90: 2004 | B90: 16.34439657 | C90: 17.84349068 | D90: 17.15674253 | E90: 18.42702061 | F90: 6.877164045 | G90: 12.41176273 | H90: -22.47379312 | J90: 3.728548136
A91: 2005 | B91: 8.880054728 | C91: 8.686377455 | D91: 12.3477581 | E91: 5.608672353 | F91: 10.2286868 | G91: 8.385151415 | H91: 14.49709226 | J91: 19.58490674
A92: 2006 | B92: =(B22/B21-1)*100 -> 13.20735199 | C92: 11.30016595 | D92: 12.17871205 | E92: 10.51454781 | F92: 26.30183521 | G92: 24.46966552 | H92: 57.56778132 | J92: 13.08348377
A93: 2007 | B93: 14.46542808 | C93: 16.084076 | D93: 14.67248816 | E93: 17.36536134 | F93: 4.672020084 | G93: 1.740422284 | H93: 23.37840958 | J93: 4.427923432
A94: 2008 | B94: 10.21257484 | C94: 13.14034437 | D94: 9.244018195 | E94: 16.59585754 | F94: -9.432802917 | G94: -11.2720638 | H94: 10.68581529 | J94: -23.23494383
A95: 2009 | B95: 9.943889635 | C95: 11.36602754 | D95: 3.833146836 | E95: 17.62543006 | F95: -1.977085447 | G95: 6.42277048 | H95: -28.57383222 | J95: -17.84596616
A96: 2010 | B96: 15.62500941 | C96: 15.30860606 | D96: 19.40377497 | E96: 12.30475496 | F96: 18.63826696 | G96: 19.45301064 | H96: 12.4453353 | J96: 20.49536013
A97: 2011 | B97: 13.76264388 | C97: 12.80194898 | D97: 13.30749589 | E97: 12.40768422 | F97: 22.6550154 | G97: 11.93968912 | H97: 99.42409828 | J97: 13.3649133
A98: 2012 | B98: 11.14381642 | C98: 11.42906982 | D98: 14.80790073 | E98: 8.772901489 | F98: 8.715561772 | G98: 0.583908145 | H98: 31.74371053 | J98: 27.78548201
A99: 2013 | B99: 6.944681062 | C99: 8.033171466 | D99: 9.613476518 | E99: 6.721934674 | F99: -2.552501789 | G99: 5.266248553 | H99: -20.17748104 | J99: -14.98799917
A100: 2014 | B100: =(B30/B29-1)*100 -> 7.475727646 | C100: 7.999622541 | D100: 7.96840328 | E100: 8.026228142 | F100: 2.408145556 | G100: 5.547977745 | H100: =((H30+I30)/H29-1)*100 -> -14.71320061 | J100: 16.5114342
A101: 2015 | B101: =(B31/B30-1)*100 -> 3.49144963 | C101: 2.518782348 | D101: 4.974122455 | E101: 0.4274185566 | F101: 13.41366546 | G101: 6.202638215 | H101: =(H31/H30-1)*100 -> 38.1398697 | I101: 69.92173356 | J101: -15.78708837
A102: 2016 | B102: =(B32/B31-1)*100 -> 5.224667956 | C102: 6.234554864 | D102: 4.307005996 | E102: 7.950697091 | F102: -4.08759341 | G102: 2.595297566 | H102: -38.16847786 | I102: -23.17592064 | J102: =(J32/J31-1)*100 -> 3.459777987
A103: 2017 | B103: 13.52004301 | C103: 13.96800338 | D103: 14.29057255 | E103: 13.69050609 | F103: 8.944811969 | G103: -1.962827165 | H103: 43.45590822 | I103: 38.96285274 | J103: =(J33/J32-1)*100 -> -5.646968487
A104: 2018 | B104: =(B34/B33-1)*100 -> 8.807715366 | C104: 8.446151129 | D104: 8.696458203 | E104: 8.229682363 | F104: 12.67080943 | G104: 19.47644232 | H104: 32.81815076 | I104: -33.3174545 | J104: 26.62157817 | K104: =(K34/K33-1)*100 -> 81.06915364
A105: 2019 | B105: =(B35/B34-1)*100 -> 3.870771176 | C105: 3.349273701 | D105: 2.90619462 | E105: 3.73410676 | F105: 9.233733601 | G105: 4.360442497 | H105: -0.8557488668 | I105: 41.93398721 | J105: 8.064985962 | K105: 17.56081462
A106: 2020 | B106: =(B36/B35-1)*100 -> 4.519642309 | C106: 4.666509705 | D106: 8.302643548 | E106: 1.533577952 | F106: 3.090654278 | G106: 2.714473044 | H106: 61.0898465 | I106: -8.564121478 | J106: 1.887815361 | K106: -6.921895431
A107: 2021 | B107: =(B37/B36-1)*100 -> 9.738253808 | C107: 9.729555885 | D107: 13.08364946 | E107: 6.646966949 | F107: 9.824176368 | G107: 10.76946174 | H107: -32.33735332 | I107: 14.46374125 | J107: 27.53683031 | K107: 20.48267747
A108: 2022 | B108: =(B38/B37-1)*100 -> 10.29102626 | C108: 10.86425688 | D108: 7.344295064 | E108: 14.2945379 | F108: 4.633238029 | G108: 11.87366325 | H108: -45.27772185 | I108: -12.51694645 | J108: 14.74737154 | K108: -18.00675948
A109: 2023 | B109: =(B39/B38-1)*100 -> 5.706386729 | C109: 6.194732559 | D109: 2.716948475 | E109: 9.377814769 | F109: 0.5993771078 | G109: -3.719883853 | H109: -25.08072023 | I109: 15.79078186 | J109: 11.52265337 | K109: 26.22497231
A110: 2024 | B110: =(B40/B39-1)*100 -> 10.05440075 | C110: 9.025341049 | D110: 8.210571151 | E110: 9.72565549 | F110: 21.41463917 | G110: 7.233655547 | H110: 380.5152341 | I110: 56.14129303 | J110: 27.15356828 | K110: 3.756672859
A112: 주 : 1. 2014년(조사대상년도)부터 토지와 건물을 구분
A113: 2. 2014년(조사대상년도) 전년대비 증가율은 토지와 건물을 합하여 산출
A114: 3. 2017년(조사대상년도) 기타 지식재산물 항목 신설

Sheet 2-5
A1: 2-5) 연구개발단계별 연구개발비
A2: R&D expenditure by type of R&D
K3: (단위 : 백만원 Unit : Won, Millions)
A4: 연도·연구수행주체 Year · Sector of performance | C4: 연구개발수행기관 R&D performing inst. | D4: 총계 Total | F4: 기초연구 Basic research | H4: 응용연구 Applied research | J4: 개발연구 Experimental development
E5: 구성비(%) | G5: 구성비(%) | I5: 구성비(%) | K5: 구성비(%)
A6: 1995 | B6: 계 Total | C6: =SUM(C7:C9) -> 2587 | D6: =SUM(D7:D9) -> 9440606 | E6: =D6/$D6*100 -> 100 | F6: 1176819 | G6: =F6/$D6*100 -> 12.46550274 | H6: 2362110 | I6: =H6/$D6*100 -> 25.02074549 | J6: 5901677 | K6: =J6/$D6*100 -> 62.51375177
B7: 공공연구기관 Public research institutes | C7: 178 | D7: =F7+H7+J7 -> 1766713 | E7: 100 | F7: 249948 | G7: 14.14762896 | H7: 587561 | I7: 33.25729759 | J7: 929204 | K7: 52.59507345
B8: 대학 Higher educations | C8: 257 | D8: =F8+H8+J8 -> 770912 | E8: 100 | F8: 372851 | G8: 48.36492362 | H8: 205618 | I8: 26.67204558 | J8: 192443 | K8: 24.9630308
B9: 기업체 Business enterprises | C9: 2152 | D9: =F9+H9+J9 -> 6902981 | E9: 100 | F9: 554020 | G9: 8.025807981 | H9: 1568931 | I9: 22.72831115 | J9: 4780030 | K9: 69.24588087
A10: 1996 | B10: 계 Total | C10: =SUM(C11:C13) -> 2856 | D10: =SUM(D11:D13) -> 10878051 | E10: 100 | F10: 1439020 | G10: 13.22865649 | H10: 2927270 | I10: 26.90987568 | J10: 6511761 | K10: 59.86146783
B11: 공공연구기관 Public research institutes | C11: 163 | D11: =F11+H11+J11 -> 1895618 | E11: 100 | F11: 340156 | G11: 17.94433267 | H11: 561389 | I11: 29.61509123 | J11: 994073 | K11: 52.44057611
B12: 대학 Higher educations | C12: 258 | D12: =F12+H12+J12 -> 1018822 | E12: 100 | F12: 452063 | G12: 44.37114628 | H12: 270913 | I12: 26.59080782 | J12: 295846 | K12: 29.0380459
B13: 기업체 Business enterprises | C13: 2435 | D13: =F13+H13+J13 -> 7963611 | E13: 100 | F13: 646801 | G13: 8.121956233 | H13: 2094968 | I13: 26.30675958 | J13: 5221842 | K13: 65.57128418
A14: 1997 | B14: 계 Total | C14: =SUM(C15:C17) -> 2962 | D14: =SUM(D15:D17) -> 12185807 | E14: 100 | F14: 1616490 | G14: =F14/$D14*100 -> 13.26535042 | H14: 3470560 | I14: 28.48034603 | J14: 7098757 | K14: 58.25430355
B15: 공공연구기관 Public research institutes | C15: 184 | D15: =F15+H15+J15 -> 2068900 | E15: 100 | F15: 419311 | G15: 20.26734013 | H15: 716210 | I15: 34.6179129 | J15: 933379 | K15: 45.11474697
B16: 대학 Higher educations | C16: 271 | D16: =F16+H16+J16 -> 1271600 | E16: 100 | F16: 480168 | G16: 37.76093111 | H16: 400962 | I16: 31.53208556 | J16: 390470 | K16: 30.70698333
B17: 기업체 Business enterprises | C17: 2507 | D17: =F17+H17+J17 -> 8845307 | E17: 100 | F17: 717011 | G17: 8.106117741 | H17: 2353388 | I17: 26.60606353 | J17: 5774908 | K17: 65.28781873
A18: 1998 | B18: 계 Total | C18: =SUM(C19:C21) -> 2869 | D18: =SUM(D19:D21) -> 11336617 | E18: 100 | F18: 1585367 | G18: 13.98448056 | H18: 2848458 | I18: 25.126173 | J18: 6902792 | K18: 60.88934644
B19: 공공연구기관 Public research institutes | C19: 183 | D19: =F19+H19+J19 -> 2099470 | E19: =D19/$D19*100 -> 100 | F19: 561521 | G19: 26.74584538 | H19: 741199 | I19: =H19/$D19*100 -> 35.30410056 | J19: 796750 | K19: =J19/$D19*100 -> 37.95005406
B20: 대학 Higher educations | C20: 267 | D20: =F20+H20+J20 -> 1265074 | E20: 100 | F20: 507261 | G20: =F20/$D20*100 -> 40.09733818 | H20: 427539 | I20: 33.79557243 | J20: 330274 | K20: 26.10708939
B21: 기업체 Business enterprises | C21: 2419 | D21: =F21+H21+J21 -> 7972073 | E21: 100 | F21: 516585 | G21: 6.479933137 | H21: 1679720 | I21: 21.07005292 | J21: 5775768 | K21: 72.45001394
A22: 1999 | B22: 계 Total | C22: =SUM(C23:C25) -> 3059 | D22: =SUM(D23:D25) -> 11921752 | E22: 100 | F22: 1625477 | G22: 13.63454801 | H22: 3065197 | I22: 25.71096094 | J22: 7231078 | K22: 60.65449105
B23: 공공연구기관 Public research institutes | C23: 169 | D23: =F23+H23+J23 -> 1979174 | E23: 100 | F23: 494138 | G23: 24.96688012 | H23: 756409 | I23: 38.21841839 | J23: 728627 | K23: 36.81470149
B24: 대학 Higher educations | C24: 285 | D24: =F24+H24+J24 -> 1431421 | E24: 100 | F24: 491402 | G24: 34.32966262 | H24: 479440 | I24: 33.49398954 | J24: 460579 | K24: 32.17634784
B25: 기업체 Business enterprises | C25: 2605 | D25: =F25+H25+J25 -> 8511157 | E25: 100 | F25: 639937 | G25: 7.518801498 | H25: 1829348 | I25: 21.49352902 | J25: 6041872 | K25: 70.98766948
A26: 2000 | B26: 계 Total | C26: =SUM(C27:C29) -> 4635 | D26: =SUM(D27:D29) -> 13848501 | E26: 100 | F26: 1746138 | G26: 12.60885925 | H26: 3370088.5 | I26: 24.3354028 | J26: 8732274.5 | K26: 63.05573795
B27: 공공연구기관 Public research institutes | C27: 173 | D27: =F27+H27+J27 -> 2031981 | E27: 100 | F27: 454443 | G27: 22.36452998 | H27: 672213 | I27: 33.08165775 | J27: 905325 | K27: 44.55381226
B28: 대학 Higher educations | C28: 268 | D28: =F28+H28+J28 -> 1561865 | E28: 100 | F28: 661562 | G28: 42.35718196 | H28: 475685 | I28: 30.45621741 | J28: 424618 | K28: 27.18660063
B29: 기업체 Business enterprises | C29: 4194 | D29: =F29+H29+J29 -> 10254655 | E29: 100 | F29: 630133 | G29: 6.144848364 | H29: 2222190.5 | I29: 21.67006594 | J29: 7402331.5 | K29: 72.1850857
A30: 2001 | B30: 계 Total | C30: =SUM(C31:C33) -> 6801 | D30: =SUM(D31:D33) -> 16110521.98 | E30: 100 | F30: 2025019.904 | G30: 12.56954869 | H30: 4075940.789 | I30: 25.29986796 | J30: 10009561.29 | K30: 62.13058336
B31: 공공연구기관 Public research institutes | C31: 188 | D31: =F31+H31+J31 -> 2160166.079 | E31: 100 | F31: 438260.1848 | G31: 20.28826344 | H31: 894402.6681 | I31: 41.40434742 | J31: 827503.2261 | K31: 38.30738915
B32: 대학 Higher educations | C32: 276 | D32: =F32+H32+J32 -> 1676777.181 | E32: 100 | F32: 679826.0851 | G32: 40.54361503 | H32: 498455.4529 | I32: 29.72699406 | J32: 498495.643 | K32: 29.72939092
B33: 기업체 Business enterprises | C33: 6337 | D33: =F33+H33+J33 -> 12273578.72 | E33: 100 | F33: 906933.6342 | G33: 7.389316961 | H33: 2683082.668 | I33: 21.86063844 | J33: 8683562.42 | K33: 70.7500446
A34: 2002 | B34: 계 Total | C34: =SUM(C35:C37) -> 7210 | D34: =SUM(D35:D37) -> 17325081.78 | E34: 100 | F34: 2373234.759 | G34: 13.69826007 | H34: 3763601.721 | I34: 21.72342832 | J34: 11188245.3 | K34: 64.57831162
B35: 공공연구기관 Public research institutes | C35: 163 | D35: =F35+H35+J35 -> 2552631.59 | E35: 100 | F35: 526181.77 | G35: 20.61330636 | H35: 1015664.28 | I35: 39.78890977 | J35: 1010785.54 | K35: 39.59778387
B36: 대학 Higher educations | C36: 304 | D36: =F36+H36+J36 -> 1797096.31 | E36: 100 | F36: 666130.197 | G36: 37.06702826 | H36: 596213.366 | I36: 33.17648379 | J36: 534752.747 | K36: 29.75648795
B37: 기업체 Business enterprises | C37: 6743 | D37: =F37+H37+J37 -> 12975353.88 | E37: 100 | F37: 1180922.792 | G37: 9.101276181 | H37: 2151724.075 | I37: 16.58316293 | J37: 9642707.012 | K37: 74.31556089
A38: 2003 | B38: 계 Total | C38: =SUM(C39:C41) -> 7127 | D38: =SUM(D39:D41) -> 19068681.99 | E38: 100 | F38: 2758620.607 | G38: 14.46676078 | H38: 3973994.147 | I38: 20.84042383 | J38: 12336067.24 | K38: 64.69281539
B39: 공공연구기관 Public research institutes | C39: 169 | D39: =F39+H39+J39 -> 2626355.83 | E39: 100 | F39: 525515.4 | G39: 20.00929935 | H39: 972984.43 | I39: 37.04693853 | J39: 1127856 | K39: 42.94376212
B40: 대학 Higher educations | C40: 310 | D40: =F40+H40+J40 -> 1932662.944 | E40: 100 | F40: 695637.7575 | G40: 35.99374426 | H40: 634121.9068 | I40: 32.81078621 | J40: 602903.2797 | K40: 31.19546952
B41: 기업체 Business enterprises | C41: 6648 | D41: =F41+H41+J41 -> 14509663.22 | E41: 100 | F41: 1537467.45 | G41: 10.5961622 | H41: 2366887.81 | I41: 16.31249309 | J41: 10605307.96 | K41: 73.09134471
A42: 2004 | B42: 계 Total | C42: =SUM(C43:C45) -> 7254 | D42: =SUM(D43:D45) -> 22185343 | E42: 100 | F42: 3399400 | G42: 15.32272906 | H42: 4712161 | I42: 21.23997362 | J42: 14073782 | K42: 63.43729732
B43: 공공연구기관 Public research institutes | C43: 159 | D43: =F43+H43+J43 -> 2964646 | E43: 100 | F43: 616140 | G43: 20.78291978 | H43: 1151992 | I43: 38.85765788 | J43: 1196514 | K43: 40.35942234
B44: 대학 Higher educations | C44: 293 | D44: =F44+H44+J44 -> 2200886 | E44: 100 | F44: 736761 | G44: 33.4756548 | H44: 760983 | I44: 34.57621158 | J44: 703142 | K44: 31.94813362
B45: 기업체 Business enterprises | C45: 6802 | D45: =F45+H45+J45 -> 17019811 | E45: 100 | F45: 2046499 | G45: 12.02421696 | H45: 2799186 | I45: 16.44663387 | J45: 12174126 | K45: 71.52914918
A46: 2005 | B46: 계 Total | C46: =SUM(C47:C49) -> 7761 | D46: =SUM(D47:D49) -> 24155414 | E46: 100 | F46: 3706840 | G46: 15.3457937 | H46: 5034149 | I46: 20.84066537 | J46: 15414425 | K46: 63.81354093
B47: 공공연구기관 Public research institutes | C47: 137 | D47: =F47+H47+J47 -> 3192887 | E47: 100 | F47: 684540 | G47: 21.43953106 | H47: 1158356 | I47: 36.27926701 | J47: 1349991 | K47: 42.28120193
B48: 대학 Higher educations | C48: 256 | D48: =F48+H48+J48 -> 2398284 | E48: 100 | F48: 833799 | G48: 34.76648304 | H48: 825172 | I48: 34.40676751 | J48: 739313 | K48: 30.82674946
B49: 기업체 Business enterprises | C49: 7368 | D49: =F49+H49+J49 -> 18564243 | E49: 100 | F49: 2188501 | G49: 11.78879742 | H49: 3050621 | I49: 16.43277886 | J49: 13325121 | K49: 71.77842371
A50: 2006 | B50: 계 Total | C50: =SUM(C51:C53) -> 9443 | D50: =SUM(D51:D53) -> 27345704.1 | E50: 100 | F50: 4143273.139 | G50: 15.15145898 | H50: 5430098.263 | I50: 19.85722599 | J50: 17772332.7 | K50: 64.99131503
B51: 공공연구기관 Public research institutes | C51: 139 | D51: =F51+H51+J51 -> 3497050.1 | E51: 100 | F51: 716725 | G51: 20.49513102 | H51: 1252429.6 | I51: 35.81388783 | J51: 1527895.5 | K51: 43.69098115
B52: 대학 Higher educations | C52: 268 | D52: =F52+H52+J52 -> 2721874 | E52: 100 | F52: 909221.0082 | G52: 33.40422842 | H52: 876798.079 | I52: 32.21302966 | J52: 935854.9128 | K52: 34.38274192
B53: 기업체 Business enterprises | C53: 9036 | D53: =F53+H53+J53 -> 21126780 | E53: 100 | F53: 2517327.131 | G53: 11.91533746 | H53: 3300870.584 | I53: 15.62410639 | J53: 15308582.29 | K53: 72.46055615
A54: 2007 | B54: 계 Total | C54: =SUM(C55:C57) -> 11200 | D54: =SUM(D55:D57) -> 31301377.26 | E54: 100 | F54: 4918688.629 | G54: 15.71396871 | H54: 6210834.345 | I54: 19.84204814 | J54: 20171854.29 | K54: 64.44398315
B55: 공공연구기관 Public research institutes | C55: 188 | D55: =F55+H55+J55 -> 4102365.7 | E55: 100 | F55: 995180.1 | G55: 24.2586881 | H55: 1503405.9 | I55: 36.6472911 | J55: 1603779.7 | K55: 39.0940208
B56: 대학 Higher educations | C56: 322 | D56: =F56+H56+J56 -> 3334118.57 | E56: 100 | F56: 1369545.13 | G56: 41.07667743 | H56: 873851.5 | I56: 26.20937083 | J56: 1090721.94 | K56: 32.71395174
B57: 기업체 Business enterprises | C57: 10690 | D57: =F57+H57+J57 -> 23864892.99 | E57: 100 | F57: 2553963.399 | G57: 10.70175927 | H57: 3833576.945 | I57: 16.06366702 | J57: 17477352.65 | K57: 73.2345737
A58: 2008 | B58: 계 Total | C58: =SUM(C59:C61) -> 12822 | D58: =SUM(D59:D61) -> 34498053.84 | E58: 100 | F58: 5537090.578 | G58: 16.05044332 | H58: 6773869.412 | I58: 19.63551174 | J58: 22187093.85 | K58: 64.31404494
B59: 공공연구기관 Public research institutes | C59: 228 | D59: =F59+H59+J59 -> 4653235.6 | E59: 100 | F59: 1053146.194 | G59: 22.63255688 | H59: 1510661.241 | I59: 32.46474864 | J59: 2089428.165 | K59: 44.90269448
B60: 대학 Higher educations | C60: 338 | D60: =F60+H60+J60 -> 3844749.4 | E60: 100 | F60: 1419209.395 | G60: 36.91292325 | H60: 1201965.411 | I60: 31.26251639 | J60: 1223574.593 | K60: 31.82456036
B61: 기업체 Business enterprises | C61: 12256 | D61: =F61+H61+J61 -> 26000068.84 | E61: 100 | F61: 3064734.989 | G61: 11.78741105 | H61: 4061242.76 | I61: 15.6201231 | J61: 18874091.09 | K61: 72.59246584
A62: 2009 | B62: 계 Total | C62: =SUM(C63:C65) -> 15237 | D62: =SUM(D63:D65) -> 37928502.24 | E62: 100 | F62: 6849096.196 | G62: 18.05791368 | H62: 7574286.807 | I62: 19.96990748 | J62: 23505119.24 | K62: 61.97217883
B63: 공공연구기관 Public research institutes | C63: 252 | D63: =F63+H63+J63 -> 5558383.7 | E63: 100 | F63: 1446414.5 | G63: 26.02221398 | H63: 1602959.7 | I63: 28.83859385 | J63: 2509009.5 | K63: 45.13919217
B64: 대학 Higher educations | C64: 359 | D64: =F64+H64+J64 -> 4204259.4 | E64: 100 | F64: 1523234.6 | G64: 36.23074732 | H64: 1245293.1 | I64: 29.61979701 | J64: 1435731.7 | K64: 34.14945567
B65: 기업체 Business enterprises | C65: 14626 | D65: =F65+H65+J65 -> 28165859.14 | E65: 100 | F65: 3879447.096 | G65: 13.77357984 | H65: 4726034.007 | I65: 16.77930001 | J65: 19560378.04 | K65: 69.44712015
A66: 2010 | B66: 계 Total | C66: =SUM(C67:C69) -> 16550 | D66: =SUM(D67:D69) -> 43854834.28 | E66: 100 | F66: 7991019.6 | G66: 18.22152502 | H66: 8742664.421 | I66: 19.93546336 | J66: 27121150.26 | K66: 61.84301162
B67: 공공연구기관 Public research institutes | C67: 261 | D67: =F67+H67+J67 -> 6306136.03 | E67: 100 | F67: 1763069.36 | G67: 27.9579976 | H67: 1794518.37 | I67: 28.45670251 | J67: 2748548.3 | K67: 43.58529989
B68: 대학 Higher educations | C68: 352 | D68: =F68+H68+J68 -> 4745458.693 | E68: 100 | F68: 1677091.85 | G68: 35.34098511 | H68: 1498120.1 | I68: 31.56955306 | J68: 1570246.743 | K68: 33.08946183
B69: 기업체 Business enterprises | C69: 15937 | D69: =F69+H69+J69 -> 32803239.56 | E69: 100 | F69: 4550858.39 | G69: 13.87319805 | H69: 5450025.951 | I69: 16.61429183 | J69: 22802355.22 | K69: 69.51251012
A70: 2011 | B70: 계 Total | C70: =SUM(C71:C73) -> 20372 | D70: =SUM(D71:D73) -> 49890418.95 | E70: =D70/$D70*100 -> 100 | F70: 9013211.34 | G70: =F70/$D70*100 -> 18.06601654 | H70: 10116538.75 | I70: =H70/$D70*100 -> 20.27751813 | J70: 30760668.86 | K70: =J70/$D70*100 -> 61.65646533
B71: 공공연구기관 Public research institutes | C71: 268 | D71: =F71+H71+J71 -> 6673311.11 | E71: 100 | F71: 2072824.81 | G71: 31.06141428 | H71: 1856153.05 | I71: 27.8145739 | J71: 2744333.25 | K71: 41.12401183
B72: 대학 Higher educations | C72: 350 | D72: =F72+H72+J72 -> 5033816.5 | E72: 100 | F72: 1860682.2 | G72: 36.96364776 | H72: 1662220.3 | I72: 33.02107457 | J72: 1510914 | K72: 30.01527767
B73: 기업체 Business enterprises | C73: 19754 | D73: =F73+H73+J73 -> 38183291.34 | E73: 100 | F73: 5079704.33 | G73: 13.30347425 | H73: 6598165.396 | I73: 17.28024265 | J73: 26505421.61 | K73: 69.4162831
A74: 2012 | B74: 계 Total | C74: =SUM(C75:C77) -> 23533 | D74: =SUM(D75:D77) -> 55450115.65 | E74: 100 | F74: 10153311.53 | G74: 18.31071298 | H74: 10572652.52 | I74: 19.06696207 | J74: 34724151.6 | K74: 62.62232494
B75: 공공연구기관 Public research institutes | C75: 272 | D75: =F75+H75+J75 -> 6950261.67 | E75: 100 | F75: 2372764.13 | G75: 34.13920573 | H75: 1690754.94 | I75: 24.32649331 | J75: 2886742.6 | K75: 41.53430097
B76: 대학 Higher educations | C76: 344 | D76: =F76+H76+J76 -> 5276928.439 | E76: 100 | F76: 2112598.468 | G76: 40.03462417 | H76: 1545750.967 | I76: 29.29262704 | J76: 1618579.004 | K76: 30.67274879
B77: 기업체 Business enterprises | C77: 22917 | D77: =F77+H77+J77 -> 43222925.54 | E77: 100 | F77: 5667948.928 | G77: 13.11329313 | H77: 7336146.614 | I77: 16.97281367 | J77: 30218830 | K77: 69.9138932
A78: 2013 | B78: 계 Total | C78: =SUM(C79:C81) -> 25882 | D78: =SUM(D79:D81) -> 59300949.33 | E78: =D78/$D78*100 -> 100 | F78: 10665765.32 | G78: =F78/$D78*100 -> 17.98582559 | H78: 11315883.15 | I78: =H78/$D78*100 -> 19.08212816 | J78: 37319300.86 | K78: =J78/$D78*100 -> 62.93204625
B79: 공공연구기관 Public research institutes | C79: 326 | D79: =F79+H79+J79 -> 7260710.547 | E79: 100 | F79: 2393866.71 | G79: 32.97014382 | H79: 1674619.287 | I79: 23.06412404 | J79: 3192224.55 | K79: 43.96573213
B80: 대학 Higher educations | C80: 371 | D80: =F80+H80+J80 -> 5480322.53 | E80: 100 | F80: 2187559.25 | G80: 39.91661509 | H80: 1689983.49 | I80: 30.83729983 | J80: 1602779.79 | K80: 29.24608508
B81: 기업체 Business enterprises | C81: 25185 | D81: =F81+H81+J81 -> 46559916.25 | E81: 100 | F81: 6084339.361 | G81: 13.06776268 | H81: 7951280.376 | I81: 17.07752293 | J81: 32524296.52 | K81: 69.85471439
A82: 2014 | B82: 계 Total | C82: =SUM(C83:C85) -> 30111 | D82: =SUM(D83:D85) -> 63734126.79 | E82: 100 | F82: 11242600.29 | G82: 17.63984361 | H82: 12058498.37 | I82: 18.92000248 | J82: 40433028.13 | K82: 63.44015391
B83: 공공연구기관 Public research institutes | C83: 348 | D83: =F83+H83+J83 -> 8112700.933 | E83: 100 | F83: 2530137.297 | G83: 31.18736063 | H83: 1732691.855 | I83: 21.35776814 | J83: 3849871.781 | K83: 47.45487123
B84: 대학 Higher educations | C84: 371 | D84: =F84+H84+J84 -> 5766960.87 | E84: 100 | F84: 2171150.589 | G84: 37.64808949 | H84: 1846515.494 | I84: 32.01886637 | J84: 1749294.786 | K84: 30.33304414
B85: 기업체 Business enterprises | C85: 29392 | D85: =F85+H85+J85 -> 49854464.99 | E85: 100 | F85: 6541312.408 | G85: 13.12081558 | H85: 8479291.02 | I85: 17.00808748 | J85: 34833861.56 | K85: 69.87109694
A86: 2015 | B86: 계 Total | C86: =SUM(C87:C89) -> 35379 | D86: =SUM(D87:D89) -> 65959371.73 | E86: =D86/$D86*100 -> 100 | F86: 11361657.87 | G86: =F86/$D86*100 -> 17.22523665 | H86: 13744954.17 | I86: =H86/$D86*100 -> 20.83851591 | J86: 40852759.68 | K86: =J86/$D86*100 -> 61.93624744
B87: 공공연구기관 Public research institutes | C87: 372 | D87: =F87+H87+J87 -> 8824078.748 | E87: 100 | F87: 2879746.604 | G87: 32.63509638 | H87: 1872355.147 | I87: 21.21870396 | J87: 4071976.998 | K87: 46.14619967
B88: 대학 Higher educations | C88: 365 | D88: =F88+H88+J88 -> 5998872.479 | E88: 100 | F88: 2119484.663 | G88: 35.33138386 | H88: 1983975.404 | I88: 33.07247172 | J88: 1895412.412 | K88: 31.59614442
B89: 기업체 Business enterprises | C89: 34642 | D89: =F89+H89+J89 -> 51136420.5 | E89: 100 | F89: 6362426.604 | G89: 12.44206486 | H89: 9888623.621 | I89: 19.33773136 | J89: 34885370.27 | K89: 68.22020379
A90: 2016 | B90: 계 Total | C90: =SUM(C91:C93) -> 37218 | D90: =SUM(D91:D93) -> 69405529.89 | E90: 100 | F90: 11086652.8 | G90: 15.97373122 | H90: 15621429.66 | I90: 22.50747121 | J90: 42697447.43 | K90: 61.51879757
B91: 공공연구기관 Public research institutes | C91: 372 | D91: =F91+H91+J91 -> 9113170.697 | E91: 100 | F91: 2478945.597 | G91: 27.20179046 | H91: 2323017 | I91: 25.49076581 | J91: 4311208.1 | K91: 47.30744374
B92: 대학 Higher educations | C92: 368 | D92: =F92+H92+J92 -> 6339887.929 | E92: 100 | F92: 2209088.156 | G92: 34.8442777 | H92: 2116431.534 | I92: 33.38279095 | J92: 2014368.239 | K92: 31.77293135
B93: 기업체 Business enterprises | C93: 36478 | D93: =F93+H93+J93 -> 53952471.26 | E93: 100 | F93: 6398619.043 | G93: =F93/$D93*100 -> 11.85973301 | H93: 11181981.12 | I93: =H93/$D93*100 -> 20.72561435 | J93: 36371871.09 | K93: =J93/$D93*100 -> 67.41465265
A94: 2017 | B94: 계 Total | C94: =SUM(C95:C97) -> 42368 | D94: =SUM(D95:D97) -> 78789187.37 | E94: =D94/$D94*100 -> 100 | F94: 11391103.29 | G94: 14.45769866 | H94: 17315901.47 | I94: 21.97750992 | J94: 50082182.61 | K94: 63.56479142
B95: 공공연구기관 Public research institutes | C95: 375 | D95: =F95+H95+J95 -> 9543217.4 | E95: 100 | F95: 2322231.4 | G95: 24.33384154 | H95: 2571596.6 | I95: 26.94685128 | J95: 4649389.4 | K95: 48.71930718
B96: 대학 Higher educations | C96: 364 | D96: =F96+H96+J96 -> 6682523.015 | E96: 100 | F96: 2464891.226 | G96: 36.88563767 | H96: 2060511.228 | I96: 30.83433044 | J96: 2157120.561 | K96: 32.2800319
B97: 기업체 Business enterprises | C97: 41629 | D97: =F97+H97+J97 -> 62563446.96 | E97: 100 | F97: 6603980.664 | G97: 10.55565348 | H97: 12683793.64 | I97: 20.27348917 | J97: 43275672.65 | K97: 69.17085735
A98: 2018 | B98: 계 Total | C98: 49302 | D98: 85728714.74 | E98: 100 | F98: 12180466.84 | G98: 14.20815287 | H98: 18824713.4 | I98: 21.95846917 | J98: 54723534.5 | K98: 63.83337796
B99: 공공연구기관 Public research institutes | C99: 401 | D99: 9843867.4 | E99: 100 | F99: 2353558 | G99: 23.90887549 | H99: 2568973 | I99: 26.09719225 | J99: 4921336.4 | K99: 49.99393226
B100: 대학 Higher educations | C100: 365 | D100: 7050415.008 | E100: 100 | F100: 2533533.651 | G100: 35.9345322 | H100: 2302551.572 | I100: 32.6583835 | J100: 2214329.785 | K100: 31.4070843
B101: 기업체 Business enterprises | C101: 48536 | D101: 68834432.33 | E101: 100 | F101: 7293375.19 | G101: 10.59553329 | H101: 13953188.83 | I101: 20.27065286 | J101: 47587868.31 | K101: 69.13381385
A102: 2019 | B102: 계 Total | C102: 53005 | D102: 89047077.12 | E102: 100 | F102: 13062301.51 | G102: 14.66898402 | H102: 20040143.19 | I102: 22.5051106 | J102: 55944632.42 | K102: 62.82590538
B103: 공공연구기관 Public research institutes | C103: 419 | D103: 10168766 | E103: 100 | F103: 2516381.5 | G103: 24.74618356 | H103: 2733997.5 | I103: 26.8862269 | J103: 4918387 | K103: 48.36758954
B104: 대학 Higher educations | C104: 368 | D104: 7371649 | E104: 100 | F104: 2937469.2 | G104: 39.84819679 | H104: 2166220.4 | I104: 29.38583213 | J104: 2267959.4 | K104: 30.76597109
B105: 기업체 Business enterprises | C105: 52218 | D105: 71506662.12 | E105: 100 | F105: 7608450.814 | G105: 10.64019853 | H105: 15139925.29 | I105: 21.17274788 | J105: 48758286.02 | K105: 68.18705359
A106: 2020 | B106: 계 Total | C106: 56223 | D106: 93071686.49 | E106: 100 | F106: 13448098.63 | G106: 14.44918335 | H106: 20078628.7 | I106: 21.57329415 | J106: 59544959.16 | K106: 63.9775225
B107: 공공연구기관 Public research institutes | C107: 415 | D107: 11118558 | E107: 100 | F107: 2577697 | G107: 23.1837348 | H107: 2780583 | I107: 25.00848581 | J107: 5760278 | K107: 51.80777939
B108: 대학 Higher educations | C108: 363 | D108: 8353350.45 | E108: 100 | F108: 3132144.798 | G108: 37.49567095 | H108: 2568755.766 | I108: 30.75120315 | J108: 2652449.886 | K108: 31.75312591
B109: 기업체 Business enterprises | C109: 55445 | D109: 73599778.04 | E109: 100 | F109: 7738256.831 | G109: 10.51396762 | H109: 14729289.93 | I109: 20.01268254 | J109: 51132231.28 | K109: 69.47334984
A110: 2021 | B110: 계 Total | C110: 59576 | D110: 102135243.5 | E110: 100 | F110: 15100171.23 | G110: 14.78448644 | H110: 21470363.2 | I110: 21.02150292 | J110: 65564709.11 | K110: 64.19401064
B111: 공공연구기관 Public research institutes | C111: 433 | D111: 11997001 | E111: 100 | F111: 2683404.4 | G111: 22.36729329 | H111: 2988450.9 | I111: 24.90998292 | J111: 6325145.7 | K111: 52.72272379
B112: 대학 Higher educations | C112: 366 | D112: 9330614.888 | E112: 100 | F112: 3639259.495 | G112: 39.00342623 | H112: 2906056.977 | I112: 31.14539622 | J112: 2785298.416 | K112: 29.85117755
B113: 기업체 Business enterprises | C113: 58777 | D113: 80807627.66 | E113: 100 | F113: 8777507.337 | G113: 10.86222624 | H113: 15575855.32 | I113: 19.27522905 | J113: 56454264.99 | K113: 69.8625447
A114: 2022 | B114: 계 Total | C114: 61646 | D114: 112646008.3 | E114: 100 | F114: 16918375.3 | G114: 15.01906331 | H114: 22455973.76 | I114: 19.93499291 | J114: 73271659.22 | K114: 65.04594379
B115: 공공연구기관 Public research institutes | C115: 458 | D115: 12918586.1 | E115: 100 | F115: 3051047.24 | G115: 23.6175013 | H115: 3047183.88 | I115: 23.58759586 | J115: 6820354.98 | K115: 52.79490284
B116: 대학 Higher educations | C116: 361 | D116: 10306122 | E116: 100 | F116: 4068689.025 | G116: 39.47837048 | H116: 3100503.85 | I116: 30.08409807 | J116: 3136929.125 | K116: 30.43753145
B117: 기업체 Business enterprises | C117: 60827 | D117: 89421300.18 | E117: 100 | F117: 9798639.031 | G117: 10.95783556 | H117: 16308286.03 | I117: 18.23758545 | J117: 63314375.12 | K117: 70.80457899
A118: 2023 | B118: 계 Total | C118: 58200 | D118: 119074025.1 | E118: 100 | F118: 17740416.03 | G118: =F118/$D118*100 -> 14.89864478 | H118: 23475197.91 | I118: =H118/$D118*100 -> 19.71479328 | J118: 77858411.2 | K118: =J118/$D118*100 -> 65.38656194
B119: 공공연구기관 Public research institutes | C119: 477 | D119: 13883702 | E119: 100 | F119: 3406268 | G119: =F119/$D119*100 -> 24.53429208 | H119: 3283502 | I119: 23.65004665 | J119: 7193932 | K119: 51.81566127
B120: 대학 Higher educations | C120: 379 | D120: 10893480 | E120: 100 | F120: 4121834 | G120: 37.83762397 | H120: 3347521 | I120: 30.7295832 | J120: 3424125 | K120: 31.43279283
B121: 기업체 Business enterprises | C121: 57344 | D121: 94296843.15 | E121: 100 | F121: 10212314.03 | G121: 10.82996386 | H121: 16844174.91 | I121: 17.86292558 | J121: 67240354.2 | K121: 71.30711057
A122: 2024 | B122: 계 Total | C122: 58825 | D122: 131046204.8 | E122: 100 | F122: 19268978.8 | G122: =F122/$D122*100 -> 14.70395791 | H122: 25281247.09 | I122: =H122/$D122*100 -> 19.2918575 | J122: 86495978.93 | K122: =J122/$D122*100 -> 66.00418459
B123: 공공연구기관 Public research institutes | C123: 504 | D123: 13293570 | E123: 100 | F123: 3152297 | G123: =F123/$D123*100 -> 23.71294543 | H123: 3423771 | I123: 25.75509062 | J123: 6717502 | K123: 50.53196395
B124: 대학 Higher educations | C124: 385 | D124: 11053800 | E124: 100 | F124: 4165416 | G124: 37.6831135 | H124: 3537023 | I124: 31.99825399 | J124: 3351361 | K124: 30.31863251
B125: 기업체 Business enterprises | C125: 57936 | D125: 106698834.8 | E125: 100 | F125: 11951265.8 | G125: 11.20093375 | H125: 18320453.09 | I125: 17.17024663 | J125: 76427115.93 | K125: 71.62881962

Sheet 2-6
A1: 2-6) 연구원 1인당 연구개발비
A2: R&D expenditure per researcher
G3: (단위 : 백만원, 명 Unit : Won, Millions, person)
A4: 연도·연구수행주체 Year · Sector of performance | C4: 연구개발비(A) R&D expenditure | D4: 연구원(B) Researchers | F4: 연구원 1인당 연구개발비(A/B) R&D expenditure per researcher
D5: FTE | E5: HC | F5: FTE | G5: HC
A6: 1995 | B6: 계 Total | C6: =SUM(C7:C9) -> 9440606 | D6: =SUM(D7:D9) -> 100456 | E6: =SUM(E7:E9) -> 128315 | F6: =C6/D6 -> 93.9775225 | G6: =C6/E6 -> 73.57367416
B7: 공공연구기관 Public research institutes | C7: 1766713 | D7: 14363 | E7: 15007 | F7: 123.0044559 | G7: 117.7259279
B8: 대학 Higher educations | C8: 770912 | D8: 19406 | E8: 44683 | F8: 39.72544574 | G8: 17.25291498
B9: 기업체 Business enterprises | C9: 6902981 | D9: 66687 | E9: 68625 | F9: 103.5131435 | G9: 100.5898871
A10: 1996 | B10: 계 Total | C10: =SUM(C11:C13) -> 10878051 | D10: =SUM(D11:D13) -> 99433 | E10: =SUM(E11:E13) -> 132023 | F10: 109.4008126 | G10: 82.39512055
B11: 공공연구기관 Public research institutes | C11: 1895618 | D11: 13732 | E11: 15503 | F11: 138.0438392 | G11: 122.2742695
B12: 대학 Higher educations | C12: 1018822 | D12: 19483 | E12: 45327 | F12: 52.29287071 | G12: 22.4771549
B13: 기업체 Business enterprises | C13: 7963611 | D13: 66218 | E13: 71193 | F13: 120.2635386 | G13: 111.8594665
A14: 1997 | B14: 계 Total | C14: =SUM(C15:C17) -> 12185806 | D14: =SUM(D15:D17) -> 102660 | E14: =SUM(E15:E17) -> 138438 | F14: =C14/D14 -> 118.7006234 | G14: =C14/E14 -> 88.02356289
B15: 공공연구기관 Public research institutes | C15: 2068899 | D15: 13216 | E15: 15185 | F15: 156.5450212 | G15: 136.2462298
B16: 대학 Higher educations | C16: 1271600 | D16: 19573 | E16: 48588 | F16: 64.96704644 | G16: 26.17107105
B17: 기업체 Business enterprises | C17: 8845307 | D17: 69871 | E17: 74665 | F17: 126.5948247 | G17: 118.4665774
A18: 1998 | B18: 계 Total | C18: =SUM(C19:C21) -> 11336617 | D18: =SUM(D19:D21) -> 92541 | E18: =SUM(E19:E21) -> 129767 | F18: 122.5037227 | G18: 87.36132453
B19: 공공연구기관 Public research institutes | C19: 2099470 | D19: 10952 | E19: 12587 | F19: 191.6974069 | G19: 166.796695
B20: 대학 Higher educations | C20: 1265074 | D20: 21525 | E20: 51162 | F20: 58.77231127 | G20: 24.72682851
B21: 기업체 Business enterprises | C21: 7972073 | D21: 60064 | E21: 66018 | F21: 132.7263086 | G21: 120.7560514
A22: 1999 | B22: 계 Total | C22: =SUM(C23:C25) -> 11921752 | D22: =SUM(D23:D25) -> 100210 | E22: =SUM(E23:E25) -> 134568 | F22: 118.9676879 | G22: 88.59277094
B23: 공공연구기관 Public research institutes | C23: 1979174 | D23: 13013 | E23: 13986 | F23: 152.0920618 | G23: 141.5110825
B24: 대학 Higher educations | C24: 1431421 | D24: 21723 | E24: 50151 | F24: 65.89425954 | G24: 28.54222249
B25: 기업체 Business enterprises | C25: 8511157 | D25: 65474 | E25: 70431 | F25: 129.9929285 | G25: 120.843904
A26: 2000 | B26: 계 Total | C26: =SUM(C27:C29) -> 13848501 | D26: =SUM(D27:D29) -> 108370 | E26: =SUM(E27:E29) -> 159973 | F26: 127.7890652 | G26: 86.56773956
B27: 공공연구기관 Public research institutes | C27: 2031981 | D27: 12801.7 | E27: 13913 | F27: 158.7274346 | G27: 146.0490908
B28: 대학 Higher educations | C28: 1561865 | D28: 23674 | E28: 51727 | F28: 65.97385317 | G28: 30.19438591
B29: 기업체 Business enterprises | C29: 10254655 | D29: 71894.3 | E29: 94333 | F29: 142.6351602 | G29: 108.7069742
A30: 2001 | B30: 계 Total | C30: =SUM(C31:C33) -> 16110521.98 | D30: =SUM(D31:D33) -> 136337.393 | E30: =SUM(E31:E33) -> 178937 | F30: 118.1665692 | G30: 90.03460425
B31: 공공연구기관 Public research institutes | C31: 2160166.079 | D31: 13085.61 | E31: 13921 | F31: 165.0795094 | G31: 155.1731973
B32: 대학 Higher educations | C32: 1676777.181 | D32: 23082.683 | E32: 53717 | F32: 72.64221326 | G32: 31.2150191
B33: 기업체 Business enterprises | C33: 12273578.72 | D33: 100169.1 | E33: 111299 | F33: 122.5285914 | G33: 110.2757322
A34: 2002 | B34: 계 Total | C34: =SUM(C35:C37) -> 17325081.78 | D34: =SUM(D35:D37) -> 141917.23 | E34: =SUM(E35:E37) -> 189888 | F34: 122.0787763 | G34: 91.23842359
B35: 공공연구기관 Public research institutes | C35: 2552631.59 | D35: 12773.97 | E35: 14094 | F35: 199.8307175 | G35: 181.1147715
B36: 대학 Higher educations | C36: 1797096.31 | D36: 24952.59 | E36: 57634 | F36: 72.02043195 | G36: 31.18118316
B37: 기업체 Business enterprises | C37: 12975353.88 | D37: 104190.67 | E37: 118160 | F37: 124.5347005 | G37: 109.8117288
A38: 2003 | B38: 계 Total | C38: =SUM(C39:C41) -> 19068681.99 | D38: =SUM(D39:D41) -> 151254.2614 | E38: =SUM(E39:E41) -> 198171 | F38: 126.0703786 | G38: 96.22337271
B39: 공공연구기관 Public research institutes | C39: 2626355.83 | D39: 13447.225 | E39: 14395 | F39: 195.3083874 | G39: 182.4491719
B40: 대학 Higher educations | C40: 1932662.944 | D40: 26419.2164 | E40: 59746 | F40: 73.15368158 | G40: 32.34798889
B41: 기업체 Business enterprises | C41: 14509663.22 | D41: 111387.82 | E41: 124030 | F41: 130.2625657 | G41: 116.9851102
A42: 2004 | B42: 계 Total | C42: =SUM(C43:C45) -> 22185343 | D42: =SUM(D43:D45) -> 156220 | E42: =SUM(E43:E45) -> 209979 | F42: 142.0134618 | G42: 105.655056
B43: 공공연구기관 Public research institutes | C43: 2964646 | D43: 14848 | E43: 15722 | F43: 199.6663524 | G43: 188.5667218
B44: 대학 Higher educations | C44: 2200886 | D44: 25522 | E44: 59957 | F44: 86.2348562 | G44: 36.70774055
B45: 기업체 Business enterprises | C45: 17019811 | D45: 115850 | E45: 134300 | F45: 146.9124817 | G45: 126.7297915
A46: 2005 | B46: 계 Total | C46: =SUM(C47:C49) -> 24155414 | D46: =SUM(D47:D49) -> 179812.4276 | E46: =SUM(E47:E49) -> 234702 | F46: 134.3367326 | G46: 102.9195064
B47: 공공연구기관 Public research institutes | C47: 3192887 | D47: 14690.31 | E47: 15501 | F47: 217.3464685 | G47: 205.9794207
B48: 대학 Higher educations | C48: 2398284 | D48: 27415.6776 | E48: 64895 | F48: 87.47856008 | G48: 36.95637568
B49: 기업체 Business enterprises | C49: 18564243 | D49: 137706.44 | E49: 154306 | F49: 134.8102747 | G49: 120.307979
A50: 2006 | B50: 계 Total | C50: =SUM(C51:C53) -> 27345704.1 | D50: =SUM(D51:D53) -> 199990.0211 | E50: =SUM(E51:E53) -> 256598 | F50: 136.7353429 | G50: 106.5702153
B51: 공공연구기관 Public research institutes | C51: 3497050.1 | D51: 16097.8 | E51: 16771 | F51: 217.2377654 | G51: 208.5176853
B52: 대학 Higher educations | C52: 2721874 | D52: 28385.9788 | E52: 65923 | F52: 95.8879741 | G52: 41.28868528
B53: 기업체 Business enterprises | C53: 21126780 | D53: 155506.2423 | E53: 173904 | F53: 135.8580832 | G53: 121.4853022
A54: 2007 | B54: 계 Total | C54: =SUM(C55:C57) -> 31301377.26 | D54: =SUM(D55:D57) -> 221928.2309 | E54: =SUM(E55:E57) -> 289098 | F54: 141.0427918 | G54: 108.2725486
B55: 공공연구기관 Public research institutes | C55: 4102365.7 | D55: 18224.41 | E55: 20342 | F55: 225.1027989 | G55: 201.6697326
B56: 대학 Higher educations | C56: 3334118.57 | D56: 37414.7009 | E56: 83123 | F56: 89.11252769 | G56: 40.11066215
B57: 기업체 Business enterprises | C57: 23864892.99 | D57: 166289.12 | E57: 185633 | F57: 143.5144584 | G57: 128.5595395
A58: 2008 | B58: 계 Total | C58: =SUM(C59:C61) -> 34498053.84 | D58: =SUM(D59:D61) -> 236136.871 | E58: =SUM(E59:E61) -> 300050 | F58: 146.0934656 | G58: 114.9743504
B59: 공공연구기관 Public research institutes | C59: 4653235.6 | D59: 18462.22299 | E59: 20950 | F59: 252.0409163 | G59: 222.1114845
B60: 대학 Higher educations | C60: 3844749.4 | D60: 34773.32797 | E60: 82077 | F60: 110.5660466 | G60: 46.8432009
B61: 기업체 Business enterprises | C61: 26000068.84 | D61: 182901.32 | E61: 197023 | F61: 142.1535331 | G61: 131.9646378
A62: 2009 | B62: 계 Total | C62: =SUM(C63:C65) -> 37928502.24 | D62: =SUM(D63:D65) -> 244076.773 | E62: =SUM(E63:E65) -> 323175 | F62: 155.395787 | G62: 117.3621172
B63: 공공연구기관 Public research institutes | C63: 5558383.7 | D63: 21084.236 | E63: 24318 | F63: 263.6274656 | G63: 228.5707583
B64: 대학 Higher educations | C64: 4204259.4 | D64: 38163.0226 | E64: 88554 | F64: 110.1657865 | G64: 47.47678705
B65: 기업체 Business enterprises | C65: 28165859.14 | D65: 184829.5144 | E65: 210303 | F65: 152.3883198 | G65: 133.9298971
A66: 2010 | B66: 계 Total | C66: =SUM(C67:C69) -> 43854834.28 | D66: =SUM(D67:D69) -> 264117.936 | E66: =SUM(E67:E69) -> 345912 | F66: 166.0426208 | G66: 126.7803207
B67: 공공연구기관 Public research institutes | C67: 6306136.03 | D67: 22774.5826 | E67: 26235 | F67: 276.8935941 | G67: 240.3711084
B68: 대학 Higher educations | C68: 4745458.693 | D68: 39264.7499 | E68: 93509 | F68: 120.8579885 | G68: 50.74868401
B69: 기업체 Business enterprises | C69: 32803239.56 | D69: 202078.6035 | E69: 226168 | F69: 162.3291085 | G69: 145.0392609
A70: 2011 | B70: 계 Total | C70: =SUM(C71:C73) -> 49890418.95 | D70: =SUM(D71:D73) -> 288900.9624 | E70: =SUM(E71:E73) -> 375176 | F70: 172.6903868 | G70: 132.9787059
B71: 공공연구기관 Public research institutes | C71: 6673311.11 | D71: 24543.8346 | E71: 28800 | F71: 271.8935822 | G71: 231.7121913
B72: 대학 Higher educations | C72: 5033816.5 | D72: 40843.7979 | E72: 95750 | F72: 123.245554 | G72: 52.57249608
B73: 기업체 Business enterprises | C73: 38183291.34 | D73: 223513.3299 | E73: 250626 | F73: 170.8322781 | G73: 152.3516768
A74: 2012 | B74: 계 Total | C74: =SUM(C75:C77) -> 55450115.65 | D74: =SUM(D75:D77) -> 315589.1929 | E74: =SUM(E75:E77) -> 401724 | F74: 175.703468 | G74: 138.0303782
B75: 공공연구기관 Public research institutes | C75: 6950261.67 | D75: 24722.5896 | E75: 28822 | F75: 281.1300023 | G75: 241.1443227
B76: 대학 Higher educations | C76: 5276928.439 | D76: 43825.7833 | E76: 96916 | F76: 120.4069395 | G76: 54.44847537
B77: 기업체 Business enterprises | C77: 43222925.54 | D77: 247040.82 | E77: 275986 | F77: 174.9626865 | G77: 156.6127468
A78: 2013 | B78: 계 Total | C78: =SUM(C79:C81) -> 59300949.33 | D78: =SUM(D79:D81) -> 321841.8477 | E78: =SUM(E79:E81) -> 410333 | F78: =C78/D78 -> 184.2549369 | G78: =C78/E78 -> 144.5190841
B79: 공공연구기관 Public research institutes | C79: 7260710.547 | D79: 26611.7427 | E79: 31140 | F79: 272.8385972 | G79: 233.1634729
B80: 대학 Higher educations | C80: 5480322.53 | D80: 41783.5011 | E80: 97319 | F80: 131.1599647 | G80: 56.31297619
B81: 기업체 Business enterprises | C81: 46559916.25 | D81: 253446.6039 | E81: 281874 | F81: 183.7070039 | G81: 165.1798898
A82: 2014 | B82: 계 Total | C82: =SUM(C83:C85) -> 63734126.79 | D82: =SUM(D83:D85) -> 345463.4268 | E82: =SUM(E83:E85) -> 437447 | F82: 184.4887819 | G82: 145.6956541
B83: 공공연구기관 Public research institutes | C83: 8112700.933 | D83: 28887.65399 | E83: 33322 | F83: 280.8362678 | G83: 243.4638057
B84: 대학 Higher educations | C84: 5766960.87 | D84: 41938.21564 | E84: 99317 | F84: 137.5108784 | G84: 58.06620085
B85: 기업체 Business enterprises | C85: 49854464.99 | D85: 274637.5572 | E85: 304808 | F85: 181.528213 | G85: 163.5602248
A86: 2015 | B86: 계 Total | C86: =SUM(C87:C89) -> 65959371.73 | D86: =SUM(D87:D89) -> 356447.29 | E86: =SUM(E87:E89) -> 453262 | F86: 185.0466354 | G86: 145.5215123
B87: 공공연구기관 Public research institutes | C87: 8824078.748 | D87: 31444.69684 | E87: 35550 | F87: 280.62216 | G87: 248.2159985
B88: 대학 Higher educations | C88: 5998872.479 | D88: 40866.21758 | E88: 99870 | F88: 146.7929462 | G88: 60.06681165
B89: 기업체 Business enterprises | C89: 51136420.5 | D89: 284136.3756 | E89: 317842 | F89: 179.9713972 | G89: 160.886291
A90: 2016 | B90: 계 Total | C90: =SUM(C91:C93) -> 69405529.89 | D90: =SUM(D91:D93) -> 361291.5335 | E90: =SUM(E91:E93) -> 460769 | F90: 192.1039478 | G90: 150.629773
B91: 공공연구기관 Public research institutes | C91: 9113170.697 | D91: 32663.69847 | E91: 36280 | F91: 278.999964 | G91: 251.189931
B92: 대학 Higher educations | C92: 6339887.929 | D92: 40758.71671 | E92: 103166 | F92: 155.5467993 | G92: 61.4532688
B93: 기업체 Business enterprises | C93: 53952471.26 | D93: 287869.1184 | E93: 321323 | F93: 187.4201428 | G93: 167.907281
A94: 2017 | B94: 계 Total | C94: =SUM(C95:C97) -> 78789187.37 | D94: =SUM(D95:D97) -> 383100.2805 | E94: =SUM(E95:E97) -> 482796 | F94: 205.6620456 | G94: 163.193538
B95: 공공연구기관 Public research institutes | C95: 9543217.4 | D95: 32721.87166 | E95: 36552 | F95: 291.6464407 | G95: 261.0860527
B96: 대학 Higher educations | C96: 6682523.015 | D96: 38812.73328 | E96: 102877 | F96: 172.1734712 | G96: 64.95643356
B97: 기업체 Business enterprises | C97: 62563446.96 | D97: 311565.6756 | E97: 343367 | F97: 200.8033999 | G97: 182.2057651
A98: 2018 | B98: 계 Total | C98: =SUM(C99:C101) -> 85728714.74 | D98: =SUM(D99:D101) -> 408370.4603 | E98: =SUM(E99:E101) -> 514170 | F98: =C98/D98 -> 209.9287855 | G98: 166.7322379
B99: 공공연구기관 Public research institutes | C99: 9843867.4 | D99: 32824.93431 | E99: 37404 | F99: 299.8899345 | G99: 263.1768634
B100: 대학 Higher educations | C100: 7050415.008 | D100: 40735.96095 | E100: 108529 | F100: 173.0759468 | G100: 64.96341999
B101: 기업체 Business enterprises | C101: 68834432.33 | D101: 334809.565 | E101: 368237 | F101: 205.5927892 | G101: =C101/E101 -> 186.9297011
A102: 2019 | B102: 계 Total | C102: =SUM(C103:C105) -> 89047077.12 | D102: =SUM(D103:D105) -> 430690.0064 | E102: =SUM(E103:E105) -> 538136 | F102: 206.754454 | G102: 165.4731836
B103: 공공연구기관 Public research institutes | C103: 10168766 | D103: 34860.99082 | E103: 40069 | F103: 291.6946926 | G103: 253.7813771
B104: 대학 Higher educations | C104: 7371649 | D104: 41447.76561 | E104: 110619 | F104: 177.853954 | G104: 66.63998951
B105: 기업체 Business enterprises | C105: 71506662.12 | D105: 354381.25 | E105: 387448 | F105: 201.7789093 | G105: 184.5580881
A106: 2020 | B106: 계 Total | C106: =SUM(C107:C109) -> 93071686.49 | D106: =SUM(D107:D109) -> 446738.854 | E106: =SUM(E107:E109) -> 558045 | F106: 208.3357775 | G106: =C106/E106 -> 166.7816869
B107: 공공연구기관 Public research institutes | C107: 11118558 | D107: 36285.37094 | E107: 41005 | F107: 306.4198522 | G107: 271.1512742
B108: 대학 Higher educations | C108: 8353350.45 | D108: 44894.65304 | E108: 115924 | F108: 186.0655977 | G108: 72.05885279
B109: 기업체 Business enterprises | C109: 73599778.04 | D109: 365558.83 | E109: 401116 | F109: 201.3349754 | G109: 183.4875149
A110: 2021 | B110: 계 Total | C110: 102135243.5 | D110: 470728.1152 | E110: 586666 | F110: 216.9728985 | G110: 174.094363
B111: 공공연구기관 Public research institutes | C111: 11997001 | D111: 36546.34257 | E111: 42566 | F111: 328.2681702 | G111: 281.8446882
B112: 대학 Higher educations | C112: 9330614.888 | D112: 43772.56266 | E112: 114635 | F112: 213.1612663 | G112: 81.39411949
B113: 기업체 Business enterprises | C113: 80807627.66 | D113: 390409.21 | E113: 429465 | F113: 206.9818682 | G113: 188.1588201
A114: 2022 | B114: 계 Total | C114: 112646008.3 | D114: 488773.7625 | E114: 601530 | F114: =C114/D114 -> 230.4665613 | G114: 187.2658193
B115: 공공연구기관 Public research institutes | C115: 12918586.1 | D115: 37428.51694 | E115: 43406 | F115: 345.1535662 | G115: 297.6221283
B116: 대학 Higher educations | C116: 10306122 | D116: 47423.18554 | E116: 114854 | F116: 217.3224317 | G116: 89.73237327
B117: 기업체 Business enterprises | C117: 89421300.18 | D117: 403922.06 | E117: 443270 | F117: 221.3825612 | G117: 201.7309996
A118: 2023 | B118: 계 Total | C118: 119074025.1 | D118: 490255.9256 | E118: 603566 | F118: 242.8813584 | G118: 197.2841829
B119: 공공연구기관 Public research institutes | C119: 13883702 | D119: 39019.2026 | E119: 45445 | F119: 355.8171637 | G119: 305.5056002
B120: 대학 Higher educations | C120: 10893480 | D120: 49657.205 | E120: 119447 | F120: 219.3736035 | G120: 91.19927667
B121: 기업체 Business enterprises | C121: 94296843.15 | D121: 401579.518 | E121: 438674 | F121: 234.8148721 | G121: 214.9588149
A122: 2024 | B122: 계 Total | C122: 131046204.8 | D122: 503345.868 | E122: 615063 | F122: =C122/D122 -> 260.3502147 | G122: =C122/E122 -> 213.0614341
B123: 공공연구기관 Public research institutes | C123: 13293570 | D123: 40621.1342 | E123: 46738 | F123: 327.2574797 | G123: 284.4274466
B124: 대학 Higher educations | C124: 11053800 | D124: 50734.53655 | E124: 120974 | F124: 217.8752533 | G124: 91.37335295
B125: 기업체 Business enterprises | C125: 106698834.8 | D125: 411990.1973 | E125: 447351 | F125: 258.9839164 | G125: 238.5125658

Sheet 2-7
A1: 2-7) 인구 만명당 연구개발인력 및 연구원
A2: R&D personnel and researchers per 10,000 population
A4: 연도·연구수행주체 Year · Sector of performance | C4: 연구개발수행기관 R&D performing inst. | D4: 연구개발인력(명)(A) R&D personnel(Person) | E4: 연구원(명)(B) Researchers(Person) | G4: 인구(만명)(D) Population (Ten thousand) | H4: A/D(명) (person) | I4: B/D(명) (person) | J4: C/D(명) (person)
F5: 상근상당(C) FTE
A6: 1995 | B6: 계 Total | C6: =SUM(C7:C9) -> 2585 | D6: =SUM(D7:D9) -> 201661 | E6: =SUM(E7:E9) -> 128315 | F6: =SUM(F7:F9) -> 100456 | G6: 4509.3 | H6: =D6/$G6 -> 44.72113188 | I6: =E6/$G6 -> 28.45563613 | J6: =F6/$G6 -> 22.27751536
B7: 공공연구기관 Public research institutes | C7: 178 | D7: 25621 | E7: 15007 | F7: 14363
B8: 대학 Higher educations | C8: 257 | D8: 75702 | E8: 44683 | F8: 19406
B9: 기업체 Business enterprises | C9: 2150 | D9: 100338 | E9: 68625 | F9: 66687
A10: 1996 | B10: 계 Total | C10: =SUM(C11:C13) -> 2856 | D10: =SUM(D11:D13) -> 202347 | E10: =SUM(E11:E13) -> 132023 | F10: =SUM(F11:F13) -> 99433 | G10: 4552.5 | H10: =D10/$G10 -> 44.44744646 | I10: =E10/$G10 -> 29.00010983 | J10: =F10/$G10 -> 21.84140582
B11: 공공연구기관 Public research institutes | C11: 163 | D11: 24203 | E11: 15503 | F11: 13732
B12: 대학 Higher educations | C12: 258 | D12: 77220 | E12: 45327 | F12: 19483
B13: 기업체 Business enterprises | C13: 2435 | D13: 100924 | E13: 71193 | F13: 66218
A14: 1997 | B14: 계 Total | C14: =SUM(C15:C17) -> 2962 | D14: =SUM(D15:D17) -> 212117 | E14: =SUM(E15:E17) -> 138438 | F14: =SUM(F15:F17) -> 102660 | G14: 4595.4 | H14: =D14/$G14 -> 46.15854985 | I14: =E14/$G14 -> 30.12534273 | J14: =F14/$G14 -> 22.33973104
B15: 공공연구기관 Public research institutes | C15: 184 | D15: 23382 | E15: 15185 | F15: 13216
B16: 대학 Higher educations | C16: 271 | D16: 86665 | E16: 48588 | F16: 19573
B17: 기업체 Business enterprises | C17: 2507 | D17: 102070 | E17: 74665 | F17: 69871
A18: 1998 | B18: 계 Total | C18: =SUM(C19:C21) -> 2869 | D18: =SUM(D19:D21) -> 199191 | E18: =SUM(E19:E21) -> 129767 | F18: =SUM(F19:F21) -> 92541 | G18: 4628.7 | H18: =D18/$G18 -> 43.03389721 | I18: =E18/$G18 -> 28.03530149 | J18: =F18/$G18 -> 19.99287057
B19: 공공연구기관 Public research institutes | C19: 183 | D19: 19431 | E19: 12587 | F19: 10952
B20: 대학 Higher educations | C20: 267 | D20: 92591 | E20: 51162 | F20: 21525
B21: 기업체 Business enterprises | C21: 2419 | D21: 87169 | E21: 66018 | F21: 60064
A22: 1999 | B22: 계 Total | C22: =SUM(C23:C25) -> 3059 | D22: =SUM(D23:D25) -> 212510 | E22: =SUM(E23:E25) -> 134568 | F22: =SUM(F23:F25) -> 100210 | G22: 4661.7 | H22: =D22/$G22 -> 45.58637407 | I22: =E22/$G22 -> 28.86672244 | J22: =F22/$G22 -> 21.49644979
B23: 공공연구기관 Public research institutes | C23: 169 | D23: 21020 | E23: 13986 | F23: 13013
B24: 대학 Higher educations | C24: 285 | D24: 98052 | E24: 50151 | F24: 21723
B25: 기업체 Business enterprises | C25: 2605 | D25: 93438 | E25: 70431 | F25: 65474
A26: 2000 | B26: 계 Total | C26: =SUM(C27:C29) -> 4635 | D26: =SUM(D27:D29) -> 237232 | E26: =SUM(E27:E29) -> 159973 | F26: =SUM(F27:F29) -> 108370 | G26: 4700.8 | H26: =D26/$G26 -> 50.46630361 | I26: =E26/$G26 -> 34.031016 | J26: =F26/$G26 -> 23.0535228
B27: 공공연구기관 Public research institutes | C27: 173 | D27: 21563 | E27: 13913 | F27: 12801.7
B28: 대학 Higher educations | C28: 268 | D28: 100643 | E28: 51727 | F28: 23674
B29: 기업체 Business enterprises | C29: 4194 | D29: 115026 | E29: 94333 | F29: 71894.3
A30: 2001 | B30: 계 Total | C30: =SUM(C31:C33) -> 6801 | D30: =SUM(D31:D33) -> 261802 | E30: =SUM(E31:E33) -> 178937 | F30: =SUM(F31:F33) -> 136337.393 | G30: 4737 | H30: =D30/$G30 -> 55.26746886 | I30: =E30/$G30 -> 37.77432974 | J30: =F30/$G30 -> 28.78137914
B31: 공공연구기관 Public research institutes | C31: 188 | D31: 20984 | E31: 13921 | F31: 13085.61
B32: 대학 Higher educations | C32: 276 | D32: 102501 | E32: 53717 | F32: 23082.683
B33: 기업체 Business enterprises | C33: 6337 | D33: 138317 | E33: 111299 | F33: 100169.1
A34: 2002 | B34: 계 Total | C34: =SUM(C35:C37) -> 7210 | D34: =SUM(D35:D37) -> 279806 | E34: =SUM(E35:E37) -> 189888 | F34: =SUM(F35:F37) -> 141917.23 | G34: 4764.5 | H34: =D34/$G34 -> 58.72725365 | I34: =E34/$G34 -> 39.85475916 | J34: =F34/$G34 -> 29.78638472
B35: 공공연구기관 Public research institutes | C35: 163 | D35: 21702 | E35: 14094 | F35: 12773.97
B36: 대학 Higher educations | C36: 304 | D36: 111083 | E36: 57634 | F36: 24952.59
B37: 기업체 Business enterprises | C37: 6743 | D37: 147021 | E37: 118160 | F37: 104190.67
A38: 2003 | B38: 계 Total | C38: =SUM(C39:C41) -> 7127 | D38: =SUM(D39:D41) -> 297059.8 | E38: =SUM(E39:E41) -> 198171 | F38: =SUM(F39:F41) -> 151254.2614 | G38: 4789.2 | H38: =D38/$G38 -> 62.02701913 | I38: =E38/$G38 -> 41.37872714 | J38: =F38/$G38 -> 31.58236478
B39: 공공연구기관 Public research institutes | C39: 169 | D39: 22025 | E39: 14395 | F39: 13447.225
B40: 대학 Higher educations | C40: 310 | D40: 121039 | E40: 59746 | F40: 26419.2164
B41: 기업체 Business enterprises | C41: 6648 | D41: 153995.8 | E41: 124030 | F41: 111387.82
A42: 2004 | B42: 계 Total | C42: =SUM(C43:C45) -> 7254 | D42: =SUM(D43:D45) -> 312314 | E42: =SUM(E43:E45) -> 209979 | F42: =SUM(F43:F45) -> 156220 | G42: 4808.3 | H42: =D42/$G42 -> 64.95310193 | I42: =E42/$G42 -> 43.6701121 | J42: =F42/$G42 -> 32.48965331
B43: 공공연구기관 Public research institutes | C43: 159 | D43: 24057 | E43: 15722 | F43: 14848
B44: 대학 Higher educations | C44: 293 | D44: 121968 | E44: 59957 | F44: 25522
B45: 기업체 Business enterprises | C45: 6802 | D45: 166289 | E45: 134300 | F45: 115850
A46: 2005 | B46: 계 Total | C46: =SUM(C47:C49) -> 7761 | D46: =SUM(D47:D49) -> 335428 | E46: =SUM(E47:E49) -> 234702 | F46: =SUM(F47:F49) -> 179812.4276 | G46: 4818.5 | H46: =D46/$G46 -> 69.61253502 | I46: =E46/$G46 -> 48.70851925 | J46: =F46/$G46 -> 37.31709611
B47: 공공연구기관 Public research institutes | C47: 137 | D47: 22604 | E47: 15501 | F47: 14690.31
B48: 대학 Higher educations | C48: 256 | D48: 125039 | E48: 64895 | F48: 27415.6776
B49: 기업체 Business enterprises | C49: 7368 | D49: 187785 | E49: 154306 | F49: 137706.44
A50: 2006 | B50: 계 Total | C50: =SUM(C51:C53) -> 9443 | D50: =SUM(D51:D53) -> 365794 | E50: =SUM(E51:E53) -> 256598 | F50: =SUM(F51:F53) -> 199990.0211 | G50: 4843.8 | H50: =D50/$G50 -> 75.51798175 | I50: =E50/$G50 -> 52.97452413 | J50: =F50/$G50 -> 41.28783622
B51: 공공연구기관 Public research institutes | C51: 139 | D51: 23874 | E51: 16771 | F51: 16097.8
B52: 대학 Higher educations | C52: 268 | D52: 132042 | E52: 65923 | F52: 28385.9788
B53: 기업체 Business enterprises | C53: 9036 | D53: 209878 | E53: 173904 | F53: 155506.2423
A54: 2007 | B54: 계 Total | C54: =SUM(C55:C57) -> 11200 | D54: =SUM(D55:D57) -> 421549 | E54: =SUM(E55:E57) -> 289098 | F54: =SUM(F55:F57) -> 221928.2309 | G54: 4868.4 | H54: =D54/$G54 -> 86.58881768 | I54: =E54/$G54 -> 59.38254868 | J54: =F54/$G54 -> 45.58545537
B55: 공공연구기관 Public research institutes | C55: 188 | D55: 28877 | E55: 20342 | F55: 18224.41
B56: 대학 Higher educations | C56: 322 | D56: 168547 | E56: 83123 | F56: 37414.7009
B57: 기업체 Business enterprises | C57: 10690 | D57: 224125 | E57: 185633 | F57: 166289.12
A58: 2008 | B58: 계 Total | C58: =SUM(C59:C61) -> 12822 | D58: =SUM(D59:D61) -> 436228 | E58: =SUM(E59:E61) -> 300050 | F58: =SUM(F59:F61) -> 236136.871 | G58: 4905.5 | H58: =D58/$G58 -> 88.92630721 | I58: =E58/$G58 -> 61.16603812 | J58: =F58/$G58 -> 48.13716664
B59: 공공연구기관 Public research institutes | C59: 228 | D59: 30028 | E59: 20950 | F59: 18462.22299
B60: 대학 Higher educations | C60: 338 | D60: 167789 | E60: 82077 | F60: 34773.32797
B61: 기업체 Business enterprises | C61: 12256 | D61: 238411 | E61: 197023 | F61: 182901.32
A62: 2009 | B62: 계 Total | C62: =SUM(C63:C65) -> 15237 | D62: =SUM(D63:D65) -> 466824 | E62: =SUM(E63:E65) -> 323175 | F62: =SUM(F63:F65) -> 244076.773 | G62: 4930.8 | H62: =D62/$G62 -> 94.67510343 | I62: =E62/$G62 -> 65.5421027 | J62: =F62/$G62 -> 49.5004407
B63: 공공연구기관 Public research institutes | C63: 252 | D63: 36686 | E63: 24318 | F63: 21084.236
B64: 대학 Higher educations | C64: 359 | D64: 174575 | E64: 88554 | F64: 38163.0226
B65: 기업체 Business enterprises | C65: 14626 | D65: 255563 | E65: 210303 | F65: 184829.5144
A66: 2010 | B66: 계 Total | C66: =SUM(C67:C69) -> 16550 | D66: =SUM(D67:D69) -> 500124 | E66: =SUM(E67:E69) -> 345912 | F66: =SUM(F67:F69) -> 264117.936 | G66: 4955.4 | H66: =D66/$G66 -> 100.9250515 | I66: =E66/$G66 -> 69.80506115 | J66: =F66/$G66 -> 53.29901441
B67: 공공연구기관 Public research institutes | C67: 261 | D67: 39738 | E67: 26235 | F67: 22774.5826
B68: 대학 Higher educations | C68: 352 | D68: 188211 | E68: 93509 | F68: 39264.7499
B69: 기업체 Business enterprises | C69: 15937 | D69: 272175 | E69: 226168 | F69: 202078.6035
A70: 2011 | B70: 계 Total | C70: =SUM(C71:C73) -> 20372 | D70: =SUM(D71:D73) -> 531131 | E70: =SUM(E71:E73) -> 375176 | F70: =SUM(F71:F73) -> 288900.9624 | G70: 4993.7 | H70: =D70/$G70 -> 106.3602139 | I70: =E70/$G70 -> 75.12986363 | J70: =F70/$G70 -> 57.85308737
B71: 공공연구기관 Public research institutes | C71: 268 | D71: 43457 | E71: 28800 | F71: 24543.8346
B72: 대학 Higher educations | C72: 350 | D72: 186690 | E72: 95750 | F72: 40843.7979
B73: 기업체 Business enterprises | C73: 19754 | D73: 300984 | E73: 250626 | F73: 223513.3299
A74: 2012 | B74: 계 Total | C74: =SUM(C75:C77) -> 23533 | D74: =SUM(D75:D77) -> 562601 | E74: =SUM(E75:E77) -> 401724 | F74: =SUM(F75:F77) -> 315589.1929 | G74: 5020 | H74: =D74/$G74 -> 112.0719124 | I74: =E74/$G74 -> 80.0247012 | J74: =F74/$G74 -> 62.86637309
B75: 공공연구기관 Public research institutes | C75: 272 | D75: 46500 | E75: 28822 | F75: 24722.5896
B76: 대학 Higher educations | C76: 344 | D76: 184281 | E76: 96916 | F76: 43825.7833
B77: 기업체 Business enterprises | C77: 22917 | D77: 331820 | E77: 275986 | F77: 247040.82
A78: 2013 | B78: 계 Total | C78: =SUM(C79:C81) -> 25882 | D78: =SUM(D79:D81) -> 569333 | E78: =SUM(E79:E81) -> 410333 | F78: =SUM(F79:F81) -> 321841.8477 | G78: 5042.9 | H78: =D78/$G78 -> 112.8979357 | I78: =E78/$G78 -> 81.36845862 | J78: =F78/$G78 -> 63.82078719
B79: 공공연구기관 Public research institutes | C79: 326 | D79: 49782 | E79: 31140 | F79: 26611.7427
B80: 대학 Higher educations | C80: 371 | D80: 181284 | E80: 97319 | F80: 41783.5011
B81: 기업체 Business enterprises | C81: 25185 | D81: 338267 | E81: 281874 | F81: 253446.6039
A82: 2014 | B82: 계 Total | C82: =SUM(C83:C85) -> 30111 | D82: =SUM(D83:D85) -> 605604 | E82: =SUM(E83:E85) -> 437447 | F82: =SUM(F83:F85) -> 345463.4268 | G82: 5074.7 | H82: =D82/$G82 -> 119.3378919 | I82: =E82/$G82 -> 86.20154886 | J82: =F82/$G82 -> 68.07563537
B83: 공공연구기관 Public research institutes | C83: 348 | D83: 51849 | E83: 33322 | F83: 28887.65399
B84: 대학 Higher educations | C84: 371 | D84: 187087 | E84: 99317 | F84: 41938.21564
B85: 기업체 Business enterprises | C85: 29392 | D85: 366668 | E85: 304808 | F85: 274637.5572
A86: 2015 | B86: 계 Total | C86: =SUM(C87:C89) -> 35379 | D86: =SUM(D87:D89) -> 619907 | E86: =SUM(E87:E89) -> 453262 | F86: =SUM(F87:F89) -> 356447.29 | G86: 5101.5 | H86: =D86/$G86 -> 121.5146526 | I86: =E86/$G86 -> 88.84876997 | J86: =F86/$G86 -> 69.87107517
B87: 공공연구기관 Public research institutes | C87: 372 | D87: 54178 | E87: 35550 | F87: 31444.69684
B88: 대학 Higher educations | C88: 365 | D88: 185113 | E88: 99870 | F88: 40866.21758
B89: 기업체 Business enterprises | C89: 34642 | D89: 380616 | E89: 317842 | F89: 284136.3756
A90: 2016 | B90: 계 Total | C90: =SUM(C91:C93) -> 37218 | D90: =SUM(D91:D93) -> 624910 | E90: =SUM(E91:E93) -> 460769 | F90: =SUM(F91:F93) -> 361291.5335 | G90: 5121.8 | H90: =D90/$G90 -> 122.0098403 | I90: =E90/$G90 -> 89.96231794 | J90: =F90/$G90 -> 70.53995344
B91: 공공연구기관 Public research institutes | C91: 372 | D91: 55157 | E91: 36280 | F91: 32663.69847
B92: 대학 Higher educations | C92: 368 | D92: 185737 | E92: 103166 | F92: 40758.71671
B93: 기업체 Business enterprises | C93: 36478 | D93: 384016 | E93: 321323 | F93: 287869.1184
A94: 2017 | B94: 계 Total | C94: =SUM(C95:C97) -> 42368 | D94: =SUM(D95:D97) -> 650243 | E94: =SUM(E95:E97) -> 482796 | F94: =SUM(F95:F97) -> 383100.2805 | G94: 5136.2 | H94: =D94/$G94 -> 126.6000156 | I94: =E94/$G94 -> 93.99867606 | J94: =F94/$G94 -> 74.58827159
B95: 공공연구기관 Public research institutes | C95: 375 | D95: 55816 | E95: 36552 | F95: 32721.87166 | I95: `
B96: 대학 Higher educations | C96: 364 | D96: 185660 | E96: 102877 | F96: 38812.73328
B97: 기업체 Business enterprises | C97: 41629 | D97: 408767 | E97: 343367 | F97: 311565.6756
A98: 2018 | B98: 계 Total | C98: =SUM(C99:C101) -> 49302 | D98: =SUM(D99:D101) -> 691060 | E98: =SUM(E99:E101) -> 514170 | F98: =SUM(F99:F101) -> 408370.4603 | G98: 5158.5 | H98: =D98/$G98 -> 133.9653 | I98: =E98/$G98 -> 99.67432393 | J98: =F98/$G98 -> 79.16457502
B99: 공공연구기관 Public research institutes | C99: 401 | D99: 58386 | E99: 37404 | F99: 32824.93431
B100: 대학 Higher educations | C100: 365 | D100: 192448 | E100: 108529 | F100: 40735.96095
B101: 기업체 Business enterprises | C101: 48536 | D101: 440226 | E101: 368237 | F101: 334809.565
A102: 2019 | B102: 계 Total | C102: =SUM(C103:C105) -> 53005 | D102: =SUM(D103:D105) -> 718759 | E102: =SUM(E103:E105) -> 538136 | F102: =SUM(F103:F105) -> 430690.0064 | G102: 5176.5 | H102: =D102/$G102 -> 138.8503815 | I102: =E102/$G102 -> 103.9575002 | J102: =F102/$G102 -> 83.20100578
B103: 공공연구기관 Public research institutes | C103: 419 | D103: 62412 | E103: 40069 | F103: 34860.99082
B104: 대학 Higher educations | C104: 368 | D104: 194136 | E104: 110619 | F104: 41447.76561
B105: 기업체 Business enterprises | C105: 52218 | D105: 462211 | E105: 387448 | F105: 354381.25
A106: 2020 | B106: 계 Total | C106: =SUM(C107:C109) -> 56223 | D106: =SUM(D107:D109) -> 747288 | E106: =SUM(E107:E109) -> 558045 | F106: =SUM(F107:F109) -> 446738.854 | G106: 5183.6 | H106: =D106/$G106 -> 144.1639015 | I106: =E106/$G106 -> 107.6558762 | J106: =F106/$G106 -> 86.18312639
B107: 공공연구기관 Public research institutes | C107: 415 | D107: 64134 | E107: 41005 | F107: 36285.37094
B108: 대학 Higher educations | C108: 363 | D108: 207025 | E108: 115924 | F108: 44894.65304
B109: 기업체 Business enterprises | C109: 55445 | D109: 476129 | E109: 401116 | F109: 365558.83
A110: 2021 | B110: 계 Total | C110: 59576 | D110: 785594 | E110: 586666 | F110: 470728.1152 | G110: 5174.5 | H110: =D110/$G110 -> 151.8202725 | I110: =E110/$G110 -> 113.3763649 | J110: =F110/$G110 -> 90.97074408
B111: 공공연구기관 Public research institutes | C111: 433 | D111: 66560 | E111: 42566 | F111: 36546.34257
B112: 대학 Higher educations | C112: 366 | D112: 210163 | E112: 114635 | F112: 43772.56266
B113: 기업체 Business enterprises | C113: 58777 | D113: 508871 | E113: 429465 | F113: 390409.21
A114: 2022 | B114: 계 Total | C114: 61646 | D114: 813763 | E114: 601530 | F114: 488773.7625 | G114: =51628/10 -> 5162.8 | H114: =D114/$G114 -> 157.6204773 | I114: =E114/$G114 -> 116.5123576 | J114: =F114/$G114 -> 94.67222486
B115: 공공연구기관 Public research institutes | C115: 458 | D115: 68501 | E115: 43406 | F115: 37428.51694
B116: 대학 Higher educations | C116: 361 | D116: 222280 | E116: 114854 | F116: 47423.18554
B117: 기업체 Business enterprises | C117: 60827 | D117: 522982 | E117: 443270 | F117: 403922.06
A118: 2023 | B118: 계 Total | C118: 58200 | D118: 827963 | E118: 603566 | F118: 490255.9256 | G118: =51689/10 -> 5168.9 | H118: =D118/$G118 -> 160.1816634 | I118: =E118/$G118 -> 116.7687516 | J118: =F118/$G118 -> 94.84724517
B119: 공공연구기관 Public research institutes | C119: 477 | D119: 71135 | E119: 45445 | F119: 39019.2026
B120: 대학 Higher educations | C120: 379 | D120: 233804 | E120: 119447 | F120: 49657.205
B121: 기업체 Business enterprises | C121: 57344 | D121: 523024 | E121: 438674 | F121: 401579.518
A122: 2024 | B122: 계 Total | C122: 58825 | D122: 839582 | E122: 615063 | F122: 503345.868 | G122: =51604.1/10 -> 5160.41 | H122: =D122/$G122 -> 162.6967625 | I122: =E122/$G122 -> 119.1887854 | J122: =F122/$G122 -> 97.53989858
B123: 공공연구기관 Public research institutes | C123: 504 | D123: 72769 | E123: 46738 | F123: 40621.1342
B124: 대학 Higher educations | C124: 385 | D124: 233795 | E124: 120974 | F124: 50734.53655
B125: 기업체 Business enterprises | C125: 57936 | D125: 533018 | E125: 447351 | F125: 411990.1973
A127: 자료 : 인구(OECD, Main Science and Technology Indicators Sept, 2025)
D137: `

Sheet 2-8
A1: 2-8) 전공별·학위별 연구원
A2: Researchers by major field of study and degree
A4: 전공·학위 Major field of study · Degree | C4: 이학 Natural sciences | H4: 공학 Engineering & technology | M4: 농업과학 Agricultural sciences | R4: 의·약·보건학 Medical & health sciences
C5: 계 Total | D5: 박사 Doctoral | E5: 석사 Master's | F5: 학사 Bachelor's | G5: 기타 Others | H5: 계 Total | I5: 박사 Doctoral | J5: 석사 Master's | K5: 학사 Bachelor's | L5: 기타 Others | M5: 계 Total | N5: 박사 Doctoral | O5: 석사 Master's | P5: 학사 Bachelor's | Q5: 기타 Others | R5: 계 Total | S5: 박사 Doctoral | T5: 석사 Master's | U5: 학사 Bachelor's | V5: 기타 Others
A6: 연구원(명) Researchers(Person) | B6: 1995 | C6: =SUM(D6:G6) -> 23383 | D6: 8707 | E6: 8479 | F6: 5954 | G6: 243 | H6: =SUM(I6:L6) -> 78936 | I6: 14748 | J6: 26875 | K6: 34631 | L6: 2682 | M6: =SUM(N6:Q6) -> 6705 | N6: 3186 | O6: 2054 | P6: 1361 | Q6: 104 | R6: =SUM(S6:V6) -> 10343 | S6: 5991 | T6: 3436 | U6: 804 | V6: 112
B7: 1996 | C7: 23483 | D7: 8688 | E7: 8958 | F7: 5455 | G7: 382 | H7: 84358 | I7: 15732 | J7: 29411 | K7: 35832 | L7: 3383 | M7: 6855 | N7: 3175 | O7: 2315 | P7: 1279 | Q7: 86 | R7: 11854 | S7: 6999 | T7: 4031 | U7: 781 | V7: 43
B8: 1997 | C8: 24539 | D8: 9170 | E8: 9587 | F8: 5511 | G8: 271 | H8: 88433 | I8: 16727 | J8: 31427 | K8: 36635 | L8: 3644 | M8: 6407 | N8: 3048 | O8: 2201 | P8: 1084 | Q8: 74 | R8: 12489 | S8: 7649 | T8: 3931 | U8: 871 | V8: 38
B9: 1998 | C9: 21548 | D9: 8449 | E9: 7947 | F9: 4858 | G9: 294 | H9: 81748 | I9: 17846 | J9: 28078 | K9: 32241 | L9: 3583 | M9: 5553 | N9: 2590 | O9: 2064 | P9: 861 | Q9: 38 | R9: 10548 | S9: 6910 | T9: 2947 | U9: 651 | V9: 40
B10: 1999 | C10: 22679 | D10: 10149 | E10: 7494 | F10: 4729 | G10: 307 | H10: 88239 | I10: 21333 | J10: 29339 | K10: 32774 | L10: 4793 | M10: 6790 | N10: 3099 | O10: 2753 | P10: 817 | Q10: 121 | R10: 11538 | S10: 6780 | T10: 3885 | U10: 732 | V10: 141
B11: 2000 | C11: 27040 | D11: 9663 | E11: 9557 | F11: 7174 | G11: 646 | H11: 109060 | I11: 22825 | J11: 34432 | K11: 44612 | L11: 7191 | M11: 7264 | N11: 3529 | O11: 2555 | P11: 1002 | Q11: 178 | R11: 12255 | S11: 7857 | T11: 3404 | U11: 867 | V11: 127
B12: 2001 | C12: 30088 | D12: 10139 | E12: 11116 | F12: 8264 | G12: 569 | H12: 118949 | I12: 22796 | J12: 37839 | K12: 51359 | L12: 6955 | M12: 6080 | N12: 3031 | O12: 2079 | P12: 834 | Q12: 136 | R12: 12487 | S12: 7067 | T12: 4546 | U12: 733 | V12: 141
B13: 2002 | C13: =SUM(D13:G13) -> 32778 | D13: 10845 | E13: 11705 | F13: 9638 | G13: 590 | H13: =SUM(I13:L13) -> 128930 | I13: 24640 | J13: 42987 | K13: 54323 | L13: 6980 | M13: =SUM(N13:Q13) -> 6040 | N13: 3010 | O13: 2240 | P13: 727 | Q13: 63 | R13: =SUM(S13:V13) -> 13096 | S13: 7642 | T13: 4677 | U13: 662 | V13: 115
B14: 2003 | C14: =SUM(D14:G14) -> 29242 | D14: 10549 | E14: 11120 | F14: 7242 | G14: 331 | H14: =SUM(I14:L14) -> 139457 | I14: 26763 | J14: 47148 | K14: 58807 | L14: 6739 | M14: =SUM(N14:Q14) -> 6247 | N14: 3437 | O14: 2070 | P14: 691 | Q14: 49 | R14: =SUM(S14:V14) -> 14080 | S14: 8367 | T14: 4989 | U14: 659 | V14: 65
B15: 2004 | C15: 30965 | D15: 11531 | E15: 11088 | F15: 7917 | G15: 429 | H15: 150628 | I15: 29813 | J15: 49179 | K15: 65919 | L15: 5717 | M15: 6219 | N15: 3555 | O15: 1941 | P15: 657 | Q15: 66 | R15: 14451 | S15: 9116 | T15: 4425 | U15: 639 | V15: 271
B16: 2005 | C16: 33248 | D16: 11619 | E16: 12635 | F16: 8442 | G16: 552 | H16: 169145 | I16: 30636 | J16: 55619 | K16: 74596 | L16: 8294 | M16: 6813 | N16: 3641 | O16: 2201 | P16: 841 | Q16: 130 | R16: 15143 | S16: 9038 | T16: 5197 | U16: 729 | V16: 179
B17: 2006 | C17: 35239 | D17: 11715 | E17: 13306 | F17: 9504 | G17: 714 | H17: 184897 | I17: 31784 | J17: 58663 | K17: 85307 | L17: 9143 | M17: 7132 | N17: 3803 | O17: 2349 | P17: 801 | Q17: 179 | R17: 17391 | S17: 9848 | T17: 5911 | U17: 1382 | V17: 250
B18: 2007 | C18: 35443 | D18: 11196 | E18: 13699 | F18: 9865 | G18: 683 | H18: 195841 | I18: 30904 | J18: 61999 | K18: 92434 | L18: 10504 | M18: 7326 | N18: 3739 | O18: 2434 | P18: 980 | Q18: 173 | R18: 16576 | S18: 9393 | T18: 5460 | U18: 1386 | V18: 337
B19: 2008 | C19: 35760 | D19: 10905 | E19: 13526 | F19: 10522 | G19: 807 | H19: 205478 | I19: 31400 | J19: 64006 | K19: 98701 | L19: 11371 | M19: 6853 | N19: 3503 | O19: 2245 | P19: 1009 | Q19: 96 | R19: 17247 | S19: 9104 | T19: 5655 | U19: 1895 | V19: 593
B20: 2009 | C20: 41687 | D20: 12210 | E20: 16113 | F20: 12121 | G20: 1243 | H20: 217911 | I20: 31990 | J20: 68321 | K20: 104986 | L20: 12614 | M20: 8713 | N20: 4193 | O20: 2982 | P20: 1363 | Q20: 175 | R20: 17227 | S20: 9031 | T20: 5902 | U20: 1582 | V20: 712
B21: 2010 | C21: 46023 | D21: 13337 | E21: 18019 | F21: 13536 | G21: 1131 | H21: 231913 | I21: 33780 | J21: 71273 | K21: 113385 | L21: 13475 | M21: 9202 | N21: 4248 | O21: 3210 | P21: 1559 | Q21: 185 | R21: 18926 | S21: 10021 | T21: 6108 | U21: 2515 | V21: 282
B22: 2011 | C22: =SUM(D22:G22) -> 48544 | D22: 13532 | E22: 19005 | F22: 14636 | G22: 1371 | H22: =SUM(I22:L22) -> 253445 | I22: 35728 | J22: 75360 | K22: 127008 | L22: 15349 | M22: =SUM(N22:Q22) -> 9841 | N22: 4435 | O22: 3334 | P22: 1814 | Q22: 258 | R22: =SUM(S22:V22) -> 20473 | S22: 10663 | T22: 7010 | U22: 2206 | V22: 594
B23: 2012 | C23: =SUM(D23:G23) -> 53654 | D23: 14573 | E23: 20668 | F23: 16716 | G23: 1697 | H23: =SUM(I23:L23) -> 273839 | I23: 37793 | J23: 80950 | K23: 137938 | L23: 17158 | M23: =SUM(N23:Q23) -> 9912 | N23: 4329 | O23: 3356 | P23: 1978 | Q23: 249 | R23: =SUM(S23:V23) -> 19945 | S23: 9836 | T23: 7004 | U23: 2603 | V23: 502
B24: 2013 | C24: 51494 | D24: 14245 | E24: 19142 | F24: 16332 | G24: 1775 | H24: 279388 | I24: 38287 | J24: 81780 | K24: 141846 | L24: 17475 | M24: 10102 | N24: 4383 | O24: 3468 | P24: 1984 | Q24: 267 | R24: 23292 | S24: 10619 | T24: 7735 | U24: 4434 | V24: 504
B25: 2014 | C25: 54772 | D25: 14621 | E25: 20595 | F25: 17817 | G25: 1739 | H25: 298436 | I25: 39333 | J25: 85908 | K25: 153951 | L25: 19244 | M25: 10662 | N25: 4729 | O25: 3775 | P25: 1959 | Q25: 199 | R25: 23522 | S25: 10961 | T25: 7301 | U25: 4137 | V25: 1123
B26: 2015 | C26: 57976 | D26: 16599 | E26: 21265 | F26: 18276 | G26: 1836 | H26: 308230 | I26: 42168 | J26: 86006 | K26: 159455 | L26: 20601 | M26: 11045 | N26: 5053 | O26: 3720 | P26: 2059 | Q26: 213 | R26: 24066 | S26: 12136 | T26: 7085 | U26: 4404 | V26: 441
B27: 2016 | C27: 56710 | D27: 16410 | E27: 20775 | F27: 17668 | G27: 1857 | H27: 312987 | I27: 43123 | J27: 88114 | K27: 160356 | L27: 21394 | M27: 11378 | N27: 5061 | O27: 3991 | P27: 2098 | Q27: 228 | R27: 26347 | S27: 13181 | T27: 8225 | U27: 4172 | V27: 769
B28: 2017 | C28: 67736 | D28: 17976 | E28: 22587 | F28: 24296 | G28: 2877 | H28: 322952 | I28: 45445 | J28: 91783 | K28: 166088 | L28: 19636 | M28: 10423 | N28: 4795 | O28: 3453 | P28: 1965 | Q28: 210 | R28: 27911 | S28: 14123 | T28: 8112 | U28: 4882 | V28: 794
B29: 2018 | C29: 72884 | D29: 18299 | E29: 23670 | F29: 27424 | G29: 3491 | H29: 344916 | I29: 46530 | J29: 96063 | K29: 180386 | L29: 21937 | M29: 10991 | N29: 4754 | O29: 3826 | P29: 2147 | Q29: 264 | R29: 29774 | S29: 14683 | T29: 8952 | U29: 5250 | V29: 889
B30: 2019 | C30: =SUM(D30:G30) -> 86248 | D30: 19586 | E30: 27263 | F30: 35824 | G30: 3575 | H30: =SUM(I30:L30) -> 350000 | I30: 48859 | J30: 96415 | K30: 183156 | L30: 21570 | M30: =SUM(N30:Q30) -> 11051 | N30: 4928 | O30: 3537 | P30: 2314 | Q30: 272 | R30: =SUM(S30:V30) -> 31848 | S30: 15846 | T30: 9913 | U30: 5152 | V30: 937
B31: 2020 | C31: 81152 | D31: 20200 | E31: 26386 | F31: 30315 | G31: 4251 | H31: 371068 | I31: 52138 | J31: 100893 | K31: 196013 | L31: 22024 | M31: 10853 | N31: 4816 | O31: 3409 | P31: 2335 | Q31: 293 | R31: 33262 | S31: 16837 | T31: 10335 | U31: 4925 | V31: 1165
B32: 2021 | C32: 88727 | D32: 21581 | E32: 28296 | F32: 34363 | G32: 4487 | H32: 386778 | I32: 54230 | J32: 104605 | K32: 205757 | L32: 22186 | M32: 11361 | N32: 4681 | O32: 3858 | P32: 2504 | Q32: 318 | R32: 35396 | S32: 17793 | T32: 10369 | U32: 6060 | V32: 1174
B33: 2022 | C33: 93889 | D33: 22853 | E33: 30175 | F33: 36350 | G33: 4511 | H33: 394529 | I33: 56673 | J33: 105503 | K33: 210598 | L33: 21755 | M33: 11388 | N33: 4620 | O33: 4065 | P33: 2418 | Q33: 285 | R33: 36765 | S33: 17985 | T33: 11016 | U33: 6651 | V33: 1113
B34: 2023 | C34: 98575 | D34: 24585 | E34: 32828 | F34: 36937 | G34: 4225 | H34: 392674 | I34: 58204 | J34: 106474 | K34: 207882 | L34: 20114 | M34: 11062 | N34: 4505 | O34: 4007 | P34: 2291 | Q34: 259 | R34: 36938 | S34: 18736 | T34: 11133 | U34: 6251 | V34: 818
B35: 2024 | C35: 93799 | D35: 24267 | E35: 31303 | F35: 34280 | G35: 3949 | H35: 408116 | I35: 59901 | J35: 112693 | K35: 215809 | L35: 19713 | M35: 11057 | N35: 4527 | O35: 4013 | P35: 2291 | Q35: 226 | R35: 37607 | S35: 19326 | T35: 10992 | U35: 6544 | V35: 745
A36: 전년대비 증가율(%) Percent change from previous year | B36: 1996 | C36: =(C7/C6-1)*100 -> 0.4276611213 | D36: -0.2182152291 | E36: 5.649251091 | F36: -8.38092039 | G36: 57.20164609 | H36: 6.868855782 | I36: 6.672091131 | J36: 9.43627907 | K36: 3.467991106 | L36: 26.13721104 | M36: 2.237136465 | N36: -0.3452605148 | O36: 12.70691334 | P36: -6.024981631 | Q36: -17.30769231 | R36: 14.60891424 | S36: 16.82523786 | T36: 17.31664726 | U36: -2.860696517 | V36: -61.60714286
B37: 1997 | C37: =(C8/C7-1)*100 -> 4.496870076 | D37: 5.547882136 | E37: 7.02165662 | F37: 1.026581118 | G37: -29.05759162 | H37: 4.830602907 | I37: 6.324688533 | J37: 6.854578219 | K37: 2.241013619 | L37: 7.715045817 | M37: -6.535375638 | N37: -4 | O37: -4.924406048 | P37: -15.24628616 | Q37: -13.95348837 | R37: 5.356841572 | S37: 9.287041006 | T37: -2.480774001 | U37: 11.52368758 | V37: -11.62790698
B38: 1998 | C38: =(C9/C8-1)*100 -> -12.18876075 | D38: -7.86259542 | E38: -17.10649838 | F38: -11.84902921 | G38: 8.487084871 | H38: -7.559395248 | I38: 6.689782986 | J38: -10.65644191 | K38: -11.99399481 | L38: -1.673984632 | M38: -13.32917122 | N38: -15.02624672 | O38: -6.224443435 | P38: -20.57195572 | Q38: -48.64864865 | R38: -15.54167668 | S38: -9.661393646 | T38: -25.03179852 | U38: -25.25832377 | V38: 5.263157895
B39: 1999 | C39: =(C10/C9-1)*100 -> 5.248746983 | D39: 20.12072435 | E39: -5.700264251 | F39: -2.655413751 | G39: 4.421768707 | H39: 7.940255419 | I39: 19.53939258 | J39: 4.491060617 | K39: 1.653174529 | L39: 33.77058331 | M39: 22.27624707 | N39: 19.65250965 | O39: 33.38178295 | P39: -5.110336818 | Q39: 218.4210526 | R39: 9.385665529 | S39: -1.881331404 | T39: 31.82897862 | U39: 12.44239631 | V39: 252.5
B40: 2000 | C40: =(C11/C10-1)*100 -> 19.22924291 | D40: -4.788649128 | E40: 27.52868962 | F40: 51.70226263 | G40: 110.4234528 | H40: 23.5961423 | I40: 6.993859279 | J40: 17.35914653 | K40: 36.1200952 | L40: 50.03129564 | M40: 6.980854197 | N40: 13.87544369 | O40: -7.192154014 | P40: 22.64381885 | Q40: 47.10743802 | R40: 6.21424857 | S40: 15.88495575 | T40: -12.38095238 | U40: 18.44262295 | V40: -9.929078014
B41: 2001 | C41: =(C12/C11-1)*100 -> 11.27218935 | D41: 4.926006416 | E41: 16.31265041 | F41: 15.19375523 | G41: -11.91950464 | H41: 9.067485788 | I41: -0.1270536692 | J41: 9.894865242 | K41: 15.12373352 | L41: -3.281880128 | M41: -16.29955947 | N41: -14.11164636 | O41: -18.63013699 | P41: -16.76646707 | Q41: -23.59550562 | R41: 1.893104855 | S41: -10.05472827 | T41: 33.54876616 | U41: -15.455594 | V41: 11.02362205
B42: 2002 | C42: =(C13/C12-1)*100 -> 8.940441372 | D42: 6.963211362 | E42: 5.298668586 | F42: 16.62633107 | G42: 3.690685413 | H42: 8.390991097 | I42: 8.089138445 | J42: 13.6050107 | K42: 5.771140404 | L42: 0.3594536305 | M42: -0.6578947368 | N42: -0.6928406467 | O42: 7.744107744 | P42: -12.82973621 | Q42: -53.67647059 | R42: 4.877072155 | S42: 8.13640866 | T42: 2.881654201 | U42: -9.68622101 | V42: -18.43971631
B43: 2003 | C43: =(C14/C13-1)*100 -> -10.78772347 | D43: -2.729368373 | E43: -4.997864161 | F43: -24.85992945 | G43: -43.89830508 | H43: 8.16489568 | I43: 8.616071429 | J43: 9.679670598 | K43: 8.254330578 | L43: -3.452722063 | M43: 3.427152318 | N43: 14.18604651 | O43: -7.589285714 | P43: -4.951856946 | Q43: -22.22222222 | R43: 7.513744655 | S43: 9.487045276 | T43: 6.670942912 | U43: -0.4531722054 | V43: -43.47826087
B44: 2004 | C44: =(C15/C14-1)*100 -> 5.892209835 | D44: 9.308939236 | E44: -0.2877697842 | F44: 9.32062966 | G44: 29.60725076 | H44: 8.010354446 | I44: 11.39633076 | J44: 4.307711886 | K44: 12.09379836 | L44: -15.16545482 | M44: -0.4482151433 | N44: 3.433226651 | O44: -6.231884058 | P44: -4.92040521 | Q44: 34.69387755 | R44: 2.634943182 | S44: 8.951834588 | T44: -11.30487072 | U44: -3.034901366 | V44: 316.9230769
B45: 2005 | C45: =(C16/C15-1)*100 -> 7.372840304 | D45: 0.7631601769 | E45: 13.9520202 | F45: 6.631299735 | G45: 28.67132867 | H45: 12.29319914 | I45: 2.760540704 | J45: 13.09502023 | K45: 13.16312444 | L45: 45.07608886 | M45: 9.551374819 | N45: 2.419127989 | O45: 13.39515714 | P45: 28.00608828 | Q45: 96.96969697 | R45: 4.788595945 | S45: -0.8556384379 | T45: 17.44632768 | U45: 14.08450704 | V45: -33.94833948
B46: 2006 | C46: =(C17/C16-1)*100 -> 5.988330125 | D46: 0.8262328944 | E46: 5.310645034 | F46: 12.57995736 | G46: 29.34782609 | H46: 9.312719856 | I46: 3.747225486 | J46: 5.472949891 | K46: 14.35867875 | L46: 10.23631541 | M46: 4.682225158 | N46: 4.449327108 | O46: 6.724216265 | P46: -4.756242568 | Q46: 37.69230769 | R46: 14.84514297 | S46: 8.96215977 | T46: 13.7386954 | U46: 89.57475995 | V46: 39.66480447
B47: 2007 | C47: =(C18/C17-1)*100 -> 0.5789040552 | D47: -4.43021767 | E47: 2.953554787 | F47: 3.798400673 | G47: -4.341736695 | H47: 5.918971103 | I47: -2.768688648 | J47: 5.686719056 | K47: 8.354531281 | L47: 14.88570491 | M47: 2.720134605 | N47: -1.682881935 | O47: 3.61856109 | P47: 22.34706617 | Q47: -3.351955307 | R47: -4.686332011 | S47: -4.620227457 | T47: -7.629842666 | U47: 0.2894356006 | V47: 34.8
B48: 2008 | C48: =(C19/C18-1)*100 -> 0.8943938154 | D48: -2.599142551 | E48: -1.262865903 | F48: 6.659908768 | G48: 18.15519766 | H48: 4.920828631 | I48: 1.60497023 | J48: 3.237148986 | K48: 6.779972737 | L48: 8.253998477 | M48: -6.456456456 | N48: -6.311848088 | O48: -7.764995892 | P48: 2.959183673 | Q48: -44.50867052 | R48: 4.048021236 | S48: -3.076759289 | T48: 3.571428571 | U48: 36.72438672 | V48: 75.96439169
B49: 2009 | C49: =(C20/C19-1)*100 -> 16.57438479 | D49: 11.96698762 | E49: 19.12612746 | F49: 15.19673066 | G49: 54.02726146 | H49: 6.050769425 | I49: 1.878980892 | J49: 6.741555479 | K49: 6.367716639 | L49: 10.93131651 | M49: 27.14139793 | N49: 19.69740223 | O49: 32.8285078 | P49: 35.08424182 | Q49: 82.29166667 | R49: -0.1159621963 | S49: -0.8018453427 | T49: 4.367816092 | U49: -16.5171504 | V49: 20.06745363
B50: 2010 | C50: =(C21/C20-1)*100 -> 10.40132415 | D50: 9.23013923 | E50: 11.82895798 | F50: 11.67395429 | G50: -9.010458568 | H50: 6.425559059 | I50: 5.595498593 | J50: 4.320779848 | K50: 8.000114301 | L50: 6.825749168 | M50: 5.612303455 | N50: 1.311709993 | O50: 7.645875252 | P50: 14.38004402 | Q50: 5.714285714 | R50: 9.862425263 | S50: 10.96224117 | T50: 3.490342257 | U50: 58.97597977 | V50: -60.39325843
B51: 2011 | C51: =(C22/C21-1)*100 -> 5.477695935 | D51: 1.462097923 | E51: 5.472001776 | F51: 8.126477541 | G51: 21.22015915 | H51: 9.284516176 | I51: 5.766725873 | J51: 5.734289282 | K51: 12.01481677 | L51: 13.90723562 | M51: 6.944142578 | N51: 4.402071563 | O51: 3.862928349 | P51: 16.35663887 | Q51: 39.45945946 | R51: 8.173940611 | S51: 6.406546253 | T51: 14.76751801 | U51: -12.28628231 | V51: 110.6382979
B52: 2012 | C52: =(C23/C22-1)*100 -> 10.52653263 | D52: 7.692876145 | E52: 8.750328861 | F52: 14.21153321 | G52: 23.77826404 | H52: 8.04671625 | I52: 5.779780564 | J52: 7.417728238 | K52: 8.605757118 | L52: 11.78578409 | M52: 0.7214713952 | N52: -2.390078918 | O52: 0.6598680264 | P52: 9.040793826 | Q52: -3.488372093 | R52: -2.579006496 | S52: -7.755791053 | T52: -0.08559201141 | U52: 17.99637353 | V52: -15.48821549
B53: 2013 | C53: =(C24/C23-1)*100 -> -4.025794908 | D53: -2.250737666 | E53: -7.38339462 | F53: -2.297200287 | G53: 4.596346494 | H53: 2.026373161 | I53: 1.307120366 | J53: 1.025324274 | K53: 2.833156926 | L53: 1.847534678 | M53: 1.916868442 | N53: 1.247401247 | O53: 3.337306317 | P53: 0.3033367037 | Q53: 7.228915663 | R53: 16.78114816 | S53: 7.96055307 | T53: 10.4368932 | U53: 70.34191318 | V53: 0.3984063745
B54: 2014 | C54: =(C25/C24-1)*100 -> 6.365790189 | D54: 2.63952264 | E54: 7.590638387 | F54: 9.092578986 | G54: -2.028169014 | H54: 6.817758816 | I54: 2.731997806 | J54: 5.047688921 | K54: 8.533902965 | L54: 10.1230329 | M54: 5.543456741 | N54: 7.894136436 | O54: 8.852364475 | P54: -1.260080645 | Q54: -25.46816479 | R54: 0.9874635068 | S54: 3.220642245 | T54: -5.610859729 | U54: -6.698240866 | V54: 122.8174603
B55: 2015 | C55: =(C26/C25-1)*100 -> 5.849704228 | D55: 13.52848642 | E55: 3.2532168 | F55: 2.576191278 | G55: 5.577918344 | H55: 3.281775657 | I55: 7.207688201 | J55: 0.1140755227 | K55: 3.575163526 | L55: 7.051548535 | M55: 3.592196586 | N55: 6.851342779 | O55: -1.456953642 | P55: 5.104645227 | Q55: 7.035175879 | R55: 2.312728509 | S55: 10.71982483 | T55: -2.958498836 | U55: 6.453952139 | V55: -60.730187
B56: 2016 | C56: =(C27/C26-1)*100 -> -2.183662205 | D56: -1.138622809 | E56: -2.304255819 | F56: -3.326767345 | G56: 1.14379085 | H56: 1.543328034 | I56: 2.264750522 | J56: 2.450991791 | K56: 0.5650497005 | L56: 3.849327703 | M56: 3.014938886 | N56: 0.158321789 | O56: 7.284946237 | P56: 1.894123361 | Q56: 7.042253521 | R56: 9.478101886 | S56: 8.610744891 | T56: 16.09033169 | U56: -5.267938238 | V56: 74.37641723
B57: 2017 | C57: =(C28/C27-1)*100 -> 19.44277905 | D57: 9.542961609 | E57: 8.722021661 | F57: 37.51414988 | G57: 54.9273021 | H57: 3.183838306 | I57: 5.384597547 | J57: 4.163924008 | K57: 3.574546634 | L57: -8.217257175 | M57: -8.393390754 | N57: -5.255878285 | O57: -13.48033074 | P57: -6.339370829 | Q57: -7.894736842 | R57: 5.936159715 | S57: 7.146650482 | T57: -1.373860182 | U57: 17.01821668 | V57: 3.250975293
B58: 2018 | C58: =(C29/C28-1)*100 -> 7.600094484 | D58: 1.796840231 | E58: 4.794793465 | F58: 12.87454725 | G58: 21.34167536 | H58: 6.801010677 | I58: 2.387501375 | J58: 4.663172919 | K58: 8.608689369 | L58: 11.71827256 | M58: 5.449486712 | N58: -0.8550573514 | O58: 10.80220098 | P58: 9.262086514 | Q58: 25.71428571 | R58: 6.674787718 | S58: 3.965163209 | T58: 10.35502959 | U58: 7.537894306 | V58: 11.96473552
B59: 2019 | C59: =(C30/C29-1)*100 -> 18.33598595 | D59: 7.033171212 | E59: 15.17955218 | F59: 30.63010502 | G59: 2.406187339 | H59: 1.473982071 | I59: 5.005372878 | J59: 0.3664261995 | K59: 1.535595889 | L59: -1.672972603 | M59: 0.5459011919 | N59: 3.660075726 | O59: -7.553580763 | P59: 7.778295296 | Q59: 3.03030303 | R59: 6.965809095 | S59: 7.920724648 | T59: 10.73503128 | U59: -1.866666667 | V59: 5.399325084
B60: 2020 | C60: =(C31/C30-1)*100 -> -5.908542807 | D60: 3.13489227 | E60: -3.216813997 | F60: -15.37795891 | G60: 18.90909091 | H60: 6.019428571 | I60: 6.711148407 | J60: 4.644505523 | K60: 7.019699054 | L60: 2.104775151 | M60: -1.791693059 | N60: -2.272727273 | O60: -3.618886062 | P60: 0.9075194468 | Q60: 7.720588235 | R60: 4.439839236 | S60: 6.253944213 | T60: 4.257036215 | U60: -4.406055901 | V60: 24.33297759
B61: 2021 | C61: =(C32/C31-1)*100 -> 9.334335568 | D61: 6.836633663 | E61: 7.238687183 | F61: 13.35312552 | G61: 5.551634909 | H61: 4.233725355 | I61: 4.012428555 | J61: 3.679145233 | K61: 4.971098856 | L61: 0.735561206 | M61: 4.680733438 | N61: -2.803156146 | O61: 13.17101789 | P61: 7.237687366 | Q61: 8.532423208 | R61: 6.415729661 | S61: 5.677971135 | T61: 0.3289791969 | U61: 23.04568528 | V61: 0.7725321888
B62: 2022 | C62: =(C33/C32-1)*100 -> 5.817845752 | D62: 5.894073491 | E62: 6.64051456 | F62: 5.782382213 | G62: 0.534878538 | H62: 2.003991954 | I62: 4.504886594 | J62: 0.8584675685 | K62: 2.352775361 | L62: -1.942666546 | M62: 0.237655136 | N62: -1.303140355 | O62: 5.365474339 | P62: -3.434504792 | Q62: -10.37735849 | R62: 3.867668663 | S62: 1.079076041 | T62: 6.23975311 | U62: 9.752475248 | V62: -5.195911414
B63: 2023 | C63: =(C34/C33-1)*100 -> 4.991000011 | D63: 7.578873671 | E63: 8.792046396 | F63: 1.614855571 | G63: -6.340057637 | H63: -0.4701808992 | I63: 2.701462778 | J63: 0.9203529757 | K63: -1.28966087 | L63: -7.543093542 | M63: -2.862662452 | N63: -2.489177489 | O63: -1.426814268 | P63: -5.252274607 | Q63: -9.122807018 | R63: 0.4705562356 | S63: 4.175701974 | T63: 1.062091503 | U63: -6.014133213 | V63: -26.5049416
B64: 2024 | C64: =(C35/C34-1)*100 -> -4.845041846 | D64: -1.293471629 | E64: -4.645424638 | F64: -7.193329182 | G64: -6.532544379 | H64: 3.93252418 | I64: 2.915607175 | J64: 5.840862558 | K64: 3.813220962 | L64: -1.993636273 | M64: -0.04519978304 | N64: 0.4883462819 | O64: 0.1497379586 | P64: 0 | Q64: -12.74131274 | R64: 1.811142996 | S64: 3.149017933 | T64: -1.266504985 | U64: 4.68725004 | V64: -8.924205379
A66: 전공·학위 Major field of study · Degree | C66: 인문학 Humanities | H66: 사회과학 Social sciences | M66: 총계 Total
C67: 계 Total | D67: 박사 Doctoral | E67: 석사 Master's | F67: 학사 Bachelor's | G67: 기타 Others | H67: 계 Total | I67: 박사 Doctoral | J67: 석사 Master's | K67: 학사 Bachelor's | L67: 기타 Others | M67: 계 Total | N67: 박사 Doctoral | O67: 석사 Master's | P67: 학사 Bachelor's | Q67: 기타 Others
A68: 연구원(명) Researchers(Person) | B68: 1995 | M68: =SUM(C6,H6,M6,R6,C68,H68) -> 119367 | N68: =SUM(D6,I6,N6,S6,D68,I68) -> 32632 | O68: =SUM(E6,J6,O6,T6,E68,J68) -> 40844 | P68: =SUM(F6,K6,P6,U6,F68,K68) -> 42750 | Q68: =SUM(G6,L6,Q6,V6,G68,L68) -> 3141
B69: 1996 | M69: 126550 | N69: 34594 | O69: 44715 | P69: 43347 | Q69: 3894
B70: 1997 | M70: 131868 | N70: 36594 | O70: 47146 | P70: 44101 | Q70: 4027
B71: 1998 | M71: 119397 | N71: 35795 | O71: 41036 | P71: 38611 | Q71: 3955
B72: 1999 | M72: 129246 | N72: 41361 | O72: 43471 | P72: 39052 | Q72: 5362
B73: 2000 | M73: 155619 | N73: 43874 | O73: 49948 | P73: 53655 | Q73: 8142
B74: 2001 | M74: 167604 | N74: 43033 | O74: 55580 | P74: 61190 | Q74: 7801
B75: 2002 | M75: 180844 | N75: 46137 | O75: 61609 | P75: 65350 | Q75: 7748
B76: 2003 | M76: 189026 | N76: 49116 | O76: 65327 | P76: 67399 | Q76: 7184
B77: 2004 | M77: 202263 | N77: 54015 | O77: 66633 | P77: 75132 | Q77: 6483
B78: 2005 | M78: 224349 | N78: 54934 | O78: 75652 | P78: 84608 | Q78: 9155
B79: 2006 | M79: 244659 | N79: 57150 | O79: 80229 | P79: 96994 | Q79: 10286
B80: 2007 | C80: =SUM(D80:G80) -> 14430 | D80: 6989 | E80: 3724 | F80: 3124 | G80: 593 | H80: =SUM(I80:L80) -> 19482 | I80: 11285 | J80: 5734 | K80: 1864 | L80: 599 | M80: 289098 | N80: 73506 | O80: 93050 | P80: 109653 | Q80: 12889
B81: 2008 | C81: 15457 | D81: 7111 | E81: 3870 | F81: 3761 | G81: 715 | H81: 19255 | I81: 11421 | J81: 5116 | K81: 1952 | L81: 766 | M81: 300050 | N81: 73444 | O81: 94418 | P81: 117840 | Q81: 14348
B82: 2009 | C82: 16372 | D82: 7205 | E82: 4209 | F82: 4053 | G82: 905 | H82: 21265 | I82: 11851 | J82: 6137 | K82: 2181 | L82: 1096 | M82: 323175 | N82: 76480 | O82: 103664 | P82: 126286 | Q82: 16745
B83: 2010 | C83: 17568 | D83: 7462 | E83: 4217 | F83: 4742 | G83: 1147 | H83: 22280 | I83: 12594 | J83: 6397 | K83: 2548 | L83: 741 | M83: 345912 | N83: 81442 | O83: 109224 | P83: 138285 | Q83: 16961
B84: 2011 | C84: 19633 | D84: 7850 | E84: 4463 | F84: 6084 | G84: 1236 | H84: 23240 | I84: 12466 | J84: 6959 | K84: 2985 | L84: 830 | M84: 375176 | N84: 84674 | O84: 116131 | P84: 154733 | Q84: 19638
B85: 2012 | C85: 20413 | D85: 7971 | E85: 4098 | F85: 6874 | G85: 1470 | H85: 23961 | I85: 13140 | J85: 6872 | K85: 3053 | L85: 896 | M85: 401724 | N85: 87642 | O85: 122948 | P85: 169162 | Q85: 21972
B86: 2013 | C86: 20834 | D86: 7843 | E86: 3835 | F86: 7501 | G86: 1655 | H86: 25223 | I86: 13611 | J86: 7146 | K86: 3448 | L86: 1018 | M86: 410333 | N86: 88988 | O86: 123106 | P86: 175545 | Q86: 22694
B87: 2014 | C87: 22870 | D87: 8046 | E87: 4136 | F87: 8701 | G87: 1987 | H87: 27185 | I87: 14465 | J87: 7694 | K87: 3850 | L87: 1176 | M87: 437447 | N87: 92155 | O87: 129409 | P87: 190415 | Q87: 25468
B88: 2015 | C88: 23996 | D88: 8030 | E88: 3684 | F88: 10226 | G88: 2056 | H88: 27949 | I88: 14592 | J88: 7504 | K88: 4599 | L88: 1254 | M88: 453262 | N88: 98578 | O88: 129264 | P88: 199019 | Q88: 26401
B89: 2016 | C89: 24734 | D89: 7751 | E89: 3826 | F89: 10838 | G89: 2319 | H89: 28613 | I89: 14454 | J89: 7664 | K89: 5057 | L89: 1438 | M89: 460769 | N89: 99980 | O89: 132595 | P89: 200189 | Q89: 28005
B90: 2017 | C90: 26576 | D90: 8017 | E90: 4846 | F90: 11684 | G90: 2029 | H90: 27198 | I90: 13226 | J90: 7215 | K90: 5837 | L90: 920 | M90: 482796 | N90: 103582 | O90: 137996 | P90: 214752 | Q90: 26466
B91: 2018 | C91: 27931 | D91: 8386 | E91: 4480 | F91: 12919 | G91: 2146 | H91: 27674 | I91: 13278 | J91: 7408 | K91: 5796 | L91: 1192 | M91: 514170 | N91: 105930 | O91: 144399 | P91: 233922 | Q91: 29919
B92: 2019 | C92: =SUM(D92:G92) -> 28854 | D92: 8640 | E92: 4403 | F92: 13761 | G92: 2050 | H92: =SUM(I92:L92) -> 30135 | I92: 14096 | J92: 7998 | K92: 7060 | L92: 981 | M92: 538136 | N92: 111955 | O92: 149529 | P92: 247267 | Q92: 29385
B93: 2020 | C93: 30213 | D93: 8618 | E93: 4716 | F93: 14695 | G93: 2184 | H93: 31497 | I93: 14175 | J93: 8139 | K93: 7981 | L93: 1202 | M93: 558045 | N93: 116784 | O93: 153878 | P93: 256264 | Q93: 31119
B94: 2021 | C94: 32267 | D94: 8415 | E94: 4827 | F94: 16674 | G94: 2351 | H94: 32137 | I94: 14315 | J94: 8018 | K94: 8542 | L94: 1262 | M94: 586666 | N94: 121015 | O94: 159973 | P94: 273900 | Q94: 31778
B95: 2022 | C95: 32542 | D95: 8525 | E95: 4558 | F95: 17216 | G95: 2243 | H95: 32417 | I95: 13634 | J95: 8131 | K95: 9436 | L95: 1216 | M95: 601530 | N95: 124290 | O95: 163448 | P95: 282669 | Q95: 31123
B96: 2023 | C96: 31503 | D96: 8370 | E96: 4478 | F96: 16606 | G96: 2049 | H96: 32814 | I96: 14303 | J96: 8294 | K96: 9096 | L96: 1121 | M96: 603566 | N96: 128703 | O96: 167214 | P96: 279063 | Q96: 28586
B97: 2024 | C97: =SUM(D97:G97) -> 30955 | D97: 8293 | E97: 4647 | F97: 16028 | G97: 1987 | H97: =SUM(I97:L97) -> 33529 | I97: 14312 | J97: 8540 | K97: 9645 | L97: 1032 | M97: 615063 | N97: 130626 | O97: 172188 | P97: 284597 | Q97: 27652
A98: 전년대비 증가율(%) Percent change from previous year | B98: 1996 | M98: =(M69/M68-1)*100 -> 6.017576047 | N98: 6.012503064 | O98: 9.477524239 | P98: 1.396491228 | Q98: 23.97325692
B99: 1997 | M99: 4.202291584 | N99: 5.781349367 | O99: 5.436654367 | P99: 1.739451404 | Q99: 3.415511043
B100: 1998 | M100: -9.457184457 | N100: -2.183418047 | O100: -12.95974208 | P100: -12.44869731 | Q100: -1.787931463
B101: 1999 | M101: 8.248950979 | N101: 15.54965777 | O101: 5.933814212 | P101: 1.14216156 | Q101: 35.57522124
B102: 2000 | M102: 20.40527366 | N102: 6.075771862 | O102: 14.89958823 | P102: 37.39373144 | Q102: 51.846326
B103: 2001 | M103: 7.701501745 | N103: -1.916852806 | O103: 11.27572676 | P103: 14.04342559 | Q103: -4.188160157
B104: 2002 | M104: 7.899572803 | N104: 7.21306904 | O104: 10.84742713 | P104: 6.798496486 | Q104: -0.6794000769
B105: 2003 | M105: 4.524341421 | N105: 6.456856753 | O105: 6.034832573 | P105: 3.135424637 | Q105: -7.279297883
B106: 2004 | M106: 7.002740364 | N106: 9.974346445 | O106: 1.999173389 | P106: 11.473464 | Q106: -9.7577951
B107: 2005 | M107: 10.91944646 | N107: 1.701379247 | O107: 13.53533534 | P107: 12.61246872 | Q107: 41.21548666
B108: 2006 | M108: =(M79/M78-1)*100 -> 9.052859607 | N108: 4.033931627 | O108: 6.050071379 | P108: 14.63927761 | Q108: 12.35390497
B109: 2007 | M109: 18.16364818 | N109: 28.61942257 | O109: 15.9805058 | P109: 13.05132276 | Q109: 25.30624149
B110: 2008 | C110: =(C81/C80-1)*100 -> 7.117117117 | D110: 1.745600229 | E110: 3.920515575 | F110: 20.39052497 | G110: 20.57335582 | H110: -1.165178113 | I110: 1.205139566 | J110: -10.77781653 | K110: 4.721030043 | L110: 27.87979967 | M110: 3.788334752 | N110: -0.08434685604 | O110: 1.470177324 | P110: 7.466279992 | Q110: 11.31973
B111: 2009 | C111: =(C82/C81-1)*100 -> 5.919648056 | D111: 1.321895655 | E111: 8.759689922 | F111: 7.763892582 | G111: 26.57342657 | H111: 10.43884705 | I111: 3.764994309 | J111: 19.95699765 | K111: 11.73155738 | L111: 43.08093995 | M111: 7.707048825 | N111: 4.133761778 | O111: 9.792624288 | P111: 7.167345553 | Q111: 16.70616114
B112: 2010 | C112: =(C83/C82-1)*100 -> 7.305155143 | D112: 3.566967384 | E112: 0.1900689 | F112: 16.99975327 | G112: 26.74033149 | H112: 4.77310134 | I112: 6.269513121 | J112: 4.236597686 | K112: 16.82714351 | L112: -32.39051095 | M112: 7.035507078 | N112: 6.487970711 | O112: 5.363482019 | P112: 9.501449092 | Q112: 1.289937295
B113: 2011 | C113: =(C84/C83-1)*100 -> 11.75432605 | D113: 5.19967837 | E113: 5.833530946 | F113: 28.30029523 | G113: 7.759372276 | H113: 4.308797127 | I113: -1.016356995 | J113: 8.785368141 | K113: 17.15070644 | L113: 12.01079622 | M113: 8.459955133 | N113: 3.968468358 | O113: 6.323701751 | P113: 11.89427631 | Q113: 15.7832675
B114: 2012 | C114: =(C85/C84-1)*100 -> 3.972902766 | D114: 1.541401274 | E114: -8.178355366 | F114: 12.98487837 | G114: 18.93203883 | H114: 3.102409639 | I114: 5.406706241 | J114: -1.250179624 | K114: 2.278056951 | L114: 7.951807229 | M114: 7.076145596 | N114: 3.50520821 | O114: 5.870094979 | P114: 9.325095487 | Q114: 11.88512068
B115: 2013 | C115: =(C86/C85-1)*100 -> 2.062411209 | D115: -1.605821101 | E115: -6.417764763 | F115: 9.121326738 | G115: 12.58503401 | H115: 5.266892033 | I115: 3.584474886 | J115: 3.987194412 | K115: 12.93809368 | L115: 13.61607143 | M115: 2.143013611 | N115: 1.535793341 | O115: 0.1285096138 | P115: 3.773306062 | Q115: 3.286000364
B116: 2014 | C116: =(C87/C86-1)*100 -> 9.77248728 | D116: 2.588295295 | E116: 7.848761408 | F116: 15.99786695 | G116: 20.06042296 | H116: 7.778614756 | I116: 6.274336933 | J116: 7.668625805 | K116: 11.65893271 | L116: 15.52062868 | M116: 6.607803906 | N116: 3.558906819 | O116: 5.119977905 | P116: 8.470762483 | Q116: 12.2234952
B117: 2015 | C117: =(C88/C87-1)*100 -> 4.923480542 | D117: -0.1988565747 | E117: -10.92843327 | F117: 17.52672107 | G117: 3.472571716 | H117: 2.810373368 | I117: 0.8779813343 | J117: -2.46945672 | K117: 19.45454545 | L117: 6.632653061 | M117: 3.61529511 | N117: 6.969779176 | O117: -0.1120478483 | P117: 4.518551585 | Q117: 3.663420763
B118: 2016 | C118: =(C89/C88-1)*100 -> 3.075512585 | D118: -3.474470735 | E118: 3.854505972 | F118: 5.984744768 | G118: 12.79182879 | H118: 2.375755841 | I118: -0.9457236842 | J118: 2.132196162 | K118: 9.958686671 | L118: 14.67304625 | M118: =(M89/M88-1)*100 -> 1.656216493 | N118: 1.422224026 | O118: 2.576896893 | P118: 0.5878835689 | Q118: 6.075527442
B119: 2017 | C119: =(C90/C89-1)*100 -> 7.447238619 | D119: 3.43181525 | E119: 26.65969681 | F119: 7.805868241 | G119: -12.50539025 | H119: -4.945304582 | I119: -8.495918085 | J119: -5.858559499 | K119: 15.42416452 | L119: -36.02225313 | M119: 4.780486534 | N119: 3.602720544 | O119: 4.073305932 | P119: 7.274625479 | Q119: -5.495447242
B120: 2018 | C120: =(C91/C90-1)*100 -> 5.09858519 | D120: 4.602719222 | E120: -7.552620718 | F120: 10.57001027 | G120: 5.766387383 | H120: 1.750128686 | I120: 0.3931649781 | J120: 2.674982675 | K120: -0.7024156245 | L120: 29.56521739 | M120: 6.498396838 | N120: 2.266803113 | O120: 4.639989565 | P120: 8.926575771 | Q120: 13.04692813
B121: 2019 | C121: =(C92/C91-1)*100 -> 3.304571981 | D121: 3.02885762 | E121: -1.71875 | F121: 6.517532317 | G121: -4.473438956 | H121: 8.892823589 | I121: 6.16056635 | J121: 7.964362851 | K121: 21.80814355 | L121: -17.70134228 | M121: 4.661104304 | N121: 5.687718305 | O121: 3.552656182 | P121: 5.704893084 | Q121: -1.784819011
B122: 2020 | C122: =(C93/C92-1)*100 -> 4.709918902 | D122: -0.2546296296 | E122: 7.108789462 | F122: 6.787297435 | G122: 6.536585366 | H122: 4.519661523 | I122: 0.5604426788 | J122: 1.762940735 | K122: 13.04532578 | L122: 22.52803262 | M122: 3.6996224 | N122: 4.313340181 | O122: 2.908465916 | P122: 3.638576923 | Q122: 5.900969883
B123: 2021 | C123: =(C94/C93-1)*100 -> 6.798398041 | D123: -2.355534927 | E123: 2.353689567 | F123: 13.4671657 | G123: 7.646520147 | H123: 2.03193955 | I123: 0.987654321 | J123: -1.486669124 | K123: 7.029194337 | L123: 4.991680532 | M123: 5.128797857 | N123: 3.622927798 | O123: 3.960930087 | P123: 6.881965473 | Q123: 2.117677303
B124: 2022 | C124: =(C95/C94-1)*100 -> 0.8522639229 | D124: 1.307189542 | E124: -5.572819557 | F124: 3.250569749 | G124: -4.593789877 | H124: 0.8712698758 | I124: -4.757247642 | J124: 1.40932901 | K124: 10.46593304 | L124: -3.645007924 | M124: 2.533639243 | N124: 2.706276081 | O124: 2.172241566 | P124: 3.201533406 | Q124: -2.061174397
B125: 2023 | C125: =(C96/C95-1)*100 -> -3.192797001 | D125: -1.818181818 | E125: -1.75515577 | F125: -3.543215613 | G125: -8.649130629 | H125: 1.22466607 | I125: 4.906850521 | J125: 2.004673472 | K125: -3.603221704 | L125: -7.8125 | M125: 0.3384702342 | N125: 3.550567222 | O125: 2.304096716 | P125: -1.275697017 | Q125: -8.151527809
B126: 2024 | C126: =(C97/C96-1)*100 -> -1.739516871 | D126: -0.9199522103 | E126: 3.774006253 | F126: -3.480669637 | G126: -3.025866276 | H126: 2.17894801 | I126: 0.06292386213 | J126: 2.965999518 | K126: 6.035620053 | L126: -7.939339875 | M126: 1.904845535 | N126: 1.494137666 | O126: 2.974631311 | P126: 1.983064756 | Q126: -3.26733366

Sheet 2-9
A1: 2-9) 연구개발수행기관 및 성별 연구원
A2: R&D performing institutes and researchers by gender
A4: 연도 Year | B4: 연구개발수행기관 R&D performing institutes | J4: 성별 연구원(명) Researchers by gender(Person)
B5: 총계 Total | C5: 공공연구기관 Public research institutes | F5: 대학 Higher educations | I5: 기업체 Business enterprises | J5: 총계 Total
C6: 계 Sub total | D6: 국립·공립·출연(연) Government | E6: 비영리법인 Non-profit | F6: 계 Sub total | G6: 국·공립 National & Pub. | H6: 사립 Private | K6: 여성 Female
A7: 1991 | B7: 2352 | C7: 188 | F7: 221 | G7: 53 | H7: 168 | I7: 1943 | J7: 76252 | K7: 4313
A8: 1992 | B8: 3106 | C8: 212 | F8: 237 | G8: 53 | H8: 184 | I8: 2657 | J8: 88764 | K8: 5764
A9: 1993 | B9: 3318 | C9: 210 | F9: 244 | G9: 51 | H9: 193 | I9: 2864 | J9: 98764 | K9: 6590
A10: 1994 | B10: 2640 | C10: 217 | F10: 244 | G10: 50 | H10: 194 | I10: 2179 | J10: 117446 | K10: 9052
A11: 1995 | B11: 2587 | C11: 178 | F11: 257 | G11: 53 | H11: 204 | I11: 2152 | J11: 128315 | K11: 10235
A12: 1996 | B12: 2856 | C12: 163 | F12: 258 | G12: 53 | H12: 205 | I12: 2435 | J12: 132023 | K12: 11166
A13: 1997 | B13: 2962 | C13: 184 | F13: 271 | G13: 48 | H13: 223 | I13: 2507 | J13: 138434 | K13: 12545
A14: 1998 | B14: 2869 | C14: 183 | F14: 267 | G14: 49 | H14: 218 | I14: 2419 | J14: 129767 | K14: 12317
A15: 1999 | B15: 3059 | C15: 169 | F15: 285 | G15: 56 | H15: 229 | I15: 2605 | J15: 134568 | K15: 13009
A16: 2000 | B16: 4635 | C16: 173 | F16: 268 | G16: 56 | H16: 212 | I16: 4194 | J16: 159973 | K16: 16385
A17: 2001 | B17: 6801 | C17: 188 | F17: 276 | G17: 62 | H17: 214 | I17: 6337 | J17: 178937 | K17: 19930
A18: 2002 | B18: 7210 | C18: 163 | F18: 304 | G18: 61 | H18: 243 | I18: 6743 | J18: 189888 | K18: 22057
A19: 2003 | B19: 7127 | C19: 169 | F19: 310 | G19: 62 | H19: 248 | I19: 6648 | J19: 198171 | K19: 22613
A20: 2004 | B20: 7254 | C20: 159 | F20: 293 | G20: 55 | H20: 238 | I20: 6802 | J20: 209979 | K20: 25198
A21: 2005 | B21: 7761 | C21: 137 | F21: 256 | G21: 51 | H21: 205 | I21: 7368 | J21: 234702 | K21: 30174
A22: 2006 | B22: 9443 | C22: 139 | F22: 268 | G22: 51 | H22: 217 | I22: 9036 | J22: 256598 | K22: 33682
A23: 2007 | B23: 11200 | C23: 188 | F23: 322 | G23: 61 | H23: 261 | I23: 10690 | J23: 289098 | K23: 42977
A24: 2008 | B24: 12822 | C24: 228 | F24: 338 | G24: 65 | H24: 273 | I24: 12256 | J24: 300050 | K24: 46677
A25: 2009 | B25: 15237 | C25: 252 | F25: 359 | G25: 67 | H25: 292 | I25: 14626 | J25: 323175 | K25: 51073
A26: 2010 | B26: 16550 | C26: 261 | D26: 151 | E26: 110 | F26: 352 | G26: 67 | H26: 285 | I26: 15937 | J26: 345912 | K26: 57662
A27: 2011 | B27: 20372 | C27: 268 | D27: 154 | E27: 114 | F27: 350 | G27: 68 | H27: 282 | I27: 19754 | J27: 375176 | K27: 65067
A28: 2012 | B28: 23533 | C28: 272 | D28: 157 | E28: 115 | F28: 344 | G28: 71 | H28: 273 | I28: 22917 | J28: 401724 | K28: 70997
A29: 2013 | B29: 25882 | C29: 326 | D29: 177 | E29: 149 | F29: 371 | G29: 74 | H29: 297 | I29: 25185 | J29: 410333 | K29: 74617
A30: 2014 | B30: 30111 | C30: 348 | D30: 187 | E30: 161 | F30: 371 | G30: 76 | H30: 295 | I30: 29392 | J30: 437447 | K30: 80904
A31: 2015 | B31: 35379 | C31: 372 | D31: 197 | E31: 175 | F31: 365 | G31: 77 | H31: 288 | I31: 34642 | J31: 453262 | K31: 85652
A32: 2016 | B32: 37218 | C32: 372 | D32: 200 | E32: 172 | F32: 368 | G32: 77 | H32: 291 | I32: 36478 | J32: 460769 | K32: 90615
A33: 2017 | B33: 42368 | C33: 375 | D33: 200 | E33: 175 | F33: 364 | G33: 78 | H33: 286 | I33: 41629 | J33: 482796 | K33: 97042
A34: 2018 | B34: 49302 | C34: 401 | D34: 216 | E34: 185 | F34: 365 | G34: 79 | H34: 286 | I34: 48536 | J34: 514170 | K34: 104728
A35: 2019 | B35: 53005 | C35: 419 | D35: 228 | E35: 191 | F35: 368 | G35: 77 | H35: 291 | I35: 52218 | J35: 538136 | K35: 113187
A36: 2020 | B36: 56223 | C36: 415 | D36: 221 | E36: 194 | F36: 363 | G36: 77 | H36: 286 | I36: 55445 | J36: 558045 | K36: 119551
A37: 2021 | B37: 59576 | C37: 433 | D37: 232 | E37: 201 | F37: 366 | G37: 78 | H37: 288 | I37: 58777 | J37: 586666 | K37: 130055
A38: 2022 | B38: 61646 | C38: 458 | D38: 239 | E38: 219 | F38: 361 | G38: 80 | H38: 281 | I38: 60827 | J38: 601530 | K38: 138286
A39: 2023 | B39: 58200 | C39: 477 | D39: 238 | E39: 239 | F39: 379 | G39: 82 | H39: 297 | I39: 57344 | J39: 603566 | K39: 143127
A40: 2024 | B40: 58825 | C40: 504 | D40: 243 | E40: 261 | F40: 385 | G40: 80 | H40: 305 | I40: 57936 | J40: 615063 | K40: 148922
A41: 구성비(%) Percent distribution
A42: 1991 | B42: =B7/$B7*100 -> 100 | C42: 7.993197279 | D42: 0 | E42: 0 | F42: 9.396258503 | G42: 2.253401361 | H42: 7.142857143 | I42: 82.61054422 | J42: =J7/$J7*100 -> 100 | K42: 5.656245082
A43: 1992 | B43: =B8/$B8*100 -> 100 | C43: 6.825499034 | D43: 0 | E43: 0 | F43: 7.630392788 | G43: 1.706374759 | H43: 5.92401803 | I43: 85.54410818 | J43: 100 | K43: 6.493623541
A44: 1993 | B44: =B9/$B9*100 -> 100 | C44: 6.329113924 | D44: 0 | E44: 0 | F44: 7.353827607 | G44: 1.537070524 | H44: 5.816757083 | I44: 86.31705847 | J44: 100 | K44: 6.672471751
A45: 1994 | B45: =B10/$B10*100 -> 100 | C45: 8.21969697 | D45: 0 | E45: 0 | F45: 9.242424242 | G45: 1.893939394 | H45: 7.348484848 | I45: 82.53787879 | J45: 100 | K45: 7.707371899
A46: 1995 | B46: =B11/$B11*100 -> 100 | C46: 6.880556629 | D46: 0 | E46: 0 | F46: 9.934286819 | G46: 2.048705064 | H46: 7.885581755 | I46: 83.18515655 | J46: 100 | K46: 7.97646417
A47: 1996 | B47: =B12/$B12*100 -> 100 | C47: 5.707282913 | D47: 0 | E47: 0 | F47: 9.033613445 | G47: 1.855742297 | H47: 7.177871148 | I47: 85.25910364 | J47: 100 | K47: 8.457617233
A48: 1997 | B48: =B13/$B13*100 -> 100 | C48: 6.212018906 | D48: 0 | E48: 0 | F48: 9.149223498 | G48: 1.620526671 | H48: 7.528696826 | I48: 84.6387576 | J48: 100 | K48: 9.062080125
A49: 1998 | B49: 100 | C49: 6.378529104 | D49: 0 | E49: 0 | F49: 9.306378529 | G49: 1.707912165 | H49: 7.598466365 | I49: 84.31509237 | J49: 100 | K49: 9.491627301
A50: 1999 | B50: 100 | C50: 5.524681268 | D50: 0 | E50: 0 | F50: 9.316770186 | G50: 1.830663616 | H50: 7.486106571 | I50: 85.15854855 | J50: 100 | K50: 9.667231437
A51: 2000 | B51: 100 | C51: 3.732470334 | D51: 0 | E51: 0 | F51: 5.782092772 | G51: 1.20819849 | H51: 4.573894283 | I51: 90.48543689 | J51: 100 | K51: 10.2423534
A52: 2001 | B52: 100 | C52: 2.764299368 | D52: 0 | E52: 0 | F52: 4.058226731 | G52: 0.9116306426 | H52: 3.146596089 | I52: 93.1774739 | J52: 100 | K52: 11.13799829
A53: 2002 | B53: 100 | C53: 2.26074896 | D53: 0 | E53: 0 | F53: 4.216366158 | G53: 0.8460471567 | H53: 3.370319001 | I53: 93.52288488 | J53: 100 | K53: 11.61579457
A54: 2003 | B54: 100 | C54: 2.371264207 | D54: 0 | E54: 0 | F54: 4.349656237 | G54: 0.8699312474 | H54: 3.479724989 | I54: 93.27907956 | J54: 100 | K54: 11.41085224
A55: 2004 | B55: 100 | C55: 2.191894127 | D55: 0 | E55: 0 | F55: 4.039150813 | G55: 0.7582023711 | H55: 3.280948442 | I55: 93.76895506 | J55: 100 | K55: 12.00024764
A56: 2005 | B56: 100 | C56: 1.765236439 | D56: 0 | E56: 0 | F56: 3.298544002 | G56: 0.6571318129 | H56: 2.641412189 | I56: 94.93621956 | J56: 100 | K56: 12.85630289
A57: 2006 | B57: 100 | C57: 1.471989834 | D57: 0 | E57: 0 | F57: 2.838081118 | G57: 0.5400826009 | H57: 2.297998517 | I57: 95.68992905 | J57: 100 | K57: 13.12636887
A58: 2007 | B58: 100 | C58: 1.678571429 | D58: 0 | E58: 0 | F58: 2.875 | G58: 0.5446428571 | H58: 2.330357143 | I58: 95.44642857 | J58: 100 | K58: 14.86589323
A59: 2008 | B59: 100 | C59: 1.77819373 | D59: 0 | E59: 0 | F59: 2.636094213 | G59: 0.5069411948 | H59: 2.129153018 | I59: 95.58571206 | J59: 100 | K59: 15.55640727
A60: 2009 | B60: =B25/$B25*100 -> 100 | C60: 1.653868872 | D60: 0 | E60: 0 | F60: 2.356106845 | G60: 0.4397191048 | H60: 1.91638774 | I60: 95.99002428 | J60: 100 | K60: 15.80351203
A61: 2010 | B61: =B26/$B26*100 -> 100 | C61: 1.577039275 | D61: 0.9123867069 | E61: 0.664652568 | F61: 2.126888218 | G61: 0.4048338369 | H61: 1.722054381 | I61: 96.29607251 | J61: 100 | K61: 16.66955758
A62: 2011 | B62: =B27/$B27*100 -> 100 | C62: 1.315531121 | D62: 0.7559395248 | E62: 0.5595915963 | F62: 1.718044375 | G62: 0.3337914785 | H62: 1.384252896 | I62: 96.9664245 | J62: 100 | K62: 17.34306032
A63: 2012 | B63: =B28/$B28*100 -> 100 | C63: 1.155823737 | D63: 0.6671482599 | E63: 0.488675477 | F63: 1.461777079 | G63: 0.3017039901 | H63: 1.160073089 | I63: 97.38239918 | J63: 100 | K63: 17.67307903
A64: 2013 | B64: =B29/$B29*100 -> 100 | C64: 1.25956263 | D64: 0.6838729619 | E64: 0.5756896685 | F64: 1.433428638 | G64: 0.2859129897 | H64: 1.147515648 | I64: 97.30700873 | J64: 100 | K64: 18.18449893
A65: 2014 | B65: =B30/$B30*100 -> 100 | C65: 1.155723822 | D65: 0.621035502 | E65: 0.5346883199 | F65: 1.232107868 | G65: 0.2523994553 | H65: 0.9797084122 | I65: 97.61216831 | J65: 100 | K65: 18.49458334
A66: 2015 | B66: =B31/$B31*100 -> 100 | C66: 1.051471212 | D66: 0.5568274965 | E66: 0.4946437152 | F66: 1.031685463 | G66: 0.2176432347 | H66: 0.8140422284 | I66: 97.91684333 | J66: 100 | K66: 18.896797
A67: 2016 | B67: =B32/$B32*100 -> 100 | C67: 0.9995163631 | D67: 0.5373743887 | E67: 0.4621419743 | F67: 0.9887688753 | G67: 0.2068891397 | H67: 0.7818797356 | I67: 98.01171476 | J67: 100 | K67: 19.66603656
A68: 2017 | B68: =B33/$B33*100 -> 100 | C68: 0.8851019637 | D68: 0.4720543807 | E68: 0.4130475831 | F68: 0.8591389728 | G68: 0.1841012085 | H68: 0.6750377644 | I68: 98.25575906 | J68: 100 | K68: 20.10000083
A69: 2018 | B69: =B34/$B34*100 -> 100 | C69: 0.8133544278 | D69: 0.4381161008 | E69: 0.375238327 | F69: 0.7403350777 | G69: 0.1602369072 | H69: 0.5800981705 | I69: 98.44631049 | J69: 100 | K69: 20.36836066
A70: 2019 | B70: =B35/$B35*100 -> 100 | C70: 0.7904914631 | D70: 0.4301480992 | E70: 0.3603433638 | F70: 0.6942741251 | G70: 0.1452693142 | H70: 0.5490048109 | I70: 98.51523441 | J70: 100 | K70: 21.0331589
A71: 2020 | B71: =B36/$B36*100 -> 100 | C71: =C36/$B36*100 -> 0.7381320812 | D71: 0.3930775661 | E71: 0.3450545151 | F71: 0.6456432421 | G71: 0.1369546271 | H71: 0.508688615 | I71: 98.61622468 | J71: =J36/$J36*100 -> 100 | K71: 21.42318272
A72: 2021 | B72: =B37/$B37*100 -> 100 | C72: 0.7268027394 | D72: 0.3894185578 | E72: 0.3373841815 | F72: 0.6143413455 | G72: 0.1309252048 | H72: 0.4834161407 | I72: 98.65885592 | J72: =J37/$J37*100 -> 100 | K72: =K37/$J37*100 -> 22.1684911
A73: 2022 | B73: =B38/$B38*100 -> 100 | C73: 0.7429516919 | D73: 0.3876974986 | E73: 0.3552541933 | F73: 0.5856016611 | G73: 0.1297732213 | H73: 0.4558284398 | I73: 98.67144665 | J73: =J38/$J38*100 -> 100 | K73: 22.9890446
A74: 2023 | B74: =B39/$B39*100 -> 100 | C74: 0.8195876289 | D74: 0.4089347079 | E74: 0.410652921 | F74: 0.6512027491 | G74: 0.1408934708 | H74: 0.5103092784 | I74: 98.52920962 | J74: =J39/$J39*100 -> 100 | K74: =K39/$J39*100 -> 23.71356239
A75: 2024 | B75: 100 | C75: 0.8567785805 | D75: 0.4130896728 | E75: 0.4436889078 | F75: 0.6544836379 | G75: 0.1359966001 | H75: 0.5184870378 | I75: 98.48873778 | J75: =J40/$J40*100 -> 100 | K75: =K40/$J40*100 -> 24.21247905
A76: 전년대비 증가율(%) Percent change from previous year
A77: 1991 | B77: =(B7/B6-1)*100 -> 
A78: 1992 | B78: =(B8/B7-1)*100 -> 32.05782313 | C78: 12.76595745 | F78: 7.239819005 | G78: 0 | H78: 9.523809524 | I78: 36.74729799 | J78: 16.40874993 | K78: 33.64247623
A79: 1993 | B79: =(B9/B8-1)*100 -> 6.825499034 | C79: -0.9433962264 | F79: 2.953586498 | G79: -3.773584906 | H79: 4.891304348 | I79: 7.790741438 | J79: 11.26582849 | K79: 14.33032616
A80: 1994 | B80: =(B10/B9-1)*100 -> -20.43399638 | C80: 3.333333333 | F80: 0 | G80: -1.960784314 | H80: 0.518134715 | I80: -23.91759777 | J80: 18.91579928 | K80: 37.35963581
A81: 1995 | B81: =(B11/B10-1)*100 -> -2.007575758 | C81: -17.97235023 | F81: 5.327868852 | G81: 6 | H81: 5.154639175 | I81: -1.239100505 | J81: 9.254465882 | K81: 13.06893504
A82: 1996 | B82: =(B12/B11-1)*100 -> 10.39814457 | C82: -8.426966292 | F82: 0.3891050584 | G82: 0 | H82: 0.4901960784 | I82: 13.15055762 | J82: 2.889763473 | K82: 9.096238398
A83: 1997 | B83: =(B13/B12-1)*100 -> 3.711484594 | C83: 12.88343558 | F83: 5.03875969 | G83: -9.433962264 | H83: 8.780487805 | I83: 2.95687885 | J83: 4.855972065 | K83: 12.34999104
A84: 1998 | B84: =(B14/B13-1)*100 -> -3.139770425 | C84: -0.5434782609 | F84: -1.47601476 | G84: 2.083333333 | H84: -2.242152466 | I84: -3.51017152 | J84: -6.260745193 | K84: -1.817457154
A85: 1999 | B85: =(B15/B14-1)*100 -> 6.622516556 | C85: -7.650273224 | F85: 6.741573034 | G85: 14.28571429 | H85: 5.04587156 | I85: 7.689127739 | J85: 3.699707938 | K85: 5.618251198
A86: 2000 | B86: =(B16/B15-1)*100 -> 51.52010461 | C86: 2.366863905 | F86: -5.964912281 | G86: 0 | H86: -7.423580786 | I86: 60.99808061 | J86: 18.8789311 | K86: 25.95126451
A87: 2001 | B87: =(B17/B16-1)*100 -> 46.73139159 | C87: 8.670520231 | F87: 2.985074627 | G87: 10.71428571 | H87: 0.9433962264 | I87: 51.09680496 | J87: 11.85450045 | K87: 21.63564236
A88: 2002 | B88: =(B18/B17-1)*100 -> 6.013821497 | C88: -13.29787234 | F88: 10.14492754 | G88: -1.612903226 | H88: 13.55140187 | I88: 6.406817106 | J88: 6.120031072 | K88: 10.67235324
A89: 2003 | B89: =(B19/B18-1)*100 -> -1.151178918 | C89: 3.680981595 | F89: 1.973684211 | G89: 1.639344262 | H89: 2.057613169 | I89: -1.408868456 | J89: 4.362044995 | K89: 2.520741715
A90: 2004 | B90: =(B20/B19-1)*100 -> 1.781955942 | C90: -5.917159763 | F90: -5.483870968 | G90: -11.29032258 | H90: -4.032258065 | I90: 2.316486161 | J90: 5.958490395 | K90: 11.43147747
A91: 2005 | B91: =(B21/B20-1)*100 -> 6.989247312 | C91: -13.83647799 | F91: -12.62798635 | G91: -7.272727273 | H91: -13.86554622 | I91: 8.321082035 | J91: 11.77403455 | K91: 19.74759902
A92: 2006 | B92: =(B22/B21-1)*100 -> 21.67246489 | C92: 1.459854015 | F92: 4.6875 | G92: 0 | H92: 5.853658537 | I92: 22.63843648 | J92: 9.329277126 | K92: 11.6259031
A93: 2007 | B93: =(B23/B22-1)*100 -> 18.60637509 | C93: 35.25179856 | F93: 20.14925373 | G93: 19.60784314 | H93: 20.2764977 | I93: 18.30455954 | J93: 12.66572616 | K93: 27.59634226
A94: 2008 | B94: =(B24/B23-1)*100 -> 14.48214286 | C94: 21.27659574 | F94: 4.968944099 | G94: 6.557377049 | H94: 4.597701149 | I94: 14.64920486 | J94: 3.788334752 | K94: 8.609256114
A95: 2009 | B95: =(B25/B24-1)*100 -> 18.83481516 | C95: 10.52631579 | F95: 6.213017751 | G95: 3.076923077 | H95: 6.95970696 | I95: 19.33746736 | J95: 7.707048825 | K95: 9.417914605
A96: 2010 | B96: =(B26/B25-1)*100 -> 8.61718186 | C96: 3.571428571 | F96: -1.949860724 | G96: 0 | H96: -2.397260274 | I96: 8.963489676 | J96: 7.035507078 | K96: 12.9011415
A97: 2011 | B97: =(B27/B26-1)*100 -> 23.09365559 | C97: 2.681992337 | D97: 1.986754967 | E97: 3.636363636 | F97: -0.5681818182 | G97: 1.492537313 | H97: -1.052631579 | I97: 23.95055531 | J97: 8.459955133 | K97: 12.84207971
A98: 2012 | B98: =(B28/B27-1)*100 -> 15.51639505 | C98: 1.492537313 | D98: 1.948051948 | E98: 0.8771929825 | F98: -1.714285714 | G98: 4.411764706 | H98: -3.191489362 | I98: 16.01194695 | J98: 7.076145596 | K98: 9.113682819
A99: 2013 | B99: =(B29/B28-1)*100 -> 9.981727787 | C99: 19.85294118 | D99: 12.7388535 | E99: 29.56521739 | F99: 7.848837209 | G99: 4.225352113 | H99: 8.791208791 | I99: 9.896583322 | J99: 2.143013611 | K99: 5.098806992
A100: 2014 | B100: =(B30/B29-1)*100 -> 16.33954099 | C100: 6.748466258 | D100: 5.649717514 | E100: 8.053691275 | F100: 0 | G100: 2.702702703 | H100: -0.6734006734 | I100: 16.70438753 | J100: 6.607803906 | K100: 8.425693877
A101: 2015 | B101: =(B31/B30-1)*100 -> 17.49526751 | C101: 6.896551724 | D101: 5.347593583 | E101: 8.695652174 | F101: -1.617250674 | G101: 1.315789474 | H101: -2.372881356 | I101: 17.86200327 | J101: 3.61529511 | K101: 5.868683872
A102: 2016 | B102: =(B32/B31-1)*100 -> 5.197998813 | C102: 0 | D102: 1.52284264 | E102: -1.714285714 | F102: 0.8219178082 | G102: 0 | H102: 1.041666667 | I102: 5.299924947 | J102: 1.656216493 | K102: 5.794377247
A103: 2017 | B103: =(B33/B32-1)*100 -> 13.83739051 | C103: =(C33/C32-1)*100 -> 0.8064516129 | D103: 0 | E103: 1.744186047 | F103: -1.086956522 | G103: 1.298701299 | H103: -1.718213058 | I103: 14.12083996 | J103: 4.780486534 | K103: 7.092644706
A104: 2018 | B104: =(B34/B33-1)*100 -> 16.36612538 | C104: =(C34/C33-1)*100 -> 6.933333333 | D104: 8 | E104: 5.714285714 | F104: 0.2747252747 | G104: 1.282051282 | H104: 0 | I104: 16.59179899 | J104: 6.498396838 | K104: 7.92028194
A105: 2019 | B105: =(B35/B34-1)*100 -> 7.510851487 | C105: =(C35/C34-1)*100 -> 4.488778055 | D105: 5.555555556 | E105: 3.243243243 | F105: 0.8219178082 | G105: -2.53164557 | H105: 1.748251748 | I105: 7.586121642 | J105: 4.661104304 | K105: 8.077114048
A106: 2020 | B106: =(B36/B35-1)*100 -> 6.071125366 | C106: =(C36/C35-1)*100 -> -0.9546539379 | D106: -3.070175439 | E106: 1.570680628 | F106: -1.358695652 | G106: 0 | H106: -1.718213058 | I106: 6.17986135 | J106: 3.6996224 | K106: 5.622553827
A107: 2021 | B107: =(B37/B36-1)*100 -> 5.96375149 | C107: =(C37/C36-1)*100 -> 4.337349398 | D107: 4.977375566 | E107: 3.608247423 | F107: 0.826446281 | G107: 1.298701299 | H107: 0.6993006993 | I107: 6.009559022 | J107: 5.128797857 | K107: 8.786208396
A108: 2022 | B108: =(B38/B37-1)*100 -> 3.474553511 | C108: =(C38/C37-1)*100 -> 5.773672055 | D108: 3.017241379 | E108: 8.955223881 | F108: -1.366120219 | G108: 2.564102564 | H108: -2.430555556 | I108: 3.487758817 | J108: 2.533639243 | K108: 6.328860867
A109: 2023 | B109: =(B39/B38-1)*100 -> -5.589981507 | C109: 4.148471616 | D109: -0.4184100418 | E109: 9.132420091 | F109: 4.986149584 | G109: 2.5 | H109: 5.693950178 | I109: -5.726075591 | J109: 0.3384702342 | K109: 3.500715908
A110: 2024 | B110: =(B40/B39-1)*100 -> 1.073883162 | C110: 5.660377358 | D110: 2.100840336 | E110: 9.205020921 | F110: 1.583113456 | G110: -2.43902439 | H110: 2.693602694 | I110: 1.032366071 | J110: 1.904845535 | K110: 4.048851719
A112: 주 : 1. 공공연구기관 중 '국립·공립·출연(연)'은 '국·공립 연구기관', '국·공립 병원','정부 출연(연)', '지자체 출연(연)'을 포함하며, 나머지는 모두 '비영리법인'으로 분류
A113: 2. 대학의 '국·공립'은 국·공립대학과 국·공립대학 부속 병원을 포함하며, '사립'은 사립대학과 사립대학 부속병원을 포함

Sheet 2-10
A1: 2-10) 2024년도 연구수행주체별 연구개발비(재원, 비목, 연구개발단계)
A2: R&D expenditure(source of funds, type of costs, type of R&D) by sector of performance, 2024
S4: (단위 : 백만원 Unit : Won, Millions)
A5: 연구수행주체 Sector of performance | B5: 연구개발 수행기관 R&D performing inst. | C5: 총계 Total | D5: 재원 Source of funds | H5: 비목 Type of costs | Q5: 연구개발단계 Type of R&D
D6: 정부 Government | E6: 공공 Other national sources | F6: 민간 Business enterprise | G6: 외국 Rest of the world | H6: 경상비 Current costs | K6: 자본적 지출 Capital costs | Q6: 기초연구 Basic research | R6: 응용연구 Applied research | S6: 개발연구 Experimental development
H7: 소계 Sub total | I7: 인건비 Labour costs | J7: 기타 Other current costs | K7: 소계 Sub total | L7: 기계〮장치 Machinery | M7: 토지 Land | N7: 건물 Buildings | O7: 컴퓨터 소프트웨어 Computer software | P7: 기타지식재산물 Other intellectual properties
A8: 총계 Total | B8: 58825 | C8: 131046204.8 | D8: 27123892.6 | E8: 643331.0301 | F8: 102875023.2 | G8: 403958.0039 | H8: 119037893.1 | I8: 54611453.99 | J8: 64426439.06 | K8: 12008311.76 | L8: 7486297.67 | M8: 800188.392 | N8: 1977875.07 | O8: 1156059.176 | P8: 587891.456 | Q8: 19268978.8 | R8: 25281247.09 | S8: 86495978.93
A9: 공공연구기관 Public research institutes | B9: 504 | C9: 13293570 | D9: 12464549.1 | E9: 190914.8845 | F9: 508077.5808 | G9: 130028.4301 | H9: 9622176 | I9: 3652117 | J9: 5970059 | K9: 3671394 | L9: 2974125 | M9: 41846 | N9: 550576 | O9: 63106 | P9: 41741 | Q9: 3152297 | R9: 3423771 | S9: 6717502
A10: 국·공립 National & Pub. | B10: 83 | C10: 1031743 | D10: 1031743 | E10: 0 | F10: 0 | G10: 0 | H10: 870106 | I10: 311941 | J10: 558165 | K10: 161637 | L10: 59397 | M10: 10 | N10: 96160 | O10: 4845 | P10: 1225 | Q10: 426708 | R10: 391915 | S10: 213120
A11: 정부출연 Gov't funded | B11: 74 | C11: 9334634 | D11: 9019275.239 | E11: 60378.25004 | F11: 215868.095 | G11: 39112.41629 | H11: 6373073 | I11: 2536760 | J11: 3836313 | K11: 2961561 | L11: 2591652 | M11: 1252 | N11: 295796 | O11: 48352 | P11: 24509 | Q11: 2278271 | R11: 2395517 | S11: 4660846
A12: 지방자치단체출연 Local gov't funded | B12: 69 | C12: 395292 | D12: 385419.1283 | E12: 876.0058707 | F12: 8978.86583 | G12: 18 | H12: 297047 | I12: 105567 | J12: 191480 | K12: 98245 | L12: 38253 | M12: 11645 | N12: 40116 | O12: 447 | P12: 7784 | Q12: 99349 | R12: 76019 | S12: 219924
A13: 기타비영리 Other non-profit corporation | B13: 238 | C13: 2291449 | D13: 1925979.723 | E13: 102757.789 | F13: 227527.5501 | G13: 35183.93794 | H13: 1843333 | I13: 669768 | J13: 1173565 | K13: 448116 | L13: 283153 | M13: 28939 | N13: 118504 | O13: 9367 | P13: 8153 | Q13: 296790 | R13: 518146 | S13: 1476513
A14: 국·공립병원 National & Pub. Hospital | B14: 17 | C14: 23342 | D14: 14751.9156 | E14: 0 | F14: 8590.084398 | G14: 0 | H14: 23152 | I14: 8614 | J14: 14538 | K14: 190 | L14: 190 | M14: 0 | N14: 0 | O14: 0 | P14: 0 | Q14: 12055 | R14: 7466 | S14: 3821
A15: 사립병원 Private hospital | B15: 23 | C15: 217110 | D15: 87380.09902 | E15: 26902.83966 | F15: 47112.9855 | G15: 55714.07582 | H15: 215465 | I15: 19467 | J15: 195998 | K15: 1645 | L15: 1480 | M15: 0 | N15: 0 | O15: 95 | P15: 70 | Q15: 39124 | R15: 34708 | S15: 143278
A16: 대학 Higher educations | B16: 385 | C16: 11053800 | D16: 9100790.578 | E16: 411613.4116 | F16: 1457658.475 | G16: 83737.53581 | H16: 10397708 | I16: 4278208 | J16: 6119500 | K16: 656092 | L16: 597918 | M16: 127 | N16: 8784 | O16: 19304 | P16: 29959 | Q16: 4165416 | R16: 3537023 | S16: 3351361
A17: 국·공립 National & Pub. | B17: 80 | C17: 4939906 | D17: 4181772.29 | E17: 54301.74653 | F17: 659759.8214 | G17: 44072.14187 | H17: 4586090 | I17: 1912166 | J17: 2673924 | K17: 353816 | L17: 329864 | M17: 72 | N17: 6496 | O17: 12365 | P17: 5019 | Q17: 2047982 | R17: 1351117 | S17: 1540807
A18: 사립 Private | B18: 305 | C18: 6113894 | D18: 4919018.287 | E18: 357311.665 | F18: 797898.6536 | G18: 39665.39393 | H18: 5811618 | I18: 2366042 | J18: 3445576 | K18: 302276 | L18: 268054 | M18: 55 | N18: 2288 | O18: 6939 | P18: 24940 | Q18: 2117434 | R18: 2185906 | S18: 1810554
A19: 기업체 Business enterprises | B19: 57936 | C19: 106698834.8 | D19: 5558552.918 | E19: 40802.734 | F19: 100909287.1 | G19: 190192.038 | H19: 99018009.06 | I19: 46681128.99 | J19: 52336880.06 | K19: 7680825.764 | L19: 3914254.67 | M19: 758215.392 | N19: 1418515.07 | O19: 1073649.176 | P19: 516191.456 | Q19: 11951265.8 | R19: 18320453.09 | S19: 76427115.93
A20: 정부투자기관 Gov't investment | B20: 46 | C20: 807763 | D20: 126331 | E20: 569 | F20: 680863 | G20: 0 | H20: 737473 | I20: 341989 | J20: 395484 | K20: 70290 | L20: 39335 | M20: 0 | N20: 8110 | O20: 22165 | P20: 680 | Q20: 66591.645 | R20: 211187.515 | S20: 529983.84
A21: 민간기업 Private companies | B21: 57890 | C21: 105891071.8 | D21: 5432221.918 | E21: 40233.734 | F21: 100228424.1 | G21: 190192.038 | H21: 98280536.06 | I21: 46339139.99 | J21: 51941396.06 | K21: 7610535.764 | L21: 3874919.67 | M21: 758215.392 | N21: 1410405.07 | O21: 1051484.176 | P21: 515511.456 | Q21: 11884674.15 | R21: 18109265.58 | S21: 75897132.09

Sheet 2-11
A1: 2-11) 2024년도 연구수행주체별 외부로부터 받은 연구개발비 및 외부로 지출한 연구개발비
A2: R&D expenditure received and paid to outside by sector of performance, 2024
S4: (단위 : 백만원 Unit : Won, Millions)
A5: 연구수행주체 Sector of performance 재원 Source of funds | B5: 총계 Total | D5: 국·공립연구기관 (의료기관 포함) Nat'l & Pub. Research inst. | F5: 정부출연 Gov't funded | H5: 지방자치단체출연 Local gov't funded | J5: 비영리법인 Non-profit corporation | L5: 국·공립대학 Nat'l & Pub. univ. | N5: 사립대학 Private univ. | P5: 정부투자기관 Gov't investment | R5: 민간기업체 Private companies
B6: 수취 Received | C6: 지불 Paid | D6: 수취 Received | E6: 지불 Paid | F6: 수취 Received | G6: 지불 Paid | H6: 수취 Received | I6: 지불 Paid | J6: 수취 Received | K6: 지불 Paid | L6: 수취 Received | M6: 지불 Paid | N6: 수취 Received | O6: 지불 Paid | P6: 수취 Received | Q6: 지불 Paid | R6: 수취 Received | S6: 지불 Paid
A7: 총계 Total | B7: 33373014.88 | C7: 7831510.368 | D7: 1029747 | E7: 239524 | F7: 9635940 | G7: 803149 | H7: 414849 | I7: 50444 | J7: 2636238 | K7: 250912 | L7: 4811019 | M7: 100657 | N7: 5987929 | O7: 116083 | P7: 157660 | Q7: 172194 | R7: 8699632.876 | S7: 6098547.368
A8: 정부·지방자치단체 Gov't · Local gov't | B8: 27532581.92 | C8: 954396.312 | D8: 1021123 | E8: 71339 | F8: 9302583 | G8: 310582 | H8: 404046 | I8: 2331 | J8: 2204626 | K8: 44742 | L8: 4032721 | M8: 45769 | N8: 5008930 | O8: 38067 | P8: 126331 | Q8: 27872 | R8: 5432221.918 | S8: 413694.312
A9: 중앙행정기관 Central gov't | B9: 22872413.08 | C9: - | D9: 855957 | E9: - | F9: 8921793 | G9: - | H9: 224264 | I9: - | J9: 1850570 | K9: - | L9: 3206824 | M9: - | N9: 4190342 | O9: - | P9: 123025 | Q9: - | R9: 3499638.084 | S9: -
A10: 지방자치단체 Local gov't | B10: 1252460.624 | C10: - | D10: 85001 | E10: - | F10: 146097 | G10: - | H10: 171824 | I10: - | J10: 273043 | K10: - | L10: 163442 | M10: - | N10: 258681 | O10: - | P10: 1454 | Q10: - | R10: 152918.624 | S10: -
A11: 국·공립대학교 Nat'l & Pub. univ. | B11: 55124.902 | C11: 470117.362 | D11: 21 | E11: 45761 | F11: 3934 | G11: 164567 | H11: 315 | I11: 984 | J11: 3187 | K11: 24200 | L11: 15888 | M11: 11952 | N11: 18971 | O11: 21516 | P11: 110 | Q11: 10174 | R11: 12698.902 | S11: 190963.362
A12: 정부출연연구기관 Gov't funded | B12: 3061195.642 | C12: 376938.784 | D12: 6342 | E12: 17302 | F12: 202947 | G12: 127637 | H12: 1467 | I12: 785 | J12: 73015 | K12: 14584 | L12: 609464 | M12: 31440 | N12: 499483 | O12: 14970 | P12: 1341 | Q12: 12365 | R12: 1667136.642 | S12: 157855.784
A13: 지방자치단체출연연구기관 Local gov't funded | B13: 97736.82 | C13: 19840.026 | D13: 400 | E13: 55 | F13: 1306 | G13: 4526 | H13: 6083 | I13: 357 | J13: 2600 | K13: 2218 | L13: 10240 | M13: 703 | N13: 12871 | O13: 639 | P13: 401 | Q13: 0 | R13: 63835.82 | S13: 11342.026
A14: 국·공립연구기관(의료기관 포함) Nat'l & Pub. Research inst. | B14: 193650.846 | C14: 87500.14 | D14: 73402 | E14: 8221 | F14: 26506 | G14: 13852 | H14: 93 | I14: 205 | J14: 2211 | K14: 3740 | L14: 26863 | M14: 1674 | N14: 28582 | O14: 942 | P14: 0 | Q14: 5333 | R14: 35993.846 | S14: 53533.14
A15: 공공 Public | B15: 297753.734 | C15: 788271.4 | D15: 0 | E15: 115616 | F15: 63276 | G15: 209134 | H15: 1030 | I15: 1504 | J15: 16990 | K15: 66662 | L15: 55175 | M15: 15883 | N15: 120480 | O15: 40457 | P15: 569 | Q15: 15749 | R15: 40233.734 | S15: 323266.4
A16: 사립대학(교) Private univ. | B16: 32173.364 | C16: 529709.39 | D16: 0 | E16: 85557 | F16: 4808 | G16: 179792 | H16: 76 | I16: 1379 | J16: 1442 | K16: 41272 | L16: 7093 | M16: 11356 | N16: 10773 | O16: 31908 | P16: 3 | Q16: 7576 | R16: 7978.364 | S16: 170869.39
A17: 비영리 법인 Non-profit corporation | B17: 265580.37 | C17: 258562.01 | D17: 0 | E17: 30059 | F17: 58468 | G17: 29342 | H17: 954 | I17: 125 | J17: 15548 | K17: 25390 | L17: 48082 | M17: 4527 | N17: 109707 | O17: 8549 | P17: 566 | Q17: 8173 | R17: 32255.37 | S17: 152397.01
A18: 민간 Business enterprises | B18: 5101881.186 | C18: 3563666.032 | D18: 8624 | E18: 50093 | F18: 229305 | G18: 267470 | H18: 9755 | I18: 46087 | J18: 291138 | K18: 97591 | L18: 677100 | M18: 26086 | N18: 818214 | O18: 31662 | P18: 30760 | Q18: 126847 | R18: 3036985.186 | S18: 2917830.032
A19: 민간기업체 Private companies | B19: 4945520.918 | C19: 3508812.58 | D19: 8624 | E19: 50093 | F19: 174331 | G19: 264369 | H19: 7916 | I19: 46087 | J19: 285247 | K19: 92039 | L19: 647457 | M19: 25783 | N19: 792526 | O19: 31280 | P19: 27593 | Q19: 85564 | R19: 3001826.918 | S19: 2913597.58
A20: 정부투자〮재투자기관 Gov't investment | B20: 156360.268 | C20: 54853.452 | D20: 0 | E20: 0 | F20: 54974 | G20: 3101 | H20: 1839 | I20: 0 | J20: 5891 | K20: 5552 | L20: 29643 | M20: 303 | N20: 25688 | O20: 382 | P20: 3167 | Q20: 41283 | R20: 35158.268 | S20: 4232.452
A21: 외국 Rest of the world | B21: 440798.038 | C21: 2525176.624 | D21: 0 | E21: 2476 | F21: 40776 | G21: 15963 | H21: 18 | I21: 522 | J21: 123484 | K21: 41917 | L21: 46023 | M21: 12919 | N21: 40305 | O21: 5897 | P21: 0 | Q21: 1726 | R21: 190192.038 | S21: 2443756.624
A23: 주 : 1. 연구수행주체 중 '국·공립연구기관(의료기관 포함)'은 '국·공립연구기관'과 '국·공립병원'의 합
A24: 2. 연구수행주체 중 '비영리 법인'는 '기타 비영리'와 '사립병원'의 합

Sheet 2-12
A1: 2-12) 2024년도 연구수행주체별 연구개발인력, 연구원(전공, 학위), 연구원 1인당 연구개발비
A2: R&D personnel, researchers(major field of study, degree) and R&D expenditure per researcher by sector of performance, 2024
Q4: (단위 : 명, 백만원 Unit : Headcount, Won, Millions)
A5: 연구수행주체 Sector of performance | B5: 연구개발인력 R&D personnel | F5: 전공별 연구원 Researchers by major field of study | L5: 학위별 연구원 Researchers by degree | P5: 연구개발비 R&D expenditures
B6: 총계 Total | C6: 연구원 Researchers | D6: 연구보조원 Other R&D personnel | F6: 이학 Natural sciences | G6: 공학 Engineering & technology | H6: 의〮약보건학 Medical & health sciences | I6: 농업과학 Agricultural sciences | J6: 인문학 Humanities | K6: 사회과학 Social sciences | L6: 박사 Doctoral | M6: 석사 Master's | N6: 학사 Bachelor's | O6: 기타 Others | P6: 계 Total | Q6: 연구원1인당 (1,000 won) Per researcher
D7: 연구지원·기능 Technicians and equivalent staff | E7: 연구행정·기타 Other supporting staff
A8: 총계 Total | B8: 839582 | C8: 615063 | D8: 145539 | E8: 78980 | F8: 93799 | G8: 408116 | H8: 37607 | I8: 11057 | J8: 30955 | K8: 33529 | L8: 130626 | M8: 172188 | N8: 284597 | O8: 27652 | P8: 131046204.8 | Q8: =IFERROR(P8*1000/C8,"-") -> 213061.4341
A9: 공공연구기관 Public research institutes | B9: 72769 | C9: 46738 | D9: 13581 | E9: 12450 | F9: 8902 | G9: 24102 | H9: 3544 | I9: 2608 | J9: 1176 | K9: 6406 | L9: 23604 | M9: 15630 | N9: 6925 | O9: 579 | P9: 13293570 | Q9: =IFERROR(P9*1000/C9,"-") -> 284427.4466
A10: 국·공립 National & Pub. | B10: 13418 | C10: 6266 | D10: 5123 | E10: 2029 | F10: 2062 | G10: 1087 | H10: 415 | I10: 2071 | J10: 379 | K10: 252 | L10: 3007 | M10: 2441 | N10: 796 | O10: 22 | P10: 1031743 | Q10: 164657.3572
A11: 정부출연 Gov't funded | B11: 35760 | C11: 23554 | D11: 5563 | E11: 6643 | F11: 4392 | G11: 14402 | H11: 689 | I11: 201 | J11: 209 | K11: 3661 | L11: 15133 | M11: 7041 | N11: 1312 | O11: 68 | P11: 9334634 | Q11: 396307.8033
A12: 지방자치단체출연 Local gov't funded | B12: 4663 | C12: 2842 | D12: 596 | E12: 1225 | F12: 500 | G12: 1226 | H12: 81 | I12: 93 | J12: 193 | K12: 749 | L12: 1178 | M12: 978 | N12: 640 | O12: 46 | P12: 395292 | Q12: 139089.3737
A13: 기타비영리 Other non-profit corporation | B13: 16900 | C13: 12535 | D13: 2148 | E13: 2217 | F13: 1761 | G13: 7288 | H13: 1246 | I13: 221 | J13: 380 | K13: 1639 | L13: 3616 | M13: 4718 | N13: 3783 | O13: 418 | P13: 2291449 | Q13: 182804.0686
A14: 국·공립병원 National & Pub. hospital | B14: 591 | C14: 553 | D14: 11 | E14: 27 | F14: 20 | G14: 21 | H14: 424 | I14: 3 | J14: 6 | K14: 79 | L14: 158 | M14: 225 | N14: 160 | O14: 10 | P14: 23342 | Q14: 42209.76492
A15: 사립병원 Private hospital | B15: 1437 | C15: 988 | D15: 140 | E15: 309 | F15: 167 | G15: 78 | H15: 689 | I15: 19 | J15: 9 | K15: 26 | L15: 512 | M15: 227 | N15: 234 | O15: 15 | P15: 217110 | Q15: 219746.9636
A16: 대학 Higher educations | B16: 233795 | C16: 120974 | D16: 64949 | E16: 47872 | F16: 19057 | G16: 44769 | H16: 26213 | I16: 4672 | J16: 10759 | K16: 15504 | L16: 69878 | M16: 42602 | N16: 8141 | O16: 353 | P16: 11053800 | Q16: 91373.35295
A17: 국·공립 National & Pub. | B17: 93210 | C17: 47763 | D17: 25226 | E17: 20221 | F17: 9373 | G17: 18277 | H17: 8232 | I17: 3392 | J17: 3436 | K17: 5053 | L17: 24750 | M17: 19073 | N17: 3687 | O17: 253 | P17: 4939906 | Q17: 103425.3711
A18: 사립 Private | B18: 140585 | C18: 73211 | D18: 39723 | E18: 27651 | F18: 9684 | G18: 26492 | H18: 17981 | I18: 1280 | J18: 7323 | K18: 10451 | L18: 45128 | M18: 23529 | N18: 4454 | O18: 100 | P18: 6113894 | Q18: 83510.59267
A19: 기업체 Business enterprises | B19: 533018 | C19: 447351 | D19: 67009 | E19: 18658 | F19: 65840 | G19: 339245 | H19: 7850 | I19: 3777 | J19: 19020 | K19: 11619 | L19: 37144 | M19: 113956 | N19: 269531 | O19: 26720 | P19: 106698834.8 | Q19: 238512.5658
A20: 정부투자기관 Gov't investment | B20: 3977 | C20: 2911 | D20: 470 | E20: 596 | F20: 248 | G20: 2424 | H20: 45 | I20: 23 | J20: 33 | K20: 138 | L20: 906 | M20: 1224 | N20: 776 | O20: 5 | P20: 807763 | Q20: 277486.4308
A21: 민간기업 Private companies | B21: 529041 | C21: 444440 | D21: 66539 | E21: 18062 | F21: 65592 | G21: 336821 | H21: 7805 | I21: 3754 | J21: 18987 | K21: 11481 | L21: 36238 | M21: 112732 | N21: 268755 | O21: 26715 | P21: 105891071.8 | Q21: 238257.2942

Sheet 2-13
A1: 2-13) 2024년도 전공별 연구원(학위·성)
A2: Researchers(degree & gender) by major field of study, 2024
A5: 전공 Major field of study | B5: 계 Total | E5: 박사 Doctoral | H5: 석사 Master's | K5: 학사 Bachelor's | N5: 기타 Others
C6: 남성 Male | D6: 여성 Female | F6: 남성 Male | G6: 여성 Female | I6: 남성 Male | J6: 여성 Female | L6: 남성 Male | M6: 여성 Female | O6: 남성 Male | P6: 여성 Female
A7: 총계 Total | B7: 615063 | C7: 466141 | D7: 148922 | E7: 130626 | F7: 98339 | G7: 32287 | H7: 172188 | I7: 123742 | J7: 48446 | K7: 284597 | L7: 220991 | M7: 63606 | N7: 27652 | O7: 23069 | P7: 4583
A8: 이학 Natural sciences | B8: 93799 | C8: 63323 | D8: 30476 | E8: 24267 | F8: 17911 | G8: 6356 | H8: 31303 | I8: 18734 | J8: 12569 | K8: 34280 | L8: 23449 | M8: 10831 | N8: 3949 | O8: 3229 | P8: 720
A9: 공학 Engineering & technology | B9: 408116 | C9: 345380 | D9: 62736 | E9: 59901 | F9: 52846 | G9: 7055 | H9: 112693 | I9: 92240 | J9: 20453 | K9: 215809 | L9: 182334 | M9: 33475 | N9: 19713 | O9: 17960 | P9: 1753
A10: 의〮약〮보건학 Medical & health sciences | B10: 37607 | C10: 17837 | D10: 19770 | E10: 19326 | F10: 10782 | G10: 8544 | H10: 10992 | I10: 4444 | J10: 6548 | K10: 6544 | L10: 2280 | M10: 4264 | N10: 745 | O10: 331 | P10: 414
A11: 농업과학 Agricultural sciences | B11: 11057 | C11: 7134 | D11: 3923 | E11: 4527 | F11: 3286 | G11: 1241 | H11: 4013 | I11: 2192 | J11: 1821 | K11: 2291 | L11: 1490 | M11: 801 | N11: 226 | O11: 166 | P11: 60
A12: 인문학 Humanities | B12: 30955 | C12: 13642 | D12: 17313 | E12: 8293 | F12: 4587 | G12: 3706 | H12: 4647 | I12: 2045 | J12: 2602 | K12: 16028 | L12: 6160 | M12: 9868 | N12: 1987 | O12: 850 | P12: 1137
A13: 사회과학 Social sciences | B13: 33529 | C13: 18825 | D13: 14704 | E13: 14312 | F13: 8927 | G13: 5385 | H13: 8540 | I13: 4087 | J13: 4453 | K13: 9645 | L13: 5278 | M13: 4367 | N13: 1032 | O13: 533 | P13: 499
A14: 공공연구기관 Public research institutes | B14: 46738 | C14: 32082 | D14: 14656 | E14: 23604 | F14: 18166 | G14: 5438 | H14: 15630 | I14: 9705 | J14: 5925 | K14: 6925 | L14: 3843 | M14: 3082 | N14: 579 | O14: 368 | P14: 211
A15: 이학 Natural sciences | B15: 8902 | C15: 5599 | D15: 3303 | E15: 5329 | F15: 3904 | G15: 1425 | H15: 2541 | I15: 1226 | J15: 1315 | K15: 974 | L15: 428 | M15: 546 | N15: 58 | O15: 41 | P15: 17
A16: 공학 Engineering & technology | B16: 24102 | C16: 19605 | D16: 4497 | E16: 12017 | F16: 10508 | G16: 1509 | H16: 8356 | I16: 6413 | J16: 1943 | K16: 3399 | L16: 2419 | M16: 980 | N16: 330 | O16: 265 | P16: 65
A17: 의〮약〮보건학 Medical & health sciences | B17: 3544 | C17: 1391 | D17: 2153 | E17: 1612 | F17: 810 | G17: 802 | H17: 1086 | I17: 395 | J17: 691 | K17: 749 | L17: 161 | M17: 588 | N17: 97 | O17: 25 | P17: 72
A18: 농업과학 Agricultural sciences | B18: 2608 | C18: 1617 | D18: 991 | E18: 1337 | F18: 920 | G18: 417 | H18: 839 | I18: 436 | J18: 403 | K18: 428 | L18: 258 | M18: 170 | N18: 4 | O18: 3 | P18: 1
A19: 인문학 Humanities | B19: 1176 | C19: 483 | D19: 693 | E19: 233 | F19: 131 | G19: 102 | H19: 425 | I19: 172 | J19: 253 | K19: 478 | L19: 171 | M19: 307 | N19: 40 | O19: 9 | P19: 31
A20: 사회과학 Social sciences | B20: 6406 | C20: 3387 | D20: 3019 | E20: 3076 | F20: 1893 | G20: 1183 | H20: 2383 | I20: 1063 | J20: 1320 | K20: 897 | L20: 406 | M20: 491 | N20: 50 | O20: 25 | P20: 25
A21: 대학 Higher educations | B21: 120974 | C21: 77262 | D21: 43712 | E21: 69878 | F21: 48265 | G21: 21613 | H21: 42602 | I21: 25398 | J21: 17204 | K21: 8141 | L21: 3477 | M21: 4664 | N21: 353 | O21: 122 | P21: 231
A22: 이학 Natural sciences | B22: 19057 | C22: 12471 | D22: 6586 | E22: 10275 | F22: 7412 | G22: 2863 | H22: 7447 | I22: 4460 | J22: 2987 | K22: 1288 | L22: 584 | M22: 704 | N22: 47 | O22: 15 | P22: 32
A23: 공학 Engineering & technology | B23: 44769 | C23: 35120 | D23: 9649 | E23: 22114 | F23: 18796 | G23: 3318 | H23: 20120 | I23: 14800 | J23: 5320 | K23: 2469 | L23: 1478 | M23: 991 | N23: 66 | O23: 46 | P23: 20
A24: 의〮약〮보건학 Medical & health sciences | B24: 26213 | C24: 12699 | D24: 13514 | E24: 16323 | F24: 9130 | G24: 7193 | H24: 6584 | I24: 2567 | J24: 4017 | K24: 3130 | L24: 964 | M24: 2166 | N24: 176 | O24: 38 | P24: 138
A25: 농업과학 Agricultural sciences | B25: 4672 | C25: 2955 | D25: 1717 | E25: 2650 | F25: 1934 | G25: 716 | H25: 1852 | I25: 934 | J25: 918 | K25: 155 | L25: 82 | M25: 73 | N25: 15 | O25: 5 | P25: 10
A26: 인문학 Humanities | B26: 10759 | C26: 5532 | D26: 5227 | E26: 7746 | F26: 4292 | G26: 3454 | H26: 2623 | I26: 1123 | J26: 1500 | K26: 363 | L26: 106 | M26: 257 | N26: 27 | O26: 11 | P26: 16
A27: 사회과학 Social sciences | B27: 15504 | C27: 8485 | D27: 7019 | E27: 10770 | F27: 6701 | G27: 4069 | H27: 3976 | I27: 1514 | J27: 2462 | K27: 736 | L27: 263 | M27: 473 | N27: 22 | O27: 7 | P27: 15
A28: 기업체 Business enterprises | B28: 447351 | C28: 356797 | D28: 90554 | E28: 37144 | F28: 31908 | G28: 5236 | H28: 113956 | I28: 88639 | J28: 25317 | K28: 269531 | L28: 213671 | M28: 55860 | N28: 26720 | O28: 22579 | P28: 4141
A29: 이학 Natural sciences | B29: 65840 | C29: 45253 | D29: 20587 | E29: 8663 | F29: 6595 | G29: 2068 | H29: 21315 | I29: 13048 | J29: 8267 | K29: 32018 | L29: 22437 | M29: 9581 | N29: 3844 | O29: 3173 | P29: 671
A30: 공학 Engineering & technology | B30: 339245 | C30: 290655 | D30: 48590 | E30: 25770 | F30: 23542 | G30: 2228 | H30: 84217 | I30: 71027 | J30: 13190 | K30: 209941 | L30: 178437 | M30: 31504 | N30: 19317 | O30: 17649 | P30: 1668
A31: 의〮약〮보건학 Medical & health sciences | B31: 7850 | C31: 3747 | D31: 4103 | E31: 1391 | F31: 842 | G31: 549 | H31: 3322 | I31: 1482 | J31: 1840 | K31: 2665 | L31: 1155 | M31: 1510 | N31: 472 | O31: 268 | P31: 204
A32: 농업과학 Agricultural sciences | B32: 3777 | C32: 2562 | D32: 1215 | E32: 540 | F32: 432 | G32: 108 | H32: 1322 | I32: 822 | J32: 500 | K32: 1708 | L32: 1150 | M32: 558 | N32: 207 | O32: 158 | P32: 49
A33: 인문학 Humanities | B33: 19020 | C33: 7627 | D33: 11393 | E33: 314 | F33: 164 | G33: 150 | H33: 1599 | I33: 750 | J33: 849 | K33: 15187 | L33: 5883 | M33: 9304 | N33: 1920 | O33: 830 | P33: 1090
A34: 사회과학 Social sciences | B34: 11619 | C34: 6953 | D34: 4666 | E34: 466 | F34: 333 | G34: 133 | H34: 2181 | I34: 1510 | J34: 671 | K34: 8012 | L34: 4609 | M34: 3403 | N34: 960 | O34: 501 | P34: 459

Sheet 2-14
A1: 2-14) 2024년도 연구수행주체별 연구원(연령·성)
A2: Researchers(age & gender) by sector of performance, 2024
M4: (단위 : 명 Unit : Headcount)
A5: 연구수행주체 Sector of performance | B5: 계 Total | D5: 29세이하 ~ 29years | F5: 30∼39세 30∼39 years | H5: 40∼49세 40∼49 years | J5: 50∼59세 50∼59 years | L5: 60세이상 60~ years
C6: 여성 Female | E6: 여성 Female | G6: 여성 Female | I6: 여성 Female | K6: 여성 Female | M6: 여성 Female
A7: 총계 Total | B7: 615063 | C7: 148922 | D7: 94180 | E7: 40452 | F7: 222708 | G7: 62267 | H7: 177096 | I7: 31883 | J7: 94386 | K7: 12028 | L7: 26693 | M7: 2292
A8: 공공연구기관 Public research institutes | B8: 46738 | C8: 14656 | D8: 4311 | E8: 2530 | F8: 16180 | G8: 6208 | H8: 14319 | I8: 4214 | J8: 9733 | K8: 1538 | L8: 2195 | M8: 166
A9: 국·공립 National & Pub. | B9: 6266 | C9: 2864 | D9: 496 | E9: 360 | F9: 2140 | G9: 1168 | H9: 2023 | I9: 886 | J9: 1574 | K9: 442 | L9: 33 | M9: 8
A10: 정부출연 Gov't funded | B10: 23554 | C10: 5970 | D10: 1769 | E10: 963 | F10: 7614 | G10: 2424 | H10: 6989 | I10: 1820 | J10: 5527 | K10: 653 | L10: 1655 | M10: 110
A11: 지방자치단체출연 Local gov't funded | B11: 2842 | C11: 998 | D11: 238 | E11: 151 | F11: 1005 | G11: 437 | H11: 1003 | I11: 279 | J11: 558 | K11: 130 | L11: 38 | M11: 1
A12: 기타비영리 Other non-profit corporation | B12: 12535 | C12: 3939 | D12: 1687 | E12: 946 | F12: 4930 | G12: 1820 | H12: 3708 | I12: 914 | J12: 1820 | K12: 235 | L12: 390 | M12: 24
A13: 국·공립병원 National & Pub. hospital | B13: 553 | C13: 352 | D13: 56 | E13: 49 | F13: 196 | G13: 150 | H13: 205 | I13: 122 | J13: 71 | K13: 25 | L13: 25 | M13: 6
A14: 사립병원 Private hospital | B14: 988 | C14: 533 | D14: 65 | E14: 61 | F14: 295 | G14: 209 | H14: 391 | I14: 193 | J14: 183 | K14: 53 | L14: 54 | M14: 17
A15: 대학 Higher educations | B15: 120974 | C15: 43712 | D15: 22568 | E15: 9861 | F15: 37756 | G15: 14373 | H15: 27027 | I15: 11215 | J15: 22820 | K15: 6602 | L15: 10803 | M15: 1661
A16: 국·공립 National & Pub. | B16: 47763 | C16: 16195 | D16: 10505 | E16: 4361 | F16: 15719 | G16: 5584 | H16: 9986 | I16: 3781 | J16: 7794 | K16: 2026 | L16: 3759 | M16: 443
A17: 사립 Private | B17: 73211 | C17: 27517 | D17: 12063 | E17: 5500 | F17: 22037 | G17: 8789 | H17: 17041 | I17: 7434 | J17: 15026 | K17: 4576 | L17: 7044 | M17: 1218
A18: 기업체 Business enterprises | B18: 447351 | C18: 90554 | D18: 67301 | E18: 28061 | F18: 168772 | G18: 41686 | H18: 135750 | I18: 16454 | J18: 61833 | K18: 3888 | L18: 13695 | M18: 465
A19: 정부투자기관 Gov't investment | B19: 2911 | C19: 456 | D19: 156 | E19: 76 | F19: 903 | G19: 190 | H19: 993 | I19: 124 | J19: 831 | K19: 66 | L19: 28 | M19: 0
A20: 민간기업 Private companies | B20: 444440 | C20: 90098 | D20: 67145 | E20: 27985 | F20: 167869 | G20: 41496 | H20: 134757 | I20: 16330 | J20: 61002 | K20: 3822 | L20: 13667 | M20: 465

Sheet 2-15
A1: 2-15) 2024년도 연구수행주체별 연구개발인력(총수, 상근상당)
A2: R&D personnel(Headcount, FTE) by sector of performance, 2024
J4: (단위 : 명 Unit : Headcount, FTE)
A5: 연구수행주체 Sector of performance | B5: 연구원 Researchers | E5: 연구보조원 Other R&D personnel
E6: 연구지원·기능 Technicians and equivalent staff | H6: 연구행정·기타 Other supporting staff
B7: 총수(A) Headcount(A) | C7: 상근상당(B) FTE(B) | D7: B/A | E7: 총수(A) Headcount(A) | F7: 상근상당(B) FTE(B) | G7: B/A | H7: 총수(A) Headcount(A) | I7: 상근상당(B) FTE(B) | J7: B/A
A8: 총계 Total | B8: 615063 | C8: 503345.868 | D8: 0.8183647334 | E8: 145539 | F8: 86350.33994 | G8: 0.5933140941 | H8: 78980 | I8: 35067.75237 | J8: 0.4440080068
A9: 공공연구기관 Public research institutes | B9: 46738 | C9: 40621.1342 | D9: 0.8691243571 | E9: 13581 | F9: 10098.598 | G9: 0.7435827995 | H9: 12450 | I9: 5798.168 | J9: 0.4657163052
A10: 국·공립 National & Pub. | B10: 6266 | C10: 4963.347 | D10: 0.7921077242 | E10: 5123 | F10: 3425.87 | G10: 0.6687234043 | H10: 2029 | I10: 532.879 | J10: 0.2626313455
A11: 정부출연 Gov't funded | B11: 23554 | C11: 22551.955 | D11: 0.9574575444 | E11: 5563 | F11: 4630.353 | G11: 0.8323481934 | H11: 6643 | I11: 3717.866 | J11: 0.5596667168
A12: 지방자치단체출연 Local gov't funded | B12: 2842 | C12: 2098.1933 | D12: 0.7382805419 | E12: 596 | F12: 330.612 | G12: 0.5547181208 | H12: 1225 | I12: 487.0422 | J12: 0.3975854694
A13: 기타비영리 Other non-profit corporation | B13: 12535 | C13: 10059.4179 | D13: 0.802506414 | E13: 2148 | F13: 1596.463 | G13: 0.7432323091 | H13: 2217 | I13: 923.3608 | J13: 0.4164911141
A14: 국·공립병원 National & Pub. hospital | B14: 553 | C14: 167.921 | D14: 0.3036546112 | E14: 11 | F14: 4.4 | G14: 0.4 | H14: 27 | I14: 19.32 | J14: 0.7155555556
A15: 사립병원 Private hospital | B15: 988 | C15: 780.3 | D15: 0.7897773279 | E15: 140 | F15: 110.9 | G15: 0.7921428571 | H15: 309 | I15: 117.7 | J15: 0.3809061489
A16: 대학 Higher educations | B16: 120974 | C16: 50734.53655 | D16: 0.419383806 | E16: 64949 | F16: 26708.02551 | G16: 0.411215346 | H16: 47872 | I16: 19871.91437 | J16: 0.4151051632
A17: 국·공립 National & Pub. | B17: 47763 | C17: 18688.6208 | D17: 0.3912782028 | E17: 25226 | F17: 8629.388 | G17: 0.3420830889 | H17: 20221 | I17: 7127.5658 | J17: 0.352483349
A18: 사립 Private | B18: 73211 | C18: 32045.91575 | D18: 0.4377199567 | E18: 39723 | F18: 18078.63751 | G18: 0.4551176273 | H18: 27651 | I18: 12744.34857 | J18: 0.4609000967
A19: 기업체 Business enterprises | B19: 447351 | C19: 411990.1973 | D19: 0.9209551275 | E19: 67009 | F19: 49543.71643 | G19: 0.7393591373 | H19: 18658 | I19: 9397.67 | J19: 0.5036804588
A20: 정부투자기관 Gov't investment | B20: 2911 | C20: 2201.39 | D20: 0.7562315356 | E20: 470 | F20: 293.735 | G20: 0.6249680851 | H20: 596 | I20: 218.61 | J20: 0.366795302
A21: 민간기업 Private companies | B21: 444440 | C21: 409788.8073 | D21: 0.9220340367 | E21: 66539 | F21: 49249.98143 | G21: 0.7401671415 | H21: 18062 | I21: 9179.06 | J21: 0.5081973203

Sheet 2-16
A1: 2-16) 2024년도 연구수행주체별 연구개발비(지입, 부담, 지출, 사용)
A2: R&D expenditure(internal and external funds) by sector of performance, 2024
G4: (단위 : 백만원 Unit : Won, Millions)
A5: 연구수행주체 Sector of performance | B5: 연구개발 수행기관 R&D performing inst. | C5: 외부로부터 받은 연구개발비(A) Received outside | D5: 자체부담 연구개발비(B) Financed by own funds | E5: 외부로 지출한 연구개발비(C) Paid outside | F5: 자체사용 연구개발비 (D=A+B-C) Intramural expenditure | G5: 자체부담대비 자체사용비중 D/B(%)
A6: 총계 Total | B6: 58825 | C6: 33373014.88 | D6: 105504700.3 | E6: 7831510.368 | F6: 131046204.8 | G6: 124.2088783
A7: 공공연구기관 Public research institutes | B7: 504 | C7: 13716774 | D7: 920825 | E7: 1344029 | F7: 13293570 | G7: 1443.658676
A8: 국·공립 National & Pub. | B8: 83 | C8: 1007828 | D8: 262719 | E8: 238804 | F8: 1031743 | G8: 392.7173139
A9: 정부출연 Gov't funded | B9: 74 | C9: 9635940 | D9: 501843 | E9: 803149 | F9: 9334634 | G9: 1860.07058
A10: 지방자치단체출연 Local gov't funded | B10: 69 | C10: 414849 | D10: 30887 | E10: 50444 | F10: 395292 | G10: 1279.800563
A11: 기타비영리 Other non-profit corporation | B11: 238 | C11: 2427404 | D11: 97189 | E11: 233144 | F11: 2291449 | G11: 2357.72464
A12: 국·공립병원 National & Pub. hospital | B12: 17 | C12: 21919 | D12: 2143 | E12: 720 | F12: 23342 | G12: 1089.220719
A13: 사립병원 Private hospital | B13: 23 | C13: 208834 | D13: 26044 | E13: 17768 | F13: 217110 | G13: 833.627707
A14: 대학 Higher educations | B14: 385 | C14: 10798948 | D14: 471592 | E14: 216740 | F14: 11053800 | G14: 2343.932891
A15: 국·공립 National & Pub. | B15: 80 | C15: 4811019 | D15: 229544 | E15: 100657 | F15: 4939906 | G15: 2152.051894
A16: 사립 Private | B16: 305 | C16: 5987929 | D16: 242048 | E16: 116083 | F16: 6113894 | G16: 2525.901474
A17: 기업체 Business enterprises | B17: 57936 | C17: 8857292.876 | D17: 104112283.3 | E17: 6270741.368 | F17: 106698834.8 | G17: 102.4843865
A18: 정부투자기관 Gov't investment | B18: 46 | C18: 157660 | D18: 822297 | E18: 172194 | F18: 807763 | G18: 98.2325121
A19: 민간기업 Private companies | B19: 57890 | C19: 8699632.876 | D19: 103289986.3 | E19: 6098547.368 | F19: 105891071.8 | G19: 102.5182359

Sheet 2-17-1
A1: 2-17-1) 2024년도 연구수행주체별 연구개발비(경제사회목적)
A2: R&D expenditure(socio-economic objectives) by sector of performance, 2024
O4: (단위 : 백만원 Unit : Won, Millions)
A5: 연구수행주체 Sector of performance | B5: 연구개발비 R&D expenditure | C5: 경제사회목적 Socio-economic objectives
C7: 지구개발 및 탐사 Exploration and exploitation of the Earth | D7: 환경 Environment | E7: 우주개발 및 탐사 Exploration and exploitation of space | F7: 교통, 전기통신 등 기반시설 Transport, telecommunication and other infrastructures | G7: 에너지 Energy | H7: 산업생산 및 기술 Industrial production and technology | I7: 건강 Health | J7: 농업 Agriculture | K7: 교육 Education | L7: 문화, 휴양, 종교 및 매스미디어 Culture, recreation religion and mass media | M7: 정치·사회시스템, 조직 및 과정 Political and social systems, structures and processes | N7: 지식의 전반적 진보 General advancement of knowledge | O7: 국방 Defence
A9: 총계 Total | B9: 131046204.8 | C9: 739299.4818 | D9: 2826436.712 | E9: 1197990.643 | F9: 7974991.784 | G9: 7326885.984 | H9: 85414810.04 | I9: 10304635.01 | J9: 1927523.335 | K9: 1253006.111 | L9: 1485823.696 | M9: 1009642.028 | N9: 3404212.313 | O9: 6180947.685
A10: 공공연구기관 Public research institutes | B10: 13293570 | C10: 432983.8414 | D10: 544785.1521 | E10: 763558.858 | F10: 723531.4682 | G10: 1074074.89 | H10: 3232270.48 | I10: 1266156.953 | J10: 849001.1993 | K10: 324829.541 | L10: 67563.4562 | M10: 463299.594 | N10: 637092.4844 | O10: 2914422.082
A11: 국·공립 National & Pub. | B11: 1031743 | C11: 42478.817 | D11: 113212.29 | E11: 0 | F11: 459.942 | G11: 1915.76 | H11: 22260.023 | I11: 81136.046 | J11: 677475.308 | K11: 31133.6 | L11: 26392.61 | M11: 17722.874 | N11: 17555.73 | O11: 0
A12: 정부출연 Gov't funded | B12: 9334634 | C12: 382742.3284 | D12: 327126.4826 | E12: 750141.098 | F12: 598832.4614 | G12: 843791.9982 | H12: 1710244.456 | I12: 537646.5326 | J12: 119204.7136 | K12: 243218.39 | L12: 7019.4092 | M12: 340298.898 | N12: 567531.886 | O12: 2906835.346
A13: 지방자치단체출연 Local gov't funded | B13: 395292 | C13: 75.9 | D13: 20396.28272 | E13: 21.45 | F13: 34267.1618 | G13: 32593.58544 | H13: 176442.3429 | I13: 29778.23508 | J13: 27492.03666 | K13: 4313.899 | L13: 8739.884 | M13: 32576.456 | N13: 28195.6464 | O13: 399.12
A14: 기타비영리 Other non-profit corporation | B14: 2291449 | C14: 7686.796 | D14: 84050.0968 | E14: 13396.31 | F14: 89971.903 | G14: 195773.5468 | H14: 1323052.869 | I14: 377669.579 | J14: 24829.141 | K14: 46163.652 | L14: 25411.553 | M14: 72697.966 | N14: 23561.772 | O14: 7183.8158
A15: 국·공립병원 National & Pub. hospital | B15: 23342 | C15: 0 | D15: 0 | E15: 0 | F15: 0 | G15: 0 | H15: 37 | I15: 23297.8 | J15: 0 | K15: 0 | L15: 0 | M15: 3.4 | N15: 0 | O15: 3.8
A16: 사립병원 Private hospital | B16: 217110 | C16: 0 | D16: 0 | E16: 0 | F16: 0 | G16: 0 | H16: 233.79 | I16: 216628.76 | J16: 0 | K16: 0 | L16: 0 | M16: 0 | N16: 247.45 | O16: 0
A17: 대학 Higher educations | B17: 11053800 | C17: 147397.2718 | D17: 432704.7582 | E17: 152920.0246 | F17: 806718.3938 | G17: 751768.3151 | H17: 2495506.484 | I17: 3076662.747 | J17: 423851.7718 | K17: 605287.2461 | L17: 331573.8818 | M17: 375107.4281 | N17: 1344581.529 | O17: 109720.1487
A18: 국·공립 National & Pub. | B18: 4939906 | C18: 98818.82478 | D18: 249270.2816 | E18: 114839.9717 | F18: 290215.4178 | G18: 489195.2121 | H18: 1026315.241 | I18: 1202883.131 | J18: 321892.4379 | K18: 312805.1099 | L18: 123325.6793 | M18: 102427.2217 | N18: 550434.6563 | O18: 57482.81414
A19: 사립 Private | B19: 6113894 | C19: 48578.447 | D19: 183434.4766 | E19: 38080.0529 | F19: 516502.976 | G19: 262573.103 | H19: 1469191.243 | I19: 1873779.615 | J19: 101959.3339 | K19: 292482.1362 | L19: 208248.2025 | M19: 272680.2064 | N19: 794146.8724 | O19: 52237.3346
A20: 기업체 Business enterprises | B20: 106698834.8 | C20: 158918.3687 | D20: 1848946.801 | E20: 281511.76 | F20: 6444741.922 | G20: 5501042.778 | H20: 79687033.08 | I20: 5961815.306 | J20: 654670.3642 | K20: 322889.3236 | L20: 1086686.358 | M20: 171235.0056 | N20: 1422538.3 | O20: 3156805.454
A21: 정부투자기관 Gov't investment | B21: 807763 | C21: 24.75 | D21: 52921.98 | E21: 6002.88 | F21: 122539.54 | G21: 467921.875 | H21: 20533.4 | I21: 105843.125 | J21: 6714.25 | K21: 0 | L21: 1226.66 | M21: 22564.4 | N21: 838.24 | O21: 631.9
A22: 민간기업 Private companies | B22: 105891071.8 | C22: 158893.6187 | D22: 1796024.821 | E22: 275508.88 | F22: 6322202.382 | G22: 5033120.903 | H22: 79666499.68 | I22: 5855972.181 | J22: 647956.1142 | K22: 322889.3236 | L22: 1085459.698 | M22: 148670.6056 | N22: 1421700.06 | O22: 3156173.554

Sheet 2-17-2
A1: 2-17-2) 2024년도 연구수행주체별 연구개발비 비중(경제사회목적)
A2: R&D expenditure rate(socio-economic objectives) by sector of performance, 2024
O4: (단위 : % Unit : %)
A5: 연구수행주체 Sector of performance | B5: 연구개발비 (백만원) R&D expenditure (Won, Millions) | C5: 경제사회목적 Socio-economic objectives
C7: 지구개발 및 탐사 Exploration and exploitation of the Earth | D7: 환경 Environment | E7: 우주개발 및 탐사 Exploration and exploitation of space | F7: 교통, 전기통신 등 기반시설 Transport, telecommunication and other infrastructures | G7: 에너지 Energy | H7: 산업생산 및 기술 Industrial production and technology | I7: 건강 Health | J7: 농업 Agriculture | K7: 교육 Education | L7: 문화, 휴양, 종교 및 매스미디어 Culture, recreation religion and mass media | M7: 정치·사회시스템, 조직 및 과정 Political and social systems, structures and processes | N7: 지식의 전반적 진보 General advancement of knowledge | O7: 국방 Defence
A9: 총계 Total | B9: 131046204.8 | C9: ='2-17-1'!C9/'2-17-1'!$B9*100 -> 0.5641517683 | D9: ='2-17-1'!D9/'2-17-1'!$B9*100 -> 2.156824546 | E9: ='2-17-1'!E9/'2-17-1'!$B9*100 -> 0.9141742366 | F9: ='2-17-1'!F9/'2-17-1'!$B9*100 -> 6.085633533 | G9: ='2-17-1'!G9/'2-17-1'!$B9*100 -> 5.591070717 | H9: ='2-17-1'!H9/'2-17-1'!$B9*100 -> 65.17915582 | I9: ='2-17-1'!I9/'2-17-1'!$B9*100 -> 7.863360118 | J9: ='2-17-1'!J9/'2-17-1'!$B9*100 -> 1.470873069 | K9: ='2-17-1'!K9/'2-17-1'!$B9*100 -> 0.9561559699 | L9: ='2-17-1'!L9/'2-17-1'!$B9*100 -> 1.133816655 | M9: ='2-17-1'!M9/'2-17-1'!$B9*100 -> 0.7704473617 | N9: ='2-17-1'!N9/'2-17-1'!$B9*100 -> 2.597719116 | O9: ='2-17-1'!O9/'2-17-1'!$B9*100 -> 4.716617085
A10: 공공연구기관 Public research institutes | B10: 13293570 | C10: ='2-17-1'!C10/'2-17-1'!$B10*100 -> 3.257092274 | D10: ='2-17-1'!D10/'2-17-1'!$B10*100 -> 4.09811023 | E10: ='2-17-1'!E10/'2-17-1'!$B10*100 -> 5.743820945 | F10: ='2-17-1'!F10/'2-17-1'!$B10*100 -> 5.442717556 | G10: ='2-17-1'!G10/'2-17-1'!$B10*100 -> 8.079657236 | H10: ='2-17-1'!H10/'2-17-1'!$B10*100 -> 24.31454064 | I10: ='2-17-1'!I10/'2-17-1'!$B10*100 -> 9.524581829 | J10: ='2-17-1'!J10/'2-17-1'!$B10*100 -> 6.386555299 | K10: ='2-17-1'!K10/'2-17-1'!$B10*100 -> 2.443508711 | L10: ='2-17-1'!L10/'2-17-1'!$B10*100 -> 0.5082416251 | M10: ='2-17-1'!M10/'2-17-1'!$B10*100 -> 3.485140515 | N10: ='2-17-1'!N10/'2-17-1'!$B10*100 -> 4.792486024 | O10: ='2-17-1'!O10/'2-17-1'!$B10*100 -> 21.92354711
A11: 국·공립 National & Pub. | B11: 1031743 | C11: ='2-17-1'!C11/'2-17-1'!$B11*100 -> 4.117189746 | D11: ='2-17-1'!D11/'2-17-1'!$B11*100 -> 10.97291574 | E11: ='2-17-1'!E11/'2-17-1'!$B11*100 -> 0 | F11: ='2-17-1'!F11/'2-17-1'!$B11*100 -> 0.04457912484 | G11: ='2-17-1'!G11/'2-17-1'!$B11*100 -> 0.1856818995 | H11: ='2-17-1'!H11/'2-17-1'!$B11*100 -> 2.157516261 | I11: ='2-17-1'!I11/'2-17-1'!$B11*100 -> 7.863978336 | J11: ='2-17-1'!J11/'2-17-1'!$B11*100 -> 65.66318434 | K11: ='2-17-1'!K11/'2-17-1'!$B11*100 -> 3.017573175 | L11: ='2-17-1'!L11/'2-17-1'!$B11*100 -> 2.558060486 | M11: ='2-17-1'!M11/'2-17-1'!$B11*100 -> 1.717760528 | N11: ='2-17-1'!N11/'2-17-1'!$B11*100 -> 1.701560369 | O11: ='2-17-1'!O11/'2-17-1'!$B11*100 -> 0
A12: 정부출연 Gov't funded | B12: 9334634 | C12: ='2-17-1'!C12/'2-17-1'!$B12*100 -> 4.100239264 | D12: ='2-17-1'!D12/'2-17-1'!$B12*100 -> 3.504438231 | E12: ='2-17-1'!E12/'2-17-1'!$B12*100 -> 8.036106161 | F12: ='2-17-1'!F12/'2-17-1'!$B12*100 -> 6.415168087 | G12: ='2-17-1'!G12/'2-17-1'!$B12*100 -> 9.039368852 | H12: ='2-17-1'!H12/'2-17-1'!$B12*100 -> 18.32149451 | I12: ='2-17-1'!I12/'2-17-1'!$B12*100 -> 5.759695909 | J12: ='2-17-1'!J12/'2-17-1'!$B12*100 -> 1.277015399 | K12: ='2-17-1'!K12/'2-17-1'!$B12*100 -> 2.60554822 | L12: ='2-17-1'!L12/'2-17-1'!$B12*100 -> 0.07519747641 | M12: ='2-17-1'!M12/'2-17-1'!$B12*100 -> 3.645551588 | N12: ='2-17-1'!N12/'2-17-1'!$B12*100 -> 6.079851508 | O12: ='2-17-1'!O12/'2-17-1'!$B12*100 -> 31.1403248
A13: 지방자치단체출연 Local gov't funded | B13: 395292 | C13: ='2-17-1'!C13/'2-17-1'!$B13*100 -> 0.01920099572 | D13: ='2-17-1'!D13/'2-17-1'!$B13*100 -> 5.159801544 | E13: ='2-17-1'!E13/'2-17-1'!$B13*100 -> 0.005426368356 | F13: ='2-17-1'!F13/'2-17-1'!$B13*100 -> 8.668822491 | G13: ='2-17-1'!G13/'2-17-1'!$B13*100 -> 8.245445251 | H13: ='2-17-1'!H13/'2-17-1'!$B13*100 -> 44.63595087 | I13: ='2-17-1'!I13/'2-17-1'!$B13*100 -> 7.533224826 | J13: ='2-17-1'!J13/'2-17-1'!$B13*100 -> 6.954867961 | K13: ='2-17-1'!K13/'2-17-1'!$B13*100 -> 1.091319581 | L13: ='2-17-1'!L13/'2-17-1'!$B13*100 -> 2.210994404 | M13: ='2-17-1'!M13/'2-17-1'!$B13*100 -> 8.241111887 | N13: ='2-17-1'!N13/'2-17-1'!$B13*100 -> 7.132865426 | O13: ='2-17-1'!O13/'2-17-1'!$B13*100 -> 0.100968398
A14: 기타비영리 Other non-profit corporation | B14: 2291449 | C14: ='2-17-1'!C14/'2-17-1'!$B14*100 -> 0.3354556876 | D14: ='2-17-1'!D14/'2-17-1'!$B14*100 -> 3.66798898 | E14: ='2-17-1'!E14/'2-17-1'!$B14*100 -> 0.584621783 | F14: ='2-17-1'!F14/'2-17-1'!$B14*100 -> 3.926419615 | G14: ='2-17-1'!G14/'2-17-1'!$B14*100 -> 8.543657171 | H14: ='2-17-1'!H14/'2-17-1'!$B14*100 -> 57.73870021 | I14: ='2-17-1'!I14/'2-17-1'!$B14*100 -> 16.48169254 | J14: ='2-17-1'!J14/'2-17-1'!$B14*100 -> 1.083556344 | K14: ='2-17-1'!K14/'2-17-1'!$B14*100 -> 2.014605256 | L14: ='2-17-1'!L14/'2-17-1'!$B14*100 -> 1.1089731 | M14: ='2-17-1'!M14/'2-17-1'!$B14*100 -> 3.172576217 | N14: ='2-17-1'!N14/'2-17-1'!$B14*100 -> 1.028247716 | O14: ='2-17-1'!O14/'2-17-1'!$B14*100 -> 0.3135053759
A15: 국·공립병원 National & Pub. hospital | B15: 23342 | C15: ='2-17-1'!C15/'2-17-1'!$B15*100 -> 0 | D15: ='2-17-1'!D15/'2-17-1'!$B15*100 -> 0 | E15: ='2-17-1'!E15/'2-17-1'!$B15*100 -> 0 | F15: ='2-17-1'!F15/'2-17-1'!$B15*100 -> 0 | G15: ='2-17-1'!G15/'2-17-1'!$B15*100 -> 0 | H15: ='2-17-1'!H15/'2-17-1'!$B15*100 -> 0.1585125525 | I15: ='2-17-1'!I15/'2-17-1'!$B15*100 -> 99.81064176 | J15: ='2-17-1'!J15/'2-17-1'!$B15*100 -> 0 | K15: ='2-17-1'!K15/'2-17-1'!$B15*100 -> 0 | L15: ='2-17-1'!L15/'2-17-1'!$B15*100 -> 0 | M15: ='2-17-1'!M15/'2-17-1'!$B15*100 -> 0.01456601834 | N15: ='2-17-1'!N15/'2-17-1'!$B15*100 -> 0 | O15: ='2-17-1'!O15/'2-17-1'!$B15*100 -> 0.01627966755
A16: 사립병원 Private hospital | B16: 217110 | C16: ='2-17-1'!C16/'2-17-1'!$B16*100 -> 0 | D16: ='2-17-1'!D16/'2-17-1'!$B16*100 -> 0 | E16: ='2-17-1'!E16/'2-17-1'!$B16*100 -> 0 | F16: ='2-17-1'!F16/'2-17-1'!$B16*100 -> 0 | G16: ='2-17-1'!G16/'2-17-1'!$B16*100 -> 0 | H16: ='2-17-1'!H16/'2-17-1'!$B16*100 -> 0.1076827415 | I16: ='2-17-1'!I16/'2-17-1'!$B16*100 -> 99.77834278 | J16: ='2-17-1'!J16/'2-17-1'!$B16*100 -> 0 | K16: ='2-17-1'!K16/'2-17-1'!$B16*100 -> 0 | L16: ='2-17-1'!L16/'2-17-1'!$B16*100 -> 0 | M16: ='2-17-1'!M16/'2-17-1'!$B16*100 -> 0 | N16: ='2-17-1'!N16/'2-17-1'!$B16*100 -> 0.113974483 | O16: ='2-17-1'!O16/'2-17-1'!$B16*100 -> 0
A17: 대학 Higher educations | B17: 11053800 | C17: ='2-17-1'!C17/'2-17-1'!$B17*100 -> 1.333453399 | D17: ='2-17-1'!D17/'2-17-1'!$B17*100 -> 3.91453399 | E17: ='2-17-1'!E17/'2-17-1'!$B17*100 -> 1.38341588 | F17: ='2-17-1'!F17/'2-17-1'!$B17*100 -> 7.298109192 | G17: ='2-17-1'!G17/'2-17-1'!$B17*100 -> 6.800994365 | H17: ='2-17-1'!H17/'2-17-1'!$B17*100 -> 22.57600539 | I17: ='2-17-1'!I17/'2-17-1'!$B17*100 -> 27.83353007 | J17: ='2-17-1'!J17/'2-17-1'!$B17*100 -> 3.834444009 | K17: ='2-17-1'!K17/'2-17-1'!$B17*100 -> 5.475829544 | L17: ='2-17-1'!L17/'2-17-1'!$B17*100 -> 2.999637064 | M17: ='2-17-1'!M17/'2-17-1'!$B17*100 -> 3.393470373 | N17: ='2-17-1'!N17/'2-17-1'!$B17*100 -> 12.16397554 | O17: ='2-17-1'!O17/'2-17-1'!$B17*100 -> 0.9926011755
A18: 국·공립 National & Pub. | B18: 4939906 | C18: ='2-17-1'!C18/'2-17-1'!$B18*100 -> 2.000419133 | D18: ='2-17-1'!D18/'2-17-1'!$B18*100 -> 5.046053135 | E18: ='2-17-1'!E18/'2-17-1'!$B18*100 -> 2.324740019 | F18: ='2-17-1'!F18/'2-17-1'!$B18*100 -> 5.874917819 | G18: ='2-17-1'!G18/'2-17-1'!$B18*100 -> 9.902925524 | H18: ='2-17-1'!H18/'2-17-1'!$B18*100 -> 20.77600751 | I18: ='2-17-1'!I18/'2-17-1'!$B18*100 -> 24.35032431 | J18: ='2-17-1'!J18/'2-17-1'!$B18*100 -> 6.516165246 | K18: ='2-17-1'!K18/'2-17-1'!$B18*100 -> 6.332207736 | L18: ='2-17-1'!L18/'2-17-1'!$B18*100 -> 2.496518745 | M18: ='2-17-1'!M18/'2-17-1'!$B18*100 -> 2.073464995 | N18: ='2-17-1'!N18/'2-17-1'!$B18*100 -> 11.14261397 | O18: ='2-17-1'!O18/'2-17-1'!$B18*100 -> 1.163641862
A19: 사립 Private | B19: 6113894 | C19: ='2-17-1'!C19/'2-17-1'!$B19*100 -> 0.7945582145 | D19: ='2-17-1'!D19/'2-17-1'!$B19*100 -> 3.000288795 | E19: ='2-17-1'!E19/'2-17-1'!$B19*100 -> 0.6228445063 | F19: ='2-17-1'!F19/'2-17-1'!$B19*100 -> 8.448019805 | G19: ='2-17-1'!G19/'2-17-1'!$B19*100 -> 4.29469505 | H19: ='2-17-1'!H19/'2-17-1'!$B19*100 -> 24.03036826 | I19: ='2-17-1'!I19/'2-17-1'!$B19*100 -> 30.64789176 | J19: ='2-17-1'!J19/'2-17-1'!$B19*100 -> 1.667666039 | K19: ='2-17-1'!K19/'2-17-1'!$B19*100 -> 4.783892822 | L19: ='2-17-1'!L19/'2-17-1'!$B19*100 -> 3.406146762 | M19: ='2-17-1'!M19/'2-17-1'!$B19*100 -> 4.460008735 | N19: ='2-17-1'!N19/'2-17-1'!$B19*100 -> 12.98921559 | O19: ='2-17-1'!O19/'2-17-1'!$B19*100 -> 0.8544036681
A20: 기업체 Business enterprises | B20: 106698834.8 | C20: ='2-17-1'!C20/'2-17-1'!$B20*100 -> 0.1489410535 | D20: ='2-17-1'!D20/'2-17-1'!$B20*100 -> 1.732865035 | E20: ='2-17-1'!E20/'2-17-1'!$B20*100 -> 0.2638377078 | F20: ='2-17-1'!F20/'2-17-1'!$B20*100 -> 6.040123993 | G20: ='2-17-1'!G20/'2-17-1'!$B20*100 -> 5.155672775 | H20: ='2-17-1'!H20/'2-17-1'!$B20*100 -> 74.68407055 | I20: ='2-17-1'!I20/'2-17-1'!$B20*100 -> 5.587516786 | J20: ='2-17-1'!J20/'2-17-1'!$B20*100 -> 0.6135684286 | K20: ='2-17-1'!K20/'2-17-1'!$B20*100 -> 0.3026174786 | L20: ='2-17-1'!L20/'2-17-1'!$B20*100 -> 1.018461317 | M20: ='2-17-1'!M20/'2-17-1'!$B20*100 -> 0.1604844194 | N20: ='2-17-1'!N20/'2-17-1'!$B20*100 -> 1.333227586 | O20: ='2-17-1'!O20/'2-17-1'!$B20*100 -> 2.958612866
A21: 정부투자기관 Gov't investment | B21: 807763 | C21: ='2-17-1'!C21/'2-17-1'!$B21*100 -> 0.00306401754 | D21: ='2-17-1'!D21/'2-17-1'!$B21*100 -> 6.551671716 | E21: ='2-17-1'!E21/'2-17-1'!$B21*100 -> 0.7431486711 | F21: ='2-17-1'!F21/'2-17-1'!$B21*100 -> 15.17023434 | G21: ='2-17-1'!G21/'2-17-1'!$B21*100 -> 57.92811443 | H21: ='2-17-1'!H21/'2-17-1'!$B21*100 -> 2.54200799 | I21: ='2-17-1'!I21/'2-17-1'!$B21*100 -> 13.10324006 | J21: ='2-17-1'!J21/'2-17-1'!$B21*100 -> 0.8312153441 | K21: ='2-17-1'!K21/'2-17-1'!$B21*100 -> 0 | L21: ='2-17-1'!L21/'2-17-1'!$B21*100 -> 0.1518588992 | M21: ='2-17-1'!M21/'2-17-1'!$B21*100 -> 2.793443126 | N21: ='2-17-1'!N21/'2-17-1'!$B21*100 -> 0.1037730126 | O21: ='2-17-1'!O21/'2-17-1'!$B21*100 -> 0.07822839125
A22: 민간기업 Private companies | B22: 105891071.8 | C22: ='2-17-1'!C22/'2-17-1'!$B22*100 -> 0.1500538392 | D22: ='2-17-1'!D22/'2-17-1'!$B22*100 -> 1.696105999 | E22: ='2-17-1'!E22/'2-17-1'!$B22*100 -> 0.2601814065 | F22: ='2-17-1'!F22/'2-17-1'!$B22*100 -> 5.970477278 | G22: ='2-17-1'!G22/'2-17-1'!$B22*100 -> 4.753111681 | H22: ='2-17-1'!H22/'2-17-1'!$B22*100 -> 75.23438786 | I22: ='2-17-1'!I22/'2-17-1'!$B22*100 -> 5.53018501 | J22: ='2-17-1'!J22/'2-17-1'!$B22*100 -> 0.6119081647 | K22: ='2-17-1'!K22/'2-17-1'!$B22*100 -> 0.3049259188 | L22: ='2-17-1'!L22/'2-17-1'!$B22*100 -> 1.025071972 | M22: ='2-17-1'!M22/'2-17-1'!$B22*100 -> 0.1403995663 | N22: ='2-17-1'!N22/'2-17-1'!$B22*100 -> 1.342606167 | O22: ='2-17-1'!O22/'2-17-1'!$B22*100 -> 2.980585143

Sheet 2-18-1
A1: 2-18-1) 2024년도 연구수행주체별 연구개발비(지역)
A2: R&D expenditure(region) by sector of performance, 2024
S4: (단위 : 백만원 Unit : Won, Millions)
A5: 연구수행주체 Sector of performance | B5: 연구개발비 R&D expenditure | C5: 지역 Region
C6: 서울 Seoul | D6: 부산 Busan | E6: 대구 Daegu | F6: 인천 Incheon | G6: 광주 Gwangju | H6: 대전 Daejeon | I6: 울산 Ulsan | J6: 세종 Sejong | K6: 경기 Gyeonggi | L6: 강원 Gangwon | M6: 충북 Chungbuk | N6: 충남 Chungnam | O6: 전북 Jeonbuk | P6: 전남 Jeonnam | Q6: 경북 Gyeongbuk | R6: 경남 Gyeongnam | S6: 제주 Jeju
A7: 총계 Total | B7: 131046204.8 | C7: 19969504.65 | D7: 2198836.796 | E7: 1662584.26 | F7: 3680375.02 | G7: 1127982.628 | H7: 10770710.26 | I7: 992737.052 | J7: 729526.226 | K7: 72046181.59 | L7: 780636.076 | M7: 2337391.052 | N7: 4648071.738 | O7: 1454436.734 | P7: 946457.518 | Q7: 3859915.082 | R7: 3597233.054 | S7: 243625.082
A8: 공공연구기관 Public research institutes | B8: 13293570 | C8: 1310828 | D8: 642305 | E8: 291735 | F8: 281762 | G8: 217692 | H8: 5397256 | I8: 146200 | J8: 338388 | K8: 1164436 | L8: 175949 | M8: 620371 | N8: 454501 | O8: 429393 | P8: 265058 | Q8: 433863 | R8: 1017103 | S8: 106730
A9: 국·공립 National & Pub. | B9: 1031743 | C9: 38498 | D9: 145685 | E9: 10297 | F9: 67152 | G9: 16555 | H9: 16685 | I9: 12813 | J9: 1809 | K9: 62683 | L9: 48071 | M9: 89534 | N9: 95960 | O9: 166069 | P9: 60158 | Q9: 68047 | R9: 63061 | S9: 68666
A10: 정부출연 Gov't funded | B10: 9334634 | C10: 693102 | D10: 345347 | E10: 82976 | F10: 140434 | G10: 91789 | H10: 5351856 | I10: 108724 | J10: 328661 | K10: 359580 | L10: 76467 | M10: 384893 | N10: 141569 | O10: 151663 | P10: 98272 | Q10: 68288 | R10: 887634 | S10: 23379
A11: 지방자치단체출연 Local gov't funded | B11: 395292 | C11: 14143 | D11: 29989 | E11: 11167 | F11: 18813 | G11: 5955 | H11: 580 | I11: 5704 | J11: 0 | K11: 38669 | L11: 21597 | M11: 54776 | N11: 2503 | O11: 39572 | P11: 47330 | Q11: 79358 | R11: 12699 | S11: 12437
A12: 기타비영리 Other non-profit corporation | B12: 2291449 | C12: 359316 | D12: 121137 | E12: 186464 | F12: 55220 | G12: 103393 | H12: 28135 | I12: 18959 | J12: 7918 | K12: 672664 | L12: 28700 | M12: 91149 | N12: 214281 | O12: 72089 | P12: 59045 | Q12: 217715 | R12: 53016 | S12: 2248
A13: 국·공립병원 National & Pub. hospital | B13: 23342 | C13: 22329 | D13: 17 | E13: 0 | F13: 75 | G13: 0 | H13: 0 | I13: 0 | J13: 0 | K13: 89 | L13: 52 | M13: 19 | N13: 188 | O13: 0 | P13: 203 | Q13: 0 | R13: 370 | S13: 0
A14: 사립병원 Private hospital | B14: 217110 | C14: 183440 | D14: 130 | E14: 831 | F14: 68 | G14: 0 | H14: 0 | I14: 0 | J14: 0 | K14: 30751 | L14: 1062 | M14: 0 | N14: 0 | O14: 0 | P14: 50 | Q14: 455 | R14: 323 | S14: 0
A15: 대학 Higher educations | B15: 11053800 | C15: 3951445 | D15: 558632 | E15: 478492 | F15: 333438 | G15: 445405 | H15: 845554 | I15: 202070 | J15: 69449 | K15: 1762954 | L15: 294874 | M15: 298335 | N15: 289595 | O15: 416710 | P15: 201156 | Q15: 502447 | R15: 316127 | S15: 87117
A16: 국·공립 National & Pub. | B16: 4939906 | C16: 1293921 | D16: 404641 | E16: 415214 | F16: 46066 | G16: 334711 | H16: 754261 | I16: 166786 | J16: 4349 | K16: 110982 | L16: 189888 | M16: 221895 | N16: 82545 | O16: 320509 | P16: 175725 | Q16: 60847 | R16: 270684 | S16: 86882
A17: 사립 Private | B17: 6113894 | C17: 2657524 | D17: 153991 | E17: 63278 | F17: 287372 | G17: 110694 | H17: 91293 | I17: 35284 | J17: 65100 | K17: 1651972 | L17: 104986 | M17: 76440 | N17: 207050 | O17: 96201 | P17: 25431 | Q17: 441600 | R17: 45443 | S17: 235
A18: 기업체 Business enterprises | B18: 106698834.8 | C18: 14707231.65 | D18: 997899.796 | E18: 892357.26 | F18: 3065175.02 | G18: 464885.628 | H18: 4527900.264 | I18: 644467.052 | J18: 321689.226 | K18: 69118791.59 | L18: 309813.076 | M18: 1418685.052 | N18: 3903975.738 | O18: 608333.734 | P18: 480243.518 | Q18: 2923605.082 | R18: 2264003.054 | S18: 49778.082
A19: 정부투자기관 Gov't investment | B19: 807763 | C19: 23661 | D19: 2566 | E19: 6068 | F19: 20544 | G19: 2 | H19: 507118 | I19: 128 | J19: 0 | K19: 114294 | L19: 9398 | M19: 6887 | N19: 0 | O19: 19453 | P19: 37830 | Q19: 56720 | R19: 2509 | S19: 585
A20: 민간기업 Private companies | B20: 105891071.8 | C20: 14683570.65 | D20: 995333.796 | E20: 886289.26 | F20: 3044631.02 | G20: 464883.628 | H20: 4020782.264 | I20: 644339.052 | J20: 321689.226 | K20: 69004497.59 | L20: 300415.076 | M20: 1411798.052 | N20: 3903975.738 | O20: 588880.734 | P20: 442413.518 | Q20: 2866885.082 | R20: 2261494.054 | S20: 49193.082

Sheet 2-18-2
A1: 2-18-2) 2024년도 연구수행주체별 연구개발비 비중(지역)
A2: R&D expenditure rate(region) by sector of performance, 2024
S4: (단위 : % Unit : %)
A5: 연구수행주체 Sector of performance | B5: 연구개발비 (백만원) R&D expenditure (Won, Millions) | C5: 지역 Region
C6: 서울 Seoul | D6: 부산 Busan | E6: 대구 Daegu | F6: 인천 Incheon | G6: 광주 Gwangju | H6: 대전 Daejeon | I6: 울산 Ulsan | J6: 세종 Sejong | K6: 경기 Gyeonggi | L6: 강원 Gangwon | M6: 충북 Chungbuk | N6: 충남 Chungnam | O6: 전북 Jeonbuk | P6: 전남 Jeonnam | Q6: 경북 Gyeongbuk | R6: 경남 Gyeongnam | S6: 제주 Jeju
A7: 총계 Total | B7: ='2-18-1'!B7 -> 131046204.8 | C7: ='2-18-1'!C7/'2-18-2'!$B7*100 -> 15.23852192 | D7: ='2-18-1'!D7/'2-18-2'!$B7*100 -> 1.677909558 | E7: ='2-18-1'!E7/'2-18-2'!$B7*100 -> 1.268700808 | F7: ='2-18-1'!F7/'2-18-2'!$B7*100 -> 2.808456014 | G7: ='2-18-1'!G7/'2-18-2'!$B7*100 -> 0.8607518467 | H7: ='2-18-1'!H7/'2-18-2'!$B7*100 -> 8.219017314 | I7: ='2-18-1'!I7/'2-18-2'!$B7*100 -> 0.7575473501 | J7: ='2-18-1'!J7/'2-18-2'!$B7*100 -> 0.5566938982 | K7: ='2-18-1'!K7/'2-18-2'!$B7*100 -> 54.97769408 | L7: ='2-18-1'!L7/'2-18-2'!$B7*100 -> 0.5956952947 | M7: ='2-18-1'!M7/'2-18-2'!$B7*100 -> 1.783638874 | N7: ='2-18-1'!N7/'2-18-2'!$B7*100 -> 3.546895345 | O7: ='2-18-1'!O7/'2-18-2'!$B7*100 -> 1.10986559 | P7: ='2-18-1'!P7/'2-18-2'!$B7*100 -> 0.7222319176 | Q7: ='2-18-1'!Q7/'2-18-2'!$B7*100 -> 2.945461173 | R7: ='2-18-1'!R7/'2-18-2'!$B7*100 -> 2.745011242 | S7: ='2-18-1'!S7/'2-18-2'!$B7*100 -> 0.1859077738
A8: 공공연구기관 Public research institutes | B8: ='2-18-1'!B8 -> 13293570 | C8: ='2-18-1'!C8/'2-18-2'!$B8*100 -> 9.860616825 | D8: ='2-18-1'!D8/'2-18-2'!$B8*100 -> 4.831696828 | E8: ='2-18-1'!E8/'2-18-2'!$B8*100 -> 2.194557218 | F8: ='2-18-1'!F8/'2-18-2'!$B8*100 -> 2.119535986 | G8: ='2-18-1'!G8/'2-18-2'!$B8*100 -> 1.637573654 | H8: ='2-18-1'!H8/'2-18-2'!$B8*100 -> 40.60050084 | I8: ='2-18-1'!I8/'2-18-2'!$B8*100 -> 1.099779818 | J8: ='2-18-1'!J8/'2-18-2'!$B8*100 -> 2.545501321 | K8: ='2-18-1'!K8/'2-18-2'!$B8*100 -> 8.759392699 | L8: ='2-18-1'!L8/'2-18-2'!$B8*100 -> 1.323564701 | M8: ='2-18-1'!M8/'2-18-2'!$B8*100 -> 4.666699765 | N8: ='2-18-1'!N8/'2-18-2'!$B8*100 -> 3.418953675 | O8: ='2-18-1'!O8/'2-18-2'!$B8*100 -> 3.230080407 | P8: ='2-18-1'!P8/'2-18-2'!$B8*100 -> 1.993881252 | Q8: ='2-18-1'!Q8/'2-18-2'!$B8*100 -> 3.263705686 | R8: ='2-18-1'!R8/'2-18-2'!$B8*100 -> 7.651089963 | S8: ='2-18-1'!S8/'2-18-2'!$B8*100 -> 0.8028693571
A9: 국·공립 National & Pub. | B9: ='2-18-1'!B9 -> 1031743 | C9: ='2-18-1'!C9/'2-18-2'!$B9*100 -> 3.73135558 | D9: ='2-18-1'!D9/'2-18-2'!$B9*100 -> 14.12027995 | E9: ='2-18-1'!E9/'2-18-2'!$B9*100 -> 0.9980198557 | F9: ='2-18-1'!F9/'2-18-2'!$B9*100 -> 6.508597587 | G9: ='2-18-1'!G9/'2-18-2'!$B9*100 -> 1.604566253 | H9: ='2-18-1'!H9/'2-18-2'!$B9*100 -> 1.61716629 | I9: ='2-18-1'!I9/'2-18-2'!$B9*100 -> 1.241879034 | J9: ='2-18-1'!J9/'2-18-2'!$B9*100 -> 0.1753343614 | K9: ='2-18-1'!K9/'2-18-2'!$B9*100 -> 6.075447083 | L9: ='2-18-1'!L9/'2-18-2'!$B9*100 -> 4.659202922 | M9: ='2-18-1'!M9/'2-18-2'!$B9*100 -> 8.677936269 | N9: ='2-18-1'!N9/'2-18-2'!$B9*100 -> 9.300765791 | O9: ='2-18-1'!O9/'2-18-2'!$B9*100 -> 16.09596576 | P9: ='2-18-1'!P9/'2-18-2'!$B9*100 -> 5.830715595 | Q9: ='2-18-1'!Q9/'2-18-2'!$B9*100 -> 6.595343996 | R9: ='2-18-1'!R9/'2-18-2'!$B9*100 -> 6.112084114 | S9: ='2-18-1'!S9/'2-18-2'!$B9*100 -> 6.655339556
A10: 정부출연 Gov't funded | B10: ='2-18-1'!B10 -> 9334634 | C10: ='2-18-1'!C10/'2-18-2'!$B10*100 -> 7.425058122 | D10: ='2-18-1'!D10/'2-18-2'!$B10*100 -> 3.699630859 | E10: ='2-18-1'!E10/'2-18-2'!$B10*100 -> 0.8889046962 | F10: ='2-18-1'!F10/'2-18-2'!$B10*100 -> 1.504440345 | G10: ='2-18-1'!G10/'2-18-2'!$B10*100 -> 0.9833165392 | H10: ='2-18-1'!H10/'2-18-2'!$B10*100 -> 57.33332448 | I10: ='2-18-1'!I10/'2-18-2'!$B10*100 -> 1.164737685 | J10: ='2-18-1'!J10/'2-18-2'!$B10*100 -> 3.520877198 | K10: ='2-18-1'!K10/'2-18-2'!$B10*100 -> 3.852106039 | L10: ='2-18-1'!L10/'2-18-2'!$B10*100 -> 0.8191751278 | M10: ='2-18-1'!M10/'2-18-2'!$B10*100 -> 4.123278963 | N10: ='2-18-1'!N10/'2-18-2'!$B10*100 -> 1.516599365 | O10: ='2-18-1'!O10/'2-18-2'!$B10*100 -> 1.624734296 | P10: ='2-18-1'!P10/'2-18-2'!$B10*100 -> 1.052767575 | Q10: ='2-18-1'!Q10/'2-18-2'!$B10*100 -> 0.7315551954 | R10: ='2-18-1'!R10/'2-18-2'!$B10*100 -> 9.509039133 | S10: ='2-18-1'!S10/'2-18-2'!$B10*100 -> 0.2504543831
A11: 지방자치단체출연 Local gov't funded | B11: ='2-18-1'!B11 -> 395292 | C11: ='2-18-1'!C11/'2-18-2'!$B11*100 -> 3.577861429 | D11: ='2-18-1'!D11/'2-18-2'!$B11*100 -> 7.586543618 | E11: ='2-18-1'!E11/'2-18-2'!$B11*100 -> 2.825000253 | F11: ='2-18-1'!F11/'2-18-2'!$B11*100 -> 4.759266567 | G11: ='2-18-1'!G11/'2-18-2'!$B11*100 -> 1.506481285 | H11: ='2-18-1'!H11/'2-18-2'!$B11*100 -> 0.1467269765 | I11: ='2-18-1'!I11/'2-18-2'!$B11*100 -> 1.442983921 | J11: ='2-18-1'!J11/'2-18-2'!$B11*100 -> 0 | K11: ='2-18-1'!K11/'2-18-2'!$B11*100 -> 9.782388715 | L11: ='2-18-1'!L11/'2-18-2'!$B11*100 -> 5.463556055 | M11: ='2-18-1'!M11/'2-18-2'!$B11*100 -> 13.85709804 | N11: ='2-18-1'!N11/'2-18-2'!$B11*100 -> 0.6332027969 | O11: ='2-18-1'!O11/'2-18-2'!$B11*100 -> 10.01082744 | P11: ='2-18-1'!P11/'2-18-2'!$B11*100 -> 11.97342724 | Q11: ='2-18-1'!Q11/'2-18-2'!$B11*100 -> 20.07579207 | R11: ='2-18-1'!R11/'2-18-2'!$B11*100 -> 3.212561853 | S11: ='2-18-1'!S11/'2-18-2'!$B11*100 -> 3.146281736
A12: 기타비영리 Other non-profit corporation | B12: ='2-18-1'!B12 -> 2291449 | C12: ='2-18-1'!C12/'2-18-2'!$B12*100 -> 15.68073302 | D12: ='2-18-1'!D12/'2-18-2'!$B12*100 -> 5.286480301 | E12: ='2-18-1'!E12/'2-18-2'!$B12*100 -> 8.137383813 | F12: ='2-18-1'!F12/'2-18-2'!$B12*100 -> 2.40982889 | G12: ='2-18-1'!G12/'2-18-2'!$B12*100 -> 4.512123115 | H12: ='2-18-1'!H12/'2-18-2'!$B12*100 -> 1.227825712 | I12: ='2-18-1'!I12/'2-18-2'!$B12*100 -> 0.8273804043 | J12: ='2-18-1'!J12/'2-18-2'!$B12*100 -> 0.3455455478 | K12: ='2-18-1'!K12/'2-18-2'!$B12*100 -> 29.35539914 | L12: ='2-18-1'!L12/'2-18-2'!$B12*100 -> 1.252482599 | M12: ='2-18-1'!M12/'2-18-2'!$B12*100 -> 3.977788727 | N12: ='2-18-1'!N12/'2-18-2'!$B12*100 -> 9.351331843 | O12: ='2-18-1'!O12/'2-18-2'!$B12*100 -> 3.146000631 | P12: ='2-18-1'!P12/'2-18-2'!$B12*100 -> 2.576753836 | Q12: ='2-18-1'!Q12/'2-18-2'!$B12*100 -> 9.50119335 | R12: ='2-18-1'!R12/'2-18-2'!$B12*100 -> 2.313645209 | S12: ='2-18-1'!S12/'2-18-2'!$B12*100 -> 0.09810386354
A13: 국·공립병원 National & Pub.hospital | B13: ='2-18-1'!B13 -> 23342 | C13: ='2-18-1'!C13/'2-18-2'!$B13*100 -> 95.66018336 | D13: ='2-18-1'!D13/'2-18-2'!$B13*100 -> 0.07283009168 | E13: ='2-18-1'!E13/'2-18-2'!$B13*100 -> 0 | F13: ='2-18-1'!F13/'2-18-2'!$B13*100 -> 0.321309228 | G13: ='2-18-1'!G13/'2-18-2'!$B13*100 -> 0 | H13: ='2-18-1'!H13/'2-18-2'!$B13*100 -> 0 | I13: ='2-18-1'!I13/'2-18-2'!$B13*100 -> 0 | J13: ='2-18-1'!J13/'2-18-2'!$B13*100 -> 0 | K13: ='2-18-1'!K13/'2-18-2'!$B13*100 -> 0.3812869506 | L13: ='2-18-1'!L13/'2-18-2'!$B13*100 -> 0.2227743981 | M13: ='2-18-1'!M13/'2-18-2'!$B13*100 -> 0.08139833776 | N13: ='2-18-1'!N13/'2-18-2'!$B13*100 -> 0.8054151315 | O13: ='2-18-1'!O13/'2-18-2'!$B13*100 -> 0 | P13: ='2-18-1'!P13/'2-18-2'!$B13*100 -> 0.8696769771 | Q13: ='2-18-1'!Q13/'2-18-2'!$B13*100 -> 0 | R13: ='2-18-1'!R13/'2-18-2'!$B13*100 -> 1.585125525 | S13: ='2-18-1'!S13/'2-18-2'!$B13*100 -> 0
A14: 사립병원 Private hospital | B14: ='2-18-1'!B14 -> 217110 | C14: ='2-18-1'!C14/'2-18-2'!$B14*100 -> 84.4917323 | D14: ='2-18-1'!D14/'2-18-2'!$B14*100 -> 0.05987748146 | E14: ='2-18-1'!E14/'2-18-2'!$B14*100 -> 0.3827552853 | F14: ='2-18-1'!F14/'2-18-2'!$B14*100 -> 0.03132052876 | G14: ='2-18-1'!G14/'2-18-2'!$B14*100 -> 0 | H14: ='2-18-1'!H14/'2-18-2'!$B14*100 -> 0 | I14: ='2-18-1'!I14/'2-18-2'!$B14*100 -> 0 | J14: ='2-18-1'!J14/'2-18-2'!$B14*100 -> 0 | K14: ='2-18-1'!K14/'2-18-2'!$B14*100 -> 14.16378794 | L14: ='2-18-1'!L14/'2-18-2'!$B14*100 -> 0.4891529639 | M14: ='2-18-1'!M14/'2-18-2'!$B14*100 -> 0 | N14: ='2-18-1'!N14/'2-18-2'!$B14*100 -> 0 | O14: ='2-18-1'!O14/'2-18-2'!$B14*100 -> 0 | P14: ='2-18-1'!P14/'2-18-2'!$B14*100 -> 0.02302980056 | Q14: ='2-18-1'!Q14/'2-18-2'!$B14*100 -> 0.2095711851 | R14: ='2-18-1'!R14/'2-18-2'!$B14*100 -> 0.1487725116 | S14: ='2-18-1'!S14/'2-18-2'!$B14*100 -> 0
A15: 대학 Higher educations | B15: ='2-18-1'!B15 -> 11053800 | C15: ='2-18-1'!C15/'2-18-2'!$B15*100 -> 35.74739004 | D15: ='2-18-1'!D15/'2-18-2'!$B15*100 -> 5.05375527 | E15: ='2-18-1'!E15/'2-18-2'!$B15*100 -> 4.328755722 | F15: ='2-18-1'!F15/'2-18-2'!$B15*100 -> 3.016501113 | G15: ='2-18-1'!G15/'2-18-2'!$B15*100 -> 4.029428794 | H15: ='2-18-1'!H15/'2-18-2'!$B15*100 -> 7.649441821 | I15: ='2-18-1'!I15/'2-18-2'!$B15*100 -> 1.828059129 | J15: ='2-18-1'!J15/'2-18-2'!$B15*100 -> 0.6282816769 | K15: ='2-18-1'!K15/'2-18-2'!$B15*100 -> 15.94885017 | L15: ='2-18-1'!L15/'2-18-2'!$B15*100 -> 2.667625613 | M15: ='2-18-1'!M15/'2-18-2'!$B15*100 -> 2.698936112 | N15: ='2-18-1'!N15/'2-18-2'!$B15*100 -> 2.619868281 | O15: ='2-18-1'!O15/'2-18-2'!$B15*100 -> 3.769834808 | P15: ='2-18-1'!P15/'2-18-2'!$B15*100 -> 1.819790479 | Q15: ='2-18-1'!Q15/'2-18-2'!$B15*100 -> 4.545468527 | R15: ='2-18-1'!R15/'2-18-2'!$B15*100 -> 2.859894335 | S15: ='2-18-1'!S15/'2-18-2'!$B15*100 -> 0.7881181132
A16: 국·공립 National & Pub. | B16: ='2-18-1'!B16 -> 4939906 | C16: ='2-18-1'!C16/'2-18-2'!$B16*100 -> 26.19323121 | D16: ='2-18-1'!D16/'2-18-2'!$B16*100 -> 8.191269227 | E16: ='2-18-1'!E16/'2-18-2'!$B16*100 -> 8.405301639 | F16: ='2-18-1'!F16/'2-18-2'!$B16*100 -> 0.9325278659 | G16: ='2-18-1'!G16/'2-18-2'!$B16*100 -> 6.775655245 | H16: ='2-18-1'!H16/'2-18-2'!$B16*100 -> 15.26873183 | I16: ='2-18-1'!I16/'2-18-2'!$B16*100 -> 3.376299063 | J16: ='2-18-1'!J16/'2-18-2'!$B16*100 -> 0.08803811247 | K16: ='2-18-1'!K16/'2-18-2'!$B16*100 -> 2.24664194 | L16: ='2-18-1'!L16/'2-18-2'!$B16*100 -> 3.843959784 | M16: ='2-18-1'!M16/'2-18-2'!$B16*100 -> 4.491887093 | N16: ='2-18-1'!N16/'2-18-2'!$B16*100 -> 1.670983213 | O16: ='2-18-1'!O16/'2-18-2'!$B16*100 -> 6.488159896 | P16: ='2-18-1'!P16/'2-18-2'!$B16*100 -> 3.557253923 | Q16: ='2-18-1'!Q16/'2-18-2'!$B16*100 -> 1.231744086 | R16: ='2-18-1'!R16/'2-18-2'!$B16*100 -> 5.479537465 | S16: ='2-18-1'!S16/'2-18-2'!$B16*100 -> 1.758778406
A17: 사립 Private | B17: ='2-18-1'!B17 -> 6113894 | C17: ='2-18-1'!C17/'2-18-2'!$B17*100 -> 43.4669623 | D17: ='2-18-1'!D17/'2-18-2'!$B17*100 -> 2.518705754 | E17: ='2-18-1'!E17/'2-18-2'!$B17*100 -> 1.034986868 | F17: ='2-18-1'!F17/'2-18-2'!$B17*100 -> 4.700310473 | G17: ='2-18-1'!G17/'2-18-2'!$B17*100 -> 1.81053188 | H17: ='2-18-1'!H17/'2-18-2'!$B17*100 -> 1.493205476 | I17: ='2-18-1'!I17/'2-18-2'!$B17*100 -> 0.5771117393 | J17: ='2-18-1'!J17/'2-18-2'!$B17*100 -> 1.064787842 | K17: ='2-18-1'!K17/'2-18-2'!$B17*100 -> 27.01996469 | L17: ='2-18-1'!L17/'2-18-2'!$B17*100 -> 1.717170759 | M17: ='2-18-1'!M17/'2-18-2'!$B17*100 -> 1.250267015 | N17: ='2-18-1'!N17/'2-18-2'!$B17*100 -> 3.386548736 | O17: ='2-18-1'!O17/'2-18-2'!$B17*100 -> 1.573481647 | P17: ='2-18-1'!P17/'2-18-2'!$B17*100 -> 0.4159542184 | Q17: ='2-18-1'!Q17/'2-18-2'!$B17*100 -> 7.222892644 | R17: ='2-18-1'!R17/'2-18-2'!$B17*100 -> 0.7432742537 | S17: ='2-18-1'!S17/'2-18-2'!$B17*100 -> 0.003843704192
A18: 기업체 Business enterprises | B18: ='2-18-1'!B18 -> 106698834.8 | C18: ='2-18-1'!C18/'2-18-2'!$B18*100 -> 13.78387278 | D18: ='2-18-1'!D18/'2-18-2'!$B18*100 -> 0.9352490097 | E18: ='2-18-1'!E18/'2-18-2'!$B18*100 -> 0.836332713 | F18: ='2-18-1'!F18/'2-18-2'!$B18*100 -> 2.872735232 | G18: ='2-18-1'!G18/'2-18-2'!$B18*100 -> 0.4356988797 | H18: ='2-18-1'!H18/'2-18-2'!$B18*100 -> 4.24362672 | I18: ='2-18-1'!I18/'2-18-2'!$B18*100 -> 0.6040057074 | J18: ='2-18-1'!J18/'2-18-2'!$B18*100 -> 0.3014927263 | K18: ='2-18-1'!K18/'2-18-2'!$B18*100 -> 64.7793312 | L18: ='2-18-1'!L18/'2-18-2'!$B18*100 -> 0.2903621924 | M18: ='2-18-1'!M18/'2-18-2'!$B18*100 -> 1.329616255 | N18: ='2-18-1'!N18/'2-18-2'!$B18*100 -> 3.658873824 | O18: ='2-18-1'!O18/'2-18-2'!$B18*100 -> 0.5701409346 | P18: ='2-18-1'!P18/'2-18-2'!$B18*100 -> 0.4500925608 | Q18: ='2-18-1'!Q18/'2-18-2'!$B18*100 -> 2.740053429 | R18: ='2-18-1'!R18/'2-18-2'!$B18*100 -> 2.121862959 | S18: ='2-18-1'!S18/'2-18-2'!$B18*100 -> 0.04665288246
A19: 정부투자기관 Gov't investment | B19: ='2-18-1'!B19 -> 807763 | C19: ='2-18-1'!C19/'2-18-2'!$B19*100 -> 2.929200768 | D19: ='2-18-1'!D19/'2-18-2'!$B19*100 -> 0.3176674346 | E19: ='2-18-1'!E19/'2-18-2'!$B19*100 -> 0.7512104417 | F19: ='2-18-1'!F19/'2-18-2'!$B19*100 -> 2.543320256 | G19: ='2-18-1'!G19/'2-18-2'!$B19*100 -> 0.000247597377 | H19: ='2-18-1'!H19/'2-18-2'!$B19*100 -> 62.7805433 | I19: ='2-18-1'!I19/'2-18-2'!$B19*100 -> 0.01584623213 | J19: ='2-18-1'!J19/'2-18-2'!$B19*100 -> 0 | K19: ='2-18-1'!K19/'2-18-2'!$B19*100 -> 14.1494473 | L19: ='2-18-1'!L19/'2-18-2'!$B19*100 -> 1.163460074 | M19: ='2-18-1'!M19/'2-18-2'!$B19*100 -> 0.8526015675 | N19: ='2-18-1'!N19/'2-18-2'!$B19*100 -> 0 | O19: ='2-18-1'!O19/'2-18-2'!$B19*100 -> 2.408255887 | P19: ='2-18-1'!P19/'2-18-2'!$B19*100 -> 4.683304385 | Q19: ='2-18-1'!Q19/'2-18-2'!$B19*100 -> 7.02186161 | R19: ='2-18-1'!R19/'2-18-2'!$B19*100 -> 0.3106109094 | S19: ='2-18-1'!S19/'2-18-2'!$B19*100 -> 0.07242223276
A20: 민간기업 Private companies | B20: ='2-18-1'!B20 -> 105891071.8 | C20: ='2-18-1'!C20/'2-18-2'!$B20*100 -> 13.86667487 | D20: ='2-18-1'!D20/'2-18-2'!$B20*100 -> 0.939960073 | E20: ='2-18-1'!E20/'2-18-2'!$B20*100 -> 0.8369820465 | F20: ='2-18-1'!F20/'2-18-2'!$B20*100 -> 2.87524809 | G20: ='2-18-1'!G20/'2-18-2'!$B20*100 -> 0.4390206086 | H20: ='2-18-1'!H20/'2-18-2'!$B20*100 -> 3.7970928 | I20: ='2-18-1'!I20/'2-18-2'!$B20*100 -> 0.6084923317 | J20: ='2-18-1'!J20/'2-18-2'!$B20*100 -> 0.3037925865 | K20: ='2-18-1'!K20/'2-18-2'!$B20*100 -> 65.16554834 | L20: ='2-18-1'!L20/'2-18-2'!$B20*100 -> 0.2837019881 | M20: ='2-18-1'!M20/'2-18-2'!$B20*100 -> 1.33325504 | N20: ='2-18-1'!N20/'2-18-2'!$B20*100 -> 3.686784609 | O20: ='2-18-1'!O20/'2-18-2'!$B20*100 -> 0.556119344 | P20: ='2-18-1'!P20/'2-18-2'!$B20*100 -> 0.4178005854 | Q20: ='2-18-1'!Q20/'2-18-2'!$B20*100 -> 2.707390749 | R20: ='2-18-1'!R20/'2-18-2'!$B20*100 -> 2.135679633 | S20: ='2-18-1'!S20/'2-18-2'!$B20*100 -> 0.04645630756

Sheet 2-19-1
A1: 2-19-1) 2024년도 연구수행주체별 연구개발인력(지역)
A2: R&D personnel(region) by sector of performance, 2024
S4: (단위 : 명 Unit : Headcount)
A5: 연구수행주체 Sector of performance | B5: 연구개발 인력 R&D personnel | C5: 지역 Region
C6: 서울 Seoul | D6: 부산 Busan | E6: 대구 Daegu | F6: 인천 Incheon | G6: 광주 Gwangju | H6: 대전 Daejeon | I6: 울산 Ulsan | J6: 세종 Sejong | K6: 경기 Gyeonggi | L6: 강원 Gangwon | M6: 충북 Chungbuk | N6: 충남 Chungnam | O6: 전북 Jeonbuk | P6: 전남 Jeonnam | Q6: 경북 Gyeongbuk | R6: 경남 Gyeongnam | S6: 제주 Jeju
A7: 총계 Total | B7: 839582 | C7: 220897 | D7: 26715 | E7: 21658 | F7: 31734 | G7: 14360 | H7: 56937 | I7: 10740 | J7: 7412 | K7: 291840 | L7: 12168 | M7: 24312 | N7: 26930 | O7: 17698 | P7: 10546 | Q7: 29038 | R7: 33124 | S7: 3473
A8: 공공연구기관 Public research institutes | B8: 72769 | C8: 8924 | D8: 2911 | E8: 2022 | F8: 2497 | G8: 1204 | H8: 17026 | I8: 1100 | J8: 3541 | K8: 8933 | L8: 1911 | M8: 4768 | N8: 2564 | O8: 4588 | P8: 2121 | Q8: 3168 | R8: 4519 | S8: 972
A9: 국·공립 National & Pub. | B9: 13418 | C9: 420 | D9: 454 | E9: 174 | F9: 1028 | G9: 208 | H9: 383 | I9: 240 | J9: 36 | K9: 817 | L9: 1042 | M9: 1522 | N9: 1066 | O9: 2714 | P9: 906 | Q9: 919 | R9: 948 | S9: 541
A10: 정부출연 Gov't funded | B10: 35760 | C10: 3539 | D10: 1228 | E10: 529 | F10: 685 | G10: 351 | H10: 16339 | I10: 444 | J10: 3383 | K10: 1862 | L10: 243 | M10: 2147 | N10: 625 | O10: 1023 | P10: 444 | Q10: 259 | R10: 2543 | S10: 116
A11: 지방자치단체출연 Local gov't funded | B11: 4663 | C11: 297 | D11: 249 | E11: 226 | F11: 141 | G11: 111 | H11: 12 | I11: 116 | J11: 7 | K11: 453 | L11: 294 | M11: 314 | N11: 108 | O11: 397 | P11: 423 | Q11: 785 | R11: 447 | S11: 283
A12: 기타비영리 Other non-profit corporation | B12: 16900 | C12: 3238 | D12: 954 | E12: 1074 | F12: 626 | G12: 534 | H12: 292 | I12: 300 | J12: 115 | K12: 5467 | L12: 240 | M12: 769 | N12: 752 | O12: 454 | P12: 309 | Q12: 1196 | R12: 548 | S12: 32
A13: 국·공립병원 National & Pub. hospital | B13: 591 | C13: 485 | D13: 5 | E13: 0 | F13: 8 | G13: 0 | H13: 0 | I13: 0 | J13: 0 | K13: 15 | L13: 7 | M13: 16 | N13: 13 | O13: 0 | P13: 29 | Q13: 0 | R13: 13 | S13: 0
A14: 사립병원 Private hospital | B14: 1437 | C14: 945 | D14: 21 | E14: 19 | F14: 9 | G14: 0 | H14: 0 | I14: 0 | J14: 0 | K14: 319 | L14: 85 | M14: 0 | N14: 0 | O14: 0 | P14: 10 | Q14: 9 | R14: 20 | S14: 0
A15: 대학 Higher educations | B15: 233795 | C15: 86921 | D15: 12001 | E15: 9804 | F15: 7166 | G15: 8519 | H15: 15527 | I15: 3922 | J15: 1793 | K15: 31899 | L15: 7115 | M15: 8035 | N15: 7718 | O15: 7040 | P15: 4168 | Q15: 11326 | R15: 9081 | S15: 1760
A16: 국·공립 National & Pub. | B16: 93210 | C16: 20194 | D16: 7216 | E16: 7913 | F16: 490 | G16: 6309 | H16: 13605 | I16: 2912 | J16: 160 | K16: 1868 | L16: 3531 | M16: 6171 | N16: 2290 | O16: 4835 | P16: 3625 | Q16: 2542 | R16: 7819 | S16: 1730
A17: 사립 Private | B17: 140585 | C17: 66727 | D17: 4785 | E17: 1891 | F17: 6676 | G17: 2210 | H17: 1922 | I17: 1010 | J17: 1633 | K17: 30031 | L17: 3584 | M17: 1864 | N17: 5428 | O17: 2205 | P17: 543 | Q17: 8784 | R17: 1262 | S17: 30
A18: 기업체 Business enterprises | B18: 533018 | C18: 125052 | D18: 11803 | E18: 9832 | F18: 22071 | G18: 4637 | H18: 24384 | I18: 5718 | J18: 2078 | K18: 251008 | L18: 3142 | M18: 11509 | N18: 16648 | O18: 6070 | P18: 4257 | Q18: 14544 | R18: 19524 | S18: 741
A19: 정부투자기관 Gov't investment | B19: 3977 | C19: 232 | D19: 20 | E19: 54 | F19: 134 | G19: 1 | H19: 1935 | I19: 3 | J19: 0 | K19: 597 | L19: 64 | M19: 65 | N19: 0 | O19: 111 | P19: 183 | Q19: 532 | R19: 25 | S19: 21
A20: 민간기업 Private companies | B20: 529041 | C20: 124820 | D20: 11783 | E20: 9778 | F20: 21937 | G20: 4636 | H20: 22449 | I20: 5715 | J20: 2078 | K20: 250411 | L20: 3078 | M20: 11444 | N20: 16648 | O20: 5959 | P20: 4074 | Q20: 14012 | R20: 19499 | S20: 720

Sheet 2-19-2
A1: 2-19-2) 2024년도 연구수행주체별 연구개발인력 비중(지역)
A2: R&D personnel rate(region) by sector of performance, 2024
S4: (단위 : % Unit : %)
A5: 연구수행주체 Sector of performance | B5: 연구개발 인력(명) R&D personnel (headcount) | C5: 지역 Region
C6: 서울 Seoul | D6: 부산 Busan | E6: 대구 Daegu | F6: 인천 Incheon | G6: 광주 Gwangju | H6: 대전 Daejeon | I6: 울산 Ulsan | J6: 세종 Sejong | K6: 경기 Gyeonggi | L6: 강원 Gangwon | M6: 충북 Chungbuk | N6: 충남 Chungnam | O6: 전북 Jeonbuk | P6: 전남 Jeonnam | Q6: 경북 Gyeongbuk | R6: 경남 Gyeongnam | S6: 제주 Jeju
A7: 총계 Total | B7: ='2-19-1'!B7 -> 839582 | C7: ='2-19-1'!C7/'2-19-1'!$B7*100 -> 26.31035444 | D7: ='2-19-1'!D7/'2-19-1'!$B7*100 -> 3.181940537 | E7: ='2-19-1'!E7/'2-19-1'!$B7*100 -> 2.579617 | F7: ='2-19-1'!F7/'2-19-1'!$B7*100 -> 3.779738012 | G7: ='2-19-1'!G7/'2-19-1'!$B7*100 -> 1.710374925 | H7: ='2-19-1'!H7/'2-19-1'!$B7*100 -> 6.781588934 | I7: ='2-19-1'!I7/'2-19-1'!$B7*100 -> 1.279207987 | J7: ='2-19-1'!J7/'2-19-1'!$B7*100 -> 0.8828202606 | K7: ='2-19-1'!K7/'2-19-1'!$B7*100 -> 34.76015446 | L7: ='2-19-1'!L7/'2-19-1'!$B7*100 -> 1.449292624 | M7: ='2-19-1'!M7/'2-19-1'!$B7*100 -> 2.895726683 | N7: ='2-19-1'!N7/'2-19-1'!$B7*100 -> 3.207548518 | O7: ='2-19-1'!O7/'2-19-1'!$B7*100 -> 2.10795372 | P7: ='2-19-1'!P7/'2-19-1'!$B7*100 -> 1.25610125 | Q7: ='2-19-1'!Q7/'2-19-1'!$B7*100 -> 3.45862584 | R7: ='2-19-1'!R7/'2-19-1'!$B7*100 -> 3.945296588 | S7: ='2-19-1'!S7/'2-19-1'!$B7*100 -> 0.4136582252
A8: 공공연구기관 Public research institutes | B8: ='2-19-1'!B8 -> 72769 | C8: ='2-19-1'!C8/'2-19-1'!$B8*100 -> 12.26346384 | D8: ='2-19-1'!D8/'2-19-1'!$B8*100 -> 4.000329811 | E8: ='2-19-1'!E8/'2-19-1'!$B8*100 -> 2.778655746 | F8: ='2-19-1'!F8/'2-19-1'!$B8*100 -> 3.431406231 | G8: ='2-19-1'!G8/'2-19-1'!$B8*100 -> 1.654550702 | H8: ='2-19-1'!H8/'2-19-1'!$B8*100 -> 23.39732578 | I8: ='2-19-1'!I8/'2-19-1'!$B8*100 -> 1.511632701 | J8: ='2-19-1'!J8/'2-19-1'!$B8*100 -> 4.866083085 | K8: ='2-19-1'!K8/'2-19-1'!$B8*100 -> 12.27583174 | L8: ='2-19-1'!L8/'2-19-1'!$B8*100 -> 2.626118265 | M8: ='2-19-1'!M8/'2-19-1'!$B8*100 -> 6.552240652 | N8: ='2-19-1'!N8/'2-19-1'!$B8*100 -> 3.523478404 | O8: ='2-19-1'!O8/'2-19-1'!$B8*100 -> 6.304882574 | P8: ='2-19-1'!P8/'2-19-1'!$B8*100 -> 2.914702689 | Q8: ='2-19-1'!Q8/'2-19-1'!$B8*100 -> 4.353502178 | R8: ='2-19-1'!R8/'2-19-1'!$B8*100 -> 6.210061977 | S8: ='2-19-1'!S8/'2-19-1'!$B8*100 -> 1.335733623
A9: 국·공립 National & Pub. | B9: ='2-19-1'!B9 -> 13418 | C9: ='2-19-1'!C9/'2-19-1'!$B9*100 -> 3.130123714 | D9: ='2-19-1'!D9/'2-19-1'!$B9*100 -> 3.383514682 | E9: ='2-19-1'!E9/'2-19-1'!$B9*100 -> 1.296765539 | F9: ='2-19-1'!F9/'2-19-1'!$B9*100 -> 7.661350425 | G9: ='2-19-1'!G9/'2-19-1'!$B9*100 -> 1.550156506 | H9: ='2-19-1'!H9/'2-19-1'!$B9*100 -> 2.854374721 | I9: ='2-19-1'!I9/'2-19-1'!$B9*100 -> 1.788642123 | J9: ='2-19-1'!J9/'2-19-1'!$B9*100 -> 0.2682963184 | K9: ='2-19-1'!K9/'2-19-1'!$B9*100 -> 6.088835892 | L9: ='2-19-1'!L9/'2-19-1'!$B9*100 -> 7.765687882 | M9: ='2-19-1'!M9/'2-19-1'!$B9*100 -> 11.34297213 | N9: ='2-19-1'!N9/'2-19-1'!$B9*100 -> 7.944552094 | O9: ='2-19-1'!O9/'2-19-1'!$B9*100 -> 20.22656134 | P9: ='2-19-1'!P9/'2-19-1'!$B9*100 -> 6.752124013 | Q9: ='2-19-1'!Q9/'2-19-1'!$B9*100 -> 6.849008794 | R9: ='2-19-1'!R9/'2-19-1'!$B9*100 -> 7.065136384 | S9: ='2-19-1'!S9/'2-19-1'!$B9*100 -> 4.031897451
A10: 정부출연 Gov't funded | B10: ='2-19-1'!B10 -> 35760 | C10: ='2-19-1'!C10/'2-19-1'!$B10*100 -> 9.896532438 | D10: ='2-19-1'!D10/'2-19-1'!$B10*100 -> 3.434004474 | E10: ='2-19-1'!E10/'2-19-1'!$B10*100 -> 1.479306488 | F10: ='2-19-1'!F10/'2-19-1'!$B10*100 -> 1.915548098 | G10: ='2-19-1'!G10/'2-19-1'!$B10*100 -> 0.9815436242 | H10: ='2-19-1'!H10/'2-19-1'!$B10*100 -> 45.69071588 | I10: ='2-19-1'!I10/'2-19-1'!$B10*100 -> 1.241610738 | J10: ='2-19-1'!J10/'2-19-1'!$B10*100 -> 9.460290828 | K10: ='2-19-1'!K10/'2-19-1'!$B10*100 -> 5.206935123 | L10: ='2-19-1'!L10/'2-19-1'!$B10*100 -> 0.6795302013 | M10: ='2-19-1'!M10/'2-19-1'!$B10*100 -> 6.003914989 | N10: ='2-19-1'!N10/'2-19-1'!$B10*100 -> 1.747762864 | O10: ='2-19-1'!O10/'2-19-1'!$B10*100 -> 2.860738255 | P10: ='2-19-1'!P10/'2-19-1'!$B10*100 -> 1.241610738 | Q10: ='2-19-1'!Q10/'2-19-1'!$B10*100 -> 0.7242729306 | R10: ='2-19-1'!R10/'2-19-1'!$B10*100 -> 7.111297539 | S10: ='2-19-1'!S10/'2-19-1'!$B10*100 -> 0.3243847875
A11: 지방자치단체출연 Local gov't funded | B11: ='2-19-1'!B11 -> 4663 | C11: ='2-19-1'!C11/'2-19-1'!$B11*100 -> 6.369290157 | D11: ='2-19-1'!D11/'2-19-1'!$B11*100 -> 5.339909929 | E11: ='2-19-1'!E11/'2-19-1'!$B11*100 -> 4.846665237 | F11: ='2-19-1'!F11/'2-19-1'!$B11*100 -> 3.023804418 | G11: ='2-19-1'!G11/'2-19-1'!$B11*100 -> 2.380441776 | H11: ='2-19-1'!H11/'2-19-1'!$B11*100 -> 0.2573450568 | I11: ='2-19-1'!I11/'2-19-1'!$B11*100 -> 2.487668883 | J11: ='2-19-1'!J11/'2-19-1'!$B11*100 -> 0.1501179498 | K11: ='2-19-1'!K11/'2-19-1'!$B11*100 -> 9.714775895 | L11: ='2-19-1'!L11/'2-19-1'!$B11*100 -> 6.304953892 | M11: ='2-19-1'!M11/'2-19-1'!$B11*100 -> 6.73386232 | N11: ='2-19-1'!N11/'2-19-1'!$B11*100 -> 2.316105511 | O11: ='2-19-1'!O11/'2-19-1'!$B11*100 -> 8.513832297 | P11: ='2-19-1'!P11/'2-19-1'!$B11*100 -> 9.071413253 | Q11: ='2-19-1'!Q11/'2-19-1'!$B11*100 -> 16.8346558 | R11: ='2-19-1'!R11/'2-19-1'!$B11*100 -> 9.586103367 | S11: ='2-19-1'!S11/'2-19-1'!$B11*100 -> 6.069054257
A12: 기타비영리 Other non-profit corporation | B12: ='2-19-1'!B12 -> 16900 | C12: ='2-19-1'!C12/'2-19-1'!$B12*100 -> 19.15976331 | D12: ='2-19-1'!D12/'2-19-1'!$B12*100 -> 5.644970414 | E12: ='2-19-1'!E12/'2-19-1'!$B12*100 -> 6.355029586 | F12: ='2-19-1'!F12/'2-19-1'!$B12*100 -> 3.704142012 | G12: ='2-19-1'!G12/'2-19-1'!$B12*100 -> 3.159763314 | H12: ='2-19-1'!H12/'2-19-1'!$B12*100 -> 1.727810651 | I12: ='2-19-1'!I12/'2-19-1'!$B12*100 -> 1.775147929 | J12: ='2-19-1'!J12/'2-19-1'!$B12*100 -> 0.6804733728 | K12: ='2-19-1'!K12/'2-19-1'!$B12*100 -> 32.34911243 | L12: ='2-19-1'!L12/'2-19-1'!$B12*100 -> 1.420118343 | M12: ='2-19-1'!M12/'2-19-1'!$B12*100 -> 4.550295858 | N12: ='2-19-1'!N12/'2-19-1'!$B12*100 -> 4.449704142 | O12: ='2-19-1'!O12/'2-19-1'!$B12*100 -> 2.686390533 | P12: ='2-19-1'!P12/'2-19-1'!$B12*100 -> 1.828402367 | Q12: ='2-19-1'!Q12/'2-19-1'!$B12*100 -> 7.076923077 | R12: ='2-19-1'!R12/'2-19-1'!$B12*100 -> 3.24260355 | S12: ='2-19-1'!S12/'2-19-1'!$B12*100 -> 0.1893491124
A13: 국·공립병원 National & Pub. hospital | B13: ='2-19-1'!B13 -> 591 | C13: ='2-19-1'!C13/'2-19-1'!$B13*100 -> 82.0642978 | D13: ='2-19-1'!D13/'2-19-1'!$B13*100 -> 0.8460236887 | E13: ='2-19-1'!E13/'2-19-1'!$B13*100 -> 0 | F13: ='2-19-1'!F13/'2-19-1'!$B13*100 -> 1.353637902 | G13: ='2-19-1'!G13/'2-19-1'!$B13*100 -> 0 | H13: ='2-19-1'!H13/'2-19-1'!$B13*100 -> 0 | I13: ='2-19-1'!I13/'2-19-1'!$B13*100 -> 0 | J13: ='2-19-1'!J13/'2-19-1'!$B13*100 -> 0 | K13: ='2-19-1'!K13/'2-19-1'!$B13*100 -> 2.538071066 | L13: ='2-19-1'!L13/'2-19-1'!$B13*100 -> 1.184433164 | M13: ='2-19-1'!M13/'2-19-1'!$B13*100 -> 2.707275804 | N13: ='2-19-1'!N13/'2-19-1'!$B13*100 -> 2.199661591 | O13: ='2-19-1'!O13/'2-19-1'!$B13*100 -> 0 | P13: ='2-19-1'!P13/'2-19-1'!$B13*100 -> 4.906937394 | Q13: ='2-19-1'!Q13/'2-19-1'!$B13*100 -> 0 | R13: ='2-19-1'!R13/'2-19-1'!$B13*100 -> 2.199661591 | S13: ='2-19-1'!S13/'2-19-1'!$B13*100 -> 0
A14: 사립병원 Private hospital | B14: ='2-19-1'!B14 -> 1437 | C14: ='2-19-1'!C14/'2-19-1'!$B14*100 -> 65.76200418 | D14: ='2-19-1'!D14/'2-19-1'!$B14*100 -> 1.461377871 | E14: ='2-19-1'!E14/'2-19-1'!$B14*100 -> 1.322199026 | F14: ='2-19-1'!F14/'2-19-1'!$B14*100 -> 0.6263048017 | G14: ='2-19-1'!G14/'2-19-1'!$B14*100 -> 0 | H14: ='2-19-1'!H14/'2-19-1'!$B14*100 -> 0 | I14: ='2-19-1'!I14/'2-19-1'!$B14*100 -> 0 | J14: ='2-19-1'!J14/'2-19-1'!$B14*100 -> 0 | K14: ='2-19-1'!K14/'2-19-1'!$B14*100 -> 22.19902575 | L14: ='2-19-1'!L14/'2-19-1'!$B14*100 -> 5.915100905 | M14: ='2-19-1'!M14/'2-19-1'!$B14*100 -> 0 | N14: ='2-19-1'!N14/'2-19-1'!$B14*100 -> 0 | O14: ='2-19-1'!O14/'2-19-1'!$B14*100 -> 0 | P14: ='2-19-1'!P14/'2-19-1'!$B14*100 -> 0.6958942241 | Q14: ='2-19-1'!Q14/'2-19-1'!$B14*100 -> 0.6263048017 | R14: ='2-19-1'!R14/'2-19-1'!$B14*100 -> 1.391788448 | S14: ='2-19-1'!S14/'2-19-1'!$B14*100 -> 0
